Workbook

Sheet Select School
A1: Report on % Students Likely to be Proficient on FSA at the End of School Year (2016-17)
B3: =VLOOKUP(C3,SchList!$I$1:$J$280,2,FALSE) -> 9999 | C3: 1
L5: =B3 -> 9999

Sheet ELA Report
A2: Click here to return to the school and sheet selection interface | R2: =A3 -> 9999
A3: ='Select School'!B3 -> 9999
A4: =TEXT(A3,"0000")&"-"&VLOOKUP(A3,SchList!$A$2:$B$500,2,FALSE) -> 9999-District (9999) | T4: Math
T5: Grade | U5: Group | V5: Grade 3 | W5: Grade 4 | X5: Grade 5 | Y5: Grade 6 | Z5: Grade 7 | AA5: Grade 8
T6: School | U6: 2016 FSA ELA | V6: =IF(B18<10,#N/A,IFERROR(VLOOKUP(TEXT($A$3,"0000"),'2016 FSA ELA'!$A$9:$O$500,15,FALSE),#N/A)) -> 54 | W6: =IF(B19<10,#N/A,IFERROR(VLOOKUP(TEXT($A$3,"0000"),'2016 FSA ELA'!$P$9:$AD$500,15,FALSE),#N/A)) -> 53 | X6: =IF(B20<10,#N/A,IFERROR(VLOOKUP(TEXT($A$3,"0000"),'2016 FSA ELA'!$AE$9:$AS$500,15,FALSE),#N/A)) -> 54 | Y6: =IF(B21<10,#N/A,IFERROR(VLOOKUP(TEXT($A$3,"0000"),'2016 FSA ELA'!$AT$9:$BH$500,15,FALSE),#N/A)) -> 51 | Z6: =IF(B22<10,#N/A,IFERROR(VLOOKUP(TEXT($A$3,"0000"),'2016 FSA ELA'!$BI$9:$BW$500,15,FALSE),#N/A)) -> 48 | AA6: =IF(B23<10,#N/A,IFERROR(VLOOKUP(TEXT($A$3,"0000"),'2016 FSA ELA'!$BX$9:$CL$500,15,FALSE),#N/A)) -> 56
T7: School | U7: %Predicted in 2017 | V7: =IF(D18<10,#N/A,IFERROR(ROUND(VLOOKUP(TEXT($A$3,"0000"),'iReady ELA'!$A$7:$N$500,4,FALSE)*100,0),#N/A)) -> 50 | W7: =IF(D19<10,#N/A,IFERROR(ROUND(VLOOKUP(TEXT($A$3,"0000"),'iReady ELA'!$O$7:$AB$500,4,FALSE)*100,0),#N/A)) -> 55 | X7: =IF(D20<10,#N/A,IFERROR(ROUND(VLOOKUP(TEXT($A$3,"0000"),'iReady ELA'!$AC$7:$AP$500,4,FALSE)*100,0),#N/A)) -> 51 | Y7: =IF(D21<10,#N/A,IFERROR(ROUND(VLOOKUP(TEXT($A$3,"0000"),'iReady ELA'!$AQ$7:$BD$500,4,FALSE)*100,0),#N/A)) -> 50 | Z7: =IF(D22<10,#N/A,IFERROR(ROUND(VLOOKUP(TEXT($A$3,"0000"),'iReady ELA'!$BE$7:$BR$500,4,FALSE)*100,0),#N/A)) -> 49 | AA7: =IF(D23<10,#N/A,IFERROR(ROUND(VLOOKUP(TEXT($A$3,"0000"),'iReady ELA'!$BS$7:$CF$500,4,FALSE)*100,0),#N/A)) -> 57
A16: Grade | B16: Number of Student Assessed on 2016 FSA ELA | C16: % Students Scoring Levels 3-5 on 2016 FSA | D16: Number of Students Assessed on i-Ready | E16: % of Students Likely to be Proficient (L3-5) on FSA by the End of the Year (2016-17) | F16: Margin of Error | G16: Min-Max of % of Students Likely to be Proficient with 99% Confidence | H16: % of Students on 2016 FSA ELA at Each Achievement Level and % of Students Likely to be Proficient (% Predicted) at Each Achievement Level on FSA by the End of the Year (2016-17)
H17: 2016 FSA L1 | I17: Predicted L1 | J17: 2016 FSA L2 | K17: Predicted L2 | L17: 2016 FSA L3 | M17: Predicted L3 | N17: 2016 FSA L4 | O17: Predicted L4 | P17: 2016 FSA L5 | Q17: Predicted L5
A18: 3 | B18: =IFERROR(VLOOKUP(TEXT($A$3,"0000"),'2016 FSA ELA'!$A$9:$O$500,13,FALSE),0) -> 27786 | C18: =IFERROR(VLOOKUP(TEXT($A$3,"0000"),'2016 FSA ELA'!$A$9:$O$500,15,FALSE),"") -> 54 | D18: =IFERROR(VLOOKUP(TEXT($A$3,"0000"),'iReady ELA'!$A$7:$N$500,3,FALSE),0) -> 23436 | E18: =IF(D18<10,"",IFERROR(ROUND(VLOOKUP(TEXT($A$3,"0000"),'iReady ELA'!$A$7:$N$500,4,FALSE)*100,0),"")) -> 50 | F18: =IFERROR(VLOOKUP(TEXT($A$3,"0000"),'iReady ELA'!$A$7:$N$500,5,FALSE),"") -> ±3% | G18: =IFERROR(VLOOKUP(TEXT($A$3,"0000"),'iReady ELA'!$A$7:$N$500,9,FALSE),"") -> 47% - 53% | H18: =IF($B18<10,"",IFERROR(VLOOKUP(TEXT($A$3,"0000"),'2016 FSA ELA'!$A$9:$O$500,8,FALSE)*100,"")) -> 23.65579788 | I18: =IF($D18<10,"",IFERROR((VLOOKUP(TEXT($A$3,"0000"),'iReady ELA'!$A$7:$N$500,10,FALSE)*100),"")) -> 26.22857996 | J18: =IF($B18<10,"",IFERROR(VLOOKUP(TEXT($A$3,"0000"),'2016 FSA ELA'!$A$9:$O$500,9,FALSE)*100,"")) -> 22.05787087 | K18: =IF($D18<10,"",IFERROR((VLOOKUP(TEXT($A$3,"0000"),'iReady ELA'!$A$7:$N$500,11,FALSE)*100),"")) -> 23.28989589 | L18: =IF($B18<10,"",IFERROR(VLOOKUP(TEXT($A$3,"0000"),'2016 FSA ELA'!$A$9:$O$500,10,FALSE)*100,"")) -> 25.92672569 | M18: =IF($D18<10,"",IFERROR((VLOOKUP(TEXT($A$3,"0000"),'iReady ELA'!$A$7:$N$500,12,FALSE)*100),"")) -> 25.36435399 | N18: =IF($B18<10,"",IFERROR(VLOOKUP(TEXT($A$3,"0000"),'2016 FSA ELA'!$A$9:$O$500,11,FALSE)*100,"")) -> 19.27589434 | O18: =IF($D18<10,"",IFERROR((VLOOKUP(TEXT($A$3,"0000"),'iReady ELA'!$A$7:$N$500,13,FALSE)*100),"")) -> 17.42494453 | P18: =IF($B18<10,"",IFERROR(VLOOKUP(TEXT($A$3,"0000"),'2016 FSA ELA'!$A$9:$O$500,12,FALSE)*100,"")) -> 9.083711221 | Q18: =IF($D18<10,"",IFERROR((VLOOKUP(TEXT($A$3,"0000"),'iReady ELA'!$A$7:$N$500,14,FALSE)*100),"")) -> 7.692225636
A19: 4 | B19: =IFERROR(VLOOKUP(TEXT($A$3,"0000"),'2016 FSA ELA'!$P$9:$AD$500,13,FALSE),0) -> 26781 | C19: =IFERROR(VLOOKUP(TEXT($A$3,"0000"),'2016 FSA ELA'!$P$9:$AD$500,15,FALSE),"") -> 53 | D19: =IFERROR(VLOOKUP(TEXT($A$3,"0000"),'iReady ELA'!$O$7:$AB$500,3,FALSE),0) -> 21317 | E19: =IF(D19<10,"",IFERROR(ROUND(VLOOKUP(TEXT($A$3,"0000"),'iReady ELA'!$O$7:$AB$500,4,FALSE)*100,0),"")) -> 55 | F19: =IFERROR(VLOOKUP(TEXT($A$3,"0000"),'iReady ELA'!$O$7:$AB$500,5,FALSE),"") -> ±3% | G19: =IFERROR(VLOOKUP(TEXT($A$3,"0000"),'iReady ELA'!$O$7:$AB$500,9,FALSE),"") -> 52% - 58% | H19: =IF($B19<10,"",IFERROR(VLOOKUP(TEXT($A$3,"0000"),'2016 FSA ELA'!$P$9:$AD$500,8,FALSE)*100,"")) -> 25.35752959 | I19: =IF($D19<10,"",IFERROR(VLOOKUP(TEXT($A$3,"0000"),'iReady ELA'!$O$7:$AB$500,10,FALSE)*100,"")) -> 23.60815312 | J19: =IF($B19<10,"",IFERROR(VLOOKUP(TEXT($A$3,"0000"),'2016 FSA ELA'!$P$9:$AD$500,9,FALSE)*100,"")) -> 21.38456368 | K19: =IF($D19<10,"",IFERROR(VLOOKUP(TEXT($A$3,"0000"),'iReady ELA'!$O$7:$AB$500,11,FALSE)*100,"")) -> 21.23718159 | L19: =IF($B19<10,"",IFERROR(VLOOKUP(TEXT($A$3,"0000"),'2016 FSA ELA'!$P$9:$AD$500,10,FALSE)*100,"")) -> 25.24550988 | M19: =IF($D19<10,"",IFERROR(VLOOKUP(TEXT($A$3,"0000"),'iReady ELA'!$O$7:$AB$500,12,FALSE)*100,"")) -> 26.94018858 | N19: =IF($B19<10,"",IFERROR(VLOOKUP(TEXT($A$3,"0000"),'2016 FSA ELA'!$P$9:$AD$500,11,FALSE)*100,"")) -> 20.21209066 | O19: =IF($D19<10,"",IFERROR(VLOOKUP(TEXT($A$3,"0000"),'iReady ELA'!$O$7:$AB$500,13,FALSE)*100,"")) -> 20.95712342 | P19: =IF($B19<10,"",IFERROR(VLOOKUP(TEXT($A$3,"0000"),'2016 FSA ELA'!$P$9:$AD$500,12,FALSE)*100,"")) -> 7.800306187 | Q19: =IF($D19<10,"",IFERROR(VLOOKUP(TEXT($A$3,"0000"),'iReady ELA'!$O$7:$AB$500,14,FALSE)*100,"")) -> 7.257353286
A20: 5 | B20: =IFERROR(VLOOKUP(TEXT($A$3,"0000"),'2016 FSA ELA'!$AE$9:$AS$500,13,FALSE),0) -> 25276 | C20: =IFERROR(VLOOKUP(TEXT($A$3,"0000"),'2016 FSA ELA'!$AE$9:$AS$500,15,FALSE),"") -> 54 | D20: =IFERROR(VLOOKUP(TEXT($A$3,"0000"),'iReady ELA'!$AC$7:$AP$500,3,FALSE),0) -> 22514 | E20: =IF(D20<10,"",IFERROR(ROUND(VLOOKUP(TEXT($A$3,"0000"),'iReady ELA'!$AC$7:$AP$500,4,FALSE)*100,0),"")) -> 51 | F20: =IFERROR(VLOOKUP(TEXT($A$3,"0000"),'iReady ELA'!$AC$7:$AP$500,5,FALSE),"") -> ±3% | G20: =IFERROR(VLOOKUP(TEXT($A$3,"0000"),'iReady ELA'!$AC$7:$AP$500,9,FALSE),"") -> 48% - 54% | H20: =IF($B20<10,"",IFERROR(VLOOKUP(TEXT($A$3,"0000"),'2016 FSA ELA'!$AE$9:$AS$500,8,FALSE)*100,"")) -> 21.32457667 | I20: =IF($D20<10,"",IFERROR(VLOOKUP(TEXT($A$3,"0000"),'iReady ELA'!$AC$7:$AP$500,10,FALSE)*100,"")) -> 24.3191641 | J20: =IF($B20<10,"",IFERROR(VLOOKUP(TEXT($A$3,"0000"),'2016 FSA ELA'!$AE$9:$AS$500,9,FALSE)*100,"")) -> 24.59645514 | K20: =IF($D20<10,"",IFERROR(VLOOKUP(TEXT($A$3,"0000"),'iReady ELA'!$AC$7:$AP$500,11,FALSE)*100,"")) -> 23.89181482 | L20: =IF($B20<10,"",IFERROR(VLOOKUP(TEXT($A$3,"0000"),'2016 FSA ELA'!$AE$9:$AS$500,10,FALSE)*100,"")) -> 26.17107137 | M20: =IF($D20<10,"",IFERROR(VLOOKUP(TEXT($A$3,"0000"),'iReady ELA'!$AC$7:$AP$500,12,FALSE)*100,"")) -> 25.29144945 | N20: =IF($B20<10,"",IFERROR(VLOOKUP(TEXT($A$3,"0000"),'2016 FSA ELA'!$AE$9:$AS$500,11,FALSE)*100,"")) -> 19.78556734 | O20: =IF($D20<10,"",IFERROR(VLOOKUP(TEXT($A$3,"0000"),'iReady ELA'!$AC$7:$AP$500,13,FALSE)*100,"")) -> 18.37432607 | P20: =IF($B20<10,"",IFERROR(VLOOKUP(TEXT($A$3,"0000"),'2016 FSA ELA'!$AE$9:$AS$500,12,FALSE)*100,"")) -> 8.122329483 | Q20: =IF($D20<10,"",IFERROR(VLOOKUP(TEXT($A$3,"0000"),'iReady ELA'!$AC$7:$AP$500,14,FALSE)*100,"")) -> 8.123245555
A21: 6 | B21: =IFERROR(VLOOKUP(TEXT($A$3,"0000"),'2016 FSA ELA'!$AT$9:$BH$500,13,FALSE),0) -> 25111 | C21: =IFERROR(VLOOKUP(TEXT($A$3,"0000"),'2016 FSA ELA'!$AT$9:$BH$500,15,FALSE),"") -> 51 | D21: =IFERROR(VLOOKUP(TEXT($A$3,"0000"),'iReady ELA'!$AQ$7:$BD$500,3,FALSE),0) -> 19720 | E21: =IF(D21<10,"",IFERROR(ROUND(VLOOKUP(TEXT($A$3,"0000"),'iReady ELA'!$AQ$7:$BD$500,4,FALSE)*100,0),"")) -> 50 | F21: =IFERROR(VLOOKUP(TEXT($A$3,"0000"),'iReady ELA'!$AQ$7:$BD$500,5,FALSE),"") -> ±3% | G21: =IFERROR(VLOOKUP(TEXT($A$3,"0000"),'iReady ELA'!$AQ$7:$BD$500,9,FALSE),"") -> 47% - 53% | H21: =IF($B21<10,"",IFERROR(VLOOKUP(TEXT($A$3,"0000"),'2016 FSA ELA'!$AT$9:$BH$500,8,FALSE)*100,"")) -> 22.97399546 | I21: =IF($D21<10,"",IFERROR(VLOOKUP(TEXT($A$3,"0000"),'iReady ELA'!$AQ$7:$BD$500,10,FALSE)*100,"")) -> 28.98141321 | J21: =IF($B21<10,"",IFERROR(VLOOKUP(TEXT($A$3,"0000"),'2016 FSA ELA'!$AT$9:$BH$500,9,FALSE)*100,"")) -> 25.86914101 | K21: =IF($D21<10,"",IFERROR(VLOOKUP(TEXT($A$3,"0000"),'iReady ELA'!$AQ$7:$BD$500,11,FALSE)*100,"")) -> 23.52949309 | L21: =IF($B21<10,"",IFERROR(VLOOKUP(TEXT($A$3,"0000"),'2016 FSA ELA'!$AT$9:$BH$500,10,FALSE)*100,"")) -> 21.24566923 | M21: =IF($D21<10,"",IFERROR(VLOOKUP(TEXT($A$3,"0000"),'iReady ELA'!$AQ$7:$BD$500,12,FALSE)*100,"")) -> 23.48689196 | N21: =IF($B21<10,"",IFERROR(VLOOKUP(TEXT($A$3,"0000"),'2016 FSA ELA'!$AT$9:$BH$500,11,FALSE)*100,"")) -> 21.25363387 | O21: =IF($D21<10,"",IFERROR(VLOOKUP(TEXT($A$3,"0000"),'iReady ELA'!$AQ$7:$BD$500,13,FALSE)*100,"")) -> 17.39805428 | P21: =IF($B21<10,"",IFERROR(VLOOKUP(TEXT($A$3,"0000"),'2016 FSA ELA'!$AT$9:$BH$500,12,FALSE)*100,"")) -> 8.657560432 | Q21: =IF($D21<10,"",IFERROR(VLOOKUP(TEXT($A$3,"0000"),'iReady ELA'!$AQ$7:$BD$500,14,FALSE)*100,"")) -> 6.604147465
A22: 7 | B22: =IFERROR(VLOOKUP(TEXT($A$3,"0000"),'2016 FSA ELA'!$BI$9:$BW$500,13,FALSE),0) -> 25721 | C22: =IFERROR(VLOOKUP(TEXT($A$3,"0000"),'2016 FSA ELA'!$BI$9:$BW$500,15,FALSE),"") -> 48 | D22: =IFERROR(VLOOKUP(TEXT($A$3,"0000"),'iReady ELA'!$BE$7:$BR$500,3,FALSE),0) -> 19930 | E22: =IF(D22<10,"",IFERROR(ROUND(VLOOKUP(TEXT($A$3,"0000"),'iReady ELA'!$BE$7:$BR$500,4,FALSE)*100,0),"")) -> 49 | F22: =IFERROR(VLOOKUP(TEXT($A$3,"0000"),'iReady ELA'!$BE$7:$BR$500,5,FALSE),"") -> ±3% | G22: =IFERROR(VLOOKUP(TEXT($A$3,"0000"),'iReady ELA'!$BE$7:$BR$500,9,FALSE),"") -> 46% - 52% | H22: =IF($B22<10,"",IFERROR(VLOOKUP(TEXT($A$3,"0000"),'2016 FSA ELA'!$BI$9:$BW$500,8,FALSE)*100,"")) -> 28.16764511 | I22: =IF($D22<10,"",IFERROR(VLOOKUP(TEXT($A$3,"0000"),'iReady ELA'!$BE$7:$BR$500,10,FALSE)*100,"")) -> 28.23070748 | J22: =IF($B22<10,"",IFERROR(VLOOKUP(TEXT($A$3,"0000"),'2016 FSA ELA'!$BI$9:$BW$500,9,FALSE)*100,"")) -> 23.64993585 | K22: =IF($D22<10,"",IFERROR(VLOOKUP(TEXT($A$3,"0000"),'iReady ELA'!$BE$7:$BR$500,11,FALSE)*100,"")) -> 23.06281987 | L22: =IF($B22<10,"",IFERROR(VLOOKUP(TEXT($A$3,"0000"),'2016 FSA ELA'!$BI$9:$BW$500,10,FALSE)*100,"")) -> 21.29777225 | M22: =IF($D22<10,"",IFERROR(VLOOKUP(TEXT($A$3,"0000"),'iReady ELA'!$BE$7:$BR$500,12,FALSE)*100,"")) -> 23.13913698 | N22: =IF($B22<10,"",IFERROR(VLOOKUP(TEXT($A$3,"0000"),'2016 FSA ELA'!$BI$9:$BW$500,11,FALSE)*100,"")) -> 16.79561448 | O22: =IF($D22<10,"",IFERROR(VLOOKUP(TEXT($A$3,"0000"),'iReady ELA'!$BE$7:$BR$500,13,FALSE)*100,"")) -> 17.40456598 | P22: =IF($B22<10,"",IFERROR(VLOOKUP(TEXT($A$3,"0000"),'2016 FSA ELA'!$BI$9:$BW$500,12,FALSE)*100,"")) -> 10.08903231 | Q22: =IF($D22<10,"",IFERROR(VLOOKUP(TEXT($A$3,"0000"),'iReady ELA'!$BE$7:$BR$500,14,FALSE)*100,"")) -> 8.162769694
A23: 8 | B23: =IFERROR(VLOOKUP(TEXT($A$3,"0000"),'2016 FSA ELA'!$BX$9:$CL$500,13,FALSE),0) -> 25898 | C23: =IFERROR(VLOOKUP(TEXT($A$3,"0000"),'2016 FSA ELA'!$BX$9:$CL$500,15,FALSE),"") -> 56 | D23: =IFERROR(VLOOKUP(TEXT($A$3,"0000"),'iReady ELA'!$BS$7:$CF$500,3,FALSE),0) -> 20809 | E23: =IF(D23<10,"",IFERROR(ROUND(VLOOKUP(TEXT($A$3,"0000"),'iReady ELA'!$BS$7:$CF$500,4,FALSE)*100,0),"")) -> 57 | F23: =IFERROR(VLOOKUP(TEXT($A$3,"0000"),'iReady ELA'!$BS$7:$CF$500,5,FALSE),"") -> ±3% | G23: =IFERROR(VLOOKUP(TEXT($A$3,"0000"),'iReady ELA'!$BS$7:$CF$500,9,FALSE),"") -> 54% - 60% | H23: =IF($B23<10,"",IFERROR(VLOOKUP(TEXT($A$3,"0000"),'2016 FSA ELA'!$BX$9:$CL$500,8,FALSE)*100,"")) -> 22.83574021 | I23: =IF($D23<10,"",IFERROR(VLOOKUP(TEXT($A$3,"0000"),'iReady ELA'!$BS$7:$CF$500,10,FALSE)*100,"")) -> 23.64798885 | J23: =IF($B23<10,"",IFERROR(VLOOKUP(TEXT($A$3,"0000"),'2016 FSA ELA'!$BX$9:$CL$500,9,FALSE)*100,"")) -> 20.68885628 | K23: =IF($D23<10,"",IFERROR(VLOOKUP(TEXT($A$3,"0000"),'iReady ELA'!$BS$7:$CF$500,11,FALSE)*100,"")) -> 19.63881013 | L23: =IF($B23<10,"",IFERROR(VLOOKUP(TEXT($A$3,"0000"),'2016 FSA ELA'!$BX$9:$CL$500,10,FALSE)*100,"")) -> 24.9053981 | M23: =IF($D23<10,"",IFERROR(VLOOKUP(TEXT($A$3,"0000"),'iReady ELA'!$BS$7:$CF$500,12,FALSE)*100,"")) -> 26.72367726 | N23: =IF($B23<10,"",IFERROR(VLOOKUP(TEXT($A$3,"0000"),'2016 FSA ELA'!$BX$9:$CL$500,11,FALSE)*100,"")) -> 19.00146729 | O23: =IF($D23<10,"",IFERROR(VLOOKUP(TEXT($A$3,"0000"),'iReady ELA'!$BS$7:$CF$500,13,FALSE)*100,"")) -> 19.55932529 | P23: =IF($B23<10,"",IFERROR(VLOOKUP(TEXT($A$3,"0000"),'2016 FSA ELA'!$BX$9:$CL$500,12,FALSE)*100,"")) -> 12.56853811 | Q23: =IF($D23<10,"",IFERROR(VLOOKUP(TEXT($A$3,"0000"),'iReady ELA'!$BS$7:$CF$500,14,FALSE)*100,"")) -> 10.43019847

Sheet Math Report
A2: Click here to return to the school and sheet selection interface | R2: =A3 -> 9999
A3: ='Select School'!B3 -> 9999
A4: =TEXT(A3,"0000")&"-"&VLOOKUP(A3,SchList!$A$2:$B$500,2,FALSE) -> 9999-District (9999) | T4: Math
T5: Grade | U5: Group | V5: Grade 3 | W5: Grade 4 | X5: Grade 5 | Y5: Grade 6 | Z5: Grade 7 | AA5: Grade 8
T6: School | U6: 2016 FSA MATH | V6: =IF(B18<10,#N/A,IFERROR(VLOOKUP(TEXT($A$3,"0000"),'2016 FSA Math'!$A$9:$O$500,15,FALSE),#N/A)) -> 65 | W6: =IF(B19<10,#N/A,IFERROR(VLOOKUP(TEXT($A$3,"0000"),'2016 FSA Math'!$P$9:$AD$500,15,FALSE),#N/A)) -> 61 | X6: =IF(B20<10,#N/A,IFERROR(VLOOKUP(TEXT($A$3,"0000"),'2016 FSA Math'!$AE$9:$AS$500,15,FALSE),#N/A)) -> 58 | Y6: =IF(B21<10,#N/A,IFERROR(VLOOKUP(TEXT($A$3,"0000"),'2016 FSA Math'!$AT$9:$BH$500,15,FALSE),#N/A)) -> 49 | Z6: =IF(B22<10,#N/A,IFERROR(VLOOKUP(TEXT($A$3,"0000"),'2016 FSA Math'!$BI$9:$BW$500,15,FALSE),#N/A)) -> 47 | AA6: =IF(B23<10,#N/A,IFERROR(VLOOKUP(TEXT($A$3,"0000"),'2016 FSA Math'!$BX$9:$CL$500,15,FALSE),#N/A)) -> 41
T7: School | U7: %Predicted in 2017 | V7: =IF(D18<10,#N/A,IFERROR(ROUND(VLOOKUP(TEXT($A$3,"0000"),'iReady Math'!$A$7:$N$500,4,FALSE)*100,0),#N/A)) -> 59 | W7: =IF(D19<10,#N/A,IFERROR(ROUND(VLOOKUP(TEXT($A$3,"0000"),'iReady Math'!$O$7:$AB$500,4,FALSE)*100,0),#N/A)) -> 57 | X7: =IF(D20<10,#N/A,IFERROR(ROUND(VLOOKUP(TEXT($A$3,"0000"),'iReady Math'!$AC$7:$AP$500,4,FALSE)*100,0),#N/A)) -> 52 | Y7: =IF(D21<10,#N/A,IFERROR(ROUND(VLOOKUP(TEXT($A$3,"0000"),'iReady Math'!$AQ$7:$BD$500,4,FALSE)*100,0),#N/A)) -> 47 | Z7: =IF(D22<10,#N/A,IFERROR(ROUND(VLOOKUP(TEXT($A$3,"0000"),'iReady Math'!$BE$7:$BR$500,4,FALSE)*100,0),#N/A)) -> 50 | AA7: =IF(D23<10,#N/A,IFERROR(ROUND(VLOOKUP(TEXT($A$3,"0000"),'iReady Math'!$BS$7:$CF$500,4,FALSE)*100,0),#N/A)) -> 54
A16: Grade | B16: Number of Student Assessed on 2016 FSA Math | C16: % Students Scoring Levels 3-5 on 2016 FSA | D16: Number of Students Assessed on i-Ready | E16: % of Students Likely to be Proficient (L3-5) on FSA by the End of the Year (2016-17) | F16: Margin of Error | G16: Min-Max of % of Students Likely to be Proficient with 99% Confidence | H16: % of Students on 2016 FSA Math at Each Achievement Level and % of Students Likely to be Proficient (% Predicted) at Each Achievement Level on FSA by the End of the Year (2016-17)
H17: 2016 FSA L1 | I17: Predicted L1 | J17: 2016 FSA L2 | K17: Predicted L2 | L17: 2016 FSA L3 | M17: Predicted L3 | N17: 2016 FSA L4 | O17: Predicted L4 | P17: 2016 FSA L5 | Q17: Predicted L5
A18: 3 | B18: =IFERROR(VLOOKUP(TEXT($A$3,"0000"),'2016 FSA Math'!$A$9:$O$500,13,FALSE),0) -> 27775 | C18: =IFERROR(VLOOKUP(TEXT($A$3,"0000"),'2016 FSA Math'!$A$9:$O$500,15,FALSE),"") -> 65 | D18: =IFERROR(VLOOKUP(TEXT($A$3,"0000"),'iReady Math'!$A$7:$N$500,3,FALSE),0) -> 23395 | E18: =IF(D18<10,"",IFERROR(ROUND(VLOOKUP(TEXT($A$3,"0000"),'iReady Math'!$A$7:$N$500,4,FALSE)*100,0),"")) -> 59 | F18: =IFERROR(VLOOKUP(TEXT($A$3,"0000"),'iReady Math'!$A$7:$N$500,5,FALSE),"") -> ±3% | G18: =IFERROR(VLOOKUP(TEXT($A$3,"0000"),'iReady Math'!$A$7:$N$500,9,FALSE),"") -> 56% - 62% | H18: =IF($B18<10,"",IFERROR(VLOOKUP(TEXT($A$3,"0000"),'2016 FSA Math'!$A$9:$O$500,8,FALSE)*100,"")) -> 18.10261026 | I18: =IF($D18<10,"",IFERROR((VLOOKUP(TEXT($A$3,"0000"),'iReady Math'!$A$7:$N$500,10,FALSE)*100),"")) -> 21.90348365 | J18: =IF($B18<10,"",IFERROR(VLOOKUP(TEXT($A$3,"0000"),'2016 FSA Math'!$A$9:$O$500,9,FALSE)*100,"")) -> 17.26372637 | K18: =IF($D18<10,"",IFERROR((VLOOKUP(TEXT($A$3,"0000"),'iReady Math'!$A$7:$N$500,11,FALSE)*100),"")) -> 19.299081 | L18: =IF($B18<10,"",IFERROR(VLOOKUP(TEXT($A$3,"0000"),'2016 FSA Math'!$A$9:$O$500,10,FALSE)*100,"")) -> 28.76687669 | M18: =IF($D18<10,"",IFERROR((VLOOKUP(TEXT($A$3,"0000"),'iReady Math'!$A$7:$N$500,12,FALSE)*100),"")) -> 29.80914725 | N18: =IF($B18<10,"",IFERROR(VLOOKUP(TEXT($A$3,"0000"),'2016 FSA Math'!$A$9:$O$500,11,FALSE)*100,"")) -> 24.50405041 | O18: =IF($D18<10,"",IFERROR((VLOOKUP(TEXT($A$3,"0000"),'iReady Math'!$A$7:$N$500,13,FALSE)*100),"")) -> 20.99521265 | P18: =IF($B18<10,"",IFERROR(VLOOKUP(TEXT($A$3,"0000"),'2016 FSA Math'!$A$9:$O$500,12,FALSE)*100,"")) -> 11.36273627 | Q18: =IF($D18<10,"",IFERROR((VLOOKUP(TEXT($A$3,"0000"),'iReady Math'!$A$7:$N$500,14,FALSE)*100),"")) -> 7.993075443
A19: 4 | B19: =IFERROR(VLOOKUP(TEXT($A$3,"0000"),'2016 FSA Math'!$P$9:$AD$500,13,FALSE),0) -> 27028 | C19: =IFERROR(VLOOKUP(TEXT($A$3,"0000"),'2016 FSA Math'!$P$9:$AD$500,15,FALSE),"") -> 61 | D19: =IFERROR(VLOOKUP(TEXT($A$3,"0000"),'iReady Math'!$O$7:$AB$500,3,FALSE),0) -> 21259 | E19: =IF(D19<10,"",IFERROR(ROUND(VLOOKUP(TEXT($A$3,"0000"),'iReady Math'!$O$7:$AB$500,4,FALSE)*100,0),"")) -> 57 | F19: =IFERROR(VLOOKUP(TEXT($A$3,"0000"),'iReady Math'!$O$7:$AB$500,5,FALSE),"") -> ±3% | G19: =IFERROR(VLOOKUP(TEXT($A$3,"0000"),'iReady Math'!$O$7:$AB$500,9,FALSE),"") -> 54% - 60% | H19: =IF($B19<10,"",IFERROR(VLOOKUP(TEXT($A$3,"0000"),'2016 FSA Math'!$P$9:$AD$500,8,FALSE)*100,"")) -> 22.10670416 | I19: =IF($D19<10,"",IFERROR(VLOOKUP(TEXT($A$3,"0000"),'iReady Math'!$O$7:$AB$500,10,FALSE)*100,"")) -> 24.51498189 | J19: =IF($B19<10,"",IFERROR(VLOOKUP(TEXT($A$3,"0000"),'2016 FSA Math'!$P$9:$AD$500,9,FALSE)*100,"")) -> 16.64570075 | K19: =IF($D19<10,"",IFERROR(VLOOKUP(TEXT($A$3,"0000"),'iReady Math'!$O$7:$AB$500,11,FALSE)*100,"")) -> 18.30518839 | L19: =IF($B19<10,"",IFERROR(VLOOKUP(TEXT($A$3,"0000"),'2016 FSA Math'!$P$9:$AD$500,10,FALSE)*100,"")) -> 26.59094273 | M19: =IF($D19<10,"",IFERROR(VLOOKUP(TEXT($A$3,"0000"),'iReady Math'!$O$7:$AB$500,12,FALSE)*100,"")) -> 28.65845054 | N19: =IF($B19<10,"",IFERROR(VLOOKUP(TEXT($A$3,"0000"),'2016 FSA Math'!$P$9:$AD$500,11,FALSE)*100,"")) -> 20.88944798 | O19: =IF($D19<10,"",IFERROR(VLOOKUP(TEXT($A$3,"0000"),'iReady Math'!$O$7:$AB$500,13,FALSE)*100,"")) -> 19.50293993 | P19: =IF($B19<10,"",IFERROR(VLOOKUP(TEXT($A$3,"0000"),'2016 FSA Math'!$P$9:$AD$500,12,FALSE)*100,"")) -> 13.76720438 | Q19: =IF($D19<10,"",IFERROR(VLOOKUP(TEXT($A$3,"0000"),'iReady Math'!$O$7:$AB$500,14,FALSE)*100,"")) -> 9.018439249
A20: 5 | B20: =IFERROR(VLOOKUP(TEXT($A$3,"0000"),'2016 FSA Math'!$AE$9:$AS$500,13,FALSE),0) -> 25406 | C20: =IFERROR(VLOOKUP(TEXT($A$3,"0000"),'2016 FSA Math'!$AE$9:$AS$500,15,FALSE),"") -> 58 | D20: =IFERROR(VLOOKUP(TEXT($A$3,"0000"),'iReady Math'!$AC$7:$AP$500,3,FALSE),0) -> 22443 | E20: =IF(D20<10,"",IFERROR(ROUND(VLOOKUP(TEXT($A$3,"0000"),'iReady Math'!$AC$7:$AP$500,4,FALSE)*100,0),"")) -> 52 | F20: =IFERROR(VLOOKUP(TEXT($A$3,"0000"),'iReady Math'!$AC$7:$AP$500,5,FALSE),"") -> ±3% | G20: =IFERROR(VLOOKUP(TEXT($A$3,"0000"),'iReady Math'!$AC$7:$AP$500,9,FALSE),"") -> 49% - 55% | H20: =IF($B20<10,"",IFERROR(VLOOKUP(TEXT($A$3,"0000"),'2016 FSA Math'!$AE$9:$AS$500,8,FALSE)*100,"")) -> 20.81398095 | I20: =IF($D20<10,"",IFERROR(VLOOKUP(TEXT($A$3,"0000"),'iReady Math'!$AC$7:$AP$500,10,FALSE)*100,"")) -> 24.3191641 | J20: =IF($B20<10,"",IFERROR(VLOOKUP(TEXT($A$3,"0000"),'2016 FSA Math'!$AE$9:$AS$500,9,FALSE)*100,"")) -> 20.72345115 | K20: =IF($D20<10,"",IFERROR(VLOOKUP(TEXT($A$3,"0000"),'iReady Math'!$AC$7:$AP$500,11,FALSE)*100,"")) -> 23.89181482 | L20: =IF($B20<10,"",IFERROR(VLOOKUP(TEXT($A$3,"0000"),'2016 FSA Math'!$AE$9:$AS$500,10,FALSE)*100,"")) -> 23.98252381 | M20: =IF($D20<10,"",IFERROR(VLOOKUP(TEXT($A$3,"0000"),'iReady Math'!$AC$7:$AP$500,12,FALSE)*100,"")) -> 25.29144945 | N20: =IF($B20<10,"",IFERROR(VLOOKUP(TEXT($A$3,"0000"),'2016 FSA Math'!$AE$9:$AS$500,11,FALSE)*100,"")) -> 21.37684012 | O20: =IF($D20<10,"",IFERROR(VLOOKUP(TEXT($A$3,"0000"),'iReady Math'!$AC$7:$AP$500,13,FALSE)*100,"")) -> 18.37432607 | P20: =IF($B20<10,"",IFERROR(VLOOKUP(TEXT($A$3,"0000"),'2016 FSA Math'!$AE$9:$AS$500,12,FALSE)*100,"")) -> 13.10320397 | Q20: =IF($D20<10,"",IFERROR(VLOOKUP(TEXT($A$3,"0000"),'iReady Math'!$AC$7:$AP$500,14,FALSE)*100,"")) -> 8.123245555
A21: 6 | B21: =IFERROR(VLOOKUP(TEXT($A$3,"0000"),'2016 FSA Math'!$AT$9:$BH$500,13,FALSE),0) -> 24782 | C21: =IFERROR(VLOOKUP(TEXT($A$3,"0000"),'2016 FSA Math'!$AT$9:$BH$500,15,FALSE),"") -> 49 | D21: =IFERROR(VLOOKUP(TEXT($A$3,"0000"),'iReady Math'!$AQ$7:$BD$500,3,FALSE),0) -> 19530 | E21: =IF(D21<10,"",IFERROR(ROUND(VLOOKUP(TEXT($A$3,"0000"),'iReady Math'!$AQ$7:$BD$500,4,FALSE)*100,0),"")) -> 47 | F21: =IFERROR(VLOOKUP(TEXT($A$3,"0000"),'iReady Math'!$AQ$7:$BD$500,5,FALSE),"") -> ±3% | G21: =IFERROR(VLOOKUP(TEXT($A$3,"0000"),'iReady Math'!$AQ$7:$BD$500,9,FALSE),"") -> 44% - 50% | H21: =IF($B21<10,"",IFERROR(VLOOKUP(TEXT($A$3,"0000"),'2016 FSA Math'!$AT$9:$BH$500,8,FALSE)*100,"")) -> 27.56032604 | I21: =IF($D21<10,"",IFERROR(VLOOKUP(TEXT($A$3,"0000"),'iReady Math'!$AQ$7:$BD$500,10,FALSE)*100,"")) -> 28.98141321 | J21: =IF($B21<10,"",IFERROR(VLOOKUP(TEXT($A$3,"0000"),'2016 FSA Math'!$AT$9:$BH$500,9,FALSE)*100,"")) -> 23.0691631 | K21: =IF($D21<10,"",IFERROR(VLOOKUP(TEXT($A$3,"0000"),'iReady Math'!$AQ$7:$BD$500,11,FALSE)*100,"")) -> 23.52949309 | L21: =IF($B21<10,"",IFERROR(VLOOKUP(TEXT($A$3,"0000"),'2016 FSA Math'!$AT$9:$BH$500,10,FALSE)*100,"")) -> 22.12896457 | M21: =IF($D21<10,"",IFERROR(VLOOKUP(TEXT($A$3,"0000"),'iReady Math'!$AQ$7:$BD$500,12,FALSE)*100,"")) -> 23.48689196 | N21: =IF($B21<10,"",IFERROR(VLOOKUP(TEXT($A$3,"0000"),'2016 FSA Math'!$AT$9:$BH$500,11,FALSE)*100,"")) -> 18.69905577 | O21: =IF($D21<10,"",IFERROR(VLOOKUP(TEXT($A$3,"0000"),'iReady Math'!$AQ$7:$BD$500,13,FALSE)*100,"")) -> 17.39805428 | P21: =IF($B21<10,"",IFERROR(VLOOKUP(TEXT($A$3,"0000"),'2016 FSA Math'!$AT$9:$BH$500,12,FALSE)*100,"")) -> 8.542490517 | Q21: =IF($D21<10,"",IFERROR(VLOOKUP(TEXT($A$3,"0000"),'iReady Math'!$AQ$7:$BD$500,14,FALSE)*100,"")) -> 6.604147465
A22: 7 | B22: =IFERROR(VLOOKUP(TEXT($A$3,"0000"),'2016 FSA Math'!$BI$9:$BW$500,13,FALSE),0) -> 23073 | C22: =IFERROR(VLOOKUP(TEXT($A$3,"0000"),'2016 FSA Math'!$BI$9:$BW$500,15,FALSE),"") -> 47 | D22: =IFERROR(VLOOKUP(TEXT($A$3,"0000"),'iReady Math'!$BE$7:$BR$500,3,FALSE),0) -> 19300 | E22: =IF(D22<10,"",IFERROR(ROUND(VLOOKUP(TEXT($A$3,"0000"),'iReady Math'!$BE$7:$BR$500,4,FALSE)*100,0),"")) -> 50 | F22: =IFERROR(VLOOKUP(TEXT($A$3,"0000"),'iReady Math'!$BE$7:$BR$500,5,FALSE),"") -> ±3% | G22: =IFERROR(VLOOKUP(TEXT($A$3,"0000"),'iReady Math'!$BE$7:$BR$500,9,FALSE),"") -> 47% - 53% | H22: =IF($B22<10,"",IFERROR(VLOOKUP(TEXT($A$3,"0000"),'2016 FSA Math'!$BI$9:$BW$500,8,FALSE)*100,"")) -> 31.05794652 | I22: =IF($D22<10,"",IFERROR(VLOOKUP(TEXT($A$3,"0000"),'iReady Math'!$BE$7:$BR$500,10,FALSE)*100,"")) -> 29.96331606 | J22: =IF($B22<10,"",IFERROR(VLOOKUP(TEXT($A$3,"0000"),'2016 FSA Math'!$BI$9:$BW$500,9,FALSE)*100,"")) -> 22.29012265 | K22: =IF($D22<10,"",IFERROR(VLOOKUP(TEXT($A$3,"0000"),'iReady Math'!$BE$7:$BR$500,11,FALSE)*100,"")) -> 19.88694301 | L22: =IF($B22<10,"",IFERROR(VLOOKUP(TEXT($A$3,"0000"),'2016 FSA Math'!$BI$9:$BW$500,10,FALSE)*100,"")) -> 25.36731244 | M22: =IF($D22<10,"",IFERROR(VLOOKUP(TEXT($A$3,"0000"),'iReady Math'!$BE$7:$BR$500,12,FALSE)*100,"")) -> 24.89067358 | N22: =IF($B22<10,"",IFERROR(VLOOKUP(TEXT($A$3,"0000"),'2016 FSA Math'!$BI$9:$BW$500,11,FALSE)*100,"")) -> 14.71416808 | O22: =IF($D22<10,"",IFERROR(VLOOKUP(TEXT($A$3,"0000"),'iReady Math'!$BE$7:$BR$500,13,FALSE)*100,"")) -> 15.80093264 | P22: =IF($B22<10,"",IFERROR(VLOOKUP(TEXT($A$3,"0000"),'2016 FSA Math'!$BI$9:$BW$500,12,FALSE)*100,"")) -> 6.57045031 | Q22: =IF($D22<10,"",IFERROR(VLOOKUP(TEXT($A$3,"0000"),'iReady Math'!$BE$7:$BR$500,14,FALSE)*100,"")) -> 9.458134715
A23: 8 | B23: =IFERROR(VLOOKUP(TEXT($A$3,"0000"),'2016 FSA Math'!$BX$9:$CL$500,13,FALSE),0) -> 16556 | C23: =IFERROR(VLOOKUP(TEXT($A$3,"0000"),'2016 FSA Math'!$BX$9:$CL$500,15,FALSE),"") -> 41 | D23: =IFERROR(VLOOKUP(TEXT($A$3,"0000"),'iReady Math'!$BS$7:$CF$500,3,FALSE),0) -> 18936 | E23: =IF(D23<10,"",IFERROR(ROUND(VLOOKUP(TEXT($A$3,"0000"),'iReady Math'!$BS$7:$CF$500,4,FALSE)*100,0),"")) -> 54 | F23: =IFERROR(VLOOKUP(TEXT($A$3,"0000"),'iReady Math'!$BS$7:$CF$500,5,FALSE),"") -> ±3% | G23: =IFERROR(VLOOKUP(TEXT($A$3,"0000"),'iReady Math'!$BS$7:$CF$500,9,FALSE),"") -> 51% - 57% | H23: =IF($B23<10,"",IFERROR(VLOOKUP(TEXT($A$3,"0000"),'2016 FSA Math'!$BX$9:$CL$500,8,FALSE)*100,"")) -> 33.72191351 | I23: =IF($D23<10,"",IFERROR(VLOOKUP(TEXT($A$3,"0000"),'iReady Math'!$BS$7:$CF$500,10,FALSE)*100,"")) -> 26.09748627 | J23: =IF($B23<10,"",IFERROR(VLOOKUP(TEXT($A$3,"0000"),'2016 FSA Math'!$BX$9:$CL$500,9,FALSE)*100,"")) -> 25.30804542 | K23: =IF($D23<10,"",IFERROR(VLOOKUP(TEXT($A$3,"0000"),'iReady Math'!$BS$7:$CF$500,11,FALSE)*100,"")) -> 20.14242712 | L23: =IF($B23<10,"",IFERROR(VLOOKUP(TEXT($A$3,"0000"),'2016 FSA Math'!$BX$9:$CL$500,10,FALSE)*100,"")) -> 24.51075139 | M23: =IF($D23<10,"",IFERROR(VLOOKUP(TEXT($A$3,"0000"),'iReady Math'!$BS$7:$CF$500,12,FALSE)*100,"")) -> 23.67279256 | N23: =IF($B23<10,"",IFERROR(VLOOKUP(TEXT($A$3,"0000"),'2016 FSA Math'!$BX$9:$CL$500,11,FALSE)*100,"")) -> 10.20173955 | O23: =IF($D23<10,"",IFERROR(VLOOKUP(TEXT($A$3,"0000"),'iReady Math'!$BS$7:$CF$500,13,FALSE)*100,"")) -> 13.25374947 | P23: =IF($B23<10,"",IFERROR(VLOOKUP(TEXT($A$3,"0000"),'2016 FSA Math'!$BX$9:$CL$500,12,FALSE)*100,"")) -> 6.257550133 | Q23: =IF($D23<10,"",IFERROR(VLOOKUP(TEXT($A$3,"0000"),'iReady Math'!$BS$7:$CF$500,14,FALSE)*100,"")) -> 16.83354457

Sheet 2016 FSA Math (hidden)
A1: SCHLTYPE | P1: SCHLTYPE | AE1: SCHLTYPE | AT1: SCHLTYPE | BI1: SCHLTYPE | BX1: SCHLTYPE
A2: FSATOOK | B2: 1 | P2: FSATOOK | Q2: 1 | AE2: FSATOOK | AF2: 1 | AT2: FSATOOK | AU2: 1 | BI2: FSATOOK | BJ2: 1 | BX2: FSATOOK | BY2: 1
A3: RETAKE_FLAG | P3: RETAKE_FLAG | AE3: RETAKE_FLAG | AT3: RETAKE_FLAG | BI3: RETAKE_FLAG | BX3: RETAKE_FLAG
A4: GRADE | B4: 03 | P4: GRADE | Q4: 04 | AE4: GRADE | AF4: 05 | AT4: GRADE | AU4: 06 | BI4: GRADE | BJ4: 07 | BX4: GRADE | BY4: 08
A5: 1 | B5: 2 | C5: 3 | D5: 4 | E5: 5 | F5: 6 | G5: 7 | H5: 8 | I5: 9 | J5: 10 | K5: 11 | L5: 12 | M5: 13 | N5: 14 | O5: 15
C6: Values | D6: FSA_LVL | R6: Values | S6: FSA_LVL | AG6: Values | AH6: FSA_LVL | AV6: Values | AW6: FSA_LVL | BK6: Values | BL6: FSA_LVL | BZ6: Values | CA6: FSA_LVL
C7: Count of ID | H7: Count of ID2 | M7: Total Count of ID | N7: Total Count of ID2 | R7: Count of ID | W7: Count of ID2 | AB7: Total Count of ID | AC7: Total Count of ID2 | AG7: Count of ID | AL7: Count of ID2 | AQ7: Total Count of ID | AR7: Total Count of ID2 | AV7: Count of ID | BA7: Count of ID2 | BF7: Total Count of ID | BG7: Total Count of ID2 | BK7: Count of ID | BP7: Count of ID2 | BU7: Total Count of ID | BV7: Total Count of ID2 | BZ7: Count of ID | CE7: Count of ID2 | CJ7: Total Count of ID | CK7: Total Count of ID2
A8: SCHOOL | B8: School Name | C8: 1 | D8: 2 | E8: 3 | F8: 4 | G8: 5 | H8: 1 | I8: 2 | J8: 3 | K8: 4 | L8: 5 | O8: Level 3-5 | P8: SCHOOL | Q8: School Name | R8: 1 | S8: 2 | T8: 3 | U8: 4 | V8: 5 | W8: 1 | X8: 2 | Y8: 3 | Z8: 4 | AA8: 5 | AD8: Level 3-5 | AE8: SCHOOL | AF8: School Name | AG8: 1 | AH8: 2 | AI8: 3 | AJ8: 4 | AK8: 5 | AL8: 1 | AM8: 2 | AN8: 3 | AO8: 4 | AP8: 5 | AS8: Level 3-5 | AT8: SCHOOL | AU8: School Name | AV8: 1 | AW8: 2 | AX8: 3 | AY8: 4 | AZ8: 5 | BA8: 1 | BB8: 2 | BC8: 3 | BD8: 4 | BE8: 5 | BH8: Level 3-5 | BI8: SCHOOL | BJ8: School Name | BK8: 1 | BL8: 2 | BM8: 3 | BN8: 4 | BO8: 5 | BP8: 1 | BQ8: 2 | BR8: 3 | BS8: 4 | BT8: 5 | BW8: Level 3-5 | BX8: SCHOOL | BY8: School Name | BZ8: 1 | CA8: 2 | CB8: 3 | CC8: 4 | CD8: 5 | CE8: 1 | CF8: 2 | CG8: 3 | CH8: 4 | CI8: 5 | CL8: Level 3-5
A9: 0041 | B9: AIR BASE K-8 CTR INT'L EDUC | C9: 4 | D9: 19 | E9: 49 | F9: 39 | G9: 15 | H9: 0.03174603175 | I9: 0.1507936508 | J9: 0.3888888889 | K9: 0.3095238095 | L9: 0.119047619 | M9: 126 | N9: 1 | O9: 82 | P9: 0041 | Q9: AIR BASE K-8 CTR INT'L EDUC | R9: 6 | S9: 14 | T9: 41 | U9: 42 | V9: 27 | W9: 0.04615384615 | X9: 0.1076923077 | Y9: 0.3153846154 | Z9: 0.3230769231 | AA9: 0.2076923077 | AB9: 130 | AC9: 1 | AD9: 85 | AE9: 0041 | AF9: AIR BASE K-8 CTR INT'L EDUC | AG9: 6 | AH9: 24 | AI9: 42 | AJ9: 45 | AK9: 18 | AL9: 0.04444444444 | AM9: 0.1777777778 | AN9: 0.3111111111 | AO9: 0.3333333333 | AP9: 0.1333333333 | AQ9: 135 | AR9: 1 | AS9: 78 | AT9: 0041 | AU9: AIR BASE K-8 CTR INT'L EDUC | AW9: 1 | AX9: 31 | AY9: 47 | AZ9: 21 | BA9: 0 | BB9: 0.01 | BC9: 0.31 | BD9: 0.47 | BE9: 0.21 | BF9: 100 | BG9: 1 | BH9: 99 | BI9: 0041 | BJ9: AIR BASE K-8 CTR INT'L EDUC | BK9: 3 | BL9: 5 | BM9: 10 | BN9: 33 | BO9: 18 | BP9: 0.04347826087 | BQ9: 0.07246376812 | BR9: 0.1449275362 | BS9: 0.4782608696 | BT9: 0.2608695652 | BU9: 69 | BV9: 1 | BW9: 88 | BX9: 0041 | BY9: AIR BASE K-8 CTR INT'L EDUC | CA9: 6 | CB9: 7 | CC9: 5 | CD9: 2 | CE9: 0 | CF9: 0.3 | CG9: 0.35 | CH9: 0.25 | CI9: 0.1 | CJ9: 20 | CK9: 1 | CL9: 70
A10: 0070 | B10: CORAL REEF MONTESSORI ACAD CH | C10: 3 | D10: 16 | E10: 13 | F10: 20 | G10: 3 | H10: 0.05454545455 | I10: 0.2909090909 | J10: 0.2363636364 | K10: 0.3636363636 | L10: 0.05454545455 | M10: 55 | N10: 1 | O10: 65 | P10: 0070 | Q10: CORAL REEF MONTESSORI ACAD CH | R10: 15 | S10: 11 | T10: 9 | U10: 10 | V10: 4 | W10: 0.306122449 | X10: 0.2244897959 | Y10: 0.1836734694 | Z10: 0.2040816327 | AA10: 0.08163265306 | AB10: 49 | AC10: 1 | AD10: 47 | AE10: 0070 | AF10: CORAL REEF MONTESSORI ACAD CH | AG10: 15 | AH10: 13 | AI10: 8 | AJ10: 2 | AK10: 3 | AL10: 0.3658536585 | AM10: 0.3170731707 | AN10: 0.1951219512 | AO10: 0.0487804878 | AP10: 0.07317073171 | AQ10: 41 | AR10: 1 | AS10: 32 | AT10: 0070 | AU10: CORAL REEF MONTESSORI ACAD CH | AV10: 6 | AW10: 17 | AX10: 11 | AY10: 5 | AZ10: 1 | BA10: 0.15 | BB10: 0.425 | BC10: 0.275 | BD10: 0.125 | BE10: 0.025 | BF10: 40 | BG10: 1 | BH10: 43 | BI10: 0070 | BJ10: CORAL REEF MONTESSORI ACAD CH | BK10: 4 | BL10: 3 | BM10: 8 | BN10: 5 | BP10: 0.2 | BQ10: 0.15 | BR10: 0.4 | BS10: 0.25 | BT10: 0 | BU10: 20 | BV10: 1 | BW10: 65 | BX10: 0070 | BY10: CORAL REEF MONTESSORI ACAD CH | BZ10: 3 | CA10: 4 | CB10: 6 | CC10: 1 | CD10: 1 | CE10: 0.2 | CF10: 0.2666666667 | CG10: 0.4 | CH10: 0.06666666667 | CI10: 0.06666666667 | CJ10: 15 | CK10: 1 | CL10: 53
A11: 0071 | B11: EUGENIA B. THOMAS K-8 CENTER | C11: 46 | D11: 47 | E11: 51 | F11: 42 | G11: 14 | H11: 0.23 | I11: 0.235 | J11: 0.255 | K11: 0.21 | L11: 0.07 | M11: 200 | N11: 1 | O11: 54 | P11: 0071 | Q11: EUGENIA B. THOMAS K-8 CENTER | R11: 39 | S11: 32 | T11: 33 | U11: 57 | V11: 64 | W11: 0.1733333333 | X11: 0.1422222222 | Y11: 0.1466666667 | Z11: 0.2533333333 | AA11: 0.2844444444 | AB11: 225 | AC11: 1 | AD11: 68 | AE11: 0071 | AF11: EUGENIA B. THOMAS K-8 CENTER | AG11: 38 | AH11: 42 | AI11: 40 | AJ11: 48 | AK11: 47 | AL11: 0.176744186 | AM11: 0.1953488372 | AN11: 0.1860465116 | AO11: 0.223255814 | AP11: 0.2186046512 | AQ11: 215 | AR11: 1 | AS11: 63 | AT11: 0071 | AU11: EUGENIA B. THOMAS K-8 CENTER | AV11: 57 | AW11: 30 | AX11: 46 | AY11: 29 | AZ11: 12 | BA11: 0.3275862069 | BB11: 0.1724137931 | BC11: 0.2643678161 | BD11: 0.1666666667 | BE11: 0.06896551724 | BF11: 174 | BG11: 1 | BH11: 50 | BI11: 0071 | BJ11: EUGENIA B. THOMAS K-8 CENTER | BK11: 34 | BL11: 42 | BM11: 49 | BN11: 29 | BO11: 12 | BP11: 0.2048192771 | BQ11: 0.2530120482 | BR11: 0.2951807229 | BS11: 0.1746987952 | BT11: 0.07228915663 | BU11: 166 | BV11: 1 | BW11: 54 | BX11: 0071 | BY11: EUGENIA B. THOMAS K-8 CENTER | BZ11: 38 | CA11: 31 | CB11: 40 | CC11: 9 | CD11: 6 | CE11: 0.3064516129 | CF11: 0.25 | CG11: 0.3225806452 | CH11: 0.07258064516 | CI11: 0.04838709677 | CJ11: 124 | CK11: 1 | CL11: 44
A12: 0072 | B12: SUMMERVILLE CHARTER SCHOOL | C12: 6 | D12: 14 | E12: 40 | F12: 28 | G12: 5 | H12: 0.06451612903 | I12: 0.1505376344 | J12: 0.4301075269 | K12: 0.3010752688 | L12: 0.05376344086 | M12: 93 | N12: 1 | O12: 78 | P12: 0072 | Q12: SUMMERVILLE CHARTER SCHOOL | R12: 20 | S12: 16 | T12: 27 | U12: 20 | V12: 7 | W12: 0.2222222222 | X12: 0.1777777778 | Y12: 0.3 | Z12: 0.2222222222 | AA12: 0.07777777778 | AB12: 90 | AC12: 1 | AD12: 60 | AE12: 0072 | AF12: SUMMERVILLE CHARTER SCHOOL | AG12: 10 | AH12: 14 | AI12: 29 | AJ12: 17 | AK12: 6 | AL12: 0.1315789474 | AM12: 0.1842105263 | AN12: 0.3815789474 | AO12: 0.2236842105 | AP12: 0.07894736842 | AQ12: 76 | AR12: 1 | AS12: 68 | AT12: 0073 | AU12: MANDARIN LAKES K-8 CENTER | AV12: 33 | AW12: 32 | AX12: 16 | AY12: 12 | AZ12: 3 | BA12: 0.34375 | BB12: 0.3333333333 | BC12: 0.1666666667 | BD12: 0.125 | BE12: 0.03125 | BF12: 96 | BG12: 1 | BH12: 32 | BI12: 0073 | BJ12: MANDARIN LAKES K-8 CENTER | BK12: 28 | BL12: 22 | BM12: 31 | BN12: 5 | BP12: 0.3255813953 | BQ12: 0.2558139535 | BR12: 0.3604651163 | BS12: 0.05813953488 | BT12: 0 | BU12: 86 | BV12: 1 | BW12: 42 | BX12: 0073 | BY12: MANDARIN LAKES K-8 CENTER | BZ12: 62 | CA12: 12 | CB12: 6 | CE12: 0.775 | CF12: 0.15 | CG12: 0.075 | CH12: 0 | CI12: 0 | CJ12: 80 | CK12: 1 | CL12: 8
A13: 0073 | B13: MANDARIN LAKES K-8 CENTER | C13: 63 | D13: 33 | E13: 40 | F13: 10 | H13: 0.4315068493 | I13: 0.2260273973 | J13: 0.2739726027 | K13: 0.06849315068 | L13: 0 | M13: 146 | N13: 1 | O13: 34 | P13: 0073 | Q13: MANDARIN LAKES K-8 CENTER | R13: 63 | S13: 46 | T13: 34 | U13: 16 | V13: 2 | W13: 0.3913043478 | X13: 0.2857142857 | Y13: 0.2111801242 | Z13: 0.09937888199 | AA13: 0.01242236025 | AB13: 161 | AC13: 1 | AD13: 32 | AE13: 0073 | AF13: MANDARIN LAKES K-8 CENTER | AG13: 77 | AH13: 25 | AI13: 5 | AJ13: 4 | AK13: 1 | AL13: 0.6875 | AM13: 0.2232142857 | AN13: 0.04464285714 | AO13: 0.03571428571 | AP13: 0.008928571429 | AQ13: 112 | AR13: 1 | AS13: 9 | AT13: 0091 | AU13: BOB GRAHAM EDUCATION CTR | AV13: 31 | AW13: 39 | AX13: 38 | AY13: 71 | AZ13: 40 | BA13: 0.1415525114 | BB13: 0.1780821918 | BC13: 0.1735159817 | BD13: 0.3242009132 | BE13: 0.1826484018 | BF13: 219 | BG13: 1 | BH13: 68 | BI13: 0091 | BJ13: BOB GRAHAM EDUCATION CTR | BK13: 22 | BL13: 39 | BM13: 50 | BN13: 60 | BO13: 46 | BP13: 0.1013824885 | BQ13: 0.1797235023 | BR13: 0.2304147465 | BS13: 0.2764976959 | BT13: 0.2119815668 | BU13: 217 | BV13: 1 | BW13: 72 | BX13: 0091 | BY13: BOB GRAHAM EDUCATION CTR | BZ13: 15 | CA13: 14 | CB13: 29 | CC13: 23 | CD13: 29 | CE13: 0.1363636364 | CF13: 0.1272727273 | CG13: 0.2636363636 | CH13: 0.2090909091 | CI13: 0.2636363636 | CJ13: 110 | CK13: 1 | CL13: 74
A14: 0081 | B14: LENORA B. SMITH ELEMENTARY | C14: 21 | D14: 10 | E14: 13 | F14: 9 | G14: 1 | H14: 0.3888888889 | I14: 0.1851851852 | J14: 0.2407407407 | K14: 0.1666666667 | L14: 0.01851851852 | M14: 54 | N14: 1 | O14: 43 | P14: 0081 | Q14: LENORA B. SMITH ELEMENTARY | R14: 17 | S14: 14 | T14: 17 | U14: 4 | V14: 6 | W14: 0.2931034483 | X14: 0.2413793103 | Y14: 0.2931034483 | Z14: 0.06896551724 | AA14: 0.1034482759 | AB14: 58 | AC14: 1 | AD14: 47 | AE14: 0081 | AF14: LENORA B. SMITH ELEMENTARY | AG14: 20 | AH14: 21 | AI14: 13 | AJ14: 5 | AK14: 1 | AL14: 0.3333333333 | AM14: 0.35 | AN14: 0.2166666667 | AO14: 0.08333333333 | AP14: 0.01666666667 | AQ14: 60 | AR14: 1 | AS14: 32 | AT14: 0092 | AU14: NORMAN S. EDELCUP/SUNNY ISLES | AV14: 20 | AW14: 40 | AX14: 82 | AY14: 64 | AZ14: 44 | BA14: 0.08 | BB14: 0.16 | BC14: 0.328 | BD14: 0.256 | BE14: 0.176 | BF14: 250 | BG14: 1 | BH14: 76 | BI14: 0092 | BJ14: NORMAN S. EDELCUP/SUNNY ISLES | BK14: 21 | BL14: 17 | BM14: 54 | BN14: 59 | BO14: 60 | BP14: 0.09952606635 | BQ14: 0.08056872038 | BR14: 0.2559241706 | BS14: 0.2796208531 | BT14: 0.2843601896 | BU14: 211 | BV14: 1 | BW14: 82 | BX14: 0092 | BY14: NORMAN S. EDELCUP/SUNNY ISLES | BZ14: 15 | CA14: 28 | CB14: 37 | CC14: 25 | CD14: 59 | CE14: 0.09146341463 | CF14: 0.1707317073 | CG14: 0.2256097561 | CH14: 0.1524390244 | CI14: 0.3597560976 | CJ14: 164 | CK14: 1 | CL14: 74
A15: 0091 | B15: BOB GRAHAM EDUCATION CTR | C15: 31 | D15: 38 | E15: 48 | F15: 38 | G15: 25 | H15: 0.1722222222 | I15: 0.2111111111 | J15: 0.2666666667 | K15: 0.2111111111 | L15: 0.1388888889 | M15: 180 | N15: 1 | O15: 62 | P15: 0091 | Q15: BOB GRAHAM EDUCATION CTR | R15: 17 | S15: 30 | T15: 73 | U15: 53 | V15: 24 | W15: 0.08629441624 | X15: 0.152284264 | Y15: 0.3705583756 | Z15: 0.269035533 | AA15: 0.1218274112 | AB15: 197 | AC15: 1 | AD15: 76 | AE15: 0091 | AF15: BOB GRAHAM EDUCATION CTR | AG15: 28 | AH15: 44 | AI15: 56 | AJ15: 50 | AK15: 32 | AL15: 0.1333333333 | AM15: 0.2095238095 | AN15: 0.2666666667 | AO15: 0.2380952381 | AP15: 0.1523809524 | AQ15: 210 | AR15: 1 | AS15: 66 | AT15: 0122 | AU15: DR ROLANDO ESPINOSA K-8 | AV15: 62 | AW15: 49 | AX15: 31 | AY15: 24 | AZ15: 17 | BA15: 0.3387978142 | BB15: 0.2677595628 | BC15: 0.1693989071 | BD15: 0.131147541 | BE15: 0.09289617486 | BF15: 183 | BG15: 1 | BH15: 39 | BI15: 0122 | BJ15: DR ROLANDO ESPINOSA K-8 | BK15: 34 | BL15: 29 | BM15: 50 | BN15: 33 | BO15: 15 | BP15: 0.2111801242 | BQ15: 0.1801242236 | BR15: 0.3105590062 | BS15: 0.2049689441 | BT15: 0.09316770186 | BU15: 161 | BV15: 1 | BW15: 61 | BX15: 0122 | BY15: DR ROLANDO ESPINOSA K-8 | BZ15: 19 | CA15: 21 | CB15: 43 | CC15: 30 | CD15: 39 | CE15: 0.125 | CF15: 0.1381578947 | CG15: 0.2828947368 | CH15: 0.1973684211 | CI15: 0.2565789474 | CJ15: 152 | CK15: 1 | CL15: 74
A16: 0092 | B16: NORMAN S. EDELCUP/SUNNY ISLES | C16: 7 | D16: 26 | E16: 74 | F16: 83 | G16: 59 | H16: 0.0281124498 | I16: 0.1044176707 | J16: 0.297188755 | K16: 0.3333333333 | L16: 0.2369477912 | M16: 249 | N16: 1 | O16: 87 | P16: 0092 | Q16: NORMAN S. EDELCUP/SUNNY ISLES | R16: 21 | S16: 26 | T16: 60 | U16: 65 | V16: 71 | W16: 0.08641975309 | X16: 0.1069958848 | Y16: 0.2469135802 | Z16: 0.2674897119 | AA16: 0.29218107 | AB16: 243 | AC16: 1 | AD16: 81 | AE16: 0092 | AF16: NORMAN S. EDELCUP/SUNNY ISLES | AG16: 19 | AH16: 26 | AI16: 75 | AJ16: 83 | AK16: 62 | AL16: 0.07169811321 | AM16: 0.09811320755 | AN16: 0.2830188679 | AO16: 0.3132075472 | AP16: 0.2339622642 | AQ16: 265 | AR16: 1 | AS16: 83 | AT16: 0231 | AU16: AVENTURA WATERWAYS K-8 CENTER | AV16: 48 | AW16: 57 | AX16: 39 | AY16: 46 | AZ16: 29 | BA16: 0.2191780822 | BB16: 0.2602739726 | BC16: 0.1780821918 | BD16: 0.2100456621 | BE16: 0.1324200913 | BF16: 219 | BG16: 1 | BH16: 52 | BI16: 0231 | BJ16: AVENTURA WATERWAYS K-8 CENTER | BK16: 26 | BL16: 40 | BM16: 60 | BN16: 32 | BO16: 18 | BP16: 0.1477272727 | BQ16: 0.2272727273 | BR16: 0.3409090909 | BS16: 0.1818181818 | BT16: 0.1022727273 | BU16: 176 | BV16: 1 | BW16: 63 | BX16: 0231 | BY16: AVENTURA WATERWAYS K-8 CENTER | BZ16: 39 | CA16: 35 | CB16: 29 | CC16: 13 | CD16: 7 | CE16: 0.3170731707 | CF16: 0.2845528455 | CG16: 0.2357723577 | CH16: 0.1056910569 | CI16: 0.05691056911 | CJ16: 123 | CK16: 1 | CL16: 40
A17: 0100 | B17: MATER ACADEMY | C17: 1 | D17: 19 | E17: 51 | F17: 61 | G17: 20 | H17: 0.006578947368 | I17: 0.125 | J17: 0.3355263158 | K17: 0.4013157895 | L17: 0.1315789474 | M17: 152 | N17: 1 | O17: 87 | P17: 0100 | Q17: MATER ACADEMY | R17: 5 | S17: 25 | T17: 51 | U17: 57 | V17: 29 | W17: 0.02994011976 | X17: 0.1497005988 | Y17: 0.3053892216 | Z17: 0.3413173653 | AA17: 0.1736526946 | AB17: 167 | AC17: 1 | AD17: 82 | AE17: 0100 | AF17: MATER ACADEMY | AG17: 12 | AH17: 37 | AI17: 54 | AJ17: 31 | AK17: 13 | AL17: 0.08163265306 | AM17: 0.2517006803 | AN17: 0.3673469388 | AO17: 0.2108843537 | AP17: 0.08843537415 | AQ17: 147 | AR17: 1 | AS17: 67 | AT17: 0241 | AU17: RUTH K BROAD/BAY HARBOR K-8 | AV17: 10 | AW17: 19 | AX17: 24 | AY17: 50 | AZ17: 41 | BA17: 0.06944444444 | BB17: 0.1319444444 | BC17: 0.1666666667 | BD17: 0.3472222222 | BE17: 0.2847222222 | BF17: 144 | BG17: 1 | BH17: 80 | BI17: 0241 | BJ17: RUTH K BROAD/BAY HARBOR K-8 | BK17: 5 | BL17: 19 | BM17: 34 | BN17: 37 | BO17: 27 | BP17: 0.04098360656 | BQ17: 0.1557377049 | BR17: 0.2786885246 | BS17: 0.3032786885 | BT17: 0.2213114754 | BU17: 122 | BV17: 1 | BW17: 80 | BX17: 0241 | BY17: RUTH K BROAD/BAY HARBOR K-8 | BZ17: 3 | CA17: 6 | CB17: 23 | CC17: 20 | CD17: 15 | CE17: 0.0447761194 | CF17: 0.08955223881 | CG17: 0.3432835821 | CH17: 0.2985074627 | CI17: 0.223880597 | CJ17: 67 | CK17: 1 | CL17: 87
A18: 0101 | B18: ARCOLA LAKE ELEMENTARY | C18: 14 | D18: 15 | E18: 26 | F18: 16 | G18: 2 | H18: 0.1917808219 | I18: 0.2054794521 | J18: 0.3561643836 | K18: 0.2191780822 | L18: 0.02739726027 | M18: 73 | N18: 1 | O18: 60 | P18: 0101 | Q18: ARCOLA LAKE ELEMENTARY | R18: 27 | S18: 21 | T18: 13 | U18: 10 | V18: 2 | W18: 0.3698630137 | X18: 0.2876712329 | Y18: 0.1780821918 | Z18: 0.1369863014 | AA18: 0.02739726027 | AB18: 73 | AC18: 1 | AD18: 34 | AE18: 0101 | AF18: ARCOLA LAKE ELEMENTARY | AG18: 23 | AH18: 13 | AI18: 19 | AJ18: 6 | AK18: 8 | AL18: 0.3333333333 | AM18: 0.1884057971 | AN18: 0.2753623188 | AO18: 0.08695652174 | AP18: 0.115942029 | AQ18: 69 | AR18: 1 | AS18: 48 | AT18: 0332 | AU18: SOMERSET ACADEMY(SILVER PALMS) | AV18: 18 | AW18: 55 | AX18: 58 | AY18: 46 | AZ18: 7 | BA18: 0.09782608696 | BB18: 0.2989130435 | BC18: 0.3152173913 | BD18: 0.25 | BE18: 0.03804347826 | BF18: 184 | BG18: 1 | BH18: 60 | BI18: 0332 | BJ18: SOMERSET ACADEMY(SILVER PALMS) | BK18: 11 | BL18: 32 | BM18: 47 | BN18: 34 | BO18: 2 | BP18: 0.0873015873 | BQ18: 0.253968254 | BR18: 0.373015873 | BS18: 0.2698412698 | BT18: 0.01587301587 | BU18: 126 | BV18: 1 | BW18: 66 | BX18: 0332 | BY18: SOMERSET ACADEMY(SILVER PALMS) | BZ18: 6 | CA18: 10 | CB18: 23 | CC18: 10 | CD18: 2 | CE18: 0.1176470588 | CF18: 0.1960784314 | CG18: 0.4509803922 | CH18: 0.1960784314 | CI18: 0.03921568627 | CJ18: 51 | CK18: 1 | CL18: 69
A19: 0102 | B19: MIAMI COMMUNITY CHARTER SCHOOL | C19: 21 | D19: 23 | E19: 32 | F19: 14 | G19: 1 | H19: 0.2307692308 | I19: 0.2527472527 | J19: 0.3516483516 | K19: 0.1538461538 | L19: 0.01098901099 | M19: 91 | N19: 1 | O19: 52 | P19: 0102 | Q19: MIAMI COMMUNITY CHARTER SCHOOL | R19: 23 | S19: 7 | T19: 19 | U19: 11 | V19: 12 | W19: 0.3194444444 | X19: 0.09722222222 | Y19: 0.2638888889 | Z19: 0.1527777778 | AA19: 0.1666666667 | AB19: 72 | AC19: 1 | AD19: 58 | AE19: 0102 | AF19: MIAMI COMMUNITY CHARTER SCHOOL | AG19: 25 | AH19: 14 | AI19: 23 | AJ19: 13 | AK19: 4 | AL19: 0.3164556962 | AM19: 0.1772151899 | AN19: 0.2911392405 | AO19: 0.164556962 | AP19: 0.05063291139 | AQ19: 79 | AR19: 1 | AS19: 51 | AT19: 0451 | AU19: BOWMAN ASHE/DOOLIN K-8 ACAD | AV19: 40 | AW19: 20 | AX19: 22 | AY19: 9 | AZ19: 2 | BA19: 0.4301075269 | BB19: 0.2150537634 | BC19: 0.2365591398 | BD19: 0.09677419355 | BE19: 0.02150537634 | BF19: 93 | BG19: 1 | BH19: 35 | BI19: 0451 | BJ19: BOWMAN ASHE/DOOLIN K-8 ACAD | BK19: 45 | BL19: 28 | BM19: 22 | BN19: 16 | BO19: 13 | BP19: 0.3629032258 | BQ19: 0.2258064516 | BR19: 0.1774193548 | BS19: 0.1290322581 | BT19: 0.1048387097 | BU19: 124 | BV19: 1 | BW19: 41 | BX19: 0451 | BY19: BOWMAN ASHE/DOOLIN K-8 ACAD | BZ19: 50 | CA19: 24 | CB19: 12 | CC19: 2 | CD19: 2 | CE19: 0.5555555556 | CF19: 0.2666666667 | CG19: 0.1333333333 | CH19: 0.02222222222 | CI19: 0.02222222222 | CJ19: 90 | CK19: 1 | CL19: 18
A20: 0111 | B20: MAYA ANGELOU ELEMENTARY | C20: 29 | D20: 23 | E20: 48 | F20: 27 | G20: 11 | H20: 0.2101449275 | I20: 0.1666666667 | J20: 0.347826087 | K20: 0.1956521739 | L20: 0.07971014493 | M20: 138 | N20: 1 | O20: 62 | P20: 0111 | Q20: MAYA ANGELOU ELEMENTARY | R20: 34 | S20: 25 | T20: 38 | U20: 24 | V20: 12 | W20: 0.2556390977 | X20: 0.1879699248 | Y20: 0.2857142857 | Z20: 0.1804511278 | AA20: 0.09022556391 | AB20: 133 | AC20: 1 | AD20: 56 | AE20: 0111 | AF20: MAYA ANGELOU ELEMENTARY | AG20: 29 | AH20: 16 | AI20: 22 | AJ20: 20 | AK20: 5 | AL20: 0.3152173913 | AM20: 0.1739130435 | AN20: 0.2391304348 | AO20: 0.2173913043 | AP20: 0.05434782609 | AQ20: 92 | AR20: 1 | AS20: 51 | AT20: 0651 | AU20: CAMPBELL DRIVE K-8 CENTER | AV20: 46 | AW20: 14 | AX20: 15 | AY20: 6 | AZ20: 2 | BA20: 0.5542168675 | BB20: 0.1686746988 | BC20: 0.1807228916 | BD20: 0.07228915663 | BE20: 0.02409638554 | BF20: 83 | BG20: 1 | BH20: 28 | BI20: 0651 | BJ20: CAMPBELL DRIVE K-8 CENTER | BK20: 24 | BL20: 22 | BM20: 22 | BN20: 7 | BO20: 3 | BP20: 0.3076923077 | BQ20: 0.2820512821 | BR20: 0.2820512821 | BS20: 0.08974358974 | BT20: 0.03846153846 | BU20: 78 | BV20: 1 | BW20: 41 | BX20: 0651 | BY20: CAMPBELL DRIVE K-8 CENTER | BZ20: 17 | CA20: 25 | CB20: 12 | CC20: 3 | CE20: 0.298245614 | CF20: 0.4385964912 | CG20: 0.2105263158 | CH20: 0.05263157895 | CI20: 0 | CJ20: 57 | CK20: 1 | CL20: 26
A21: 0121 | B21: AUBURNDALE ELEMENTARY | C21: 37 | D21: 26 | E21: 37 | F21: 21 | G21: 8 | H21: 0.2868217054 | I21: 0.2015503876 | J21: 0.2868217054 | K21: 0.1627906977 | L21: 0.06201550388 | M21: 129 | N21: 1 | O21: 51 | P21: 0121 | Q21: AUBURNDALE ELEMENTARY | R21: 50 | S21: 25 | T21: 39 | U21: 29 | V21: 9 | W21: 0.3289473684 | X21: 0.1644736842 | Y21: 0.2565789474 | Z21: 0.1907894737 | AA21: 0.05921052632 | AB21: 152 | AC21: 1 | AD21: 51 | AE21: 0121 | AF21: AUBURNDALE ELEMENTARY | AG21: 55 | AH21: 32 | AI21: 30 | AJ21: 23 | AK21: 7 | AL21: 0.3741496599 | AM21: 0.2176870748 | AN21: 0.2040816327 | AO21: 0.156462585 | AP21: 0.04761904762 | AQ21: 147 | AR21: 1 | AS21: 41 | AT21: 0661 | AU21: CARIBBEAN ELEMENTARY | AV21: 25 | AW21: 17 | AX21: 6 | AY21: 6 | AZ21: 2 | BA21: 0.4464285714 | BB21: 0.3035714286 | BC21: 0.1071428571 | BD21: 0.1071428571 | BE21: 0.03571428571 | BF21: 56 | BG21: 1 | BH21: 25 | BI21: 0761 | BJ21: FIENBERG/FISHER K-8 CENTER | BK21: 23 | BL21: 21 | BM21: 22 | BN21: 9 | BO21: 6 | BP21: 0.2839506173 | BQ21: 0.2592592593 | BR21: 0.2716049383 | BS21: 0.1111111111 | BT21: 0.07407407407 | BU21: 81 | BV21: 1 | BW21: 46 | BX21: 0761 | BY21: FIENBERG/FISHER K-8 CENTER | BZ21: 36 | CA21: 22 | CB21: 16 | CC21: 6 | CD21: 1 | CE21: 0.4444444444 | CF21: 0.2716049383 | CG21: 0.1975308642 | CH21: 0.07407407407 | CI21: 0.01234567901 | CJ21: 81 | CK21: 1 | CL21: 28
A22: 0122 | B22: DR ROLANDO ESPINOSA K-8 | C22: 30 | D22: 30 | E22: 49 | F22: 37 | G22: 36 | H22: 0.1648351648 | I22: 0.1648351648 | J22: 0.2692307692 | K22: 0.2032967033 | L22: 0.1978021978 | M22: 182 | N22: 1 | O22: 67 | P22: 0122 | Q22: DR ROLANDO ESPINOSA K-8 | R22: 72 | S22: 33 | T22: 62 | U22: 35 | V22: 24 | W22: 0.3185840708 | X22: 0.1460176991 | Y22: 0.2743362832 | Z22: 0.1548672566 | AA22: 0.1061946903 | AB22: 226 | AC22: 1 | AD22: 54 | AE22: 0122 | AF22: DR ROLANDO ESPINOSA K-8 | AG22: 45 | AH22: 42 | AI22: 37 | AJ22: 59 | AK22: 37 | AL22: 0.2045454545 | AM22: 0.1909090909 | AN22: 0.1681818182 | AO22: 0.2681818182 | AP22: 0.1681818182 | AQ22: 220 | AR22: 1 | AS22: 60 | AT22: 0761 | AU22: FIENBERG/FISHER K-8 CENTER | AV22: 32 | AW22: 17 | AX22: 15 | AY22: 12 | AZ22: 6 | BA22: 0.3902439024 | BB22: 0.2073170732 | BC22: 0.1829268293 | BD22: 0.1463414634 | BE22: 0.07317073171 | BF22: 82 | BG22: 1 | BH22: 40 | BI22: 0950 | BJ22: AVENTURA CITY OF EXCELLENCE | BK22: 2 | BL22: 10 | BM22: 30 | BN22: 21 | BO22: 2 | BP22: 0.03076923077 | BQ22: 0.1538461538 | BR22: 0.4615384615 | BS22: 0.3230769231 | BT22: 0.03076923077 | BU22: 65 | BV22: 1 | BW22: 82 | BX22: 0950 | BY22: AVENTURA CITY OF EXCELLENCE | CA22: 5 | CB22: 11 | CC22: 8 | CD22: 64 | CE22: 0 | CF22: 0.05681818182 | CG22: 0.125 | CH22: 0.09090909091 | CI22: 0.7272727273 | CJ22: 88 | CK22: 1 | CL22: 94
A23: 0125 | B23: NORMA BUTLER BOSSARD ELEM | C23: 15 | D23: 27 | E23: 69 | F23: 83 | G23: 34 | H23: 0.06578947368 | I23: 0.1184210526 | J23: 0.3026315789 | K23: 0.3640350877 | L23: 0.149122807 | M23: 228 | N23: 1 | O23: 82 | P23: 0125 | Q23: NORMA BUTLER BOSSARD ELEM | R23: 37 | S23: 50 | T23: 64 | U23: 44 | V23: 29 | W23: 0.1651785714 | X23: 0.2232142857 | Y23: 0.2857142857 | Z23: 0.1964285714 | AA23: 0.1294642857 | AB23: 224 | AC23: 1 | AD23: 61 | AE23: 0125 | AF23: NORMA BUTLER BOSSARD ELEM | AG23: 26 | AH23: 29 | AI23: 54 | AJ23: 48 | AK23: 33 | AL23: 0.1368421053 | AM23: 0.1526315789 | AN23: 0.2842105263 | AO23: 0.2526315789 | AP23: 0.1736842105 | AQ23: 190 | AR23: 1 | AS23: 71 | AT23: 0950 | AU23: AVENTURA CITY OF EXCELLENCE | AV23: 7 | AW23: 16 | AX23: 28 | AY23: 44 | AZ23: 21 | BA23: 0.06034482759 | BB23: 0.1379310345 | BC23: 0.2413793103 | BD23: 0.3793103448 | BE23: 0.1810344828 | BF23: 116 | BG23: 1 | BH23: 80 | BI23: 0961 | BJ23: CORAL GABLES PREPARATORY ACAD | BK23: 11 | BL23: 11 | BM23: 20 | BN23: 26 | BO23: 2 | BP23: 0.1571428571 | BQ23: 0.1571428571 | BR23: 0.2857142857 | BS23: 0.3714285714 | BT23: 0.02857142857 | BU23: 70 | BV23: 1 | BW23: 69 | BX23: 0961 | BY23: CORAL GABLES PREPARATORY ACAD | BZ23: 6 | CA23: 5 | CB23: 4 | CC23: 6 | CD23: 5 | CE23: 0.2307692308 | CF23: 0.1923076923 | CG23: 0.1538461538 | CH23: 0.2307692308 | CI23: 0.1923076923 | CJ23: 26 | CK23: 1 | CL23: 58
A24: 0161 | B24: AVOCADO ELEMENTARY | C24: 44 | D24: 29 | E24: 39 | F24: 7 | G24: 1 | H24: 0.3666666667 | I24: 0.2416666667 | J24: 0.325 | K24: 0.05833333333 | L24: 0.008333333333 | M24: 120 | N24: 1 | O24: 39 | P24: 0201 | Q24: BANYAN ELEMENTARY | R24: 11 | S24: 5 | T24: 9 | U24: 14 | V24: 13 | W24: 0.2115384615 | X24: 0.09615384615 | Y24: 0.1730769231 | Z24: 0.2692307692 | AA24: 0.25 | AB24: 52 | AC24: 1 | AD24: 69 | AE24: 0201 | AF24: BANYAN ELEMENTARY | AG24: 4 | AH24: 15 | AI24: 26 | AJ24: 19 | AK24: 5 | AL24: 0.05797101449 | AM24: 0.2173913043 | AN24: 0.3768115942 | AO24: 0.2753623188 | AP24: 0.07246376812 | AQ24: 69 | AR24: 1 | AS24: 72 | AT24: 0961 | AU24: CORAL GABLES PREPARATORY ACAD | AV24: 9 | AW24: 9 | AX24: 18 | AY24: 27 | AZ24: 15 | BA24: 0.1153846154 | BB24: 0.1153846154 | BC24: 0.2307692308 | BD24: 0.3461538462 | BE24: 0.1923076923 | BF24: 78 | BG24: 1 | BH24: 77 | BI24: 1014 | BJ24: HIVE PREPARATORY SCHOOL | BK24: 9 | BL24: 10 | BM24: 6 | BN24: 6 | BO24: 6 | BP24: 0.2432432432 | BQ24: 0.2702702703 | BR24: 0.1621621622 | BS24: 0.1621621622 | BT24: 0.1621621622 | BU24: 37 | BV24: 1 | BW24: 49 | BX24: 1014 | BY24: HIVE PREPARATORY SCHOOL | CB24: 3 | CD24: 1 | CE24: 0 | CF24: 0 | CG24: 0.75 | CH24: 0 | CI24: 0.25 | CJ24: 4 | CK24: 1
A25: 0201 | B25: BANYAN ELEMENTARY | C25: 16 | D25: 9 | E25: 14 | F25: 13 | G25: 7 | H25: 0.2711864407 | I25: 0.1525423729 | J25: 0.2372881356 | K25: 0.2203389831 | L25: 0.1186440678 | M25: 59 | N25: 1 | O25: 58 | P25: 0211 | Q25: DR. MANUEL C. BARREIRO ELEM | R25: 20 | S25: 27 | T25: 34 | U25: 37 | V25: 32 | W25: 0.1333333333 | X25: 0.18 | Y25: 0.2266666667 | Z25: 0.2466666667 | AA25: 0.2133333333 | AB25: 150 | AC25: 1 | AD25: 69 | AE25: 0211 | AF25: DR. MANUEL C. BARREIRO ELEM | AG25: 13 | AH25: 30 | AI25: 26 | AJ25: 39 | AK25: 37 | AL25: 0.08965517241 | AM25: 0.2068965517 | AN25: 0.1793103448 | AO25: 0.2689655172 | AP25: 0.2551724138 | AQ25: 145 | AR25: 1 | AS25: 70 | AT25: 1014 | AU25: HIVE PREPARATORY SCHOOL | AV25: 1 | AW25: 13 | AX25: 19 | AY25: 26 | AZ25: 5 | BA25: 0.015625 | BB25: 0.203125 | BC25: 0.296875 | BD25: 0.40625 | BE25: 0.078125 | BF25: 64 | BG25: 1 | BH25: 78 | BI25: 1020 | BJ25: YOUTH CO-OP CHARTER SCHOOL | BK25: 22 | BL25: 21 | BM25: 26 | BN25: 6 | BP25: 0.2933333333 | BQ25: 0.28 | BR25: 0.3466666667 | BS25: 0.08 | BT25: 0 | BU25: 75 | BV25: 1 | BW25: 43 | BX25: 1020 | BY25: YOUTH CO-OP CHARTER SCHOOL | BZ25: 8 | CA25: 18 | CB25: 32 | CC25: 12 | CD25: 8 | CE25: 0.1025641026 | CF25: 0.2307692308 | CG25: 0.4102564103 | CH25: 0.1538461538 | CI25: 0.1025641026 | CJ25: 78 | CK25: 1 | CL25: 67
A26: 0211 | B26: DR. MANUEL C. BARREIRO ELEM | C26: 15 | D26: 21 | E26: 43 | F26: 38 | G26: 34 | H26: 0.09933774834 | I26: 0.1390728477 | J26: 0.2847682119 | K26: 0.2516556291 | L26: 0.2251655629 | M26: 151 | N26: 1 | O26: 76 | P26: 0231 | Q26: AVENTURA WATERWAYS K-8 CENTER | R26: 39 | S26: 37 | T26: 73 | U26: 64 | V26: 52 | W26: 0.1471698113 | X26: 0.1396226415 | Y26: 0.2754716981 | Z26: 0.241509434 | AA26: 0.1962264151 | AB26: 265 | AC26: 1 | AD26: 71 | AE26: 0231 | AF26: AVENTURA WATERWAYS K-8 CENTER | AG26: 53 | AH26: 51 | AI26: 52 | AJ26: 57 | AK26: 45 | AL26: 0.2054263566 | AM26: 0.1976744186 | AN26: 0.2015503876 | AO26: 0.2209302326 | AP26: 0.1744186047 | AQ26: 258 | AR26: 1 | AS26: 60 | AT26: 1020 | AU26: YOUTH CO-OP CHARTER SCHOOL | AV26: 12 | AW26: 19 | AX26: 47 | AY26: 13 | AZ26: 3 | BA26: 0.1276595745 | BB26: 0.2021276596 | BC26: 0.5 | BD26: 0.1382978723 | BE26: 0.03191489362 | BF26: 94 | BG26: 1 | BH26: 67 | BI26: 1121 | BJ26: CORAL WAY K-8 CENTER | BK26: 35 | BL26: 42 | BM26: 36 | BN26: 17 | BO26: 23 | BP26: 0.2287581699 | BQ26: 0.2745098039 | BR26: 0.2352941176 | BS26: 0.1111111111 | BT26: 0.1503267974 | BU26: 153 | BV26: 1 | BW26: 50 | BX26: 1121 | BY26: CORAL WAY K-8 CENTER | BZ26: 22 | CA26: 25 | CB26: 32 | CC26: 4 | CD26: 2 | CE26: 0.2588235294 | CF26: 0.2941176471 | CG26: 0.3764705882 | CH26: 0.04705882353 | CI26: 0.02352941176 | CJ26: 85 | CK26: 1 | CL26: 45
A27: 0231 | B27: AVENTURA WATERWAYS K-8 CENTER | C27: 26 | D27: 35 | E27: 73 | F27: 62 | G27: 34 | H27: 0.1130434783 | I27: 0.152173913 | J27: 0.3173913043 | K27: 0.2695652174 | L27: 0.147826087 | M27: 230 | N27: 1 | O27: 73 | P27: 0241 | Q27: RUTH K BROAD/BAY HARBOR K-8 | R27: 7 | S27: 14 | T27: 35 | U27: 38 | V27: 44 | W27: 0.05072463768 | X27: 0.1014492754 | Y27: 0.2536231884 | Z27: 0.2753623188 | AA27: 0.3188405797 | AB27: 138 | AC27: 1 | AD27: 85 | AE27: 0241 | AF27: RUTH K BROAD/BAY HARBOR K-8 | AG27: 15 | AH27: 26 | AI27: 39 | AJ27: 50 | AK27: 37 | AL27: 0.08982035928 | AM27: 0.1556886228 | AN27: 0.2335329341 | AO27: 0.2994011976 | AP27: 0.2215568862 | AQ27: 167 | AR27: 1 | AS27: 75 | AT27: 1121 | AU27: CORAL WAY K-8 CENTER | AV27: 45 | AW27: 34 | AX27: 38 | AY27: 20 | AZ27: 7 | BA27: 0.3125 | BB27: 0.2361111111 | BC27: 0.2638888889 | BD27: 0.1388888889 | BE27: 0.04861111111 | BF27: 144 | BG27: 1 | BH27: 45 | BI27: 1331 | BJ27: DEVON AIRE K-8 CENTER | BK27: 20 | BL27: 28 | BM27: 45 | BN27: 51 | BO27: 17 | BP27: 0.1242236025 | BQ27: 0.1739130435 | BR27: 0.2795031056 | BS27: 0.3167701863 | BT27: 0.1055900621 | BU27: 161 | BV27: 1 | BW27: 70 | BX27: 1331 | BY27: DEVON AIRE K-8 CENTER | BZ27: 7 | CA27: 20 | CB27: 24 | CC27: 27 | CD27: 26 | CE27: 0.06730769231 | CF27: 0.1923076923 | CG27: 0.2307692308 | CH27: 0.2596153846 | CI27: 0.25 | CJ27: 104 | CK27: 1 | CL27: 74
A28: 0241 | B28: RUTH K BROAD/BAY HARBOR K-8 | C28: 9 | D28: 15 | E28: 59 | F28: 57 | G28: 29 | H28: 0.05325443787 | I28: 0.08875739645 | J28: 0.349112426 | K28: 0.3372781065 | L28: 0.1715976331 | M28: 169 | N28: 1 | O28: 86 | P28: 0251 | Q28: ETHEL KOGER BECKHAM ELEMENTARY | R28: 5 | S28: 15 | T28: 40 | U28: 42 | V28: 35 | W28: 0.03649635036 | X28: 0.1094890511 | Y28: 0.2919708029 | Z28: 0.3065693431 | AA28: 0.2554744526 | AB28: 137 | AC28: 1 | AD28: 85 | AE28: 0251 | AF28: ETHEL KOGER BECKHAM ELEMENTARY | AG28: 8 | AH28: 16 | AI28: 34 | AJ28: 40 | AK28: 29 | AL28: 0.06299212598 | AM28: 0.125984252 | AN28: 0.2677165354 | AO28: 0.3149606299 | AP28: 0.2283464567 | AQ28: 127 | AR28: 1 | AS28: 81 | AT28: 1281 | AU28: CYPRESS ELEMENTARY | AV28: 13 | AW28: 3 | AX28: 5 | AY28: 3 | BA28: 0.5416666667 | BB28: 0.125 | BC28: 0.2083333333 | BD28: 0.125 | BE28: 0 | BF28: 24 | BG28: 1 | BH28: 33 | BI28: 1401 | BJ28: CHARLES R. DREW K-8 CENTER | BK28: 8 | BL28: 19 | BM28: 13 | BN28: 5 | BO28: 2 | BP28: 0.170212766 | BQ28: 0.4042553191 | BR28: 0.2765957447 | BS28: 0.1063829787 | BT28: 0.04255319149 | BU28: 47 | BV28: 1 | BW28: 43 | BX28: 1401 | BY28: CHARLES R. DREW K-8 CENTER | BZ28: 1 | CA28: 5 | CB28: 9 | CC28: 1 | CD28: 1 | CE28: 0.05882352941 | CF28: 0.2941176471 | CG28: 0.5294117647 | CH28: 0.05882352941 | CI28: 0.05882352941 | CJ28: 17 | CK28: 1 | CL28: 65
A29: 0251 | B29: ETHEL KOGER BECKHAM ELEMENTARY | C29: 3 | D29: 6 | E29: 41 | F29: 63 | G29: 27 | H29: 0.02142857143 | I29: 0.04285714286 | J29: 0.2928571429 | K29: 0.45 | L29: 0.1928571429 | M29: 140 | N29: 1 | O29: 94 | P29: 0261 | Q29: BEL-AIRE ELEMENTARY | R29: 24 | S29: 19 | T29: 18 | U29: 10 | V29: 2 | W29: 0.3287671233 | X29: 0.2602739726 | Y29: 0.2465753425 | Z29: 0.1369863014 | AA29: 0.02739726027 | AB29: 73 | AC29: 1 | AD29: 41 | AE29: 0261 | AF29: BEL-AIRE ELEMENTARY | AG29: 23 | AH29: 11 | AI29: 13 | AJ29: 6 | AK29: 2 | AL29: 0.4181818182 | AM29: 0.2 | AN29: 0.2363636364 | AO29: 0.1090909091 | AP29: 0.03636363636 | AQ29: 55 | AR29: 1 | AS29: 38 | AT29: 1331 | AU29: DEVON AIRE K-8 CENTER | AV29: 23 | AW29: 47 | AX29: 37 | AY29: 40 | AZ29: 20 | BA29: 0.1377245509 | BB29: 0.2814371257 | BC29: 0.2215568862 | BD29: 0.2395209581 | BE29: 0.119760479 | BF29: 167 | BG29: 1 | BH29: 58 | BI29: 1441 | BJ29: PAUL LAURENCE DUNBAR K-8 CTR | BK29: 14 | BL29: 6 | BM29: 3 | BN29: 1 | BP29: 0.5833333333 | BQ29: 0.25 | BR29: 0.125 | BS29: 0.04166666667 | BT29: 0 | BU29: 24 | BV29: 1 | BW29: 17 | BX29: 1441 | BY29: PAUL LAURENCE DUNBAR K-8 CTR | BZ29: 3 | CB29: 2 | CC29: 3 | CD29: 1 | CE29: 0.3333333333 | CF29: 0 | CG29: 0.2222222222 | CH29: 0.3333333333 | CI29: 0.1111111111 | CJ29: 9 | CK29: 1
A30: 0261 | B30: BEL-AIRE ELEMENTARY | C30: 18 | D30: 16 | E30: 23 | F30: 3 | G30: 1 | H30: 0.2950819672 | I30: 0.262295082 | J30: 0.3770491803 | K30: 0.04918032787 | L30: 0.01639344262 | M30: 61 | N30: 1 | O30: 44 | P30: 0271 | Q30: BENT TREE ELEMENTARY | R30: 9 | S30: 10 | T30: 14 | U30: 17 | V30: 11 | W30: 0.1475409836 | X30: 0.1639344262 | Y30: 0.2295081967 | Z30: 0.2786885246 | AA30: 0.1803278689 | AB30: 61 | AC30: 1 | AD30: 69 | AE30: 0271 | AF30: BENT TREE ELEMENTARY | AG30: 8 | AH30: 7 | AI30: 16 | AJ30: 28 | AK30: 27 | AL30: 0.09302325581 | AM30: 0.08139534884 | AN30: 0.1860465116 | AO30: 0.3255813953 | AP30: 0.3139534884 | AQ30: 86 | AR30: 1 | AS30: 83 | AT30: 1401 | AU30: CHARLES R. DREW K-8 CENTER | AV30: 11 | AW30: 18 | AX30: 8 | AY30: 4 | AZ30: 1 | BA30: 0.2619047619 | BB30: 0.4285714286 | BC30: 0.1904761905 | BD30: 0.09523809524 | BE30: 0.02380952381 | BF30: 42 | BG30: 1 | BH30: 31 | BI30: 1601 | BJ30: EDISON PARK K-8 CENTER | BK30: 9 | BL30: 15 | BM30: 5 | BN30: 2 | BP30: 0.2903225806 | BQ30: 0.4838709677 | BR30: 0.1612903226 | BS30: 0.06451612903 | BT30: 0 | BU30: 31 | BV30: 1 | BW30: 23 | BX30: 1601 | BY30: EDISON PARK K-8 CENTER | BZ30: 3 | CA30: 6 | CB30: 7 | CC30: 2 | CD30: 2 | CE30: 0.15 | CF30: 0.3 | CG30: 0.35 | CH30: 0.1 | CI30: 0.1 | CJ30: 20 | CK30: 1 | CL30: 55
A31: 0271 | B31: BENT TREE ELEMENTARY | C31: 8 | D31: 10 | E31: 30 | F31: 22 | G31: 9 | H31: 0.1012658228 | I31: 0.1265822785 | J31: 0.3797468354 | K31: 0.2784810127 | L31: 0.1139240506 | M31: 79 | N31: 1 | O31: 77 | P31: 0311 | Q31: GOULDS ELEMENTARY | R31: 45 | S31: 15 | T31: 28 | U31: 10 | V31: 1 | W31: 0.4545454545 | X31: 0.1515151515 | Y31: 0.2828282828 | Z31: 0.101010101 | AA31: 0.0101010101 | AB31: 99 | AC31: 1 | AD31: 39 | AE31: 0311 | AF31: GOULDS ELEMENTARY | AG31: 32 | AH31: 24 | AI31: 15 | AJ31: 12 | AK31: 6 | AL31: 0.3595505618 | AM31: 0.2696629213 | AN31: 0.1685393258 | AO31: 0.1348314607 | AP31: 0.06741573034 | AQ31: 89 | AR31: 1 | AS31: 37 | AT31: 1441 | AU31: PAUL LAURENCE DUNBAR K-8 CTR | AV31: 13 | AW31: 7 | AX31: 6 | AY31: 2 | AZ31: 1 | BA31: 0.4482758621 | BB31: 0.2413793103 | BC31: 0.2068965517 | BD31: 0.06896551724 | BE31: 0.03448275862 | BF31: 29 | BG31: 1 | BH31: 31 | BI31: 1681 | BJ31: LILLIE C. EVANS K-8 CENTER | BK31: 15 | BL31: 13 | BM31: 10 | BN31: 1 | BP31: 0.3846153846 | BQ31: 0.3333333333 | BR31: 0.2564102564 | BS31: 0.02564102564 | BT31: 0 | BU31: 39 | BV31: 1 | BW31: 28 | BX31: 1681 | BY31: LILLIE C. EVANS K-8 CENTER | BZ31: 3 | CA31: 6 | CB31: 7 | CD31: 1 | CE31: 0.1764705882 | CF31: 0.3529411765 | CG31: 0.4117647059 | CH31: 0 | CI31: 0.05882352941 | CJ31: 17 | CK31: 1 | CL31: 47
A32: 0311 | B32: GOULDS ELEMENTARY | C32: 25 | D32: 28 | E32: 39 | F32: 9 | G32: 3 | H32: 0.2403846154 | I32: 0.2692307692 | J32: 0.375 | K32: 0.08653846154 | L32: 0.02884615385 | M32: 104 | N32: 1 | O32: 49 | P32: 0312 | Q32: MATER GARDENS ACADEMY | R32: 3 | S32: 5 | T32: 30 | U32: 38 | V32: 24 | W32: 0.03 | X32: 0.05 | Y32: 0.3 | Z32: 0.38 | AA32: 0.24 | AB32: 100 | AC32: 1 | AD32: 92 | AE32: 0312 | AF32: MATER GARDENS ACADEMY | AG32: 4 | AH32: 5 | AI32: 22 | AJ32: 47 | AK32: 18 | AL32: 0.04166666667 | AM32: 0.05208333333 | AN32: 0.2291666667 | AO32: 0.4895833333 | AP32: 0.1875 | AQ32: 96 | AR32: 1 | AS32: 91 | AT32: 1601 | AU32: EDISON PARK K-8 CENTER | AV32: 11 | AW32: 16 | AX32: 8 | AY32: 6 | AZ32: 1 | BA32: 0.2619047619 | BB32: 0.380952381 | BC32: 0.1904761905 | BD32: 0.1428571429 | BE32: 0.02380952381 | BF32: 42 | BG32: 1 | BH32: 36 | BI32: 1721 | BJ32: EVERGLADES K-8 CENTER | BK32: 26 | BL32: 34 | BM32: 29 | BN32: 20 | BO32: 10 | BP32: 0.218487395 | BQ32: 0.2857142857 | BR32: 0.243697479 | BS32: 0.1680672269 | BT32: 0.08403361345 | BU32: 119 | BV32: 1 | BW32: 50 | BX32: 1721 | BY32: EVERGLADES K-8 CENTER | BZ32: 24 | CA32: 24 | CB32: 17 | CC32: 5 | CE32: 0.3428571429 | CF32: 0.3428571429 | CG32: 0.2428571429 | CH32: 0.07142857143 | CI32: 0 | CJ32: 70 | CK32: 1 | CL32: 31
A33: 0312 | B33: MATER GARDENS ACADEMY | C33: 5 | D33: 16 | E33: 38 | F33: 24 | G33: 17 | H33: 0.05 | I33: 0.16 | J33: 0.38 | K33: 0.24 | L33: 0.17 | M33: 100 | N33: 1 | O33: 79 | P33: 0321 | Q33: BISCAYNE ELEMENTARY | R33: 32 | S33: 22 | T33: 38 | U33: 17 | V33: 10 | W33: 0.268907563 | X33: 0.1848739496 | Y33: 0.3193277311 | Z33: 0.1428571429 | AA33: 0.08403361345 | AB33: 119 | AC33: 1 | AD33: 55 | AE33: 0321 | AF33: BISCAYNE ELEMENTARY | AG33: 21 | AH33: 30 | AI33: 23 | AJ33: 13 | AK33: 10 | AL33: 0.2164948454 | AM33: 0.3092783505 | AN33: 0.2371134021 | AO33: 0.1340206186 | AP33: 0.1030927835 | AQ33: 97 | AR33: 1 | AS33: 47 | AT33: 1681 | AU33: LILLIE C. EVANS K-8 CENTER | AV33: 6 | AW33: 12 | AX33: 16 | AY33: 5 | AZ33: 1 | BA33: 0.15 | BB33: 0.3 | BC33: 0.4 | BD33: 0.125 | BE33: 0.025 | BF33: 40 | BG33: 1 | BH33: 55 | BI33: 2003 | BJ33: BRIDGEPREP ACADEMY SOUTH | BK33: 5 | BL33: 7 | BM33: 9 | BN33: 10 | BO33: 5 | BP33: 0.1388888889 | BQ33: 0.1944444444 | BR33: 0.25 | BS33: 0.2777777778 | BT33: 0.1388888889 | BU33: 36 | BV33: 1 | BW33: 67 | BX33: 2003 | BY33: BRIDGEPREP ACADEMY SOUTH | CA33: 2 | CB33: 4 | CD33: 1 | CE33: 0 | CF33: 0.2857142857 | CG33: 0.5714285714 | CH33: 0 | CI33: 0.1428571429 | CJ33: 7 | CK33: 1
A34: 0321 | B34: BISCAYNE ELEMENTARY | C34: 26 | D34: 11 | E34: 34 | F34: 17 | G34: 7 | H34: 0.2736842105 | I34: 0.1157894737 | J34: 0.3578947368 | K34: 0.1789473684 | L34: 0.07368421053 | M34: 95 | N34: 1 | O34: 61 | P34: 0332 | Q34: SOMERSET ACADEMY(SILVER PALMS) | R34: 13 | S34: 14 | T34: 24 | U34: 10 | V34: 8 | W34: 0.1884057971 | X34: 0.2028985507 | Y34: 0.347826087 | Z34: 0.1449275362 | AA34: 0.115942029 | AB34: 69 | AC34: 1 | AD34: 61 | AE34: 0332 | AF34: SOMERSET ACADEMY(SILVER PALMS) | AG34: 7 | AH34: 15 | AI34: 22 | AJ34: 28 | AK34: 3 | AL34: 0.09333333333 | AM34: 0.2 | AN34: 0.2933333333 | AO34: 0.3733333333 | AP34: 0.04 | AQ34: 75 | AR34: 1 | AS34: 71 | AT34: 1721 | AU34: EVERGLADES K-8 CENTER | AV34: 42 | AW34: 19 | AX34: 31 | AY34: 15 | AZ34: 4 | BA34: 0.3783783784 | BB34: 0.1711711712 | BC34: 0.2792792793 | BD34: 0.1351351351 | BE34: 0.03603603604 | BF34: 111 | BG34: 1 | BH34: 45 | BI34: 2041 | BJ34: BENJAMIN FRANKLIN K-8 CENTER | BK34: 21 | BL34: 19 | BM34: 6 | BN34: 2 | BP34: 0.4375 | BQ34: 0.3958333333 | BR34: 0.125 | BS34: 0.04166666667 | BT34: 0 | BU34: 48 | BV34: 1 | BW34: 17 | BX34: 2041 | BY34: BENJAMIN FRANKLIN K-8 CENTER | BZ34: 9 | CA34: 8 | CB34: 4 | CC34: 3 | CD34: 3 | CE34: 0.3333333333 | CF34: 0.2962962963 | CG34: 0.1481481481 | CH34: 0.1111111111 | CI34: 0.1111111111 | CJ34: 27 | CK34: 1 | CL34: 37
A35: 0332 | B35: SOMERSET ACADEMY(SILVER PALMS) | C35: 4 | D35: 12 | E35: 29 | F35: 21 | G35: 11 | H35: 0.05194805195 | I35: 0.1558441558 | J35: 0.3766233766 | K35: 0.2727272727 | L35: 0.1428571429 | M35: 77 | N35: 1 | O35: 79 | P35: 0339 | Q35: SOMERSET ACADEMY CHARTER ELEM | R35: 15 | S35: 7 | T35: 20 | U35: 14 | V35: 4 | W35: 0.25 | X35: 0.1166666667 | Y35: 0.3333333333 | Z35: 0.2333333333 | AA35: 0.06666666667 | AB35: 60 | AC35: 1 | AD35: 63 | AE35: 0339 | AF35: SOMERSET ACADEMY CHARTER ELEM | AG35: 10 | AH35: 16 | AI35: 21 | AJ35: 17 | AK35: 12 | AL35: 0.1315789474 | AM35: 0.2105263158 | AN35: 0.2763157895 | AO35: 0.2236842105 | AP35: 0.1578947368 | AQ35: 76 | AR35: 1 | AS35: 66 | AT35: 2003 | AU35: BRIDGEPREP ACADEMY SOUTH | AV35: 5 | AW35: 10 | AX35: 11 | AY35: 6 | AZ35: 4 | BA35: 0.1388888889 | BB35: 0.2777777778 | BC35: 0.3055555556 | BD35: 0.1666666667 | BE35: 0.1111111111 | BF35: 36 | BG35: 1 | BH35: 58 | BI35: 2060 | BJ35: GIBSON CHARTER SCHOOL | BK35: 13 | BL35: 8 | BM35: 5 | BN35: 1 | BP35: 0.4814814815 | BQ35: 0.2962962963 | BR35: 0.1851851852 | BS35: 0.03703703704 | BT35: 0 | BU35: 27 | BV35: 1 | BW35: 22 | BX35: 2060 | BY35: GIBSON CHARTER SCHOOL | BZ35: 8 | CA35: 3 | CB35: 2 | CC35: 1 | CE35: 0.5714285714 | CF35: 0.2142857143 | CG35: 0.1428571429 | CH35: 0.07142857143 | CI35: 0 | CJ35: 14 | CK35: 1 | CL35: 21
A36: 0339 | B36: SOMERSET ACADEMY CHARTER ELEM | C36: 5 | D36: 7 | E36: 15 | F36: 19 | G36: 15 | H36: 0.08196721311 | I36: 0.1147540984 | J36: 0.2459016393 | K36: 0.3114754098 | L36: 0.2459016393 | M36: 61 | N36: 1 | O36: 80 | P36: 0341 | Q36: ARCH CREEK ELEMENTARY SCHOOL | R36: 30 | S36: 18 | T36: 33 | U36: 12 | V36: 6 | W36: 0.303030303 | X36: 0.1818181818 | Y36: 0.3333333333 | Z36: 0.1212121212 | AA36: 0.06060606061 | AB36: 99 | AC36: 1 | AD36: 52 | AE36: 0341 | AF36: ARCH CREEK ELEMENTARY SCHOOL | AG36: 35 | AH36: 24 | AI36: 25 | AJ36: 10 | AK36: 1 | AL36: 0.3684210526 | AM36: 0.2526315789 | AN36: 0.2631578947 | AO36: 0.1052631579 | AP36: 0.01052631579 | AQ36: 95 | AR36: 1 | AS36: 38 | AT36: 2041 | AU36: BENJAMIN FRANKLIN K-8 CENTER | AV36: 25 | AW36: 13 | AX36: 6 | AZ36: 1 | BA36: 0.5555555556 | BB36: 0.2888888889 | BC36: 0.1333333333 | BD36: 0 | BE36: 0.02222222222 | BF36: 45 | BG36: 1 | BH36: 16 | BI36: 2701 | BJ36: KENWOOD K-8 CENTER | BK36: 23 | BL36: 27 | BM36: 38 | BN36: 27 | BO36: 9 | BP36: 0.185483871 | BQ36: 0.2177419355 | BR36: 0.3064516129 | BS36: 0.2177419355 | BT36: 0.07258064516 | BU36: 124 | BV36: 1 | BW36: 60 | BX36: 2701 | BY36: KENWOOD K-8 CENTER | BZ36: 11 | CA36: 15 | CB36: 20 | CC36: 7 | CD36: 5 | CE36: 0.1896551724 | CF36: 0.2586206897 | CG36: 0.3448275862 | CH36: 0.1206896552 | CI36: 0.08620689655 | CJ36: 58 | CK36: 1 | CL36: 55
A37: 0341 | B37: ARCH CREEK ELEMENTARY SCHOOL | C37: 20 | D37: 21 | E37: 20 | F37: 15 | G37: 2 | H37: 0.2564102564 | I37: 0.2692307692 | J37: 0.2564102564 | K37: 0.1923076923 | L37: 0.02564102564 | M37: 78 | N37: 1 | O37: 47 | P37: 0342 | Q37: PINECREST ACADEMY SOUTH CAMPUS | R37: 4 | S37: 12 | T37: 48 | U37: 42 | V37: 25 | W37: 0.03053435115 | X37: 0.09160305344 | Y37: 0.3664122137 | Z37: 0.320610687 | AA37: 0.1908396947 | AB37: 131 | AC37: 1 | AD37: 88 | AE37: 0342 | AF37: PINECREST ACADEMY SOUTH CAMPUS | AG37: 9 | AH37: 14 | AI37: 30 | AJ37: 29 | AK37: 16 | AL37: 0.09183673469 | AM37: 0.1428571429 | AN37: 0.306122449 | AO37: 0.2959183673 | AP37: 0.1632653061 | AQ37: 98 | AR37: 1 | AS37: 77 | AT37: 2060 | AU37: GIBSON CHARTER SCHOOL | AV37: 11 | AW37: 9 | AX37: 6 | BA37: 0.4230769231 | BB37: 0.3461538462 | BC37: 0.2307692308 | BD37: 0 | BE37: 0 | BF37: 26 | BG37: 1 | BH37: 23 | BI37: 2741 | BJ37: KEY BISCAYNE K-8 CENTER | BK37: 3 | BL37: 13 | BM37: 36 | BN37: 35 | BO37: 12 | BP37: 0.0303030303 | BQ37: 0.1313131313 | BR37: 0.3636363636 | BS37: 0.3535353535 | BT37: 0.1212121212 | BU37: 99 | BV37: 1 | BW37: 84 | BX37: 2741 | BY37: KEY BISCAYNE K-8 CENTER | BZ37: 2 | CA37: 9 | CB37: 12 | CC37: 7 | CE37: 0.06666666667 | CF37: 0.3 | CG37: 0.4 | CH37: 0.2333333333 | CI37: 0 | CJ37: 30 | CK37: 1 | CL37: 63
A38: 0342 | B38: PINECREST ACADEMY SOUTH CAMPUS | C38: 5 | D38: 9 | E38: 54 | F38: 45 | G38: 22 | H38: 0.03703703704 | I38: 0.06666666667 | J38: 0.4 | K38: 0.3333333333 | L38: 0.162962963 | M38: 135 | N38: 1 | O38: 90 | P38: 0361 | Q38: BISCAYNE GARDENS ELEMENTARY | R38: 17 | S38: 17 | T38: 20 | U38: 11 | V38: 5 | W38: 0.2428571429 | X38: 0.2428571429 | Y38: 0.2857142857 | Z38: 0.1571428571 | AA38: 0.07142857143 | AB38: 70 | AC38: 1 | AD38: 51 | AE38: 0361 | AF38: BISCAYNE GARDENS ELEMENTARY | AG38: 17 | AH38: 8 | AI38: 12 | AJ38: 5 | AK38: 2 | AL38: 0.3863636364 | AM38: 0.1818181818 | AN38: 0.2727272727 | AO38: 0.1136363636 | AP38: 0.04545454545 | AQ38: 44 | AR38: 1 | AS38: 43 | AT38: 2701 | AU38: KENWOOD K-8 CENTER | AV38: 35 | AW38: 32 | AX38: 29 | AY38: 25 | AZ38: 6 | BA38: 0.2755905512 | BB38: 0.2519685039 | BC38: 0.2283464567 | BD38: 0.1968503937 | BE38: 0.04724409449 | BF38: 127 | BG38: 1 | BH38: 47 | BI38: 2881 | BJ38: LEEWOOD K-8 CENTER | BK38: 3 | BL38: 9 | BM38: 17 | BN38: 25 | BO38: 20 | BP38: 0.04054054054 | BQ38: 0.1216216216 | BR38: 0.2297297297 | BS38: 0.3378378378 | BT38: 0.2702702703 | BU38: 74 | BV38: 1 | BW38: 84 | BX38: 2881 | BY38: LEEWOOD K-8 CENTER | BZ38: 4 | CA38: 3 | CB38: 2 | CD38: 1 | CE38: 0.4 | CF38: 0.3 | CG38: 0.2 | CH38: 0 | CI38: 0.1 | CJ38: 10 | CK38: 1 | CL38: 30
A39: 0361 | B39: BISCAYNE GARDENS ELEMENTARY | C39: 19 | D39: 19 | E39: 20 | F39: 14 | G39: 5 | H39: 0.2467532468 | I39: 0.2467532468 | J39: 0.2597402597 | K39: 0.1818181818 | L39: 0.06493506494 | M39: 77 | N39: 1 | O39: 51 | P39: 0400 | Q39: RENAISSANCE ELEMENTARY CHARTER | R39: 9 | S39: 16 | T39: 38 | U39: 52 | V39: 37 | W39: 0.05921052632 | X39: 0.1052631579 | Y39: 0.25 | Z39: 0.3421052632 | AA39: 0.2434210526 | AB39: 152 | AC39: 1 | AD39: 84 | AE39: 0400 | AF39: RENAISSANCE ELEMENTARY CHARTER | AG39: 1 | AH39: 11 | AI39: 49 | AJ39: 54 | AK39: 36 | AL39: 0.006622516556 | AM39: 0.07284768212 | AN39: 0.3245033113 | AO39: 0.357615894 | AP39: 0.238410596 | AQ39: 151 | AR39: 1 | AS39: 92 | AT39: 2741 | AU39: KEY BISCAYNE K-8 CENTER | AV39: 6 | AW39: 23 | AX39: 20 | AY39: 68 | AZ39: 43 | BA39: 0.0375 | BB39: 0.14375 | BC39: 0.125 | BD39: 0.425 | BE39: 0.26875 | BF39: 160 | BG39: 1 | BH39: 82 | BI39: 2901 | BJ39: LEISURE CITY K-8 CENTER | BK39: 39 | BL39: 32 | BM39: 22 | BN39: 18 | BO39: 9 | BP39: 0.325 | BQ39: 0.2666666667 | BR39: 0.1833333333 | BS39: 0.15 | BT39: 0.075 | BU39: 120 | BV39: 1 | BW39: 41 | BX39: 2901 | BY39: LEISURE CITY K-8 CENTER | BZ39: 16 | CA39: 16 | CB39: 27 | CC39: 10 | CD39: 2 | CE39: 0.2253521127 | CF39: 0.2253521127 | CG39: 0.3802816901 | CH39: 0.1408450704 | CI39: 0.02816901408 | CJ39: 71 | CK39: 1 | CL39: 55
A40: 0400 | B40: RENAISSANCE ELEMENTARY CHARTER | C40: 5 | D40: 10 | E40: 34 | F40: 53 | G40: 44 | H40: 0.03424657534 | I40: 0.06849315068 | J40: 0.2328767123 | K40: 0.3630136986 | L40: 0.301369863 | M40: 146 | N40: 1 | O40: 90 | P40: 0401 | Q40: VAN E. BLANTON ELEMENTARY | R40: 27 | S40: 16 | T40: 24 | U40: 14 | V40: 2 | W40: 0.3253012048 | X40: 0.1927710843 | Y40: 0.2891566265 | Z40: 0.1686746988 | AA40: 0.02409638554 | AB40: 83 | AC40: 1 | AD40: 48 | AE40: 0401 | AF40: VAN E. BLANTON ELEMENTARY | AG40: 31 | AH40: 31 | AI40: 14 | AJ40: 7 | AK40: 1 | AL40: 0.369047619 | AM40: 0.369047619 | AN40: 0.1666666667 | AO40: 0.08333333333 | AP40: 0.0119047619 | AQ40: 84 | AR40: 1 | AS40: 26 | AT40: 2881 | AU40: LEEWOOD K-8 CENTER | AV40: 12 | AW40: 20 | AX40: 22 | AY40: 35 | AZ40: 19 | BA40: 0.1111111111 | BB40: 0.1851851852 | BC40: 0.2037037037 | BD40: 0.3240740741 | BE40: 0.1759259259 | BF40: 108 | BG40: 1 | BH40: 70 | BI40: 2911 | BJ40: LINDA LENTIN K-8 CENTER | BK40: 28 | BL40: 21 | BM40: 22 | BN40: 10 | BO40: 3 | BP40: 0.3333333333 | BQ40: 0.25 | BR40: 0.2619047619 | BS40: 0.119047619 | BT40: 0.03571428571 | BU40: 84 | BV40: 1 | BW40: 42 | BX40: 2911 | BY40: LINDA LENTIN K-8 CENTER | BZ40: 36 | CA40: 26 | CB40: 13 | CC40: 5 | CE40: 0.45 | CF40: 0.325 | CG40: 0.1625 | CH40: 0.0625 | CI40: 0 | CJ40: 80 | CK40: 1 | CL40: 23
A41: 0401 | B41: VAN E. BLANTON ELEMENTARY | C41: 15 | D41: 17 | E41: 27 | F41: 24 | G41: 5 | H41: 0.1704545455 | I41: 0.1931818182 | J41: 0.3068181818 | K41: 0.2727272727 | L41: 0.05681818182 | M41: 88 | N41: 1 | O41: 64 | P41: 0410 | Q41: ACADEMIR CHARTER SCHOOL WEST | R41: 8 | S41: 21 | T41: 36 | U41: 37 | V41: 38 | W41: 0.05714285714 | X41: 0.15 | Y41: 0.2571428571 | Z41: 0.2642857143 | AA41: 0.2714285714 | AB41: 140 | AC41: 1 | AD41: 79 | AE41: 0410 | AF41: ACADEMIR CHARTER SCHOOL WEST | AG41: 3 | AH41: 21 | AI41: 27 | AJ41: 28 | AK41: 13 | AL41: 0.03260869565 | AM41: 0.2282608696 | AN41: 0.2934782609 | AO41: 0.3043478261 | AP41: 0.1413043478 | AQ41: 92 | AR41: 1 | AS41: 74 | AT41: 2901 | AU41: LEISURE CITY K-8 CENTER | AV41: 32 | AW41: 31 | AX41: 19 | AY41: 12 | AZ41: 3 | BA41: 0.3298969072 | BB41: 0.3195876289 | BC41: 0.1958762887 | BD41: 0.1237113402 | BE41: 0.03092783505 | BF41: 97 | BG41: 1 | BH41: 35 | BI41: 3029 | BJ41: DORAL ACADEMY OF TECHNOLOGY | BL41: 1 | BM41: 4 | BN41: 8 | BO41: 2 | BP41: 0 | BQ41: 0.06666666667 | BR41: 0.2666666667 | BS41: 0.5333333333 | BT41: 0.1333333333 | BU41: 15 | BV41: 1 | BW41: 93 | BX41: 3029 | BY41: DORAL ACADEMY OF TECHNOLOGY | CC41: 2 | CD41: 1 | CE41: 0 | CF41: 0 | CG41: 0 | CH41: 0.6666666667 | CI41: 0.3333333333 | CJ41: 3 | CK41: 1
A42: 0410 | B42: ACADEMIR CHARTER SCHOOL WEST | C42: 2 | D42: 11 | E42: 27 | F42: 34 | G42: 23 | H42: 0.0206185567 | I42: 0.1134020619 | J42: 0.2783505155 | K42: 0.3505154639 | L42: 0.2371134021 | M42: 97 | N42: 1 | O42: 87 | P42: 0441 | Q42: BLUE LAKES K-8 | R42: 12 | S42: 14 | T42: 15 | U42: 10 | V42: 2 | W42: 0.2264150943 | X42: 0.2641509434 | Y42: 0.2830188679 | Z42: 0.1886792453 | AA42: 0.03773584906 | AB42: 53 | AC42: 1 | AD42: 51 | AE42: 0441 | AF42: BLUE LAKES K-8 | AG42: 10 | AH42: 17 | AI42: 21 | AJ42: 16 | AK42: 1 | AL42: 0.1538461538 | AM42: 0.2615384615 | AN42: 0.3230769231 | AO42: 0.2461538462 | AP42: 0.01538461538 | AQ42: 65 | AR42: 1 | AS42: 58 | AT42: 2911 | AU42: LINDA LENTIN K-8 CENTER | AV42: 39 | AW42: 24 | AX42: 11 | AY42: 5 | AZ42: 1 | BA42: 0.4875 | BB42: 0.3 | BC42: 0.1375 | BD42: 0.0625 | BE42: 0.0125 | BF42: 80 | BG42: 1 | BH42: 21 | BI42: 3032 | BJ42: PALM GLADES PREPATORY ACADEMY | BK42: 43 | BL42: 32 | BM42: 12 | BN42: 3 | BP42: 0.4777777778 | BQ42: 0.3555555556 | BR42: 0.1333333333 | BS42: 0.03333333333 | BT42: 0 | BU42: 90 | BV42: 1 | BW42: 17 | BX42: 3032 | BY42: PALM GLADES PREPATORY ACADEMY | BZ42: 37 | CA42: 27 | CB42: 27 | CC42: 1 | CE42: 0.402173913 | CF42: 0.2934782609 | CG42: 0.2934782609 | CH42: 0.01086956522 | CI42: 0 | CJ42: 92 | CK42: 1 | CL42: 30
A43: 0441 | B43: BLUE LAKES K-8 | C43: 7 | D43: 5 | E43: 16 | F43: 13 | G43: 12 | H43: 0.1320754717 | I43: 0.09433962264 | J43: 0.3018867925 | K43: 0.2452830189 | L43: 0.2264150943 | M43: 53 | N43: 1 | O43: 77 | P43: 0451 | Q43: BOWMAN ASHE/DOOLIN K-8 ACAD | R43: 21 | S43: 15 | T43: 36 | U43: 29 | V43: 24 | W43: 0.168 | X43: 0.12 | Y43: 0.288 | Z43: 0.232 | AA43: 0.192 | AB43: 125 | AC43: 1 | AD43: 71 | AE43: 0451 | AF43: BOWMAN ASHE/DOOLIN K-8 ACAD | AG43: 19 | AH43: 29 | AI43: 26 | AJ43: 29 | AK43: 28 | AL43: 0.1450381679 | AM43: 0.2213740458 | AN43: 0.1984732824 | AO43: 0.2213740458 | AP43: 0.213740458 | AQ43: 131 | AR43: 1 | AS43: 63 | AT43: 3029 | AU43: DORAL ACADEMY OF TECHNOLOGY | AX43: 2 | AY43: 28 | AZ43: 28 | BA43: 0 | BB43: 0 | BC43: 0.03448275862 | BD43: 0.4827586207 | BE43: 0.4827586207 | BF43: 58 | BG43: 1 | BH43: 100 | BI43: 3034 | BJ43: BRIDGEPREP ACAD VILLAGE GREEN | BK43: 5 | BL43: 5 | BM43: 6 | BN43: 2 | BP43: 0.2777777778 | BQ43: 0.2777777778 | BR43: 0.3333333333 | BS43: 0.1111111111 | BT43: 0 | BU43: 18 | BV43: 1 | BW43: 44 | BX43: 3034 | BY43: BRIDGEPREP ACAD VILLAGE GREEN | BZ43: 4 | CA43: 3 | CB43: 9 | CC43: 6 | CD43: 1 | CE43: 0.1739130435 | CF43: 0.1304347826 | CG43: 0.3913043478 | CH43: 0.2608695652 | CI43: 0.04347826087 | CJ43: 23 | CK43: 1 | CL43: 70
A44: 0451 | B44: BOWMAN ASHE/DOOLIN K-8 ACAD | C44: 23 | D44: 17 | E44: 41 | F44: 36 | G44: 12 | H44: 0.1782945736 | I44: 0.1317829457 | J44: 0.3178294574 | K44: 0.2790697674 | L44: 0.09302325581 | M44: 129 | N44: 1 | O44: 69 | P44: 0461 | Q44: BRENTWOOD ELEMENTARY | R44: 21 | S44: 17 | T44: 20 | U44: 21 | V44: 6 | W44: 0.2470588235 | X44: 0.2 | Y44: 0.2352941176 | Z44: 0.2470588235 | AA44: 0.07058823529 | AB44: 85 | AC44: 1 | AD44: 55 | AE44: 0461 | AF44: BRENTWOOD ELEMENTARY | AG44: 19 | AH44: 16 | AI44: 16 | AJ44: 25 | AK44: 17 | AL44: 0.2043010753 | AM44: 0.1720430108 | AN44: 0.1720430108 | AO44: 0.2688172043 | AP44: 0.1827956989 | AQ44: 93 | AR44: 1 | AS44: 62 | AT44: 3032 | AU44: PALM GLADES PREPATORY ACADEMY | AV44: 30 | AW44: 21 | AX44: 8 | AY44: 4 | BA44: 0.4761904762 | BB44: 0.3333333333 | BC44: 0.126984127 | BD44: 0.06349206349 | BE44: 0 | BF44: 63 | BG44: 1 | BH44: 19 | BI44: 3101 | BJ44: FRANK C. MARTIN K-8 CENTER | BK44: 14 | BL44: 23 | BM44: 34 | BN44: 19 | BO44: 1 | BP44: 0.1538461538 | BQ44: 0.2527472527 | BR44: 0.3736263736 | BS44: 0.2087912088 | BT44: 0.01098901099 | BU44: 91 | BV44: 1 | BW44: 59 | BX44: 3101 | BY44: FRANK C. MARTIN K-8 CENTER | BZ44: 3 | CA44: 8 | CB44: 26 | CC44: 13 | CD44: 5 | CE44: 0.05454545455 | CF44: 0.1454545455 | CG44: 0.4727272727 | CH44: 0.2363636364 | CI44: 0.09090909091 | CJ44: 55 | CK44: 1 | CL44: 80
A45: 0461 | B45: BRENTWOOD ELEMENTARY | C45: 25 | D45: 26 | E45: 29 | F45: 14 | G45: 3 | H45: 0.2577319588 | I45: 0.2680412371 | J45: 0.2989690722 | K45: 0.1443298969 | L45: 0.03092783505 | M45: 97 | N45: 1 | O45: 47 | P45: 0481 | Q45: JAMES H. BRIGHT/JW JOHNSON ES | R45: 26 | S45: 19 | T45: 30 | U45: 20 | V45: 3 | W45: 0.2653061224 | X45: 0.193877551 | Y45: 0.306122449 | Z45: 0.2040816327 | AA45: 0.0306122449 | AB45: 98 | AC45: 1 | AD45: 54 | AE45: 0481 | AF45: JAMES H. BRIGHT/JW JOHNSON ES | AG45: 23 | AH45: 36 | AI45: 20 | AJ45: 20 | AK45: 6 | AL45: 0.219047619 | AM45: 0.3428571429 | AN45: 0.1904761905 | AO45: 0.1904761905 | AP45: 0.05714285714 | AQ45: 105 | AR45: 1 | AS45: 44 | AT45: 3033 | AU45: SOMERSET OAKS ACADEMY | AV45: 4 | AW45: 5 | AX45: 8 | AY45: 2 | AZ45: 3 | BA45: 0.1818181818 | BB45: 0.2272727273 | BC45: 0.3636363636 | BD45: 0.09090909091 | BE45: 0.1363636364 | BF45: 22 | BG45: 1 | BH45: 59 | BI45: 3191 | BJ45: ADA MERRITT K-8 CENTER | BK45: 1 | BL45: 5 | BM45: 19 | BN45: 14 | BO45: 3 | BP45: 0.02380952381 | BQ45: 0.119047619 | BR45: 0.4523809524 | BS45: 0.3333333333 | BT45: 0.07142857143 | BU45: 42 | BV45: 1 | BW45: 86 | BX45: 3281 | BY45: MIAMI LAKES K-8 CENTER | BZ45: 28 | CA45: 28 | CB45: 16 | CC45: 1 | CE45: 0.3835616438 | CF45: 0.3835616438 | CG45: 0.2191780822 | CH45: 0.01369863014 | CI45: 0 | CJ45: 73 | CK45: 1 | CL45: 23
A46: 0481 | B46: JAMES H. BRIGHT/JW JOHNSON ES | C46: 40 | D46: 25 | E46: 24 | F46: 21 | G46: 9 | H46: 0.3361344538 | I46: 0.2100840336 | J46: 0.2016806723 | K46: 0.1764705882 | L46: 0.0756302521 | M46: 119 | N46: 1 | O46: 45 | P46: 0510 | Q46: ARCHIMEDEAN ACADEMY | R46: 1 | S46: 2 | T46: 18 | U46: 34 | V46: 58 | W46: 0.008849557522 | X46: 0.01769911504 | Y46: 0.1592920354 | Z46: 0.3008849558 | AA46: 0.5132743363 | AB46: 113 | AC46: 1 | AD46: 97 | AE46: 0510 | AF46: ARCHIMEDEAN ACADEMY | AG46: 1 | AH46: 4 | AI46: 11 | AJ46: 36 | AK46: 45 | AL46: 0.01030927835 | AM46: 0.0412371134 | AN46: 0.1134020619 | AO46: 0.3711340206 | AP46: 0.4639175258 | AQ46: 97 | AR46: 1 | AS46: 95 | AT46: 3034 | AU46: BRIDGEPREP ACAD VILLAGE GREEN | AV46: 18 | AW46: 19 | AX46: 13 | AY46: 3 | BA46: 0.3396226415 | BB46: 0.358490566 | BC46: 0.2452830189 | BD46: 0.05660377358 | BE46: 0 | BF46: 53 | BG46: 1 | BH46: 30 | BI46: 3281 | BJ46: MIAMI LAKES K-8 CENTER | BK46: 41 | BL46: 27 | BM46: 48 | BN46: 35 | BO46: 18 | BP46: 0.2426035503 | BQ46: 0.1597633136 | BR46: 0.2840236686 | BS46: 0.2071005917 | BT46: 0.1065088757 | BU46: 169 | BV46: 1 | BW46: 60 | BX46: 3421 | BY46: M.A. MILAM K-8 CENTER | BZ46: 12 | CA46: 18 | CB46: 33 | CC46: 12 | CD46: 10 | CE46: 0.1411764706 | CF46: 0.2117647059 | CG46: 0.3882352941 | CH46: 0.1411764706 | CI46: 0.1176470588 | CJ46: 85 | CK46: 1 | CL46: 65
A47: 0510 | B47: ARCHIMEDEAN ACADEMY | C47: 1 | D47: 6 | E47: 21 | F47: 38 | G47: 38 | H47: 0.009615384615 | I47: 0.05769230769 | J47: 0.2019230769 | K47: 0.3653846154 | L47: 0.3653846154 | M47: 104 | N47: 1 | O47: 93 | P47: 0520 | Q47: SOMERSET ACADEMY | R47: 5 | S47: 5 | T47: 36 | U47: 35 | V47: 28 | W47: 0.04587155963 | X47: 0.04587155963 | Y47: 0.3302752294 | Z47: 0.3211009174 | AA47: 0.2568807339 | AB47: 109 | AC47: 1 | AD47: 91 | AE47: 0520 | AF47: SOMERSET ACADEMY | AG47: 6 | AH47: 19 | AI47: 28 | AJ47: 24 | AK47: 11 | AL47: 0.06818181818 | AM47: 0.2159090909 | AN47: 0.3181818182 | AO47: 0.2727272727 | AP47: 0.125 | AQ47: 88 | AR47: 1 | AS47: 72 | AT47: 3101 | AU47: FRANK C. MARTIN K-8 CENTER | AV47: 10 | AW47: 29 | AX47: 42 | AY47: 35 | AZ47: 11 | BA47: 0.07874015748 | BB47: 0.2283464567 | BC47: 0.3307086614 | BD47: 0.2755905512 | BE47: 0.08661417323 | BF47: 127 | BG47: 1 | BH47: 69 | BI47: 3421 | BJ47: M.A. MILAM K-8 CENTER | BK47: 26 | BL47: 27 | BM47: 28 | BN47: 26 | BO47: 7 | BP47: 0.2280701754 | BQ47: 0.2368421053 | BR47: 0.2456140351 | BS47: 0.2280701754 | BT47: 0.06140350877 | BU47: 114 | BV47: 1 | BW47: 54 | BX47: 3501 | BY47: MORNINGSIDE K-8 ACADEMY | BZ47: 8 | CA47: 4 | CB47: 9 | CC47: 4 | CE47: 0.32 | CF47: 0.16 | CG47: 0.36 | CH47: 0.16 | CI47: 0 | CJ47: 25 | CK47: 1 | CL47: 52
A48: 0520 | B48: SOMERSET ACADEMY | C48: 6 | D48: 11 | E48: 40 | F48: 33 | G48: 17 | H48: 0.05607476636 | I48: 0.1028037383 | J48: 0.3738317757 | K48: 0.308411215 | L48: 0.1588785047 | M48: 107 | N48: 1 | O48: 84 | P48: 0521 | Q48: BROADMOOR ELEMENTARY | R48: 16 | S48: 9 | T48: 22 | U48: 21 | V48: 5 | W48: 0.2191780822 | X48: 0.1232876712 | Y48: 0.301369863 | Z48: 0.2876712329 | AA48: 0.06849315068 | AB48: 73 | AC48: 1 | AD48: 66 | AE48: 0521 | AF48: BROADMOOR ELEMENTARY | AG48: 31 | AH48: 20 | AI48: 15 | AJ48: 8 | AK48: 3 | AL48: 0.4025974026 | AM48: 0.2597402597 | AN48: 0.1948051948 | AO48: 0.1038961039 | AP48: 0.03896103896 | AQ48: 77 | AR48: 1 | AS48: 34 | AT48: 3191 | AU48: ADA MERRITT K-8 CENTER | AV48: 1 | AW48: 9 | AX48: 21 | AY48: 34 | AZ48: 29 | BA48: 0.01063829787 | BB48: 0.09574468085 | BC48: 0.2234042553 | BD48: 0.3617021277 | BE48: 0.3085106383 | BF48: 94 | BG48: 1 | BH48: 89 | BI48: 3501 | BJ48: MORNINGSIDE K-8 ACADEMY | BK48: 18 | BL48: 10 | BM48: 4 | BN48: 5 | BO48: 3 | BP48: 0.45 | BQ48: 0.25 | BR48: 0.1 | BS48: 0.125 | BT48: 0.075 | BU48: 40 | BV48: 1 | BW48: 30 | BX48: 3581 | BY48: MYRTLE GROVE K-8 CENTER | BZ48: 7 | CA48: 10 | CB48: 13 | CC48: 4 | CD48: 3 | CE48: 0.1891891892 | CF48: 0.2702702703 | CG48: 0.3513513514 | CH48: 0.1081081081 | CI48: 0.08108108108 | CJ48: 37 | CK48: 1 | CL48: 54
A49: 0521 | B49: BROADMOOR ELEMENTARY | C49: 34 | D49: 12 | E49: 19 | F49: 4 | G49: 1 | H49: 0.4857142857 | I49: 0.1714285714 | J49: 0.2714285714 | K49: 0.05714285714 | L49: 0.01428571429 | M49: 70 | N49: 1 | O49: 34 | P49: 0561 | Q49: W.J. BRYAN ELEMENTARY | R49: 46 | S49: 24 | T49: 35 | U49: 9 | V49: 11 | W49: 0.368 | X49: 0.192 | Y49: 0.28 | Z49: 0.072 | AA49: 0.088 | AB49: 125 | AC49: 1 | AD49: 44 | AE49: 0561 | AF49: W.J. BRYAN ELEMENTARY | AG49: 21 | AH49: 31 | AI49: 27 | AJ49: 22 | AK49: 8 | AL49: 0.1926605505 | AM49: 0.2844036697 | AN49: 0.247706422 | AO49: 0.2018348624 | AP49: 0.07339449541 | AQ49: 109 | AR49: 1 | AS49: 52 | AT49: 3281 | AU49: MIAMI LAKES K-8 CENTER | AV49: 36 | AW49: 32 | AX49: 32 | AY49: 25 | AZ49: 6 | BA49: 0.2748091603 | BB49: 0.2442748092 | BC49: 0.2442748092 | BD49: 0.1908396947 | BE49: 0.04580152672 | BF49: 131 | BG49: 1 | BH49: 48 | BI49: 3581 | BJ49: MYRTLE GROVE K-8 CENTER | BK49: 6 | BL49: 16 | BM49: 14 | BN49: 8 | BO49: 1 | BP49: 0.1333333333 | BQ49: 0.3555555556 | BR49: 0.3111111111 | BS49: 0.1777777778 | BT49: 0.02222222222 | BU49: 45 | BV49: 1 | BW49: 51 | BX49: 3610 | BY49: KEYS GATE CHARTER SCHOOL | BZ49: 110 | CA49: 54 | CB49: 25 | CC49: 2 | CD49: 1 | CE49: 0.5729166667 | CF49: 0.28125 | CG49: 0.1302083333 | CH49: 0.01041666667 | CI49: 0.005208333333 | CJ49: 192 | CK49: 1 | CL49: 15
A50: 0561 | B50: W.J. BRYAN ELEMENTARY | C50: 41 | D50: 28 | E50: 33 | F50: 10 | G50: 4 | H50: 0.3534482759 | I50: 0.2413793103 | J50: 0.2844827586 | K50: 0.08620689655 | L50: 0.03448275862 | M50: 116 | N50: 1 | O50: 41 | P50: 0600 | Q50: PINECREST PREP ACADEMY | R50: 6 | S50: 15 | T50: 45 | U50: 31 | V50: 29 | W50: 0.04761904762 | X50: 0.119047619 | Y50: 0.3571428571 | Z50: 0.246031746 | AA50: 0.2301587302 | AB50: 126 | AC50: 1 | AD50: 83 | AE50: 0600 | AF50: PINECREST PREP ACADEMY | AG50: 13 | AH50: 24 | AI50: 36 | AJ50: 32 | AK50: 7 | AL50: 0.1160714286 | AM50: 0.2142857143 | AN50: 0.3214285714 | AO50: 0.2857142857 | AP50: 0.0625 | AQ50: 112 | AR50: 1 | AS50: 67 | AT50: 3421 | AU50: M.A. MILAM K-8 CENTER | AV50: 43 | AW50: 36 | AX50: 24 | AY50: 17 | AZ50: 2 | BA50: 0.3524590164 | BB50: 0.2950819672 | BC50: 0.1967213115 | BD50: 0.1393442623 | BE50: 0.01639344262 | BF50: 122 | BG50: 1 | BH50: 35 | BI50: 3610 | BJ50: KEYS GATE CHARTER SCHOOL | BK50: 93 | BL50: 53 | BM50: 54 | BN50: 9 | BO50: 2 | BP50: 0.4407582938 | BQ50: 0.2511848341 | BR50: 0.2559241706 | BS50: 0.04265402844 | BT50: 0.009478672986 | BU50: 211 | BV50: 1 | BW50: 31 | BX50: 3621 | BY50: COCONUT PALM K-8 ACADEMY | BZ50: 25 | CA50: 26 | CB50: 17 | CC50: 3 | CE50: 0.3521126761 | CF50: 0.3661971831 | CG50: 0.2394366197 | CH50: 0.04225352113 | CI50: 0 | CJ50: 71 | CK50: 1 | CL50: 28
A51: 0600 | B51: PINECREST PREP ACADEMY | C51: 2 | D51: 9 | E51: 15 | F51: 33 | G51: 15 | H51: 0.02702702703 | I51: 0.1216216216 | J51: 0.2027027027 | K51: 0.4459459459 | L51: 0.2027027027 | M51: 74 | N51: 1 | O51: 85 | P51: 0641 | Q51: BUNCHE PARK ELEMENTARY | R51: 22 | S51: 10 | T51: 10 | U51: 1 | W51: 0.511627907 | X51: 0.2325581395 | Y51: 0.2325581395 | Z51: 0.02325581395 | AA51: 0 | AB51: 43 | AC51: 1 | AD51: 26 | AE51: 0641 | AF51: BUNCHE PARK ELEMENTARY | AG51: 14 | AH51: 11 | AI51: 4 | AJ51: 2 | AL51: 0.4516129032 | AM51: 0.3548387097 | AN51: 0.1290322581 | AO51: 0.06451612903 | AP51: 0 | AQ51: 31 | AR51: 1 | AS51: 19 | AT51: 3501 | AU51: MORNINGSIDE K-8 ACADEMY | AV51: 13 | AW51: 11 | AX51: 7 | AY51: 4 | AZ51: 2 | BA51: 0.3513513514 | BB51: 0.2972972973 | BC51: 0.1891891892 | BD51: 0.1081081081 | BE51: 0.05405405405 | BF51: 37 | BG51: 1 | BH51: 35 | BI51: 3621 | BJ51: COCONUT PALM K-8 ACADEMY | BK51: 52 | BL51: 40 | BM51: 33 | BN51: 12 | BO51: 3 | BP51: 0.3714285714 | BQ51: 0.2857142857 | BR51: 0.2357142857 | BS51: 0.08571428571 | BT51: 0.02142857143 | BU51: 140 | BV51: 1 | BW51: 34 | BX51: 3821 | BY51: NORTH COUNTY K-8 CENTER | BZ51: 7 | CA51: 6 | CB51: 4 | CE51: 0.4117647059 | CF51: 0.3529411765 | CG51: 0.2352941176 | CH51: 0 | CI51: 0 | CJ51: 17 | CK51: 1 | CL51: 24
A52: 0641 | B52: BUNCHE PARK ELEMENTARY | C52: 16 | D52: 13 | E52: 17 | F52: 3 | G52: 2 | H52: 0.3137254902 | I52: 0.2549019608 | J52: 0.3333333333 | K52: 0.05882352941 | L52: 0.03921568627 | M52: 51 | N52: 1 | O52: 43 | P52: 0651 | Q52: CAMPBELL DRIVE K-8 CENTER | R52: 36 | S52: 22 | T52: 33 | U52: 11 | V52: 7 | W52: 0.3302752294 | X52: 0.2018348624 | Y52: 0.3027522936 | Z52: 0.1009174312 | AA52: 0.06422018349 | AB52: 109 | AC52: 1 | AD52: 47 | AE52: 0651 | AF52: CAMPBELL DRIVE K-8 CENTER | AG52: 43 | AH52: 27 | AI52: 25 | AJ52: 13 | AK52: 3 | AL52: 0.3873873874 | AM52: 0.2432432432 | AN52: 0.2252252252 | AO52: 0.1171171171 | AP52: 0.02702702703 | AQ52: 111 | AR52: 1 | AS52: 37 | AT52: 3581 | AU52: MYRTLE GROVE K-8 CENTER | AV52: 14 | AW52: 20 | AX52: 13 | AY52: 9 | BA52: 0.25 | BB52: 0.3571428571 | BC52: 0.2321428571 | BD52: 0.1607142857 | BE52: 0 | BF52: 56 | BG52: 1 | BH52: 39 | BI52: 3821 | BJ52: NORTH COUNTY K-8 CENTER | BK52: 10 | BL52: 13 | BM52: 3 | BN52: 5 | BO52: 1 | BP52: 0.3125 | BQ52: 0.40625 | BR52: 0.09375 | BS52: 0.15625 | BT52: 0.03125 | BU52: 32 | BV52: 1 | BW52: 28 | BX52: 4031 | BY52: GATEWAY ENVIRONMENTAL K-8 | BZ52: 44 | CA52: 35 | CB52: 11 | CC52: 6 | CD52: 1 | CE52: 0.4536082474 | CF52: 0.3608247423 | CG52: 0.1134020619 | CH52: 0.0618556701 | CI52: 0.01030927835 | CJ52: 97 | CK52: 1 | CL52: 19
A53: 0651 | B53: CAMPBELL DRIVE K-8 CENTER | C53: 34 | D53: 27 | E53: 42 | F53: 22 | G53: 4 | H53: 0.2635658915 | I53: 0.2093023256 | J53: 0.3255813953 | K53: 0.1705426357 | L53: 0.03100775194 | M53: 129 | N53: 1 | O53: 53 | P53: 0661 | Q53: CARIBBEAN ELEMENTARY | R53: 21 | S53: 27 | T53: 15 | U53: 14 | V53: 5 | W53: 0.256097561 | X53: 0.3292682927 | Y53: 0.1829268293 | Z53: 0.1707317073 | AA53: 0.06097560976 | AB53: 82 | AC53: 1 | AD53: 41 | AE53: 0661 | AF53: CARIBBEAN ELEMENTARY | AG53: 33 | AH53: 24 | AI53: 17 | AJ53: 11 | AL53: 0.3882352941 | AM53: 0.2823529412 | AN53: 0.2 | AO53: 0.1294117647 | AP53: 0 | AQ53: 85 | AR53: 1 | AS53: 33 | AT53: 3600 | AU53: DOWNTOWN MIAMI CHARTER SCHOOL | AV53: 6 | AW53: 9 | AX53: 23 | AY53: 27 | AZ53: 10 | BA53: 0.08 | BB53: 0.12 | BC53: 0.3066666667 | BD53: 0.36 | BE53: 0.1333333333 | BF53: 75 | BG53: 1 | BH53: 80 | BI53: 4031 | BJ53: GATEWAY ENVIRONMENTAL K-8 | BK53: 60 | BL53: 30 | BM53: 19 | BN53: 14 | BO53: 1 | BP53: 0.4838709677 | BQ53: 0.2419354839 | BR53: 0.1532258065 | BS53: 0.1129032258 | BT53: 0.008064516129 | BU53: 124 | BV53: 1 | BW53: 27 | BX53: 4391 | BY53: IRVING & BEATRICE PESKOE K-8 | BZ53: 26 | CA53: 4 | CB53: 4 | CD53: 1 | CE53: 0.7428571429 | CF53: 0.1142857143 | CG53: 0.1142857143 | CH53: 0 | CI53: 0.02857142857 | CJ53: 35 | CK53: 1 | CL53: 14
A54: 0661 | B54: CARIBBEAN ELEMENTARY | C54: 32 | D54: 20 | E54: 31 | F54: 14 | G54: 1 | H54: 0.3265306122 | I54: 0.2040816327 | J54: 0.3163265306 | K54: 0.1428571429 | L54: 0.01020408163 | M54: 98 | N54: 1 | O54: 47 | P54: 0671 | Q54: CALUSA ELEMENTARY | R54: 9 | S54: 15 | T54: 34 | U54: 58 | V54: 51 | W54: 0.05389221557 | X54: 0.08982035928 | Y54: 0.2035928144 | Z54: 0.3473053892 | AA54: 0.3053892216 | AB54: 167 | AC54: 1 | AD54: 86 | AE54: 0671 | AF54: CALUSA ELEMENTARY | AG54: 5 | AH54: 9 | AI54: 23 | AJ54: 46 | AK54: 52 | AL54: 0.03703703704 | AM54: 0.06666666667 | AN54: 0.1703703704 | AO54: 0.3407407407 | AP54: 0.3851851852 | AQ54: 135 | AR54: 1 | AS54: 90 | AT54: 3610 | AU54: KEYS GATE CHARTER SCHOOL | AV54: 54 | AW54: 58 | AX54: 55 | AY54: 50 | AZ54: 31 | BA54: 0.2177419355 | BB54: 0.2338709677 | BC54: 0.2217741935 | BD54: 0.2016129032 | BE54: 0.125 | BF54: 248 | BG54: 1 | BH54: 55 | BI54: 4391 | BJ54: IRVING & BEATRICE PESKOE K-8 | BK54: 23 | BL54: 25 | BM54: 12 | BN54: 4 | BO54: 2 | BP54: 0.3484848485 | BQ54: 0.3787878788 | BR54: 0.1818181818 | BS54: 0.06060606061 | BT54: 0.0303030303 | BU54: 66 | BV54: 1 | BW54: 27 | BX54: 4691 | BY54: JANE ROBERTS K-8 CENTER | BZ54: 6 | CA54: 12 | CB54: 14 | CC54: 16 | CD54: 33 | CE54: 0.07407407407 | CF54: 0.1481481481 | CG54: 0.1728395062 | CH54: 0.1975308642 | CI54: 0.4074074074 | CJ54: 81 | CK54: 1 | CL54: 78
A55: 0671 | B55: CALUSA ELEMENTARY | C55: 10 | D55: 18 | E55: 32 | F55: 64 | G55: 25 | H55: 0.06711409396 | I55: 0.1208053691 | J55: 0.2147651007 | K55: 0.4295302013 | L55: 0.1677852349 | M55: 149 | N55: 1 | O55: 81 | P55: 0681 | Q55: CAROL CITY ELEMENTARY | R55: 9 | S55: 6 | T55: 24 | U55: 8 | V55: 3 | W55: 0.18 | X55: 0.12 | Y55: 0.48 | Z55: 0.16 | AA55: 0.06 | AB55: 50 | AC55: 1 | AD55: 70 | AE55: 0681 | AF55: CAROL CITY ELEMENTARY | AG55: 17 | AH55: 13 | AI55: 19 | AJ55: 10 | AK55: 4 | AL55: 0.2698412698 | AM55: 0.2063492063 | AN55: 0.3015873016 | AO55: 0.1587301587 | AP55: 0.06349206349 | AQ55: 63 | AR55: 1 | AS55: 52 | AT55: 3621 | AU55: COCONUT PALM K-8 ACADEMY | AV55: 47 | AW55: 49 | AX55: 36 | AY55: 17 | AZ55: 4 | BA55: 0.3071895425 | BB55: 0.3202614379 | BC55: 0.2352941176 | BD55: 0.1111111111 | BE55: 0.02614379085 | BF55: 153 | BG55: 1 | BH55: 37 | BI55: 4691 | BJ55: JANE ROBERTS K-8 CENTER | BK55: 21 | BL55: 13 | BM55: 16 | BN55: 28 | BO55: 18 | BP55: 0.21875 | BQ55: 0.1354166667 | BR55: 0.1666666667 | BS55: 0.2916666667 | BT55: 0.1875 | BU55: 96 | BV55: 1 | BW55: 65 | BX55: 5003 | BY55: SOUTH DADE MIDDLE SCHOOL | BZ55: 70 | CA55: 28 | CB55: 38 | CC55: 11 | CD55: 2 | CE55: 0.4697986577 | CF55: 0.1879194631 | CG55: 0.255033557 | CH55: 0.07382550336 | CI55: 0.01342281879 | CJ55: 149 | CK55: 1 | CL55: 34
A56: 0681 | B56: CAROL CITY ELEMENTARY | C56: 16 | D56: 12 | E56: 11 | F56: 20 | G56: 1 | H56: 0.2666666667 | I56: 0.2 | J56: 0.1833333333 | K56: 0.3333333333 | L56: 0.01666666667 | M56: 60 | N56: 1 | O56: 53 | P56: 0721 | Q56: GEORGE WASHINGTON CARVER ELEM | R56: 11 | S56: 16 | T56: 20 | U56: 25 | V56: 13 | W56: 0.1294117647 | X56: 0.1882352941 | Y56: 0.2352941176 | Z56: 0.2941176471 | AA56: 0.1529411765 | AB56: 85 | AC56: 1 | AD56: 68 | AE56: 0721 | AF56: GEORGE WASHINGTON CARVER ELEM | AG56: 11 | AH56: 9 | AI56: 18 | AJ56: 14 | AK56: 15 | AL56: 0.1641791045 | AM56: 0.1343283582 | AN56: 0.2686567164 | AO56: 0.2089552239 | AP56: 0.223880597 | AQ56: 67 | AR56: 1 | AS56: 70 | AT56: 3821 | AU56: NORTH COUNTY K-8 CENTER | AV56: 13 | AW56: 16 | AX56: 7 | AY56: 2 | AZ56: 1 | BA56: 0.3333333333 | BB56: 0.4102564103 | BC56: 0.1794871795 | BD56: 0.05128205128 | BE56: 0.02564102564 | BF56: 39 | BG56: 1 | BH56: 26 | BI56: 5003 | BJ56: SOUTH DADE MIDDLE SCHOOL | BK56: 85 | BL56: 56 | BM56: 50 | BN56: 20 | BO56: 4 | BP56: 0.3953488372 | BQ56: 0.2604651163 | BR56: 0.2325581395 | BS56: 0.09302325581 | BT56: 0.01860465116 | BU56: 215 | BV56: 1 | BW56: 34 | BX56: 5005 | BY56: DAVID LAWRENCE JR K-8 CENTER | BZ56: 41 | CA56: 46 | CB56: 33 | CC56: 11 | CD56: 4 | CE56: 0.3037037037 | CF56: 0.3407407407 | CG56: 0.2444444444 | CH56: 0.08148148148 | CI56: 0.02962962963 | CJ56: 135 | CK56: 1 | CL56: 36
A57: 0721 | B57: GEORGE WASHINGTON CARVER ELEM | C57: 13 | D57: 20 | E57: 22 | F57: 7 | G57: 4 | H57: 0.196969697 | I57: 0.303030303 | J57: 0.3333333333 | K57: 0.1060606061 | L57: 0.06060606061 | M57: 66 | N57: 1 | O57: 50 | P57: 0761 | Q57: FIENBERG/FISHER K-8 CENTER | R57: 38 | S57: 17 | T57: 14 | U57: 8 | V57: 5 | W57: 0.4634146341 | X57: 0.2073170732 | Y57: 0.1707317073 | Z57: 0.09756097561 | AA57: 0.06097560976 | AB57: 82 | AC57: 1 | AD57: 33 | AE57: 0761 | AF57: FIENBERG/FISHER K-8 CENTER | AG57: 33 | AH57: 22 | AI57: 16 | AJ57: 9 | AK57: 6 | AL57: 0.3837209302 | AM57: 0.2558139535 | AN57: 0.1860465116 | AO57: 0.1046511628 | AP57: 0.06976744186 | AQ57: 86 | AR57: 1 | AS57: 36 | AT57: 4031 | AU57: GATEWAY ENVIRONMENTAL K-8 | AV57: 73 | AW57: 43 | AX57: 29 | AY57: 8 | AZ57: 4 | BA57: 0.4649681529 | BB57: 0.2738853503 | BC57: 0.1847133758 | BD57: 0.05095541401 | BE57: 0.02547770701 | BF57: 157 | BG57: 1 | BH57: 26 | BI57: 5005 | BJ57: DAVID LAWRENCE JR K-8 CENTER | BK57: 56 | BL57: 41 | BM57: 36 | BN57: 28 | BO57: 26 | BP57: 0.2994652406 | BQ57: 0.2192513369 | BR57: 0.192513369 | BS57: 0.1497326203 | BT57: 0.1390374332 | BU57: 187 | BV57: 1 | BW57: 48 | BX57: 5006 | BY57: EVERGLADES PREPARATORY ACADEMY | BZ57: 21 | CA57: 44 | CB57: 38 | CC57: 7 | CD57: 5 | CE57: 0.1826086957 | CF57: 0.3826086957 | CG57: 0.3304347826 | CH57: 0.06086956522 | CI57: 0.04347826087 | CJ57: 115 | CK57: 1 | CL57: 43
A58: 0761 | B58: FIENBERG/FISHER K-8 CENTER | C58: 28 | D58: 16 | E58: 15 | F58: 14 | G58: 6 | H58: 0.3544303797 | I58: 0.2025316456 | J58: 0.1898734177 | K58: 0.1772151899 | L58: 0.07594936709 | M58: 79 | N58: 1 | O58: 44 | P58: 0771 | Q58: WILLIAM A. CHAPMAN ELEMENTARY | R58: 25 | S58: 24 | T58: 16 | U58: 8 | V58: 2 | W58: 0.3333333333 | X58: 0.32 | Y58: 0.2133333333 | Z58: 0.1066666667 | AA58: 0.02666666667 | AB58: 75 | AC58: 1 | AD58: 35 | AE58: 0771 | AF58: WILLIAM A. CHAPMAN ELEMENTARY | AG58: 18 | AH58: 20 | AI58: 21 | AJ58: 9 | AL58: 0.2647058824 | AM58: 0.2941176471 | AN58: 0.3088235294 | AO58: 0.1323529412 | AP58: 0 | AQ58: 68 | AR58: 1 | AS58: 44 | AT58: 4391 | AU58: IRVING & BEATRICE PESKOE K-8 | AV58: 41 | AW58: 14 | AX58: 12 | AY58: 2 | AZ58: 1 | BA58: 0.5857142857 | BB58: 0.2 | BC58: 0.1714285714 | BD58: 0.02857142857 | BE58: 0.01428571429 | BF58: 70 | BG58: 1 | BH58: 21 | BI58: 5006 | BJ58: EVERGLADES PREPARATORY ACADEMY | BK58: 41 | BL58: 44 | BM58: 32 | BN58: 18 | BO58: 9 | BP58: 0.2847222222 | BQ58: 0.3055555556 | BR58: 0.2222222222 | BS58: 0.125 | BT58: 0.0625 | BU58: 144 | BV58: 1 | BW58: 41 | BX58: 5007 | BY58: LINCOLN-MARTI CHARTER HIALEAH | BZ58: 8 | CA58: 8 | CB58: 7 | CC58: 5 | CD58: 5 | CE58: 0.2424242424 | CF58: 0.2424242424 | CG58: 0.2121212121 | CH58: 0.1515151515 | CI58: 0.1515151515 | CJ58: 33 | CK58: 1 | CL58: 52
A59: 0771 | B59: WILLIAM A. CHAPMAN ELEMENTARY | C59: 13 | D59: 13 | E59: 27 | F59: 12 | G59: 6 | H59: 0.1830985915 | I59: 0.1830985915 | J59: 0.3802816901 | K59: 0.1690140845 | L59: 0.08450704225 | M59: 71 | N59: 1 | O59: 63 | P59: 0801 | Q59: CITRUS GROVE ELEMENTARY | R59: 91 | S59: 34 | T59: 17 | U59: 9 | V59: 1 | W59: 0.5986842105 | X59: 0.2236842105 | Y59: 0.1118421053 | Z59: 0.05921052632 | AA59: 0.006578947368 | AB59: 152 | AC59: 1 | AD59: 18 | AE59: 0801 | AF59: CITRUS GROVE ELEMENTARY | AG59: 54 | AH59: 31 | AI59: 23 | AJ59: 14 | AK59: 3 | AL59: 0.432 | AM59: 0.248 | AN59: 0.184 | AO59: 0.112 | AP59: 0.024 | AQ59: 125 | AR59: 1 | AS59: 32 | AT59: 4691 | AU59: JANE ROBERTS K-8 CENTER | AV59: 12 | AW59: 13 | AX59: 14 | AY59: 21 | AZ59: 11 | BA59: 0.1690140845 | BB59: 0.1830985915 | BC59: 0.1971830986 | BD59: 0.2957746479 | BE59: 0.1549295775 | BF59: 71 | BG59: 1 | BH59: 65 | BI59: 5007 | BJ59: LINCOLN-MARTI CHARTER HIALEAH | BK59: 15 | BL59: 5 | BM59: 12 | BN59: 7 | BO59: 1 | BP59: 0.375 | BQ59: 0.125 | BR59: 0.3 | BS59: 0.175 | BT59: 0.025 | BU59: 40 | BV59: 1 | BW59: 50 | BX59: 5025 | BY59: LINCOLN-MARTI CS LITTLE HAVANA | BZ59: 7 | CA59: 13 | CB59: 15 | CC59: 11 | CD59: 12 | CE59: 0.1206896552 | CF59: 0.224137931 | CG59: 0.2586206897 | CH59: 0.1896551724 | CI59: 0.2068965517 | CJ59: 58 | CK59: 1 | CL59: 66
A60: 0801 | B60: CITRUS GROVE ELEMENTARY | C60: 49 | D60: 21 | E60: 29 | F60: 15 | G60: 4 | H60: 0.4152542373 | I60: 0.1779661017 | J60: 0.2457627119 | K60: 0.1271186441 | L60: 0.03389830508 | M60: 118 | N60: 1 | O60: 41 | P60: 0831 | Q60: CLAUDE PEPPER ELEMENTARY | R60: 15 | S60: 10 | T60: 34 | U60: 36 | V60: 13 | W60: 0.1388888889 | X60: 0.09259259259 | Y60: 0.3148148148 | Z60: 0.3333333333 | AA60: 0.1203703704 | AB60: 108 | AC60: 1 | AD60: 77 | AE60: 0831 | AF60: CLAUDE PEPPER ELEMENTARY | AG60: 16 | AH60: 13 | AI60: 24 | AJ60: 27 | AK60: 17 | AL60: 0.1649484536 | AM60: 0.1340206186 | AN60: 0.2474226804 | AO60: 0.2783505155 | AP60: 0.175257732 | AQ60: 97 | AR60: 1 | AS60: 70 | AT60: 5003 | AU60: SOUTH DADE MIDDLE SCHOOL | AV60: 58 | AW60: 68 | AX60: 48 | AY60: 20 | AZ60: 2 | BA60: 0.2959183673 | BB60: 0.3469387755 | BC60: 0.2448979592 | BD60: 0.1020408163 | BE60: 0.01020408163 | BF60: 196 | BG60: 1 | BH60: 36 | BI60: 5022 | BJ60: BEN GAMLA CHARTER SCHL | BK60: 2 | BL60: 5 | BM60: 3 | BN60: 1 | BO60: 1 | BP60: 0.1666666667 | BQ60: 0.4166666667 | BR60: 0.25 | BS60: 0.08333333333 | BT60: 0.08333333333 | BU60: 12 | BV60: 1 | BW60: 42 | BX60: 5029 | BY60: EXCELSIOR LANGUAGE ACADEMY K-8 | BZ60: 6 | CA60: 10 | CB60: 8 | CC60: 10 | CD60: 5 | CE60: 0.1538461538 | CF60: 0.2564102564 | CG60: 0.2051282051 | CH60: 0.2564102564 | CI60: 0.1282051282 | CJ60: 39 | CK60: 1 | CL60: 59
A61: 0831 | B61: CLAUDE PEPPER ELEMENTARY | C61: 7 | D61: 10 | E61: 24 | F61: 34 | G61: 15 | H61: 0.07777777778 | I61: 0.1111111111 | J61: 0.2666666667 | K61: 0.3777777778 | L61: 0.1666666667 | M61: 90 | N61: 1 | O61: 81 | P61: 0841 | Q61: COCONUT GROVE ELEMENTARY | R61: 11 | S61: 7 | T61: 21 | U61: 22 | V61: 17 | W61: 0.141025641 | X61: 0.08974358974 | Y61: 0.2692307692 | Z61: 0.2820512821 | AA61: 0.2179487179 | AB61: 78 | AC61: 1 | AD61: 77 | AE61: 0841 | AF61: COCONUT GROVE ELEMENTARY | AG61: 7 | AH61: 9 | AI61: 19 | AJ61: 17 | AK61: 11 | AL61: 0.1111111111 | AM61: 0.1428571429 | AN61: 0.3015873016 | AO61: 0.2698412698 | AP61: 0.1746031746 | AQ61: 63 | AR61: 1 | AS61: 75 | AT61: 5005 | AU61: DAVID LAWRENCE JR K-8 CENTER | AV61: 47 | AW61: 59 | AX61: 35 | AY61: 16 | AZ61: 4 | BA61: 0.2919254658 | BB61: 0.3664596273 | BC61: 0.2173913043 | BD61: 0.09937888199 | BE61: 0.0248447205 | BF61: 161 | BG61: 1 | BH61: 34 | BI61: 5025 | BJ61: LINCOLN-MARTI CS LITTLE HAVANA | BK61: 10 | BL61: 20 | BM61: 22 | BN61: 17 | BO61: 15 | BP61: 0.119047619 | BQ61: 0.2380952381 | BR61: 0.2619047619 | BS61: 0.2023809524 | BT61: 0.1785714286 | BU61: 84 | BV61: 1 | BW61: 64 | BX61: 5032 | BY61: EXCELSIOR CHARTER ACADEMY | BZ61: 11 | CA61: 3 | CB61: 5 | CE61: 0.5789473684 | CF61: 0.1578947368 | CG61: 0.2631578947 | CH61: 0 | CI61: 0 | CJ61: 19 | CK61: 1 | CL61: 26
A62: 0841 | B62: COCONUT GROVE ELEMENTARY | C62: 4 | D62: 8 | E62: 28 | F62: 15 | G62: 28 | H62: 0.04819277108 | I62: 0.09638554217 | J62: 0.3373493976 | K62: 0.1807228916 | L62: 0.3373493976 | M62: 83 | N62: 1 | O62: 86 | P62: 0861 | Q62: COLONIAL DRIVE ELEMENTARY | R62: 5 | S62: 9 | T62: 15 | U62: 8 | V62: 3 | W62: 0.125 | X62: 0.225 | Y62: 0.375 | Z62: 0.2 | AA62: 0.075 | AB62: 40 | AC62: 1 | AD62: 65 | AE62: 0861 | AF62: COLONIAL DRIVE ELEMENTARY | AG62: 27 | AH62: 7 | AI62: 6 | AJ62: 4 | AL62: 0.6136363636 | AM62: 0.1590909091 | AN62: 0.1363636364 | AO62: 0.09090909091 | AP62: 0 | AQ62: 44 | AR62: 1 | AS62: 23 | AT62: 5006 | AU62: EVERGLADES PREPARATORY ACADEMY | AV62: 28 | AW62: 45 | AX62: 26 | AY62: 16 | AZ62: 3 | BA62: 0.2372881356 | BB62: 0.3813559322 | BC62: 0.2203389831 | BD62: 0.1355932203 | BE62: 0.02542372881 | BF62: 118 | BG62: 1 | BH62: 38 | BI62: 5029 | BJ62: EXCELSIOR LANGUAGE ACADEMY K-8 | BK62: 16 | BL62: 12 | BM62: 13 | BN62: 4 | BO62: 2 | BP62: 0.3404255319 | BQ62: 0.2553191489 | BR62: 0.2765957447 | BS62: 0.08510638298 | BT62: 0.04255319149 | BU62: 47 | BV62: 1 | BW62: 40 | BX62: 5044 | BY62: ACADEMY FOR INT'L EDUCATION CH | BZ62: 1 | CA62: 9 | CB62: 5 | CC62: 3 | CD62: 1 | CE62: 0.05263157895 | CF62: 0.4736842105 | CG62: 0.2631578947 | CH62: 0.1578947368 | CI62: 0.05263157895 | CJ62: 19 | CK62: 1 | CL62: 47
A63: 0861 | B63: COLONIAL DRIVE ELEMENTARY | C63: 13 | D63: 16 | E63: 16 | F63: 11 | G63: 2 | H63: 0.224137931 | I63: 0.275862069 | J63: 0.275862069 | K63: 0.1896551724 | L63: 0.03448275862 | M63: 58 | N63: 1 | O63: 50 | P63: 0881 | Q63: COMSTOCK ELEMENTARY | R63: 36 | S63: 22 | T63: 25 | U63: 13 | V63: 4 | W63: 0.36 | X63: 0.22 | Y63: 0.25 | Z63: 0.13 | AA63: 0.04 | AB63: 100 | AC63: 1 | AD63: 42 | AE63: 0881 | AF63: COMSTOCK ELEMENTARY | AG63: 36 | AH63: 18 | AI63: 7 | AJ63: 6 | AK63: 3 | AL63: 0.5142857143 | AM63: 0.2571428571 | AN63: 0.1 | AO63: 0.08571428571 | AP63: 0.04285714286 | AQ63: 70 | AR63: 1 | AS63: 23 | AT63: 5007 | AU63: LINCOLN-MARTI CHARTER HIALEAH | AV63: 3 | AW63: 8 | AX63: 7 | AY63: 7 | AZ63: 1 | BA63: 0.1153846154 | BB63: 0.3076923077 | BC63: 0.2692307692 | BD63: 0.2692307692 | BE63: 0.03846153846 | BF63: 26 | BG63: 1 | BH63: 58 | BI63: 5032 | BJ63: EXCELSIOR CHARTER ACADEMY | BK63: 16 | BL63: 7 | BM63: 11 | BN63: 2 | BP63: 0.4444444444 | BQ63: 0.1944444444 | BR63: 0.3055555556 | BS63: 0.05555555556 | BT63: 0 | BU63: 36 | BV63: 1 | BW63: 36 | BX63: 5047 | BY63: MATER ACADEMY (MIAMI BEACH) | BZ63: 2 | CA63: 4 | CB63: 8 | CC63: 5 | CE63: 0.1052631579 | CF63: 0.2105263158 | CG63: 0.4210526316 | CH63: 0.2631578947 | CI63: 0 | CJ63: 19 | CK63: 1 | CL63: 68
A64: 0881 | B64: COMSTOCK ELEMENTARY | C64: 30 | D64: 20 | E64: 16 | F64: 9 | G64: 1 | H64: 0.3947368421 | I64: 0.2631578947 | J64: 0.2105263158 | K64: 0.1184210526 | L64: 0.01315789474 | M64: 76 | N64: 1 | O64: 34 | P64: 0950 | Q64: AVENTURA CITY OF EXCELLENCE | R64: 4 | S64: 10 | T64: 27 | U64: 43 | V64: 30 | W64: 0.0350877193 | X64: 0.08771929825 | Y64: 0.2368421053 | Z64: 0.3771929825 | AA64: 0.2631578947 | AB64: 114 | AC64: 1 | AD64: 88 | AE64: 0950 | AF64: AVENTURA CITY OF EXCELLENCE | AG64: 1 | AH64: 11 | AI64: 21 | AJ64: 41 | AK64: 40 | AL64: 0.008771929825 | AM64: 0.09649122807 | AN64: 0.1842105263 | AO64: 0.3596491228 | AP64: 0.350877193 | AQ64: 114 | AR64: 1 | AS64: 89 | AT64: 5020 | AU64: BRIDGEPREP ACAD INTERAMERICAN | AV64: 2 | AW64: 2 | AX64: 4 | AY64: 2 | BA64: 0.2 | BB64: 0.2 | BC64: 0.4 | BD64: 0.2 | BE64: 0 | BF64: 10 | BG64: 1 | BH64: 60 | BI64: 5044 | BJ64: ACADEMY FOR INT'L EDUCATION CH | BK64: 9 | BL64: 9 | BM64: 20 | BN64: 7 | BO64: 7 | BP64: 0.1730769231 | BQ64: 0.1730769231 | BR64: 0.3846153846 | BS64: 0.1346153846 | BT64: 0.1346153846 | BU64: 52 | BV64: 1 | BW64: 65 | BX64: 5051 | BY64: ERNEST R GRAHAM K-8 ACADEMY | BZ64: 17 | CA64: 24 | CB64: 33 | CC64: 3 | CD64: 3 | CE64: 0.2125 | CF64: 0.3 | CG64: 0.4125 | CH64: 0.0375 | CI64: 0.0375 | CJ64: 80 | CK64: 1 | CL64: 49
A65: 0950 | B65: AVENTURA CITY OF EXCELLENCE | C65: 3 | D65: 15 | E65: 24 | F65: 49 | G65: 23 | H65: 0.02631578947 | I65: 0.1315789474 | J65: 0.2105263158 | K65: 0.4298245614 | L65: 0.201754386 | M65: 114 | N65: 1 | O65: 84 | P65: 0961 | Q65: CORAL GABLES PREPARATORY ACAD | R65: 13 | S65: 8 | T65: 21 | U65: 26 | V65: 27 | W65: 0.1368421053 | X65: 0.08421052632 | Y65: 0.2210526316 | Z65: 0.2736842105 | AA65: 0.2842105263 | AB65: 95 | AC65: 1 | AD65: 78 | AE65: 0961 | AF65: CORAL GABLES PREPARATORY ACAD | AG65: 19 | AH65: 15 | AI65: 21 | AJ65: 15 | AK65: 23 | AL65: 0.2043010753 | AM65: 0.1612903226 | AN65: 0.2258064516 | AO65: 0.1612903226 | AP65: 0.247311828 | AQ65: 93 | AR65: 1 | AS65: 63 | AT65: 5022 | AU65: BEN GAMLA CHARTER SCHL | AV65: 2 | AW65: 5 | AX65: 1 | AY65: 3 | BA65: 0.1818181818 | BB65: 0.4545454545 | BC65: 0.09090909091 | BD65: 0.2727272727 | BE65: 0 | BF65: 11 | BG65: 1 | BH65: 36 | BI65: 5045 | BJ65: MATER GROVE ACADEMY | BK65: 2 | BL65: 7 | BM65: 7 | BN65: 4 | BP65: 0.1 | BQ65: 0.35 | BR65: 0.35 | BS65: 0.2 | BT65: 0 | BU65: 20 | BV65: 1 | BW65: 55 | BX65: 5101 | BY65: JOHN I. SMITH K-8 CENTER | BZ65: 15 | CA65: 25 | CB65: 31 | CC65: 16 | CD65: 24 | CE65: 0.1351351351 | CF65: 0.2252252252 | CG65: 0.2792792793 | CH65: 0.1441441441 | CI65: 0.2162162162 | CJ65: 111 | CK65: 1 | CL65: 64
A66: 0961 | B66: CORAL GABLES PREPARATORY ACAD | C66: 11 | D66: 12 | E66: 25 | F66: 33 | G66: 25 | H66: 0.1037735849 | I66: 0.1132075472 | J66: 0.2358490566 | K66: 0.3113207547 | L66: 0.2358490566 | M66: 106 | N66: 1 | O66: 78 | P66: 1000 | Q66: TRUE NORTH CLASSICAL ACADEMY | R66: 4 | S66: 3 | T66: 4 | U66: 7 | V66: 7 | W66: 0.16 | X66: 0.12 | Y66: 0.16 | Z66: 0.28 | AA66: 0.28 | AB66: 25 | AC66: 1 | AD66: 72 | AE66: 1000 | AF66: TRUE NORTH CLASSICAL ACADEMY | AH66: 1 | AI66: 7 | AJ66: 7 | AK66: 5 | AL66: 0 | AM66: 0.05 | AN66: 0.35 | AO66: 0.35 | AP66: 0.25 | AQ66: 20 | AR66: 1 | AS66: 95 | AT66: 5025 | AU66: LINCOLN-MARTI CS LITTLE HAVANA | AV66: 15 | AW66: 18 | AX66: 19 | AY66: 13 | AZ66: 4 | BA66: 0.2173913043 | BB66: 0.2608695652 | BC66: 0.2753623188 | BD66: 0.1884057971 | BE66: 0.05797101449 | BF66: 69 | BG66: 1 | BH66: 52 | BI66: 5046 | BJ66: MATER BRICKELL PREP ACADEMY | BK66: 5 | BL66: 3 | BM66: 7 | BN66: 1 | BP66: 0.3125 | BQ66: 0.1875 | BR66: 0.4375 | BS66: 0.0625 | BT66: 0 | BU66: 16 | BV66: 1 | BW66: 50 | BX66: 5141 | BY66: HUBERT O. SIBLEY K-8 ACADEMY | BZ66: 43 | CA66: 19 | CB66: 10 | CC66: 5 | CD66: 1 | CE66: 0.5512820513 | CF66: 0.2435897436 | CG66: 0.1282051282 | CH66: 0.0641025641 | CI66: 0.01282051282 | CJ66: 78 | CK66: 1 | CL66: 21
A67: 1000 | B67: TRUE NORTH CLASSICAL ACADEMY | C67: 2 | D67: 4 | E67: 9 | F67: 11 | G67: 7 | H67: 0.06060606061 | I67: 0.1212121212 | J67: 0.2727272727 | K67: 0.3333333333 | L67: 0.2121212121 | M67: 33 | N67: 1 | O67: 82 | P67: 1001 | Q67: CORAL PARK ELEMENTARY | R67: 15 | S67: 14 | T67: 36 | U67: 62 | V67: 68 | W67: 0.07692307692 | X67: 0.07179487179 | Y67: 0.1846153846 | Z67: 0.3179487179 | AA67: 0.3487179487 | AB67: 195 | AC67: 1 | AD67: 85 | AE67: 1001 | AF67: CORAL PARK ELEMENTARY | AG67: 15 | AH67: 20 | AI67: 27 | AJ67: 43 | AK67: 53 | AL67: 0.09493670886 | AM67: 0.1265822785 | AN67: 0.1708860759 | AO67: 0.2721518987 | AP67: 0.335443038 | AQ67: 158 | AR67: 1 | AS67: 78 | AT67: 5029 | AU67: EXCELSIOR LANGUAGE ACADEMY K-8 | AV67: 2 | AW67: 8 | AX67: 15 | AY67: 9 | AZ67: 1 | BA67: 0.05714285714 | BB67: 0.2285714286 | BC67: 0.4285714286 | BD67: 0.2571428571 | BE67: 0.02857142857 | BF67: 35 | BG67: 1 | BH67: 71 | BI67: 5047 | BJ67: MATER ACADEMY (MIAMI BEACH) | BK67: 6 | BL67: 14 | BM67: 18 | BN67: 15 | BO67: 5 | BP67: 0.1034482759 | BQ67: 0.2413793103 | BR67: 0.3103448276 | BS67: 0.2586206897 | BT67: 0.08620689655 | BU67: 58 | BV67: 1 | BW67: 66 | BX67: 5241 | BY67: SOUTH MIAMI K-8 CENTER | BZ67: 11 | CA67: 7 | CB67: 6 | CC67: 2 | CE67: 0.4230769231 | CF67: 0.2692307692 | CG67: 0.2307692308 | CH67: 0.07692307692 | CI67: 0 | CJ67: 26 | CK67: 1 | CL67: 31
A68: 1001 | B68: CORAL PARK ELEMENTARY | C68: 6 | D68: 13 | E68: 44 | F68: 72 | G68: 49 | H68: 0.03260869565 | I68: 0.07065217391 | J68: 0.2391304348 | K68: 0.3913043478 | L68: 0.2663043478 | M68: 184 | N68: 1 | O68: 90 | P68: 1010 | Q68: CHARTER SCHOOL AT WATERSTONE | R68: 55 | S68: 52 | T68: 65 | U68: 43 | V68: 15 | W68: 0.2391304348 | X68: 0.2260869565 | Y68: 0.2826086957 | Z68: 0.1869565217 | AA68: 0.0652173913 | AB68: 230 | AC68: 1 | AD68: 53 | AE68: 1010 | AF68: CHARTER SCHOOL AT WATERSTONE | AG68: 37 | AH68: 41 | AI68: 49 | AJ68: 33 | AK68: 13 | AL68: 0.2138728324 | AM68: 0.2369942197 | AN68: 0.2832369942 | AO68: 0.1907514451 | AP68: 0.07514450867 | AQ68: 173 | AR68: 1 | AS68: 55 | AT68: 5032 | AU68: EXCELSIOR CHARTER ACADEMY | AV68: 13 | AW68: 13 | AX68: 10 | AY68: 4 | BA68: 0.325 | BB68: 0.325 | BC68: 0.25 | BD68: 0.1 | BE68: 0 | BF68: 40 | BG68: 1 | BH68: 35 | BI68: 5048 | BJ68: PINECREST ACADEMY (NORTH) | BL68: 1 | BN68: 6 | BO68: 13 | BP68: 0 | BQ68: 0.05 | BR68: 0 | BS68: 0.3 | BT68: 0.65 | BU68: 20 | BV68: 1 | BW68: 95 | BX68: 5671 | BY68: VINELAND K-8 CENTER | BZ68: 11 | CA68: 19 | CB68: 18 | CC68: 7 | CD68: 4 | CE68: 0.186440678 | CF68: 0.3220338983 | CG68: 0.3050847458 | CH68: 0.1186440678 | CI68: 0.06779661017 | CJ68: 59 | CK68: 1 | CL68: 49
A69: 1010 | B69: CHARTER SCHOOL AT WATERSTONE | C69: 30 | D69: 58 | E69: 63 | F69: 56 | G69: 20 | H69: 0.1321585903 | I69: 0.2555066079 | J69: 0.2775330396 | K69: 0.2466960352 | L69: 0.08810572687 | M69: 227 | N69: 1 | O69: 61 | P69: 1014 | Q69: HIVE PREPARATORY SCHOOL | R69: 12 | S69: 18 | T69: 38 | U69: 31 | V69: 9 | W69: 0.1111111111 | X69: 0.1666666667 | Y69: 0.3518518519 | Z69: 0.287037037 | AA69: 0.08333333333 | AB69: 108 | AC69: 1 | AD69: 72 | AE69: 1014 | AF69: HIVE PREPARATORY SCHOOL | AG69: 2 | AH69: 20 | AI69: 17 | AJ69: 24 | AK69: 17 | AL69: 0.025 | AM69: 0.25 | AN69: 0.2125 | AO69: 0.3 | AP69: 0.2125 | AQ69: 80 | AR69: 1 | AS69: 73 | AT69: 5043 | AU69: LINCOLN-MARTI CS INT'L CAMPUS | AV69: 3 | AW69: 10 | AX69: 5 | AY69: 3 | AZ69: 1 | BA69: 0.1363636364 | BB69: 0.4545454545 | BC69: 0.2272727273 | BD69: 0.1363636364 | BE69: 0.04545454545 | BF69: 22 | BG69: 1 | BH69: 41 | BI69: 5049 | BJ69: PINECREST COVE ACADEMY | BK69: 5 | BL69: 7 | BM69: 10 | BN69: 19 | BO69: 17 | BP69: 0.08620689655 | BQ69: 0.1206896552 | BR69: 0.1724137931 | BS69: 0.3275862069 | BT69: 0.2931034483 | BU69: 58 | BV69: 1 | BW69: 79 | BX69: 5791 | BY69: WEST HOMESTEAD K-8 CENTER | BZ69: 13 | CA69: 5 | CB69: 3 | CC69: 1 | CD69: 1 | CE69: 0.5652173913 | CF69: 0.2173913043 | CG69: 0.1304347826 | CH69: 0.04347826087 | CI69: 0.04347826087 | CJ69: 23 | CK69: 1 | CL69: 22
A70: 1014 | B70: HIVE PREPARATORY SCHOOL | C70: 5 | D70: 7 | E70: 12 | F70: 12 | G70: 16 | H70: 0.09615384615 | I70: 0.1346153846 | J70: 0.2307692308 | K70: 0.2307692308 | L70: 0.3076923077 | M70: 52 | N70: 1 | O70: 77 | P70: 1017 | Q70: MATER ACADEMY OF INTL STUDIES | R70: 27 | S70: 23 | T70: 38 | U70: 12 | V70: 4 | W70: 0.2596153846 | X70: 0.2211538462 | Y70: 0.3653846154 | Z70: 0.1153846154 | AA70: 0.03846153846 | AB70: 104 | AC70: 1 | AD70: 52 | AE70: 1017 | AF70: MATER ACADEMY OF INTL STUDIES | AG70: 4 | AH70: 13 | AI70: 13 | AJ70: 4 | AL70: 0.1176470588 | AM70: 0.3823529412 | AN70: 0.3823529412 | AO70: 0.1176470588 | AP70: 0 | AQ70: 34 | AR70: 1 | AS70: 50 | AT70: 5044 | AU70: ACADEMY FOR INT'L EDUCATION CH | AV70: 7 | AW70: 16 | AX70: 20 | AY70: 23 | AZ70: 7 | BA70: 0.09589041096 | BB70: 0.2191780822 | BC70: 0.2739726027 | BD70: 0.3150684932 | BE70: 0.09589041096 | BF70: 73 | BG70: 1 | BH70: 68 | BI70: 5051 | BJ70: ERNEST R GRAHAM K-8 ACADEMY | BK70: 27 | BL70: 22 | BM70: 34 | BN70: 27 | BO70: 13 | BP70: 0.2195121951 | BQ70: 0.1788617886 | BR70: 0.2764227642 | BS70: 0.2195121951 | BT70: 0.1056910569 | BU70: 123 | BV70: 1 | BW70: 60 | BX70: 5861 | BY70: DR H W MACK/W LITTLE RIVER K8 | BZ70: 14 | CA70: 12 | CB70: 4 | CC70: 3 | CD70: 1 | CE70: 0.4117647059 | CF70: 0.3529411765 | CG70: 0.1176470588 | CH70: 0.08823529412 | CI70: 0.02941176471 | CJ70: 34 | CK70: 1 | CL70: 24
A71: 1017 | B71: MATER ACADEMY OF INTL STUDIES | C71: 25 | D71: 28 | E71: 47 | F71: 11 | G71: 2 | H71: 0.2212389381 | I71: 0.2477876106 | J71: 0.4159292035 | K71: 0.09734513274 | L71: 0.01769911504 | M71: 113 | N71: 1 | O71: 53 | P71: 1020 | Q71: YOUTH CO-OP CHARTER SCHOOL | R71: 8 | S71: 19 | T71: 26 | U71: 26 | V71: 8 | W71: 0.09195402299 | X71: 0.2183908046 | Y71: 0.2988505747 | Z71: 0.2988505747 | AA71: 0.09195402299 | AB71: 87 | AC71: 1 | AD71: 69 | AE71: 1020 | AF71: YOUTH CO-OP CHARTER SCHOOL | AG71: 13 | AH71: 20 | AI71: 30 | AJ71: 16 | AK71: 9 | AL71: 0.1477272727 | AM71: 0.2272727273 | AN71: 0.3409090909 | AO71: 0.1818181818 | AP71: 0.1022727273 | AQ71: 88 | AR71: 1 | AS71: 63 | AT71: 5045 | AU71: MATER GROVE ACADEMY | AV71: 1 | AW71: 5 | AX71: 9 | AY71: 4 | BA71: 0.05263157895 | BB71: 0.2631578947 | BC71: 0.4736842105 | BD71: 0.2105263158 | BE71: 0 | BF71: 19 | BG71: 1 | BH71: 68 | BI71: 5101 | BJ71: JOHN I. SMITH K-8 CENTER | BK71: 35 | BL71: 32 | BM71: 38 | BN71: 34 | BO71: 19 | BP71: 0.2215189873 | BQ71: 0.2025316456 | BR71: 0.2405063291 | BS71: 0.2151898734 | BT71: 0.1202531646 | BU71: 158 | BV71: 1 | BW71: 58 | BX71: 5901 | BY71: CARRIE P MEEK/WESTVIEW K-8 CTR | BZ71: 18 | CA71: 15 | CB71: 6 | CD71: 1 | CE71: 0.45 | CF71: 0.375 | CG71: 0.15 | CH71: 0 | CI71: 0.025 | CJ71: 40 | CK71: 1 | CL71: 18
A72: 1020 | B72: YOUTH CO-OP CHARTER SCHOOL | C72: 7 | D72: 19 | E72: 37 | F72: 30 | G72: 14 | H72: 0.06542056075 | I72: 0.1775700935 | J72: 0.3457943925 | K72: 0.2803738318 | L72: 0.1308411215 | M72: 107 | N72: 1 | O72: 76 | P72: 1041 | Q72: CORAL REEF ELEMENTARY | R72: 11 | S72: 14 | T72: 26 | U72: 24 | V72: 43 | W72: 0.09322033898 | X72: 0.1186440678 | Y72: 0.2203389831 | Z72: 0.2033898305 | AA72: 0.3644067797 | AB72: 118 | AC72: 1 | AD72: 79 | AE72: 1041 | AF72: CORAL REEF ELEMENTARY | AG72: 16 | AH72: 20 | AI72: 27 | AJ72: 34 | AK72: 48 | AL72: 0.1103448276 | AM72: 0.1379310345 | AN72: 0.1862068966 | AO72: 0.2344827586 | AP72: 0.3310344828 | AQ72: 145 | AR72: 1 | AS72: 75 | AT72: 5046 | AU72: MATER BRICKELL PREP ACADEMY | AV72: 5 | AW72: 3 | AX72: 4 | AY72: 6 | BA72: 0.2777777778 | BB72: 0.1666666667 | BC72: 0.2222222222 | BD72: 0.3333333333 | BE72: 0 | BF72: 18 | BG72: 1 | BH72: 56 | BI72: 5141 | BJ72: HUBERT O. SIBLEY K-8 ACADEMY | BK72: 27 | BL72: 24 | BM72: 15 | BN72: 10 | BO72: 6 | BP72: 0.3292682927 | BQ72: 0.2926829268 | BR72: 0.1829268293 | BS72: 0.1219512195 | BT72: 0.07317073171 | BU72: 82 | BV72: 1 | BW72: 38 | BX72: 5961 | BY72: WINSTON PARK K-8 CENTER | BZ72: 15 | CA72: 20 | CB72: 25 | CC72: 15 | CD72: 8 | CE72: 0.1807228916 | CF72: 0.2409638554 | CG72: 0.3012048193 | CH72: 0.1807228916 | CI72: 0.09638554217 | CJ72: 83 | CK72: 1 | CL72: 58
A73: 1041 | B73: CORAL REEF ELEMENTARY | C73: 14 | D73: 16 | E73: 35 | F73: 58 | G73: 29 | H73: 0.09210526316 | I73: 0.1052631579 | J73: 0.2302631579 | K73: 0.3815789474 | L73: 0.1907894737 | M73: 152 | N73: 1 | O73: 80 | P73: 1081 | Q73: CORAL TERRACE ELEMENTARY | R73: 16 | S73: 12 | T73: 22 | U73: 14 | V73: 7 | W73: 0.2253521127 | X73: 0.1690140845 | Y73: 0.3098591549 | Z73: 0.1971830986 | AA73: 0.0985915493 | AB73: 71 | AC73: 1 | AD73: 61 | AE73: 1081 | AF73: CORAL TERRACE ELEMENTARY | AG73: 23 | AH73: 21 | AI73: 22 | AJ73: 13 | AK73: 10 | AL73: 0.2584269663 | AM73: 0.2359550562 | AN73: 0.2471910112 | AO73: 0.1460674157 | AP73: 0.1123595506 | AQ73: 89 | AR73: 1 | AS73: 51 | AT73: 5047 | AU73: MATER ACADEMY (MIAMI BEACH) | AV73: 6 | AW73: 12 | AX73: 16 | AY73: 6 | AZ73: 3 | BA73: 0.1395348837 | BB73: 0.2790697674 | BC73: 0.3720930233 | BD73: 0.1395348837 | BE73: 0.06976744186 | BF73: 43 | BG73: 1 | BH73: 58 | BI73: 5241 | BJ73: SOUTH MIAMI K-8 CENTER | BK73: 15 | BL73: 17 | BM73: 19 | BN73: 7 | BO73: 12 | BP73: 0.2142857143 | BQ73: 0.2428571429 | BR73: 0.2714285714 | BS73: 0.1 | BT73: 0.1714285714 | BU73: 70 | BV73: 1 | BW73: 54 | BX73: 6001 | BY73: HERBERT A. AMMONS MIDDLE | BZ73: 1 | CA73: 6 | CB73: 27 | CC73: 27 | CD73: 31 | CE73: 0.01086956522 | CF73: 0.0652173913 | CG73: 0.2934782609 | CH73: 0.2934782609 | CI73: 0.3369565217 | CJ73: 92 | CK73: 1 | CL73: 92
A74: 1081 | B74: CORAL TERRACE ELEMENTARY | C74: 15 | D74: 19 | E74: 24 | F74: 19 | G74: 2 | H74: 0.1898734177 | I74: 0.2405063291 | J74: 0.3037974684 | K74: 0.2405063291 | L74: 0.0253164557 | M74: 79 | N74: 1 | O74: 57 | P74: 1121 | Q74: CORAL WAY K-8 CENTER | R74: 42 | S74: 26 | T74: 49 | U74: 28 | V74: 14 | W74: 0.2641509434 | X74: 0.1635220126 | Y74: 0.3081761006 | Z74: 0.1761006289 | AA74: 0.08805031447 | AB74: 159 | AC74: 1 | AD74: 57 | AE74: 1121 | AF74: CORAL WAY K-8 CENTER | AG74: 51 | AH74: 34 | AI74: 27 | AJ74: 28 | AK74: 33 | AL74: 0.2947976879 | AM74: 0.1965317919 | AN74: 0.1560693642 | AO74: 0.161849711 | AP74: 0.1907514451 | AQ74: 173 | AR74: 1 | AS74: 51 | AT74: 5048 | AU74: PINECREST ACADEMY (NORTH) | AX74: 6 | AY74: 15 | AZ74: 15 | BA74: 0 | BB74: 0 | BC74: 0.1666666667 | BD74: 0.4166666667 | BE74: 0.4166666667 | BF74: 36 | BG74: 1 | BH74: 100 | BI74: 5671 | BJ74: VINELAND K-8 CENTER | BK74: 5 | BL74: 20 | BM74: 32 | BN74: 22 | BO74: 32 | BP74: 0.04504504505 | BQ74: 0.1801801802 | BR74: 0.2882882883 | BS74: 0.1981981982 | BT74: 0.2882882883 | BU74: 111 | BV74: 1 | BW74: 77 | BX74: 6004 | BY74: SOMERSET ACADEMY MIDDLE | CB74: 1 | CE74: 0 | CF74: 0 | CG74: 1 | CH74: 0 | CI74: 0 | CJ74: 1 | CK74: 1
A75: 1121 | B75: CORAL WAY K-8 CENTER | C75: 34 | D75: 29 | E75: 44 | F75: 48 | G75: 15 | H75: 0.2 | I75: 0.1705882353 | J75: 0.2588235294 | K75: 0.2823529412 | L75: 0.08823529412 | M75: 170 | N75: 1 | O75: 63 | P75: 1161 | Q75: CRESTVIEW ELEMENTARY | R75: 22 | S75: 10 | T75: 15 | U75: 6 | V75: 2 | W75: 0.4 | X75: 0.1818181818 | Y75: 0.2727272727 | Z75: 0.1090909091 | AA75: 0.03636363636 | AB75: 55 | AC75: 1 | AD75: 42 | AE75: 1161 | AF75: CRESTVIEW ELEMENTARY | AG75: 10 | AH75: 10 | AI75: 9 | AJ75: 11 | AK75: 3 | AL75: 0.2325581395 | AM75: 0.2325581395 | AN75: 0.2093023256 | AO75: 0.2558139535 | AP75: 0.06976744186 | AQ75: 43 | AR75: 1 | AS75: 53 | AT75: 5049 | AU75: PINECREST COVE ACADEMY | AV75: 2 | AW75: 2 | AX75: 25 | AY75: 27 | AZ75: 18 | BA75: 0.02702702703 | BB75: 0.02702702703 | BC75: 0.3378378378 | BD75: 0.3648648649 | BE75: 0.2432432432 | BF75: 74 | BG75: 1 | BH75: 95 | BI75: 5791 | BJ75: WEST HOMESTEAD K-8 CENTER | BK75: 26 | BL75: 6 | BM75: 4 | BP75: 0.7222222222 | BQ75: 0.1666666667 | BR75: 0.1111111111 | BS75: 0 | BT75: 0 | BU75: 36 | BV75: 1 | BW75: 11 | BX75: 6006 | BY75: ARCHIMEDEAN CONSERVATORY | CA75: 1 | CE75: 0 | CF75: 1 | CG75: 0 | CH75: 0 | CI75: 0 | CJ75: 1 | CK75: 1
A76: 1161 | B76: CRESTVIEW ELEMENTARY | C76: 17 | D76: 15 | E76: 17 | F76: 12 | G76: 1 | H76: 0.2741935484 | I76: 0.2419354839 | J76: 0.2741935484 | K76: 0.1935483871 | L76: 0.01612903226 | M76: 62 | N76: 1 | O76: 48 | P76: 1241 | Q76: CUTLER RIDGE ELEMENTARY | R76: 20 | S76: 12 | T76: 15 | U76: 22 | V76: 17 | W76: 0.2325581395 | X76: 0.1395348837 | Y76: 0.1744186047 | Z76: 0.2558139535 | AA76: 0.1976744186 | AB76: 86 | AC76: 1 | AD76: 63 | AE76: 1241 | AF76: CUTLER RIDGE ELEMENTARY | AG76: 10 | AH76: 30 | AI76: 37 | AJ76: 15 | AK76: 12 | AL76: 0.09615384615 | AM76: 0.2884615385 | AN76: 0.3557692308 | AO76: 0.1442307692 | AP76: 0.1153846154 | AQ76: 104 | AR76: 1 | AS76: 62 | AT76: 5051 | AU76: ERNEST R GRAHAM K-8 ACADEMY | AV76: 19 | AW76: 40 | AX76: 47 | AY76: 38 | AZ76: 23 | BA76: 0.1137724551 | BB76: 0.2395209581 | BC76: 0.2814371257 | BD76: 0.2275449102 | BE76: 0.1377245509 | BF76: 167 | BG76: 1 | BH76: 65 | BI76: 5861 | BJ76: DR H W MACK/W LITTLE RIVER K8 | BK76: 22 | BL76: 10 | BM76: 8 | BN76: 1 | BP76: 0.5365853659 | BQ76: 0.243902439 | BR76: 0.1951219512 | BS76: 0.0243902439 | BT76: 0 | BU76: 41 | BV76: 1 | BW76: 22 | BX76: 6009 | BY76: MATER ACADEMY EAST MIDDLE | BZ76: 12 | CA76: 19 | CB76: 33 | CC76: 21 | CD76: 18 | CE76: 0.1165048544 | CF76: 0.1844660194 | CG76: 0.3203883495 | CH76: 0.2038834951 | CI76: 0.1747572816 | CJ76: 103 | CK76: 1 | CL76: 70
A77: 1241 | B77: CUTLER RIDGE ELEMENTARY | C77: 22 | D77: 23 | E77: 32 | F77: 20 | G77: 11 | H77: 0.2037037037 | I77: 0.212962963 | J77: 0.2962962963 | K77: 0.1851851852 | L77: 0.1018518519 | M77: 108 | N77: 1 | O77: 58 | P77: 1281 | Q77: CYPRESS ELEMENTARY | R77: 18 | S77: 12 | T77: 13 | U77: 17 | V77: 9 | W77: 0.2608695652 | X77: 0.1739130435 | Y77: 0.1884057971 | Z77: 0.2463768116 | AA77: 0.1304347826 | AB77: 69 | AC77: 1 | AD77: 57 | AE77: 1281 | AF77: CYPRESS ELEMENTARY | AG77: 15 | AH77: 8 | AI77: 11 | AJ77: 11 | AK77: 4 | AL77: 0.306122449 | AM77: 0.1632653061 | AN77: 0.2244897959 | AO77: 0.2244897959 | AP77: 0.08163265306 | AQ77: 49 | AR77: 1 | AS77: 53 | AT77: 5101 | AU77: JOHN I. SMITH K-8 CENTER | AV77: 37 | AW77: 25 | AX77: 52 | AY77: 22 | AZ77: 14 | BA77: 0.2466666667 | BB77: 0.1666666667 | BC77: 0.3466666667 | BD77: 0.1466666667 | BE77: 0.09333333333 | BF77: 150 | BG77: 1 | BH77: 59 | BI77: 5901 | BJ77: CARRIE P MEEK/WESTVIEW K-8 CTR | BK77: 24 | BL77: 12 | BM77: 8 | BN77: 4 | BO77: 3 | BP77: 0.4705882353 | BQ77: 0.2352941176 | BR77: 0.1568627451 | BS77: 0.07843137255 | BT77: 0.05882352941 | BU77: 51 | BV77: 1 | BW77: 29 | BX77: 6010 | BY77: FLORIDA INTERNATIONAL ACADEMY | BZ77: 43 | CA77: 27 | CB77: 18 | CC77: 3 | CD77: 3 | CE77: 0.4574468085 | CF77: 0.2872340426 | CG77: 0.1914893617 | CH77: 0.03191489362 | CI77: 0.03191489362 | CJ77: 94 | CK77: 1 | CL77: 26
A78: 1281 | B78: CYPRESS ELEMENTARY | C78: 6 | D78: 9 | E78: 12 | F78: 11 | G78: 4 | H78: 0.1428571429 | I78: 0.2142857143 | J78: 0.2857142857 | K78: 0.2619047619 | L78: 0.09523809524 | M78: 42 | N78: 1 | O78: 64 | P78: 1331 | Q78: DEVON AIRE K-8 CENTER | R78: 15 | S78: 16 | T78: 59 | U78: 54 | V78: 41 | W78: 0.08108108108 | X78: 0.08648648649 | Y78: 0.3189189189 | Z78: 0.2918918919 | AA78: 0.2216216216 | AB78: 185 | AC78: 1 | AD78: 83 | AE78: 1331 | AF78: DEVON AIRE K-8 CENTER | AG78: 15 | AH78: 30 | AI78: 43 | AJ78: 57 | AK78: 38 | AL78: 0.08196721311 | AM78: 0.1639344262 | AN78: 0.2349726776 | AO78: 0.3114754098 | AP78: 0.2076502732 | AQ78: 183 | AR78: 1 | AS78: 75 | AT78: 5141 | AU78: HUBERT O. SIBLEY K-8 ACADEMY | AV78: 38 | AW78: 27 | AX78: 9 | AY78: 7 | AZ78: 4 | BA78: 0.4470588235 | BB78: 0.3176470588 | BC78: 0.1058823529 | BD78: 0.08235294118 | BE78: 0.04705882353 | BF78: 85 | BG78: 1 | BH78: 24 | BI78: 5961 | BJ78: WINSTON PARK K-8 CENTER | BK78: 26 | BL78: 36 | BM78: 51 | BN78: 29 | BO78: 13 | BP78: 0.1677419355 | BQ78: 0.2322580645 | BR78: 0.3290322581 | BS78: 0.1870967742 | BT78: 0.08387096774 | BU78: 155 | BV78: 1 | BW78: 60 | BX78: 6011 | BY78: GEORGIA JONES-AYERS MIDDLE | BZ78: 50 | CA78: 29 | CB78: 38 | CC78: 18 | CD78: 5 | CE78: 0.3571428571 | CF78: 0.2071428571 | CG78: 0.2714285714 | CH78: 0.1285714286 | CI78: 0.03571428571 | CJ78: 140 | CK78: 1 | CL78: 44
A79: 1331 | B79: DEVON AIRE K-8 CENTER | C79: 12 | D79: 15 | E79: 54 | F79: 42 | G79: 17 | H79: 0.08571428571 | I79: 0.1071428571 | J79: 0.3857142857 | K79: 0.3 | L79: 0.1214285714 | M79: 140 | N79: 1 | O79: 81 | P79: 1361 | Q79: FREDERICK DOUGLASS ELEMENTARY | R79: 7 | S79: 4 | T79: 7 | U79: 5 | W79: 0.3043478261 | X79: 0.1739130435 | Y79: 0.3043478261 | Z79: 0.2173913043 | AA79: 0 | AB79: 23 | AC79: 1 | AD79: 52 | AE79: 1361 | AF79: FREDERICK DOUGLASS ELEMENTARY | AG79: 11 | AH79: 11 | AI79: 8 | AJ79: 2 | AK79: 1 | AL79: 0.3333333333 | AM79: 0.3333333333 | AN79: 0.2424242424 | AO79: 0.06060606061 | AP79: 0.0303030303 | AQ79: 33 | AR79: 1 | AS79: 33 | AT79: 5241 | AU79: SOUTH MIAMI K-8 CENTER | AV79: 19 | AW79: 16 | AX79: 20 | AY79: 16 | AZ79: 5 | BA79: 0.25 | BB79: 0.2105263158 | BC79: 0.2631578947 | BD79: 0.2105263158 | BE79: 0.06578947368 | BF79: 76 | BG79: 1 | BH79: 54 | BI79: 6001 | BJ79: HERBERT A. AMMONS MIDDLE | BK79: 8 | BL79: 40 | BM79: 120 | BN79: 112 | BO79: 30 | BP79: 0.02580645161 | BQ79: 0.1290322581 | BR79: 0.3870967742 | BS79: 0.3612903226 | BT79: 0.09677419355 | BU79: 310 | BV79: 1 | BW79: 85 | BX79: 6012 | BY79: MATER ACADEMY CHARTER MIDDLE | BZ79: 57 | CA79: 59 | CB79: 68 | CC79: 14 | CD79: 3 | CE79: 0.2835820896 | CF79: 0.2935323383 | CG79: 0.3383084577 | CH79: 0.06965174129 | CI79: 0.01492537313 | CJ79: 201 | CK79: 1 | CL79: 42
A80: 1361 | B80: FREDERICK DOUGLASS ELEMENTARY | C80: 15 | D80: 6 | E80: 11 | F80: 3 | G80: 1 | H80: 0.4166666667 | I80: 0.1666666667 | J80: 0.3055555556 | K80: 0.08333333333 | L80: 0.02777777778 | M80: 36 | N80: 1 | O80: 42 | P80: 1371 | Q80: MARJORY STONEMAN DOUGLAS ELEM | R80: 25 | S80: 18 | T80: 51 | U80: 42 | V80: 37 | W80: 0.1445086705 | X80: 0.1040462428 | Y80: 0.2947976879 | Z80: 0.2427745665 | AA80: 0.2138728324 | AB80: 173 | AC80: 1 | AD80: 75 | AE80: 1371 | AF80: MARJORY STONEMAN DOUGLAS ELEM | AG80: 19 | AH80: 34 | AI80: 50 | AJ80: 40 | AK80: 26 | AL80: 0.1124260355 | AM80: 0.201183432 | AN80: 0.2958579882 | AO80: 0.2366863905 | AP80: 0.1538461538 | AQ80: 169 | AR80: 1 | AS80: 69 | AT80: 5671 | AU80: VINELAND K-8 CENTER | AV80: 10 | AW80: 24 | AX80: 28 | AY80: 27 | AZ80: 12 | BA80: 0.09900990099 | BB80: 0.2376237624 | BC80: 0.2772277228 | BD80: 0.2673267327 | BE80: 0.1188118812 | BF80: 101 | BG80: 1 | BH80: 66 | BI80: 6004 | BJ80: SOMERSET ACADEMY MIDDLE | BK80: 1 | BL80: 14 | BM80: 14 | BN80: 15 | BO80: 2 | BP80: 0.02173913043 | BQ80: 0.3043478261 | BR80: 0.3043478261 | BS80: 0.3260869565 | BT80: 0.04347826087 | BU80: 46 | BV80: 1 | BW80: 67 | BX80: 6013 | BY80: SOMERSET ACADEMY MIDDLE-SOUTH | BZ80: 22 | CA80: 26 | CB80: 15 | CC80: 4 | CE80: 0.328358209 | CF80: 0.3880597015 | CG80: 0.223880597 | CH80: 0.05970149254 | CI80: 0 | CJ80: 67 | CK80: 1 | CL80: 28
A81: 1371 | B81: MARJORY STONEMAN DOUGLAS ELEM | C81: 13 | D81: 24 | E81: 59 | F81: 47 | G81: 25 | H81: 0.07738095238 | I81: 0.1428571429 | J81: 0.3511904762 | K81: 0.2797619048 | L81: 0.1488095238 | M81: 168 | N81: 1 | O81: 78 | P81: 1401 | Q81: CHARLES R. DREW K-8 CENTER | R81: 14 | S81: 11 | T81: 9 | U81: 3 | V81: 1 | W81: 0.3684210526 | X81: 0.2894736842 | Y81: 0.2368421053 | Z81: 0.07894736842 | AA81: 0.02631578947 | AB81: 38 | AC81: 1 | AD81: 34 | AE81: 1401 | AF81: CHARLES R. DREW K-8 CENTER | AG81: 5 | AH81: 2 | AI81: 4 | AJ81: 14 | AK81: 3 | AL81: 0.1785714286 | AM81: 0.07142857143 | AN81: 0.1428571429 | AO81: 0.5 | AP81: 0.1071428571 | AQ81: 28 | AR81: 1 | AS81: 75 | AT81: 5791 | AU81: WEST HOMESTEAD K-8 CENTER | AV81: 40 | AW81: 8 | AX81: 16 | AY81: 4 | BA81: 0.5882352941 | BB81: 0.1176470588 | BC81: 0.2352941176 | BD81: 0.05882352941 | BE81: 0 | BF81: 68 | BG81: 1 | BH81: 29 | BI81: 6006 | BJ81: ARCHIMEDEAN CONSERVATORY | BK81: 1 | BL81: 2 | BM81: 4 | BN81: 2 | BP81: 0.1111111111 | BQ81: 0.2222222222 | BR81: 0.4444444444 | BS81: 0.2222222222 | BT81: 0 | BU81: 9 | BV81: 1 | BX81: 6014 | BY81: IMATER ACADEMY MIDDLE SCHOOL | BZ81: 43 | CA81: 45 | CB81: 50 | CC81: 27 | CD81: 8 | CE81: 0.2485549133 | CF81: 0.2601156069 | CG81: 0.289017341 | CH81: 0.1560693642 | CI81: 0.04624277457 | CJ81: 173 | CK81: 1 | CL81: 49
A82: 1401 | B82: CHARLES R. DREW K-8 CENTER | C82: 15 | D82: 10 | E82: 11 | F82: 3 | G82: 2 | H82: 0.3658536585 | I82: 0.243902439 | J82: 0.2682926829 | K82: 0.07317073171 | L82: 0.0487804878 | M82: 41 | N82: 1 | O82: 39 | P82: 1441 | Q82: PAUL LAURENCE DUNBAR K-8 CTR | R82: 25 | S82: 8 | T82: 12 | U82: 4 | V82: 1 | W82: 0.5 | X82: 0.16 | Y82: 0.24 | Z82: 0.08 | AA82: 0.02 | AB82: 50 | AC82: 1 | AD82: 34 | AE82: 1441 | AF82: PAUL LAURENCE DUNBAR K-8 CTR | AG82: 14 | AH82: 20 | AI82: 14 | AJ82: 6 | AK82: 3 | AL82: 0.2456140351 | AM82: 0.350877193 | AN82: 0.2456140351 | AO82: 0.1052631579 | AP82: 0.05263157895 | AQ82: 57 | AR82: 1 | AS82: 40 | AT82: 5861 | AU82: DR H W MACK/W LITTLE RIVER K8 | AV82: 25 | AW82: 17 | AX82: 20 | AY82: 3 | AZ82: 1 | BA82: 0.3787878788 | BB82: 0.2575757576 | BC82: 0.303030303 | BD82: 0.04545454545 | BE82: 0.01515151515 | BF82: 66 | BG82: 1 | BH82: 36 | BI82: 6009 | BJ82: MATER ACADEMY EAST MIDDLE | BK82: 31 | BL82: 30 | BM82: 15 | BN82: 11 | BO82: 1 | BP82: 0.3522727273 | BQ82: 0.3409090909 | BR82: 0.1704545455 | BS82: 0.125 | BT82: 0.01136363636 | BU82: 88 | BV82: 1 | BW82: 31 | BX82: 6015 | BY82: SPORTS LEADERSHIP AND MGMT CMS | BZ82: 19 | CA82: 36 | CB82: 48 | CC82: 31 | CD82: 7 | CE82: 0.134751773 | CF82: 0.2553191489 | CG82: 0.3404255319 | CH82: 0.219858156 | CI82: 0.04964539007 | CJ82: 141 | CK82: 1 | CL82: 61
A83: 1441 | B83: PAUL LAURENCE DUNBAR K-8 CTR | C83: 16 | D83: 14 | E83: 11 | F83: 9 | H83: 0.32 | I83: 0.28 | J83: 0.22 | K83: 0.18 | L83: 0 | M83: 50 | N83: 1 | O83: 40 | P83: 1481 | Q83: JOHN G. DUPUIS ELEMENTARY | R83: 25 | S83: 16 | T83: 30 | U83: 19 | V83: 14 | W83: 0.2403846154 | X83: 0.1538461538 | Y83: 0.2884615385 | Z83: 0.1826923077 | AA83: 0.1346153846 | AB83: 104 | AC83: 1 | AD83: 61 | AE83: 1481 | AF83: JOHN G. DUPUIS ELEMENTARY | AG83: 17 | AH83: 21 | AI83: 36 | AJ83: 27 | AK83: 16 | AL83: 0.1452991453 | AM83: 0.1794871795 | AN83: 0.3076923077 | AO83: 0.2307692308 | AP83: 0.1367521368 | AQ83: 117 | AR83: 1 | AS83: 68 | AT83: 5901 | AU83: CARRIE P MEEK/WESTVIEW K-8 CTR | AV83: 25 | AW83: 17 | AX83: 13 | AY83: 10 | AZ83: 1 | BA83: 0.3787878788 | BB83: 0.2575757576 | BC83: 0.196969697 | BD83: 0.1515151515 | BE83: 0.01515151515 | BF83: 66 | BG83: 1 | BH83: 36 | BI83: 6010 | BJ83: FLORIDA INTERNATIONAL ACADEMY | BK83: 38 | BL83: 25 | BM83: 26 | BN83: 7 | BO83: 2 | BP83: 0.387755102 | BQ83: 0.2551020408 | BR83: 0.2653061224 | BS83: 0.07142857143 | BT83: 0.02040816327 | BU83: 98 | BV83: 1 | BW83: 36 | BX83: 6017 | BY83: INTERNATIONAL STUDIES VIRTUAL | CB83: 2 | CE83: 0 | CF83: 0 | CG83: 1 | CH83: 0 | CI83: 0 | CJ83: 2 | CK83: 1
A84: 1481 | B84: JOHN G. DUPUIS ELEMENTARY | C84: 12 | D84: 16 | E84: 30 | F84: 22 | G84: 21 | H84: 0.1188118812 | I84: 0.1584158416 | J84: 0.297029703 | K84: 0.2178217822 | L84: 0.2079207921 | M84: 101 | N84: 1 | O84: 72 | P84: 1521 | Q84: AMELIA EARHART ELEMENTARY | R84: 9 | S84: 10 | T84: 22 | U84: 15 | V84: 2 | W84: 0.1551724138 | X84: 0.1724137931 | Y84: 0.3793103448 | Z84: 0.2586206897 | AA84: 0.03448275862 | AB84: 58 | AC84: 1 | AD84: 67 | AE84: 1521 | AF84: AMELIA EARHART ELEMENTARY | AG84: 18 | AH84: 17 | AI84: 20 | AJ84: 11 | AK84: 5 | AL84: 0.2535211268 | AM84: 0.2394366197 | AN84: 0.2816901408 | AO84: 0.1549295775 | AP84: 0.07042253521 | AQ84: 71 | AR84: 1 | AS84: 51 | AT84: 5961 | AU84: WINSTON PARK K-8 CENTER | AV84: 19 | AW84: 30 | AX84: 42 | AY84: 51 | AZ84: 29 | BA84: 0.1111111111 | BB84: 0.1754385965 | BC84: 0.2456140351 | BD84: 0.298245614 | BE84: 0.1695906433 | BF84: 171 | BG84: 1 | BH84: 71 | BI84: 6011 | BJ84: GEORGIA JONES-AYERS MIDDLE | BK84: 100 | BL84: 27 | BM84: 20 | BN84: 3 | BP84: 0.6666666667 | BQ84: 0.18 | BR84: 0.1333333333 | BS84: 0.02 | BT84: 0 | BU84: 150 | BV84: 1 | BW84: 15 | BX84: 6020 | BY84: ASPIRA RAUL A. MARTINEZ CHTR | BZ84: 61 | CA84: 45 | CB84: 24 | CC84: 6 | CD84: 2 | CE84: 0.4420289855 | CF84: 0.3260869565 | CG84: 0.1739130435 | CH84: 0.04347826087 | CI84: 0.01449275362 | CJ84: 138 | CK84: 1 | CL84: 23
A85: 1521 | B85: AMELIA EARHART ELEMENTARY | C85: 30 | D85: 21 | E85: 23 | F85: 8 | G85: 5 | H85: 0.3448275862 | I85: 0.2413793103 | J85: 0.2643678161 | K85: 0.09195402299 | L85: 0.05747126437 | M85: 87 | N85: 1 | O85: 41 | P85: 1561 | Q85: EARLINGTON HEIGHTS ELEMENTARY | R85: 26 | S85: 18 | T85: 18 | U85: 7 | V85: 3 | W85: 0.3611111111 | X85: 0.25 | Y85: 0.25 | Z85: 0.09722222222 | AA85: 0.04166666667 | AB85: 72 | AC85: 1 | AD85: 39 | AE85: 1561 | AF85: EARLINGTON HEIGHTS ELEMENTARY | AG85: 24 | AH85: 8 | AI85: 17 | AJ85: 6 | AK85: 2 | AL85: 0.4210526316 | AM85: 0.1403508772 | AN85: 0.298245614 | AO85: 0.1052631579 | AP85: 0.0350877193 | AQ85: 57 | AR85: 1 | AS85: 44 | AT85: 6001 | AU85: HERBERT A. AMMONS MIDDLE | AV85: 5 | AW85: 45 | AX85: 140 | AY85: 156 | AZ85: 73 | BA85: 0.01193317422 | BB85: 0.107398568 | BC85: 0.3341288783 | BD85: 0.3723150358 | BE85: 0.1742243437 | BF85: 419 | BG85: 1 | BH85: 88 | BI85: 6012 | BJ85: MATER ACADEMY CHARTER MIDDLE | BK85: 71 | BL85: 99 | BM85: 128 | BN85: 98 | BO85: 55 | BP85: 0.1574279379 | BQ85: 0.2195121951 | BR85: 0.2838137472 | BS85: 0.2172949002 | BT85: 0.1219512195 | BU85: 451 | BV85: 1 | BW85: 62 | BX85: 6021 | BY85: ARVIDA MIDDLE SCHOOL | BZ85: 27 | CA85: 48 | CB85: 88 | CC85: 73 | CD85: 73 | CE85: 0.08737864078 | CF85: 0.1553398058 | CG85: 0.284789644 | CH85: 0.2362459547 | CI85: 0.2362459547 | CJ85: 309 | CK85: 1 | CL85: 76
A86: 1561 | B86: EARLINGTON HEIGHTS ELEMENTARY | C86: 44 | D86: 14 | E86: 16 | F86: 11 | G86: 1 | H86: 0.511627907 | I86: 0.1627906977 | J86: 0.1860465116 | K86: 0.1279069767 | L86: 0.01162790698 | M86: 86 | N86: 1 | O86: 33 | P86: 1601 | Q86: EDISON PARK K-8 CENTER | R86: 23 | S86: 14 | T86: 10 | U86: 4 | V86: 1 | W86: 0.4423076923 | X86: 0.2692307692 | Y86: 0.1923076923 | Z86: 0.07692307692 | AA86: 0.01923076923 | AB86: 52 | AC86: 1 | AD86: 29 | AE86: 1601 | AF86: EDISON PARK K-8 CENTER | AG86: 15 | AH86: 11 | AI86: 10 | AJ86: 3 | AL86: 0.3846153846 | AM86: 0.2820512821 | AN86: 0.2564102564 | AO86: 0.07692307692 | AP86: 0 | AQ86: 39 | AR86: 1 | AS86: 33 | AT86: 6004 | AU86: SOMERSET ACADEMY MIDDLE | AV86: 2 | AW86: 18 | AX86: 32 | AY86: 18 | AZ86: 10 | BA86: 0.025 | BB86: 0.225 | BC86: 0.4 | BD86: 0.225 | BE86: 0.125 | BF86: 80 | BG86: 1 | BH86: 75 | BI86: 6013 | BJ86: SOMERSET ACADEMY MIDDLE-SOUTH | BK86: 20 | BL86: 29 | BM86: 46 | BN86: 12 | BO86: 3 | BP86: 0.1818181818 | BQ86: 0.2636363636 | BR86: 0.4181818182 | BS86: 0.1090909091 | BT86: 0.02727272727 | BU86: 110 | BV86: 1 | BW86: 55 | BX86: 6022 | BY86: PINECREST ACADEMY CHARTER MIDD | BZ86: 8 | CA86: 25 | CB86: 58 | CC86: 16 | CD86: 7 | CE86: 0.0701754386 | CF86: 0.2192982456 | CG86: 0.5087719298 | CH86: 0.1403508772 | CI86: 0.06140350877 | CJ86: 114 | CK86: 1 | CL86: 71
A87: 1601 | B87: EDISON PARK K-8 CENTER | C87: 18 | D87: 15 | E87: 12 | F87: 6 | G87: 1 | H87: 0.3461538462 | I87: 0.2884615385 | J87: 0.2307692308 | K87: 0.1153846154 | L87: 0.01923076923 | M87: 52 | N87: 1 | O87: 37 | P87: 1641 | Q87: EMERSON ELEMENTARY | R87: 10 | S87: 4 | T87: 20 | U87: 20 | V87: 7 | W87: 0.1639344262 | X87: 0.06557377049 | Y87: 0.3278688525 | Z87: 0.3278688525 | AA87: 0.1147540984 | AB87: 61 | AC87: 1 | AD87: 77 | AE87: 1641 | AF87: EMERSON ELEMENTARY | AG87: 9 | AH87: 11 | AI87: 12 | AJ87: 9 | AK87: 2 | AL87: 0.2093023256 | AM87: 0.2558139535 | AN87: 0.2790697674 | AO87: 0.2093023256 | AP87: 0.04651162791 | AQ87: 43 | AR87: 1 | AS87: 53 | AT87: 6006 | AU87: ARCHIMEDEAN CONSERVATORY | AW87: 3 | AX87: 10 | AY87: 33 | AZ87: 72 | BA87: 0 | BB87: 0.02542372881 | BC87: 0.08474576271 | BD87: 0.2796610169 | BE87: 0.6101694915 | BF87: 118 | BG87: 1 | BH87: 97 | BI87: 6014 | BJ87: IMATER ACADEMY MIDDLE SCHOOL | BK87: 46 | BL87: 55 | BM87: 97 | BN87: 66 | BO87: 31 | BP87: 0.1559322034 | BQ87: 0.186440678 | BR87: 0.3288135593 | BS87: 0.2237288136 | BT87: 0.1050847458 | BU87: 295 | BV87: 1 | BW87: 66 | BX87: 6023 | BY87: ANDOVER MIDDLE SCHOOL | BZ87: 81 | CA87: 44 | CB87: 33 | CC87: 5 | CE87: 0.4969325153 | CF87: 0.2699386503 | CG87: 0.2024539877 | CH87: 0.03067484663 | CI87: 0 | CJ87: 163 | CK87: 1 | CL87: 23
A88: 1641 | B88: EMERSON ELEMENTARY | C88: 8 | D88: 9 | E88: 16 | F88: 24 | G88: 7 | H88: 0.125 | I88: 0.140625 | J88: 0.25 | K88: 0.375 | L88: 0.109375 | M88: 64 | N88: 1 | O88: 73 | P88: 1681 | Q88: LILLIE C. EVANS K-8 CENTER | R88: 21 | S88: 9 | T88: 5 | U88: 5 | W88: 0.525 | X88: 0.225 | Y88: 0.125 | Z88: 0.125 | AA88: 0 | AB88: 40 | AC88: 1 | AD88: 25 | AE88: 1681 | AF88: LILLIE C. EVANS K-8 CENTER | AG88: 16 | AH88: 4 | AI88: 8 | AJ88: 8 | AK88: 2 | AL88: 0.4210526316 | AM88: 0.1052631579 | AN88: 0.2105263158 | AO88: 0.2105263158 | AP88: 0.05263157895 | AQ88: 38 | AR88: 1 | AS88: 47 | AT88: 6009 | AU88: MATER ACADEMY EAST MIDDLE | AV88: 28 | AW88: 37 | AX88: 26 | AY88: 9 | AZ88: 1 | BA88: 0.2772277228 | BB88: 0.3663366337 | BC88: 0.2574257426 | BD88: 0.08910891089 | BE88: 0.009900990099 | BF88: 101 | BG88: 1 | BH88: 36 | BI88: 6015 | BJ88: SPORTS LEADERSHIP AND MGMT CMS | BK88: 32 | BL88: 48 | BM88: 65 | BN88: 14 | BO88: 2 | BP88: 0.198757764 | BQ88: 0.298136646 | BR88: 0.4037267081 | BS88: 0.08695652174 | BT88: 0.01242236025 | BU88: 161 | BV88: 1 | BW88: 50 | BX88: 6028 | BY88: RENAISSANCE MIDDLE CHARTER | BZ88: 5 | CA88: 21 | CB88: 17 | CC88: 12 | CD88: 7 | CE88: 0.08064516129 | CF88: 0.3387096774 | CG88: 0.2741935484 | CH88: 0.1935483871 | CI88: 0.1129032258 | CJ88: 62 | CK88: 1 | CL88: 58
A89: 1681 | B89: LILLIE C. EVANS K-8 CENTER | C89: 13 | D89: 7 | E89: 14 | F89: 3 | H89: 0.3513513514 | I89: 0.1891891892 | J89: 0.3783783784 | K89: 0.08108108108 | L89: 0 | M89: 37 | N89: 1 | O89: 46 | P89: 1691 | Q89: CHRISTINA M. EVE ELEMENTARY | R89: 24 | S89: 21 | T89: 30 | U89: 34 | V89: 36 | W89: 0.1655172414 | X89: 0.1448275862 | Y89: 0.2068965517 | Z89: 0.2344827586 | AA89: 0.2482758621 | AB89: 145 | AC89: 1 | AD89: 69 | AE89: 1691 | AF89: CHRISTINA M. EVE ELEMENTARY | AG89: 26 | AH89: 22 | AI89: 30 | AJ89: 28 | AK89: 37 | AL89: 0.1818181818 | AM89: 0.1538461538 | AN89: 0.2097902098 | AO89: 0.1958041958 | AP89: 0.2587412587 | AQ89: 143 | AR89: 1 | AS89: 66 | AT89: 6010 | AU89: FLORIDA INTERNATIONAL ACADEMY | AV89: 40 | AW89: 23 | AX89: 19 | AY89: 12 | AZ89: 1 | BA89: 0.4210526316 | BB89: 0.2421052632 | BC89: 0.2 | BD89: 0.1263157895 | BE89: 0.01052631579 | BF89: 95 | BG89: 1 | BH89: 34 | BI89: 6017 | BJ89: INTERNATIONAL STUDIES VIRTUAL | BK89: 2 | BP89: 1 | BQ89: 0 | BR89: 0 | BS89: 0 | BT89: 0 | BU89: 2 | BV89: 1 | BX89: 6030 | BY89: DORAL ACADEMY CHARTER MIDDLE | BZ89: 12 | CA89: 38 | CB89: 102 | CC89: 82 | CD89: 64 | CE89: 0.04026845638 | CF89: 0.1275167785 | CG89: 0.3422818792 | CH89: 0.2751677852 | CI89: 0.2147651007 | CJ89: 298 | CK89: 1 | CL89: 83
A90: 1691 | B90: CHRISTINA M. EVE ELEMENTARY | C90: 13 | D90: 28 | E90: 36 | F90: 42 | G90: 23 | H90: 0.09154929577 | I90: 0.1971830986 | J90: 0.2535211268 | K90: 0.2957746479 | L90: 0.161971831 | M90: 142 | N90: 1 | O90: 71 | P90: 1721 | Q90: EVERGLADES K-8 CENTER | R90: 18 | S90: 27 | T90: 41 | U90: 27 | V90: 16 | W90: 0.1395348837 | X90: 0.2093023256 | Y90: 0.3178294574 | Z90: 0.2093023256 | AA90: 0.1240310078 | AB90: 129 | AC90: 1 | AD90: 65 | AE90: 1721 | AF90: EVERGLADES K-8 CENTER | AG90: 17 | AH90: 29 | AI90: 27 | AJ90: 19 | AK90: 10 | AL90: 0.1666666667 | AM90: 0.2843137255 | AN90: 0.2647058824 | AO90: 0.1862745098 | AP90: 0.09803921569 | AQ90: 102 | AR90: 1 | AS90: 55 | AT90: 6011 | AU90: GEORGIA JONES-AYERS MIDDLE | AV90: 84 | AW90: 36 | AX90: 17 | AY90: 3 | BA90: 0.6 | BB90: 0.2571428571 | BC90: 0.1214285714 | BD90: 0.02142857143 | BE90: 0 | BF90: 140 | BG90: 1 | BH90: 14 | BI90: 6018 | BJ90: THE SEED SCHOOL OF MIAMI | BK90: 25 | BL90: 15 | BM90: 5 | BN90: 1 | BP90: 0.5434782609 | BQ90: 0.3260869565 | BR90: 0.1086956522 | BS90: 0.02173913043 | BT90: 0 | BU90: 46 | BV90: 1 | BW90: 13 | BX90: 6031 | BY90: BROWNSVILLE MIDDLE | BZ90: 89 | CA90: 46 | CB90: 23 | CC90: 2 | CE90: 0.55625 | CF90: 0.2875 | CG90: 0.14375 | CH90: 0.0125 | CI90: 0 | CJ90: 160 | CK90: 1 | CL90: 16
A91: 1721 | B91: EVERGLADES K-8 CENTER | C91: 12 | D91: 13 | E91: 31 | F91: 39 | G91: 9 | H91: 0.1153846154 | I91: 0.125 | J91: 0.2980769231 | K91: 0.375 | L91: 0.08653846154 | M91: 104 | N91: 1 | O91: 76 | P91: 1761 | Q91: DAVID FAIRCHILD ELEMENTARY | R91: 9 | S91: 12 | T91: 21 | U91: 15 | V91: 32 | W91: 0.1011235955 | X91: 0.1348314607 | Y91: 0.2359550562 | Z91: 0.1685393258 | AA91: 0.3595505618 | AB91: 89 | AC91: 1 | AD91: 76 | AE91: 1761 | AF91: DAVID FAIRCHILD ELEMENTARY | AG91: 22 | AH91: 12 | AI91: 16 | AJ91: 32 | AK91: 26 | AL91: 0.2037037037 | AM91: 0.1111111111 | AN91: 0.1481481481 | AO91: 0.2962962963 | AP91: 0.2407407407 | AQ91: 108 | AR91: 1 | AS91: 69 | AT91: 6012 | AU91: MATER ACADEMY CHARTER MIDDLE | AV91: 38 | AW91: 78 | AX91: 146 | AY91: 119 | AZ91: 42 | BA91: 0.08983451537 | BB91: 0.1843971631 | BC91: 0.3451536643 | BD91: 0.2813238771 | BE91: 0.09929078014 | BF91: 423 | BG91: 1 | BH91: 73 | BI91: 6020 | BJ91: ASPIRA RAUL A. MARTINEZ CHTR | BK91: 95 | BL91: 50 | BM91: 29 | BN91: 10 | BO91: 2 | BP91: 0.5107526882 | BQ91: 0.2688172043 | BR91: 0.1559139785 | BS91: 0.05376344086 | BT91: 0.01075268817 | BU91: 186 | BV91: 1 | BW91: 22 | BX91: 6033 | BY91: MATER ACADEMY LAKES MIDDLE | BZ91: 19 | CA91: 57 | CB91: 88 | CC91: 39 | CD91: 8 | CE91: 0.09004739336 | CF91: 0.2701421801 | CG91: 0.4170616114 | CH91: 0.1848341232 | CI91: 0.03791469194 | CJ91: 211 | CK91: 1 | CL91: 64
A92: 1761 | B92: DAVID FAIRCHILD ELEMENTARY | C92: 8 | D92: 12 | E92: 38 | F92: 26 | G92: 12 | H92: 0.08333333333 | I92: 0.125 | J92: 0.3958333333 | K92: 0.2708333333 | L92: 0.125 | M92: 96 | N92: 1 | O92: 79 | P92: 1801 | Q92: FAIRLAWN ELEMENTARY | R92: 21 | S92: 14 | T92: 34 | U92: 31 | V92: 11 | W92: 0.1891891892 | X92: 0.1261261261 | Y92: 0.3063063063 | Z92: 0.2792792793 | AA92: 0.0990990991 | AB92: 111 | AC92: 1 | AD92: 68 | AE92: 1801 | AF92: FAIRLAWN ELEMENTARY | AG92: 31 | AH92: 17 | AI92: 33 | AJ92: 15 | AK92: 14 | AL92: 0.2818181818 | AM92: 0.1545454545 | AN92: 0.3 | AO92: 0.1363636364 | AP92: 0.1272727273 | AQ92: 110 | AR92: 1 | AS92: 56 | AT92: 6013 | AU92: SOMERSET ACADEMY MIDDLE-SOUTH | AV92: 29 | AW92: 42 | AX92: 32 | AY92: 17 | AZ92: 5 | BA92: 0.232 | BB92: 0.336 | BC92: 0.256 | BD92: 0.136 | BE92: 0.04 | BF92: 125 | BG92: 1 | BH92: 43 | BI92: 6021 | BJ92: ARVIDA MIDDLE SCHOOL | BK92: 54 | BL92: 74 | BM92: 92 | BN92: 99 | BO92: 61 | BP92: 0.1421052632 | BQ92: 0.1947368421 | BR92: 0.2421052632 | BS92: 0.2605263158 | BT92: 0.1605263158 | BU92: 380 | BV92: 1 | BW92: 66 | BX92: 6040 | BY92: DOCTORS CHARTER/MIAMI SHORES | BZ92: 2 | CA92: 9 | CB92: 19 | CC92: 24 | CD92: 9 | CE92: 0.03174603175 | CF92: 0.1428571429 | CG92: 0.3015873016 | CH92: 0.380952381 | CI92: 0.1428571429 | CJ92: 63 | CK92: 1 | CL92: 83
A93: 1801 | B93: FAIRLAWN ELEMENTARY | C93: 13 | D93: 19 | E93: 35 | F93: 25 | G93: 8 | H93: 0.13 | I93: 0.19 | J93: 0.35 | K93: 0.25 | L93: 0.08 | M93: 100 | N93: 1 | O93: 68 | P93: 1811 | Q93: DANTE B. FASCELL ELEMENTARY | R93: 15 | S93: 17 | T93: 26 | U93: 12 | V93: 15 | W93: 0.1764705882 | X93: 0.2 | Y93: 0.3058823529 | Z93: 0.1411764706 | AA93: 0.1764705882 | AB93: 85 | AC93: 1 | AD93: 62 | AE93: 1811 | AF93: DANTE B. FASCELL ELEMENTARY | AG93: 6 | AH93: 4 | AI93: 16 | AJ93: 23 | AK93: 28 | AL93: 0.07792207792 | AM93: 0.05194805195 | AN93: 0.2077922078 | AO93: 0.2987012987 | AP93: 0.3636363636 | AQ93: 77 | AR93: 1 | AS93: 87 | AT93: 6014 | AU93: IMATER ACADEMY MIDDLE SCHOOL | AV93: 49 | AW93: 66 | AX93: 64 | AY93: 50 | AZ93: 18 | BA93: 0.1983805668 | BB93: 0.2672064777 | BC93: 0.2591093117 | BD93: 0.2024291498 | BE93: 0.07287449393 | BF93: 247 | BG93: 1 | BH93: 53 | BI93: 6022 | BJ93: PINECREST ACADEMY CHARTER MIDD | BK93: 23 | BL93: 29 | BM93: 52 | BN93: 28 | BO93: 13 | BP93: 0.1586206897 | BQ93: 0.2 | BR93: 0.3586206897 | BS93: 0.1931034483 | BT93: 0.08965517241 | BU93: 145 | BV93: 1 | BW93: 64 | BX93: 6041 | BY93: PAUL W. BELL MIDDLE | BZ93: 41 | CA93: 30 | CB93: 50 | CC93: 18 | CD93: 8 | CE93: 0.2789115646 | CF93: 0.2040816327 | CG93: 0.3401360544 | CH93: 0.1224489796 | CI93: 0.05442176871 | CJ93: 147 | CK93: 1 | CL93: 52
A94: 1811 | B94: DANTE B. FASCELL ELEMENTARY | C94: 3 | D94: 8 | E94: 18 | F94: 33 | G94: 11 | H94: 0.04109589041 | I94: 0.1095890411 | J94: 0.2465753425 | K94: 0.4520547945 | L94: 0.1506849315 | M94: 73 | N94: 1 | O94: 85 | P94: 1841 | Q94: FLAGAMI ELEMENTARY | R94: 11 | S94: 10 | T94: 28 | U94: 15 | V94: 11 | W94: 0.1466666667 | X94: 0.1333333333 | Y94: 0.3733333333 | Z94: 0.2 | AA94: 0.1466666667 | AB94: 75 | AC94: 1 | AD94: 72 | AE94: 1841 | AF94: FLAGAMI ELEMENTARY | AG94: 9 | AH94: 12 | AI94: 18 | AJ94: 15 | AK94: 14 | AL94: 0.1323529412 | AM94: 0.1764705882 | AN94: 0.2647058824 | AO94: 0.2205882353 | AP94: 0.2058823529 | AQ94: 68 | AR94: 1 | AS94: 69 | AT94: 6015 | AU94: SPORTS LEADERSHIP AND MGMT CMS | AV94: 33 | AW94: 65 | AX94: 40 | AY94: 12 | AZ94: 3 | BA94: 0.2156862745 | BB94: 0.4248366013 | BC94: 0.2614379085 | BD94: 0.07843137255 | BE94: 0.01960784314 | BF94: 153 | BG94: 1 | BH94: 36 | BI94: 6023 | BJ94: ANDOVER MIDDLE SCHOOL | BK94: 101 | BL94: 52 | BM94: 47 | BN94: 3 | BP94: 0.4975369458 | BQ94: 0.2561576355 | BR94: 0.2315270936 | BS94: 0.01477832512 | BT94: 0 | BU94: 203 | BV94: 1 | BW94: 25 | BX94: 6042 | BY94: MATER GARDENS ACADEMY MIDDLE | CA94: 3 | CB94: 18 | CC94: 6 | CD94: 2 | CE94: 0 | CF94: 0.1034482759 | CG94: 0.6206896552 | CH94: 0.2068965517 | CI94: 0.06896551724 | CJ94: 29 | CK94: 1 | CL94: 90
A95: 1841 | B95: FLAGAMI ELEMENTARY | C95: 8 | D95: 6 | E95: 27 | F95: 27 | G95: 8 | H95: 0.1052631579 | I95: 0.07894736842 | J95: 0.3552631579 | K95: 0.3552631579 | L95: 0.1052631579 | M95: 76 | N95: 1 | O95: 82 | P95: 1881 | Q95: HENRY M. FLAGLER ELEMENTARY | R95: 25 | S95: 28 | T95: 39 | U95: 14 | V95: 3 | W95: 0.2293577982 | X95: 0.2568807339 | Y95: 0.3577981651 | Z95: 0.128440367 | AA95: 0.02752293578 | AB95: 109 | AC95: 1 | AD95: 51 | AE95: 1881 | AF95: HENRY M. FLAGLER ELEMENTARY | AG95: 25 | AH95: 23 | AI95: 32 | AJ95: 25 | AK95: 10 | AL95: 0.2173913043 | AM95: 0.2 | AN95: 0.2782608696 | AO95: 0.2173913043 | AP95: 0.08695652174 | AQ95: 115 | AR95: 1 | AS95: 58 | AT95: 6018 | AU95: THE SEED SCHOOL OF MIAMI | AV95: 23 | AW95: 14 | AX95: 7 | BA95: 0.5227272727 | BB95: 0.3181818182 | BC95: 0.1590909091 | BD95: 0 | BE95: 0 | BF95: 44 | BG95: 1 | BH95: 16 | BI95: 6028 | BJ95: RENAISSANCE MIDDLE CHARTER | BK95: 33 | BL95: 23 | BM95: 41 | BN95: 29 | BO95: 16 | BP95: 0.2323943662 | BQ95: 0.161971831 | BR95: 0.2887323944 | BS95: 0.2042253521 | BT95: 0.1126760563 | BU95: 142 | BV95: 1 | BW95: 61 | BX95: 6045 | BY95: INTL. STUDIES CHARTER MIDDLE | CA95: 3 | CB95: 11 | CC95: 9 | CE95: 0 | CF95: 0.1304347826 | CG95: 0.4782608696 | CH95: 0.3913043478 | CI95: 0 | CJ95: 23 | CK95: 1 | CL95: 87
A96: 1881 | B96: HENRY M. FLAGLER ELEMENTARY | C96: 28 | D96: 31 | E96: 55 | F96: 12 | G96: 3 | H96: 0.2170542636 | I96: 0.2403100775 | J96: 0.4263565891 | K96: 0.09302325581 | L96: 0.02325581395 | M96: 129 | N96: 1 | O96: 54 | P96: 1921 | Q96: FLAMINGO ELEMENTARY | R96: 32 | S96: 25 | T96: 31 | U96: 18 | V96: 4 | W96: 0.2909090909 | X96: 0.2272727273 | Y96: 0.2818181818 | Z96: 0.1636363636 | AA96: 0.03636363636 | AB96: 110 | AC96: 1 | AD96: 48 | AE96: 1921 | AF96: FLAMINGO ELEMENTARY | AG96: 36 | AH96: 20 | AI96: 13 | AJ96: 24 | AK96: 22 | AL96: 0.3130434783 | AM96: 0.1739130435 | AN96: 0.1130434783 | AO96: 0.2086956522 | AP96: 0.1913043478 | AQ96: 115 | AR96: 1 | AS96: 51 | AT96: 6020 | AU96: ASPIRA RAUL A. MARTINEZ CHTR | AV96: 97 | AW96: 37 | AX96: 18 | AY96: 6 | AZ96: 3 | BA96: 0.602484472 | BB96: 0.2298136646 | BC96: 0.1118012422 | BD96: 0.03726708075 | BE96: 0.01863354037 | BF96: 161 | BG96: 1 | BH96: 17 | BI96: 6030 | BJ96: DORAL ACADEMY CHARTER MIDDLE | BK96: 22 | BL96: 64 | BM96: 135 | BN96: 89 | BO96: 27 | BP96: 0.06528189911 | BQ96: 0.1899109792 | BR96: 0.4005934718 | BS96: 0.2640949555 | BT96: 0.08011869436 | BU96: 337 | BV96: 1 | BW96: 74 | BX96: 6047 | BY96: MATER ACADEMY MIDDLE-INTL STUD | BZ96: 3 | CA96: 6 | CB96: 10 | CC96: 5 | CD96: 2 | CE96: 0.1153846154 | CF96: 0.2307692308 | CG96: 0.3846153846 | CH96: 0.1923076923 | CI96: 0.07692307692 | CJ96: 26 | CK96: 1 | CL96: 65
A97: 1921 | B97: FLAMINGO ELEMENTARY | C97: 39 | D97: 23 | E97: 27 | F97: 22 | G97: 11 | H97: 0.3196721311 | I97: 0.1885245902 | J97: 0.2213114754 | K97: 0.1803278689 | L97: 0.09016393443 | M97: 122 | N97: 1 | O97: 49 | P97: 2001 | Q97: FLORIDA CITY ELEMENTARY | R97: 49 | S97: 33 | T97: 30 | U97: 15 | V97: 3 | W97: 0.3769230769 | X97: 0.2538461538 | Y97: 0.2307692308 | Z97: 0.1153846154 | AA97: 0.02307692308 | AB97: 130 | AC97: 1 | AD97: 37 | AE97: 2001 | AF97: FLORIDA CITY ELEMENTARY | AG97: 28 | AH97: 29 | AI97: 24 | AJ97: 17 | AK97: 11 | AL97: 0.2568807339 | AM97: 0.2660550459 | AN97: 0.2201834862 | AO97: 0.1559633028 | AP97: 0.1009174312 | AQ97: 109 | AR97: 1 | AS97: 48 | AT97: 6021 | AU97: ARVIDA MIDDLE SCHOOL | AV97: 37 | AW97: 89 | AX97: 138 | AY97: 147 | AZ97: 64 | BA97: 0.07789473684 | BB97: 0.1873684211 | BC97: 0.2905263158 | BD97: 0.3094736842 | BE97: 0.1347368421 | BF97: 475 | BG97: 1 | BH97: 73 | BI97: 6031 | BJ97: BROWNSVILLE MIDDLE | BK97: 122 | BL97: 32 | BM97: 17 | BN97: 1 | BP97: 0.7093023256 | BQ97: 0.1860465116 | BR97: 0.0988372093 | BS97: 0.005813953488 | BT97: 0 | BU97: 172 | BV97: 1 | BW97: 10 | BX97: 6051 | BY97: CAROL CITY MIDDLE | BZ97: 55 | CA97: 36 | CB97: 25 | CC97: 3 | CE97: 0.4621848739 | CF97: 0.3025210084 | CG97: 0.2100840336 | CH97: 0.02521008403 | CI97: 0 | CJ97: 119 | CK97: 1 | CL97: 24
A98: 2001 | B98: FLORIDA CITY ELEMENTARY | C98: 30 | D98: 28 | E98: 45 | F98: 34 | G98: 3 | H98: 0.2142857143 | I98: 0.2 | J98: 0.3214285714 | K98: 0.2428571429 | L98: 0.02142857143 | M98: 140 | N98: 1 | O98: 59 | P98: 2002 | Q98: ACADEMIR PREPARATORY ACADEMY | R98: 4 | S98: 2 | T98: 6 | U98: 1 | V98: 1 | W98: 0.2857142857 | X98: 0.1428571429 | Y98: 0.4285714286 | Z98: 0.07142857143 | AA98: 0.07142857143 | AB98: 14 | AC98: 1 | AD98: 57 | AE98: 2002 | AF98: ACADEMIR PREPARATORY ACADEMY | AG98: 2 | AH98: 2 | AI98: 1 | AJ98: 2 | AL98: 0.2857142857 | AM98: 0.2857142857 | AN98: 0.1428571429 | AO98: 0.2857142857 | AP98: 0 | AQ98: 7 | AR98: 1 | AT98: 6022 | AU98: PINECREST ACADEMY CHARTER MIDD | AV98: 20 | AW98: 37 | AX98: 61 | AY98: 38 | AZ98: 11 | BA98: 0.119760479 | BB98: 0.2215568862 | BC98: 0.3652694611 | BD98: 0.2275449102 | BE98: 0.06586826347 | BF98: 167 | BG98: 1 | BH98: 66 | BI98: 6033 | BJ98: MATER ACADEMY LAKES MIDDLE | BK98: 39 | BL98: 62 | BM98: 88 | BN98: 49 | BO98: 22 | BP98: 0.15 | BQ98: 0.2384615385 | BR98: 0.3384615385 | BS98: 0.1884615385 | BT98: 0.08461538462 | BU98: 260 | BV98: 1 | BW98: 61 | BX98: 6052 | BY98: ZELDA GLAZER MIDDLE | BZ98: 57 | CA98: 72 | CB98: 101 | CC98: 34 | CD98: 12 | CE98: 0.2065217391 | CF98: 0.2608695652 | CG98: 0.365942029 | CH98: 0.1231884058 | CI98: 0.04347826087 | CJ98: 276 | CK98: 1 | CL98: 53
A99: 2002 | B99: ACADEMIR PREPARATORY ACADEMY | C99: 2 | D99: 2 | E99: 3 | F99: 1 | G99: 1 | H99: 0.2222222222 | I99: 0.2222222222 | J99: 0.3333333333 | K99: 0.1111111111 | L99: 0.1111111111 | M99: 9 | N99: 1 | P99: 2003 | Q99: BRIDGEPREP ACADEMY SOUTH | R99: 11 | S99: 10 | T99: 12 | U99: 12 | V99: 6 | W99: 0.2156862745 | X99: 0.1960784314 | Y99: 0.2352941176 | Z99: 0.2352941176 | AA99: 0.1176470588 | AB99: 51 | AC99: 1 | AD99: 59 | AE99: 2003 | AF99: BRIDGEPREP ACADEMY SOUTH | AG99: 9 | AH99: 22 | AI99: 30 | AJ99: 12 | AK99: 3 | AL99: 0.1184210526 | AM99: 0.2894736842 | AN99: 0.3947368421 | AO99: 0.1578947368 | AP99: 0.03947368421 | AQ99: 76 | AR99: 1 | AS99: 59 | AT99: 6023 | AU99: ANDOVER MIDDLE SCHOOL | AV99: 85 | AW99: 59 | AX99: 45 | AY99: 13 | AZ99: 3 | BA99: 0.4146341463 | BB99: 0.287804878 | BC99: 0.2195121951 | BD99: 0.06341463415 | BE99: 0.01463414634 | BF99: 205 | BG99: 1 | BH99: 30 | BI99: 6040 | BJ99: DOCTORS CHARTER/MIAMI SHORES | BK99: 6 | BL99: 23 | BM99: 25 | BN99: 36 | BO99: 12 | BP99: 0.05882352941 | BQ99: 0.2254901961 | BR99: 0.2450980392 | BS99: 0.3529411765 | BT99: 0.1176470588 | BU99: 102 | BV99: 1 | BW99: 72 | BX99: 6060 | BY99: ASPIRA LEAD. & COLLEGE PREP | BZ99: 19 | CA99: 22 | CB99: 19 | CC99: 6 | CD99: 4 | CE99: 0.2714285714 | CF99: 0.3142857143 | CG99: 0.2714285714 | CH99: 0.08571428571 | CI99: 0.05714285714 | CJ99: 70 | CK99: 1 | CL99: 41
A100: 2003 | B100: BRIDGEPREP ACADEMY SOUTH | C100: 2 | D100: 8 | E100: 31 | F100: 19 | G100: 9 | H100: 0.02898550725 | I100: 0.115942029 | J100: 0.4492753623 | K100: 0.2753623188 | L100: 0.1304347826 | M100: 69 | N100: 1 | O100: 86 | P100: 2006 | Q100: RICHARD ALLEN LEADERSHIP ACAD | R100: 9 | W100: 1 | X100: 0 | Y100: 0 | Z100: 0 | AA100: 0 | AB100: 9 | AC100: 1 | AE100: 2006 | AF100: RICHARD ALLEN LEADERSHIP ACAD | AG100: 9 | AL100: 1 | AM100: 0 | AN100: 0 | AO100: 0 | AP100: 0 | AQ100: 9 | AR100: 1 | AT100: 6028 | AU100: RENAISSANCE MIDDLE CHARTER | AV100: 8 | AW100: 27 | AX100: 53 | AY100: 41 | AZ100: 25 | BA100: 0.05194805195 | BB100: 0.1753246753 | BC100: 0.3441558442 | BD100: 0.2662337662 | BE100: 0.1623376623 | BF100: 154 | BG100: 1 | BH100: 77 | BI100: 6041 | BJ100: PAUL W. BELL MIDDLE | BK100: 54 | BL100: 35 | BM100: 32 | BN100: 15 | BO100: 3 | BP100: 0.3884892086 | BQ100: 0.2517985612 | BR100: 0.2302158273 | BS100: 0.1079136691 | BT100: 0.02158273381 | BU100: 139 | BV100: 1 | BW100: 36 | BX100: 6070 | BY100: ASPIRA ARTS DECO CHARTER | BZ100: 64 | CA100: 30 | CB100: 15 | CC100: 4 | CD100: 2 | CE100: 0.5565217391 | CF100: 0.2608695652 | CG100: 0.1304347826 | CH100: 0.0347826087 | CI100: 0.01739130435 | CJ100: 115 | CK100: 1 | CL100: 18
A101: 2004 | B101: ISAAC ACADEMY K-8 | C101: 1 | D101: 5 | E101: 5 | F101: 4 | G101: 2 | H101: 0.05882352941 | I101: 0.2941176471 | J101: 0.2941176471 | K101: 0.2352941176 | L101: 0.1176470588 | M101: 17 | N101: 1 | O101: 65 | P101: 2007 | Q101: SOMERSET ACADEMY ELEMENTARY | S101: 7 | T101: 22 | U101: 28 | V101: 18 | W101: 0 | X101: 0.09333333333 | Y101: 0.2933333333 | Z101: 0.3733333333 | AA101: 0.24 | AB101: 75 | AC101: 1 | AD101: 91 | AE101: 2007 | AF101: SOMERSET ACADEMY ELEMENTARY | AG101: 3 | AH101: 6 | AI101: 21 | AJ101: 39 | AK101: 27 | AL101: 0.03125 | AM101: 0.0625 | AN101: 0.21875 | AO101: 0.40625 | AP101: 0.28125 | AQ101: 96 | AR101: 1 | AS101: 91 | AT101: 6030 | AU101: DORAL ACADEMY CHARTER MIDDLE | AV101: 9 | AW101: 36 | AX101: 77 | AY101: 129 | AZ101: 50 | BA101: 0.02990033223 | BB101: 0.1196013289 | BC101: 0.2558139535 | BD101: 0.4285714286 | BE101: 0.1661129568 | BF101: 301 | BG101: 1 | BH101: 85 | BI101: 6042 | BJ101: MATER GARDENS ACADEMY MIDDLE | BK101: 1 | BL101: 10 | BM101: 10 | BN101: 15 | BO101: 13 | BP101: 0.02040816327 | BQ101: 0.2040816327 | BR101: 0.2040816327 | BS101: 0.306122449 | BT101: 0.2653061224 | BU101: 49 | BV101: 1 | BW101: 78 | BX101: 6082 | BY101: ACADEMIR CHARTER SCHOOL MIDDLE | BZ101: 13 | CA101: 17 | CB101: 11 | CC101: 4 | CD101: 2 | CE101: 0.2765957447 | CF101: 0.3617021277 | CG101: 0.2340425532 | CH101: 0.08510638298 | CI101: 0.04255319149 | CJ101: 47 | CK101: 1 | CL101: 36
A102: 2006 | B102: RICHARD ALLEN LEADERSHIP ACAD | C102: 12 | D102: 4 | F102: 1 | H102: 0.7058823529 | I102: 0.2352941176 | J102: 0 | K102: 0.05882352941 | L102: 0 | M102: 17 | N102: 1 | O102: 6 | P102: 2012 | Q102: SOMERSET ARTS ACADEMY | R102: 16 | S102: 17 | T102: 19 | U102: 13 | V102: 7 | W102: 0.2222222222 | X102: 0.2361111111 | Y102: 0.2638888889 | Z102: 0.1805555556 | AA102: 0.09722222222 | AB102: 72 | AC102: 1 | AD102: 54 | AE102: 2012 | AF102: SOMERSET ARTS ACADEMY | AG102: 9 | AH102: 7 | AI102: 10 | AJ102: 6 | AK102: 1 | AL102: 0.2727272727 | AM102: 0.2121212121 | AN102: 0.303030303 | AO102: 0.1818181818 | AP102: 0.0303030303 | AQ102: 33 | AR102: 1 | AS102: 52 | AT102: 6031 | AU102: BROWNSVILLE MIDDLE | AV102: 108 | AW102: 37 | AX102: 12 | AY102: 2 | AZ102: 1 | BA102: 0.675 | BB102: 0.23125 | BC102: 0.075 | BD102: 0.0125 | BE102: 0.00625 | BF102: 160 | BG102: 1 | BH102: 9 | BI102: 6045 | BJ102: INTL. STUDIES CHARTER MIDDLE | BL102: 14 | BM102: 40 | BN102: 24 | BO102: 10 | BP102: 0 | BQ102: 0.1590909091 | BR102: 0.4545454545 | BS102: 0.2727272727 | BT102: 0.1136363636 | BU102: 88 | BV102: 1 | BW102: 84 | BX102: 6091 | BY102: CITRUS GROVE MIDDLE SCHOOL | BZ102: 97 | CA102: 73 | CB102: 51 | CC102: 15 | CD102: 4 | CE102: 0.4041666667 | CF102: 0.3041666667 | CG102: 0.2125 | CH102: 0.0625 | CI102: 0.01666666667 | CJ102: 240 | CK102: 1 | CL102: 29
A103: 2007 | B103: SOMERSET ACADEMY ELEMENTARY | D103: 1 | E103: 12 | F103: 19 | G103: 41 | H103: 0 | I103: 0.01369863014 | J103: 0.1643835616 | K103: 0.2602739726 | L103: 0.5616438356 | M103: 73 | N103: 1 | O103: 99 | P103: 2013 | Q103: BRIDGEPREP ACAD GREATER MIAMI | R103: 11 | S103: 4 | T103: 25 | U103: 19 | V103: 5 | W103: 0.171875 | X103: 0.0625 | Y103: 0.390625 | Z103: 0.296875 | AA103: 0.078125 | AB103: 64 | AC103: 1 | AD103: 77 | AE103: 2013 | AF103: BRIDGEPREP ACAD GREATER MIAMI | AG103: 10 | AH103: 9 | AI103: 4 | AJ103: 1 | AK103: 1 | AL103: 0.4 | AM103: 0.36 | AN103: 0.16 | AO103: 0.04 | AP103: 0.04 | AQ103: 25 | AR103: 1 | AS103: 24 | AT103: 6033 | AU103: MATER ACADEMY LAKES MIDDLE | AV103: 30 | AW103: 49 | AX103: 74 | AY103: 80 | AZ103: 39 | BA103: 0.1102941176 | BB103: 0.1801470588 | BC103: 0.2720588235 | BD103: 0.2941176471 | BE103: 0.1433823529 | BF103: 272 | BG103: 1 | BH103: 71 | BI103: 6047 | BJ103: MATER ACADEMY MIDDLE-INTL STUD | BK103: 5 | BL103: 9 | BM103: 20 | BN103: 8 | BO103: 2 | BP103: 0.1136363636 | BQ103: 0.2045454545 | BR103: 0.4545454545 | BS103: 0.1818181818 | BT103: 0.04545454545 | BU103: 44 | BV103: 1 | BW103: 68 | BX103: 6111 | BY103: CUTLER BAY ACAD - CUTLER RIDGE | BZ103: 110 | CA103: 62 | CB103: 47 | CC103: 18 | CD103: 6 | CE103: 0.4526748971 | CF103: 0.2551440329 | CG103: 0.1934156379 | CH103: 0.07407407407 | CI103: 0.02469135802 | CJ103: 243 | CK103: 1 | CL103: 29
A104: 2012 | B104: SOMERSET ARTS ACADEMY | C104: 18 | D104: 10 | E104: 25 | F104: 19 | G104: 4 | H104: 0.2368421053 | I104: 0.1315789474 | J104: 0.3289473684 | K104: 0.25 | L104: 0.05263157895 | M104: 76 | N104: 1 | O104: 63 | P104: 2021 | Q104: GLORIA FLOYD ELEMENTARY | R104: 13 | S104: 12 | T104: 24 | U104: 21 | V104: 18 | W104: 0.1477272727 | X104: 0.1363636364 | Y104: 0.2727272727 | Z104: 0.2386363636 | AA104: 0.2045454545 | AB104: 88 | AC104: 1 | AD104: 72 | AE104: 2021 | AF104: GLORIA FLOYD ELEMENTARY | AG104: 16 | AH104: 19 | AI104: 20 | AJ104: 14 | AK104: 10 | AL104: 0.2025316456 | AM104: 0.2405063291 | AN104: 0.253164557 | AO104: 0.1772151899 | AP104: 0.1265822785 | AQ104: 79 | AR104: 1 | AS104: 56 | AT104: 6040 | AU104: DOCTORS CHARTER/MIAMI SHORES | AV104: 20 | AW104: 27 | AX104: 21 | AY104: 14 | AZ104: 5 | BA104: 0.2298850575 | BB104: 0.3103448276 | BC104: 0.2413793103 | BD104: 0.1609195402 | BE104: 0.05747126437 | BF104: 87 | BG104: 1 | BH104: 46 | BI104: 6048 | BJ104: MIAMI COMMUNITY CHARTER MIDDLE | BK104: 35 | BL104: 15 | BM104: 19 | BN104: 4 | BP104: 0.4794520548 | BQ104: 0.2054794521 | BR104: 0.2602739726 | BS104: 0.05479452055 | BT104: 0 | BU104: 73 | BV104: 1 | BW104: 32 | BX104: 6121 | BY104: RUBEN DARIO MIDDLE | BZ104: 78 | CA104: 66 | CB104: 49 | CC104: 28 | CD104: 9 | CE104: 0.3391304348 | CF104: 0.2869565217 | CG104: 0.2130434783 | CH104: 0.1217391304 | CI104: 0.03913043478 | CJ104: 230 | CK104: 1 | CL104: 37
A105: 2013 | B105: BRIDGEPREP ACAD GREATER MIAMI | C105: 18 | D105: 16 | E105: 19 | F105: 15 | G105: 2 | H105: 0.2571428571 | I105: 0.2285714286 | J105: 0.2714285714 | K105: 0.2142857143 | L105: 0.02857142857 | M105: 70 | N105: 1 | O105: 51 | P105: 2041 | Q105: BENJAMIN FRANKLIN K-8 CENTER | R105: 18 | S105: 15 | T105: 15 | U105: 18 | V105: 8 | W105: 0.2432432432 | X105: 0.2027027027 | Y105: 0.2027027027 | Z105: 0.2432432432 | AA105: 0.1081081081 | AB105: 74 | AC105: 1 | AD105: 55 | AE105: 2041 | AF105: BENJAMIN FRANKLIN K-8 CENTER | AG105: 27 | AH105: 10 | AI105: 15 | AJ105: 8 | AK105: 1 | AL105: 0.4426229508 | AM105: 0.1639344262 | AN105: 0.2459016393 | AO105: 0.131147541 | AP105: 0.01639344262 | AQ105: 61 | AR105: 1 | AS105: 39 | AT105: 6041 | AU105: PAUL W. BELL MIDDLE | AV105: 75 | AW105: 49 | AX105: 38 | AY105: 22 | BA105: 0.4076086957 | BB105: 0.2663043478 | BC105: 0.2065217391 | BD105: 0.1195652174 | BE105: 0 | BF105: 184 | BG105: 1 | BH105: 33 | BI105: 6051 | BJ105: CAROL CITY MIDDLE | BK105: 73 | BL105: 17 | BM105: 12 | BN105: 1 | BP105: 0.7087378641 | BQ105: 0.1650485437 | BR105: 0.1165048544 | BS105: 0.009708737864 | BT105: 0 | BU105: 103 | BV105: 1 | BW105: 13 | BX105: 6128 | BY105: SOMERSET ACADEMY BAY MIDDLE | BZ105: 4 | CA105: 3 | CB105: 2 | CC105: 1 | CE105: 0.4 | CF105: 0.3 | CG105: 0.2 | CH105: 0.1 | CI105: 0 | CJ105: 10 | CK105: 1 | CL105: 30
A106: 2021 | B106: GLORIA FLOYD ELEMENTARY | C106: 15 | D106: 14 | E106: 25 | F106: 28 | G106: 10 | H106: 0.1630434783 | I106: 0.152173913 | J106: 0.2717391304 | K106: 0.3043478261 | L106: 0.1086956522 | M106: 92 | N106: 1 | O106: 68 | P106: 2060 | Q106: GIBSON CHARTER SCHOOL | R106: 19 | S106: 7 | T106: 2 | W106: 0.6785714286 | X106: 0.25 | Y106: 0.07142857143 | Z106: 0 | AA106: 0 | AB106: 28 | AC106: 1 | AD106: 7 | AE106: 2060 | AF106: GIBSON CHARTER SCHOOL | AG106: 12 | AH106: 9 | AI106: 1 | AL106: 0.5454545455 | AM106: 0.4090909091 | AN106: 0.04545454545 | AO106: 0 | AP106: 0 | AQ106: 22 | AR106: 1 | AS106: 5 | AT106: 6042 | AU106: MATER GARDENS ACADEMY MIDDLE | AV106: 5 | AW106: 14 | AX106: 21 | AY106: 28 | AZ106: 25 | BA106: 0.05376344086 | BB106: 0.1505376344 | BC106: 0.2258064516 | BD106: 0.3010752688 | BE106: 0.2688172043 | BF106: 93 | BG106: 1 | BH106: 80 | BI106: 6052 | BJ106: ZELDA GLAZER MIDDLE | BK106: 88 | BL106: 115 | BM106: 124 | BN106: 63 | BO106: 24 | BP106: 0.2125603865 | BQ106: 0.2777777778 | BR106: 0.2995169082 | BS106: 0.152173913 | BT106: 0.05797101449 | BU106: 414 | BV106: 1 | BW106: 51 | BX106: 6161 | BY106: LAWTON CHILES MIDDLE SCHOOL | BZ106: 73 | CA106: 43 | CB106: 18 | CC106: 2 | CE106: 0.5367647059 | CF106: 0.3161764706 | CG106: 0.1323529412 | CH106: 0.01470588235 | CI106: 0 | CJ106: 136 | CK106: 1 | CL106: 15
A107: 2041 | B107: BENJAMIN FRANKLIN K-8 CENTER | C107: 13 | D107: 13 | E107: 26 | F107: 13 | G107: 4 | H107: 0.1884057971 | I107: 0.1884057971 | J107: 0.3768115942 | K107: 0.1884057971 | L107: 0.05797101449 | M107: 69 | N107: 1 | O107: 62 | P107: 2081 | Q107: FULFORD ELEMENTARY | R107: 19 | S107: 8 | T107: 13 | U107: 28 | V107: 12 | W107: 0.2375 | X107: 0.1 | Y107: 0.1625 | Z107: 0.35 | AA107: 0.15 | AB107: 80 | AC107: 1 | AD107: 66 | AE107: 2081 | AF107: FULFORD ELEMENTARY | AG107: 32 | AH107: 21 | AI107: 20 | AJ107: 10 | AK107: 4 | AL107: 0.367816092 | AM107: 0.2413793103 | AN107: 0.2298850575 | AO107: 0.1149425287 | AP107: 0.04597701149 | AQ107: 87 | AR107: 1 | AS107: 39 | AT107: 6043 | AU107: SOMERSET ACAD MIDDLE (C-PALMS) | AV107: 2 | AW107: 7 | AX107: 4 | AY107: 6 | AZ107: 5 | BA107: 0.08333333333 | BB107: 0.2916666667 | BC107: 0.1666666667 | BD107: 0.25 | BE107: 0.2083333333 | BF107: 24 | BG107: 1 | BH107: 63 | BI107: 6053 | BJ107: SOMERSET ACAD MIDDLE (S-MIAMI) | BL107: 3 | BM107: 19 | BN107: 21 | BO107: 26 | BP107: 0 | BQ107: 0.04347826087 | BR107: 0.2753623188 | BS107: 0.3043478261 | BT107: 0.3768115942 | BU107: 69 | BV107: 1 | BW107: 96 | BX107: 6171 | BY107: HENRY H. FILER MIDDLE | BZ107: 119 | CA107: 67 | CB107: 35 | CC107: 3 | CD107: 1 | CE107: 0.5288888889 | CF107: 0.2977777778 | CG107: 0.1555555556 | CH107: 0.01333333333 | CI107: 0.004444444444 | CJ107: 225 | CK107: 1 | CL107: 17
A108: 2060 | B108: GIBSON CHARTER SCHOOL | C108: 19 | D108: 3 | E108: 5 | F108: 1 | H108: 0.6785714286 | I108: 0.1071428571 | J108: 0.1785714286 | K108: 0.03571428571 | L108: 0 | M108: 28 | N108: 1 | O108: 21 | P108: 2111 | Q108: HIALEAH GARDENS ELEMENTARY | R108: 11 | S108: 26 | T108: 46 | U108: 32 | V108: 12 | W108: 0.08661417323 | X108: 0.2047244094 | Y108: 0.3622047244 | Z108: 0.2519685039 | AA108: 0.09448818898 | AB108: 127 | AC108: 1 | AD108: 71 | AE108: 2111 | AF108: HIALEAH GARDENS ELEMENTARY | AG108: 21 | AH108: 37 | AI108: 37 | AJ108: 39 | AK108: 8 | AL108: 0.1478873239 | AM108: 0.2605633803 | AN108: 0.2605633803 | AO108: 0.2746478873 | AP108: 0.05633802817 | AQ108: 142 | AR108: 1 | AS108: 59 | AT108: 6045 | AU108: INTL. STUDIES CHARTER MIDDLE | AV108: 4 | AW108: 10 | AX108: 34 | AY108: 40 | AZ108: 17 | BA108: 0.0380952381 | BB108: 0.09523809524 | BC108: 0.3238095238 | BD108: 0.380952381 | BE108: 0.1619047619 | BF108: 105 | BG108: 1 | BH108: 87 | BI108: 6060 | BJ108: ASPIRA LEAD. & COLLEGE PREP | BK108: 39 | BL108: 20 | BM108: 11 | BN108: 1 | BP108: 0.5492957746 | BQ108: 0.2816901408 | BR108: 0.1549295775 | BS108: 0.01408450704 | BT108: 0 | BU108: 71 | BV108: 1 | BW108: 17 | BX108: 6211 | BY108: GLADES MIDDLE | BZ108: 44 | CA108: 49 | CB108: 89 | CC108: 32 | CD108: 4 | CE108: 0.2018348624 | CF108: 0.2247706422 | CG108: 0.4082568807 | CH108: 0.1467889908 | CI108: 0.01834862385 | CJ108: 218 | CK108: 1 | CL108: 57
A109: 2081 | B109: FULFORD ELEMENTARY | C109: 21 | D109: 18 | E109: 21 | F109: 20 | G109: 9 | H109: 0.2359550562 | I109: 0.202247191 | J109: 0.2359550562 | K109: 0.2247191011 | L109: 0.1011235955 | M109: 89 | N109: 1 | O109: 56 | P109: 2151 | Q109: JACK D. GORDON ELEMENTARY | R109: 17 | S109: 31 | T109: 40 | U109: 44 | V109: 48 | W109: 0.09444444444 | X109: 0.1722222222 | Y109: 0.2222222222 | Z109: 0.2444444444 | AA109: 0.2666666667 | AB109: 180 | AC109: 1 | AD109: 73 | AE109: 2151 | AF109: JACK D. GORDON ELEMENTARY | AG109: 34 | AH109: 47 | AI109: 42 | AJ109: 40 | AK109: 18 | AL109: 0.1878453039 | AM109: 0.2596685083 | AN109: 0.2320441989 | AO109: 0.2209944751 | AP109: 0.09944751381 | AQ109: 181 | AR109: 1 | AS109: 55 | AT109: 6047 | AU109: MATER ACADEMY MIDDLE-INTL STUD | AV109: 1 | AW109: 10 | AX109: 18 | AY109: 21 | AZ109: 5 | BA109: 0.01818181818 | BB109: 0.1818181818 | BC109: 0.3272727273 | BD109: 0.3818181818 | BE109: 0.09090909091 | BF109: 55 | BG109: 1 | BH109: 80 | BI109: 6070 | BJ109: ASPIRA ARTS DECO CHARTER | BK109: 70 | BL109: 43 | BM109: 24 | BN109: 6 | BP109: 0.4895104895 | BQ109: 0.3006993007 | BR109: 0.1678321678 | BS109: 0.04195804196 | BT109: 0 | BU109: 143 | BV109: 1 | BW109: 21 | BX109: 6221 | BY109: HAMMOCKS MIDDLE | BZ109: 68 | CA109: 53 | CB109: 59 | CC109: 25 | CD109: 6 | CE109: 0.3222748815 | CF109: 0.2511848341 | CG109: 0.2796208531 | CH109: 0.1184834123 | CI109: 0.02843601896 | CJ109: 211 | CK109: 1 | CL109: 43
A110: 2111 | B110: HIALEAH GARDENS ELEMENTARY | C110: 9 | D110: 22 | E110: 54 | F110: 44 | G110: 17 | H110: 0.06164383562 | I110: 0.1506849315 | J110: 0.3698630137 | K110: 0.301369863 | L110: 0.1164383562 | M110: 146 | N110: 1 | O110: 79 | P110: 2161 | Q110: GOLDEN GLADES ELEMENTARY | R110: 9 | S110: 6 | T110: 11 | U110: 2 | V110: 3 | W110: 0.2903225806 | X110: 0.1935483871 | Y110: 0.3548387097 | Z110: 0.06451612903 | AA110: 0.09677419355 | AB110: 31 | AC110: 1 | AD110: 52 | AE110: 2161 | AF110: GOLDEN GLADES ELEMENTARY | AG110: 7 | AH110: 4 | AI110: 8 | AJ110: 6 | AK110: 1 | AL110: 0.2692307692 | AM110: 0.1538461538 | AN110: 0.3076923077 | AO110: 0.2307692308 | AP110: 0.03846153846 | AQ110: 26 | AR110: 1 | AS110: 58 | AT110: 6048 | AU110: MIAMI COMMUNITY CHARTER MIDDLE | AV110: 30 | AW110: 24 | AX110: 21 | AY110: 9 | AZ110: 1 | BA110: 0.3529411765 | BB110: 0.2823529412 | BC110: 0.2470588235 | BD110: 0.1058823529 | BE110: 0.01176470588 | BF110: 85 | BG110: 1 | BH110: 36 | BI110: 6071 | BJ110: GEORGE WASHINGTON CARVER | BK110: 4 | BL110: 18 | BM110: 58 | BN110: 118 | BO110: 68 | BP110: 0.01503759398 | BQ110: 0.06766917293 | BR110: 0.2180451128 | BS110: 0.4436090226 | BT110: 0.2556390977 | BU110: 266 | BV110: 1 | BW110: 92 | BX110: 6231 | BY110: HIALEAH MIDDLE | BZ110: 105 | CA110: 53 | CB110: 31 | CC110: 8 | CD110: 1 | CE110: 0.5303030303 | CF110: 0.2676767677 | CG110: 0.1565656566 | CH110: 0.0404040404 | CI110: 0.005050505051 | CJ110: 198 | CK110: 1 | CL110: 20
A111: 2151 | B111: JACK D. GORDON ELEMENTARY | C111: 7 | D111: 18 | E111: 49 | F111: 62 | G111: 40 | H111: 0.03977272727 | I111: 0.1022727273 | J111: 0.2784090909 | K111: 0.3522727273 | L111: 0.2272727273 | M111: 176 | N111: 1 | O111: 86 | P111: 2181 | Q111: JOELLA C. GOOD ELEMENTARY | R111: 28 | S111: 33 | T111: 58 | U111: 36 | V111: 12 | W111: 0.1676646707 | X111: 0.1976047904 | Y111: 0.3473053892 | Z111: 0.2155688623 | AA111: 0.07185628743 | AB111: 167 | AC111: 1 | AD111: 63 | AE111: 2181 | AF111: JOELLA C. GOOD ELEMENTARY | AG111: 9 | AH111: 10 | AI111: 30 | AJ111: 58 | AK111: 39 | AL111: 0.06164383562 | AM111: 0.06849315068 | AN111: 0.2054794521 | AO111: 0.397260274 | AP111: 0.2671232877 | AQ111: 146 | AR111: 1 | AS111: 87 | AT111: 6051 | AU111: CAROL CITY MIDDLE | AV111: 84 | AW111: 27 | AX111: 9 | AY111: 1 | BA111: 0.694214876 | BB111: 0.2231404959 | BC111: 0.07438016529 | BD111: 0.00826446281 | BE111: 0 | BF111: 121 | BG111: 1 | BH111: 8 | BI111: 6082 | BJ111: ACADEMIR CHARTER SCHOOL MIDDLE | BK111: 9 | BL111: 18 | BM111: 23 | BN111: 14 | BO111: 6 | BP111: 0.1285714286 | BQ111: 0.2571428571 | BR111: 0.3285714286 | BS111: 0.2 | BT111: 0.08571428571 | BU111: 70 | BV111: 1 | BW111: 61 | BX111: 6241 | BY111: HIGHLAND OAKS MIDDLE | BZ111: 94 | CA111: 73 | CB111: 59 | CC111: 12 | CD111: 4 | CE111: 0.3884297521 | CF111: 0.3016528926 | CG111: 0.2438016529 | CH111: 0.04958677686 | CI111: 0.01652892562 | CJ111: 242 | CK111: 1 | CL111: 31
A112: 2161 | B112: GOLDEN GLADES ELEMENTARY | C112: 18 | D112: 10 | E112: 9 | F112: 8 | H112: 0.4 | I112: 0.2222222222 | J112: 0.2 | K112: 0.1777777778 | L112: 0 | M112: 45 | N112: 1 | O112: 38 | P112: 2191 | Q112: SPANISH LAKE ELEMENTARY | R112: 45 | S112: 36 | T112: 86 | U112: 83 | V112: 38 | W112: 0.15625 | X112: 0.125 | Y112: 0.2986111111 | Z112: 0.2881944444 | AA112: 0.1319444444 | AB112: 288 | AC112: 1 | AD112: 72 | AE112: 2191 | AF112: SPANISH LAKE ELEMENTARY | AG112: 26 | AH112: 49 | AI112: 76 | AJ112: 80 | AK112: 48 | AL112: 0.09318996416 | AM112: 0.1756272401 | AN112: 0.2724014337 | AO112: 0.2867383513 | AP112: 0.1720430108 | AQ112: 279 | AR112: 1 | AS112: 73 | AT112: 6052 | AU112: ZELDA GLAZER MIDDLE | AV112: 81 | AW112: 91 | AX112: 108 | AY112: 136 | AZ112: 41 | BA112: 0.1772428884 | BB112: 0.1991247265 | BC112: 0.2363238512 | BD112: 0.2975929978 | BE112: 0.08971553611 | BF112: 457 | BG112: 1 | BH112: 62 | BI112: 6083 | BJ112: JUST ARTS AND MANAGEMENT CMS | BK112: 2 | BL112: 6 | BM112: 13 | BN112: 16 | BO112: 14 | BP112: 0.03921568627 | BQ112: 0.1176470588 | BR112: 0.2549019608 | BS112: 0.3137254902 | BT112: 0.2745098039 | BU112: 51 | BV112: 1 | BW112: 84 | BX112: 6251 | BY112: HOMESTEAD MIDDLE | BZ112: 95 | CA112: 46 | CB112: 24 | CC112: 4 | CD112: 2 | CE112: 0.5555555556 | CF112: 0.269005848 | CG112: 0.1403508772 | CH112: 0.02339181287 | CI112: 0.01169590643 | CJ112: 171 | CK112: 1 | CL112: 18
A113: 2181 | B113: JOELLA C. GOOD ELEMENTARY | C113: 28 | D113: 23 | E113: 55 | F113: 49 | G113: 21 | H113: 0.1590909091 | I113: 0.1306818182 | J113: 0.3125 | K113: 0.2784090909 | L113: 0.1193181818 | M113: 176 | N113: 1 | O113: 71 | P113: 2241 | Q113: GRATIGNY ELEMENTARY | R113: 45 | S113: 13 | T113: 17 | U113: 7 | V113: 1 | W113: 0.5421686747 | X113: 0.156626506 | Y113: 0.2048192771 | Z113: 0.0843373494 | AA113: 0.01204819277 | AB113: 83 | AC113: 1 | AD113: 30 | AE113: 2241 | AF113: GRATIGNY ELEMENTARY | AG113: 36 | AH113: 16 | AI113: 11 | AJ113: 10 | AK113: 4 | AL113: 0.4675324675 | AM113: 0.2077922078 | AN113: 0.1428571429 | AO113: 0.1298701299 | AP113: 0.05194805195 | AQ113: 77 | AR113: 1 | AS113: 32 | AT113: 6053 | AU113: SOMERSET ACAD MIDDLE (S-MIAMI) | AW113: 3 | AX113: 17 | AY113: 29 | AZ113: 27 | BA113: 0 | BB113: 0.03947368421 | BC113: 0.2236842105 | BD113: 0.3815789474 | BE113: 0.3552631579 | BF113: 76 | BG113: 1 | BH113: 96 | BI113: 6091 | BJ113: CITRUS GROVE MIDDLE SCHOOL | BK113: 129 | BL113: 52 | BM113: 56 | BN113: 9 | BO113: 2 | BP113: 0.5201612903 | BQ113: 0.2096774194 | BR113: 0.2258064516 | BS113: 0.03629032258 | BT113: 0.008064516129 | BU113: 248 | BV113: 1 | BW113: 27 | BX113: 6281 | BY113: THOMAS JEFFERSON MIDDLE | BZ113: 37 | CA113: 29 | CB113: 18 | CC113: 1 | CD113: 1 | CE113: 0.4302325581 | CF113: 0.3372093023 | CG113: 0.2093023256 | CH113: 0.01162790698 | CI113: 0.01162790698 | CJ113: 86 | CK113: 1 | CL113: 23
A114: 2191 | B114: SPANISH LAKE ELEMENTARY | C114: 41 | D114: 43 | E114: 105 | F114: 86 | G114: 36 | H114: 0.1318327974 | I114: 0.1382636656 | J114: 0.3376205788 | K114: 0.2765273312 | L114: 0.115755627 | M114: 311 | N114: 1 | O114: 73 | P114: 2261 | Q114: GREENGLADE ELEMENTARY | R114: 13 | S114: 6 | T114: 23 | U114: 21 | V114: 19 | W114: 0.1585365854 | X114: 0.07317073171 | Y114: 0.2804878049 | Z114: 0.256097561 | AA114: 0.2317073171 | AB114: 82 | AC114: 1 | AD114: 77 | AE114: 2261 | AF114: GREENGLADE ELEMENTARY | AG114: 15 | AH114: 18 | AI114: 14 | AJ114: 20 | AK114: 12 | AL114: 0.1898734177 | AM114: 0.2278481013 | AN114: 0.1772151899 | AO114: 0.253164557 | AP114: 0.1518987342 | AQ114: 79 | AR114: 1 | AS114: 58 | AT114: 6060 | AU114: ASPIRA LEAD. & COLLEGE PREP | AV114: 45 | AW114: 12 | AX114: 8 | AZ114: 1 | BA114: 0.6818181818 | BB114: 0.1818181818 | BC114: 0.1212121212 | BD114: 0 | BE114: 0.01515151515 | BF114: 66 | BG114: 1 | BH114: 14 | BI114: 6111 | BJ114: CUTLER BAY ACAD - CUTLER RIDGE | BK114: 126 | BL114: 53 | BM114: 47 | BN114: 19 | BO114: 5 | BP114: 0.504 | BQ114: 0.212 | BR114: 0.188 | BS114: 0.076 | BT114: 0.02 | BU114: 250 | BV114: 1 | BW114: 28 | BX114: 6301 | BY114: JOHN F. KENNEDY MIDDLE | BZ114: 76 | CA114: 54 | CB114: 56 | CC114: 20 | CD114: 5 | CE114: 0.3601895735 | CF114: 0.2559241706 | CG114: 0.2654028436 | CH114: 0.09478672986 | CI114: 0.02369668246 | CJ114: 211 | CK114: 1 | CL114: 38
A115: 2241 | B115: GRATIGNY ELEMENTARY | C115: 37 | D115: 19 | E115: 16 | F115: 7 | G115: 5 | H115: 0.4404761905 | I115: 0.2261904762 | J115: 0.1904761905 | K115: 0.08333333333 | L115: 0.05952380952 | M115: 84 | N115: 1 | O115: 33 | P115: 2281 | Q115: GREYNOLDS PARK ELEMENTARY | R115: 32 | S115: 13 | T115: 37 | U115: 13 | V115: 14 | W115: 0.2935779817 | X115: 0.119266055 | Y115: 0.3394495413 | Z115: 0.119266055 | AA115: 0.128440367 | AB115: 109 | AC115: 1 | AD115: 59 | AE115: 2281 | AF115: GREYNOLDS PARK ELEMENTARY | AG115: 21 | AH115: 15 | AI115: 24 | AJ115: 26 | AK115: 6 | AL115: 0.2282608696 | AM115: 0.1630434783 | AN115: 0.2608695652 | AO115: 0.2826086957 | AP115: 0.0652173913 | AQ115: 92 | AR115: 1 | AS115: 61 | AT115: 6070 | AU115: ASPIRA ARTS DECO CHARTER | AV115: 64 | AW115: 34 | AX115: 6 | AY115: 3 | BA115: 0.5981308411 | BB115: 0.3177570093 | BC115: 0.05607476636 | BD115: 0.02803738318 | BE115: 0 | BF115: 107 | BG115: 1 | BH115: 8 | BI115: 6121 | BJ115: RUBEN DARIO MIDDLE | BK115: 86 | BL115: 51 | BM115: 38 | BN115: 16 | BO115: 5 | BP115: 0.4387755102 | BQ115: 0.2602040816 | BR115: 0.193877551 | BS115: 0.08163265306 | BT115: 0.02551020408 | BU115: 196 | BV115: 1 | BW115: 30 | BX115: 6331 | BY115: KINLOCH PARK MIDDLE | BZ115: 133 | CA115: 85 | CB115: 98 | CC115: 32 | CD115: 21 | CE115: 0.3604336043 | CF115: 0.2303523035 | CG115: 0.2655826558 | CH115: 0.08672086721 | CI115: 0.05691056911 | CJ115: 369 | CK115: 1 | CL115: 41
A116: 2261 | B116: GREENGLADE ELEMENTARY | C116: 24 | D116: 15 | E116: 11 | F116: 32 | G116: 17 | H116: 0.2424242424 | I116: 0.1515151515 | J116: 0.1111111111 | K116: 0.3232323232 | L116: 0.1717171717 | M116: 99 | N116: 1 | O116: 61 | P116: 2321 | Q116: GULFSTREAM ELEMENTARY | R116: 11 | S116: 11 | T116: 26 | U116: 19 | V116: 13 | W116: 0.1375 | X116: 0.1375 | Y116: 0.325 | Z116: 0.2375 | AA116: 0.1625 | AB116: 80 | AC116: 1 | AD116: 73 | AE116: 2321 | AF116: GULFSTREAM ELEMENTARY | AG116: 14 | AH116: 13 | AI116: 16 | AJ116: 18 | AK116: 10 | AL116: 0.1971830986 | AM116: 0.1830985915 | AN116: 0.2253521127 | AO116: 0.2535211268 | AP116: 0.1408450704 | AQ116: 71 | AR116: 1 | AS116: 62 | AT116: 6071 | AU116: GEORGE WASHINGTON CARVER | AV116: 2 | AW116: 23 | AX116: 87 | AY116: 159 | AZ116: 97 | BA116: 0.005434782609 | BB116: 0.0625 | BC116: 0.2364130435 | BD116: 0.4320652174 | BE116: 0.2635869565 | BF116: 368 | BG116: 1 | BH116: 93 | BI116: 6128 | BJ116: SOMERSET ACADEMY BAY MIDDLE | BK116: 1 | BL116: 5 | BM116: 4 | BN116: 5 | BO116: 1 | BP116: 0.0625 | BQ116: 0.3125 | BR116: 0.25 | BS116: 0.3125 | BT116: 0.0625 | BU116: 16 | BV116: 1 | BW116: 63 | BX116: 6351 | BY116: LAKE STEVENS MIDDLE | BZ116: 57 | CA116: 41 | CB116: 46 | CC116: 16 | CD116: 4 | CE116: 0.3475609756 | CF116: 0.25 | CG116: 0.2804878049 | CH116: 0.09756097561 | CI116: 0.0243902439 | CJ116: 164 | CK116: 1 | CL116: 40
A117: 2281 | B117: GREYNOLDS PARK ELEMENTARY | C117: 20 | D117: 24 | E117: 35 | F117: 31 | G117: 9 | H117: 0.1680672269 | I117: 0.2016806723 | J117: 0.2941176471 | K117: 0.2605042017 | L117: 0.0756302521 | M117: 119 | N117: 1 | O117: 63 | P117: 2331 | Q117: CHARLES R. HADLEY ELEMENTARY | R117: 29 | S117: 29 | T117: 53 | U117: 33 | V117: 16 | W117: 0.18125 | X117: 0.18125 | Y117: 0.33125 | Z117: 0.20625 | AA117: 0.1 | AB117: 160 | AC117: 1 | AD117: 64 | AE117: 2331 | AF117: CHARLES R. HADLEY ELEMENTARY | AG117: 15 | AH117: 39 | AI117: 38 | AJ117: 30 | AK117: 16 | AL117: 0.1086956522 | AM117: 0.2826086957 | AN117: 0.2753623188 | AO117: 0.2173913043 | AP117: 0.115942029 | AQ117: 138 | AR117: 1 | AS117: 61 | AT117: 6082 | AU117: ACADEMIR CHARTER SCHOOL MIDDLE | AV117: 6 | AW117: 15 | AX117: 30 | AY117: 18 | AZ117: 2 | BA117: 0.08450704225 | BB117: 0.2112676056 | BC117: 0.4225352113 | BD117: 0.2535211268 | BE117: 0.02816901408 | BF117: 71 | BG117: 1 | BH117: 70 | BI117: 6161 | BJ117: LAWTON CHILES MIDDLE SCHOOL | BK117: 51 | BL117: 56 | BM117: 90 | BN117: 41 | BO117: 7 | BP117: 0.2081632653 | BQ117: 0.2285714286 | BR117: 0.3673469388 | BS117: 0.1673469388 | BT117: 0.02857142857 | BU117: 245 | BV117: 1 | BW117: 56 | BX117: 6361 | BY117: JOSE DE DIEGO MIDDLE SCHOOL | BZ117: 119 | CA117: 46 | CB117: 20 | CC117: 7 | CE117: 0.6197916667 | CF117: 0.2395833333 | CG117: 0.1041666667 | CH117: 0.03645833333 | CI117: 0 | CJ117: 192 | CK117: 1 | CL117: 14
A118: 2321 | B118: GULFSTREAM ELEMENTARY | C118: 13 | D118: 10 | E118: 17 | F118: 38 | G118: 13 | H118: 0.1428571429 | I118: 0.1098901099 | J118: 0.1868131868 | K118: 0.4175824176 | L118: 0.1428571429 | M118: 91 | N118: 1 | O118: 75 | P118: 2341 | Q118: JOE HALL ELEMENTARY | R118: 7 | S118: 5 | T118: 28 | U118: 23 | V118: 20 | W118: 0.0843373494 | X118: 0.06024096386 | Y118: 0.3373493976 | Z118: 0.2771084337 | AA118: 0.2409638554 | AB118: 83 | AC118: 1 | AD118: 86 | AE118: 2341 | AF118: JOE HALL ELEMENTARY | AG118: 7 | AH118: 19 | AI118: 29 | AJ118: 25 | AK118: 23 | AL118: 0.06796116505 | AM118: 0.1844660194 | AN118: 0.2815533981 | AO118: 0.2427184466 | AP118: 0.2233009709 | AQ118: 103 | AR118: 1 | AS118: 75 | AT118: 6083 | AU118: JUST ARTS AND MANAGEMENT CMS | AW118: 6 | AX118: 8 | AY118: 23 | AZ118: 14 | BA118: 0 | BB118: 0.1176470588 | BC118: 0.1568627451 | BD118: 0.4509803922 | BE118: 0.2745098039 | BF118: 51 | BG118: 1 | BH118: 88 | BI118: 6171 | BJ118: HENRY H. FILER MIDDLE | BK118: 148 | BL118: 74 | BM118: 43 | BN118: 21 | BO118: 11 | BP118: 0.4983164983 | BQ118: 0.2491582492 | BR118: 0.1447811448 | BS118: 0.07070707071 | BT118: 0.03703703704 | BU118: 297 | BV118: 1 | BW118: 25 | BX118: 6391 | BY118: MADISON MIDDLE SCHOOL | BZ118: 65 | CA118: 31 | CB118: 38 | CC118: 10 | CD118: 4 | CE118: 0.4391891892 | CF118: 0.2094594595 | CG118: 0.2567567568 | CH118: 0.06756756757 | CI118: 0.02702702703 | CJ118: 148 | CK118: 1 | CL118: 35
A119: 2331 | B119: CHARLES R. HADLEY ELEMENTARY | C119: 15 | D119: 27 | E119: 30 | F119: 37 | G119: 33 | H119: 0.1056338028 | I119: 0.1901408451 | J119: 0.2112676056 | K119: 0.2605633803 | L119: 0.2323943662 | M119: 142 | N119: 1 | O119: 70 | P119: 2351 | Q119: ENEIDA MASSAS HARTNER ELEM | R119: 33 | S119: 21 | T119: 13 | U119: 11 | V119: 9 | W119: 0.3793103448 | X119: 0.2413793103 | Y119: 0.1494252874 | Z119: 0.1264367816 | AA119: 0.1034482759 | AB119: 87 | AC119: 1 | AD119: 38 | AE119: 2351 | AF119: ENEIDA MASSAS HARTNER ELEM | AG119: 23 | AH119: 15 | AI119: 14 | AJ119: 9 | AL119: 0.3770491803 | AM119: 0.2459016393 | AN119: 0.2295081967 | AO119: 0.1475409836 | AP119: 0 | AQ119: 61 | AR119: 1 | AS119: 38 | AT119: 6091 | AU119: CITRUS GROVE MIDDLE SCHOOL | AV119: 110 | AW119: 60 | AX119: 32 | AY119: 5 | AZ119: 2 | BA119: 0.5263157895 | BB119: 0.2870813397 | BC119: 0.1531100478 | BD119: 0.02392344498 | BE119: 0.00956937799 | BF119: 209 | BG119: 1 | BH119: 19 | BI119: 6211 | BJ119: GLADES MIDDLE | BK119: 65 | BL119: 50 | BM119: 80 | BN119: 31 | BO119: 8 | BP119: 0.2777777778 | BQ119: 0.2136752137 | BR119: 0.3418803419 | BS119: 0.1324786325 | BT119: 0.03418803419 | BU119: 234 | BV119: 1 | BW119: 51 | BX119: 6411 | BY119: HORACE MANN MIDDLE | BZ119: 89 | CA119: 49 | CB119: 32 | CC119: 13 | CE119: 0.4863387978 | CF119: 0.2677595628 | CG119: 0.174863388 | CH119: 0.07103825137 | CI119: 0 | CJ119: 183 | CK119: 1 | CL119: 25
A120: 2341 | B120: JOE HALL ELEMENTARY | C120: 19 | D120: 14 | E120: 23 | F120: 20 | G120: 6 | H120: 0.2317073171 | I120: 0.1707317073 | J120: 0.2804878049 | K120: 0.243902439 | L120: 0.07317073171 | M120: 82 | N120: 1 | O120: 60 | P120: 2361 | Q120: HIALEAH ELEMENTARY | R120: 36 | S120: 20 | T120: 38 | U120: 27 | V120: 10 | W120: 0.2748091603 | X120: 0.1526717557 | Y120: 0.2900763359 | Z120: 0.2061068702 | AA120: 0.07633587786 | AB120: 131 | AC120: 1 | AD120: 57 | AE120: 2361 | AF120: HIALEAH ELEMENTARY | AG120: 23 | AH120: 20 | AI120: 36 | AJ120: 22 | AK120: 16 | AL120: 0.1965811966 | AM120: 0.1709401709 | AN120: 0.3076923077 | AO120: 0.188034188 | AP120: 0.1367521368 | AQ120: 117 | AR120: 1 | AS120: 63 | AT120: 6111 | AU120: CUTLER BAY ACAD - CUTLER RIDGE | AV120: 152 | AW120: 56 | AX120: 31 | AY120: 13 | AZ120: 5 | BA120: 0.5914396887 | BB120: 0.2178988327 | BC120: 0.1206225681 | BD120: 0.05058365759 | BE120: 0.01945525292 | BF120: 257 | BG120: 1 | BH120: 19 | BI120: 6221 | BJ120: HAMMOCKS MIDDLE | BK120: 105 | BL120: 76 | BM120: 60 | BN120: 22 | BO120: 6 | BP120: 0.3903345725 | BQ120: 0.282527881 | BR120: 0.2230483271 | BS120: 0.08178438662 | BT120: 0.02230483271 | BU120: 269 | BV120: 1 | BW120: 33 | BX120: 6441 | BY120: HOWARD D. MCMILLAN MIDDLE | BZ120: 67 | CA120: 41 | CB120: 32 | CC120: 6 | CD120: 1 | CE120: 0.4557823129 | CF120: 0.2789115646 | CG120: 0.2176870748 | CH120: 0.04081632653 | CI120: 0.006802721088 | CJ120: 147 | CK120: 1 | CL120: 27
A121: 2351 | B121: ENEIDA MASSAS HARTNER ELEM | C121: 17 | D121: 24 | E121: 18 | F121: 16 | G121: 5 | H121: 0.2125 | I121: 0.3 | J121: 0.225 | K121: 0.2 | L121: 0.0625 | M121: 80 | N121: 1 | O121: 49 | P121: 2371 | Q121: WEST HIALEAH GARDENS ELEM | R121: 54 | S121: 39 | T121: 55 | U121: 38 | V121: 28 | W121: 0.2523364486 | X121: 0.1822429907 | Y121: 0.2570093458 | Z121: 0.1775700935 | AA121: 0.1308411215 | AB121: 214 | AC121: 1 | AD121: 57 | AE121: 2371 | AF121: WEST HIALEAH GARDENS ELEM | AG121: 54 | AH121: 61 | AI121: 65 | AJ121: 50 | AK121: 19 | AL121: 0.2168674699 | AM121: 0.2449799197 | AN121: 0.2610441767 | AO121: 0.2008032129 | AP121: 0.07630522088 | AQ121: 249 | AR121: 1 | AS121: 54 | AT121: 6121 | AU121: RUBEN DARIO MIDDLE | AV121: 92 | AW121: 43 | AX121: 30 | AY121: 11 | AZ121: 1 | BA121: 0.5197740113 | BB121: 0.2429378531 | BC121: 0.1694915254 | BD121: 0.06214689266 | BE121: 0.005649717514 | BF121: 177 | BG121: 1 | BH121: 24 | BI121: 6231 | BJ121: HIALEAH MIDDLE | BK121: 120 | BL121: 33 | BM121: 45 | BN121: 14 | BO121: 3 | BP121: 0.5581395349 | BQ121: 0.1534883721 | BR121: 0.2093023256 | BS121: 0.06511627907 | BT121: 0.01395348837 | BU121: 215 | BV121: 1 | BW121: 29 | BX121: 6501 | BY121: MIAMI LAKES MIDDLE | BZ121: 95 | CA121: 42 | CB121: 43 | CC121: 8 | CD121: 4 | CE121: 0.4947916667 | CF121: 0.21875 | CG121: 0.2239583333 | CH121: 0.04166666667 | CI121: 0.02083333333 | CJ121: 192 | CK121: 1 | CL121: 29
A122: 2361 | B122: HIALEAH ELEMENTARY | C122: 43 | D122: 26 | E122: 31 | F122: 8 | H122: 0.3981481481 | I122: 0.2407407407 | J122: 0.287037037 | K122: 0.07407407407 | L122: 0 | M122: 108 | N122: 1 | O122: 36 | P122: 2401 | Q122: HIBISCUS ELEMENTARY | R122: 20 | S122: 15 | T122: 26 | U122: 7 | V122: 9 | W122: 0.2597402597 | X122: 0.1948051948 | Y122: 0.3376623377 | Z122: 0.09090909091 | AA122: 0.1168831169 | AB122: 77 | AC122: 1 | AD122: 55 | AE122: 2401 | AF122: HIBISCUS ELEMENTARY | AG122: 4 | AH122: 26 | AI122: 23 | AJ122: 13 | AK122: 9 | AL122: 0.05333333333 | AM122: 0.3466666667 | AN122: 0.3066666667 | AO122: 0.1733333333 | AP122: 0.12 | AQ122: 75 | AR122: 1 | AS122: 60 | AT122: 6128 | AU122: SOMERSET ACADEMY BAY MIDDLE | AV122: 1 | AW122: 5 | AX122: 7 | AY122: 5 | AZ122: 1 | BA122: 0.05263157895 | BB122: 0.2631578947 | BC122: 0.3684210526 | BD122: 0.2631578947 | BE122: 0.05263157895 | BF122: 19 | BG122: 1 | BH122: 68 | BI122: 6241 | BJ122: HIGHLAND OAKS MIDDLE | BK122: 144 | BL122: 89 | BM122: 77 | BN122: 33 | BO122: 1 | BP122: 0.4186046512 | BQ122: 0.2587209302 | BR122: 0.2238372093 | BS122: 0.09593023256 | BT122: 0.002906976744 | BU122: 344 | BV122: 1 | BW122: 32 | BX122: 6521 | BY122: MIAMI SPRINGS MIDDLE | BZ122: 142 | CA122: 97 | CB122: 75 | CC122: 21 | CD122: 8 | CE122: 0.4139941691 | CF122: 0.2827988338 | CG122: 0.2186588921 | CH122: 0.0612244898 | CI122: 0.02332361516 | CJ122: 343 | CK122: 1 | CL122: 30
A123: 2371 | B123: WEST HIALEAH GARDENS ELEM | C123: 50 | D123: 35 | E123: 54 | F123: 49 | G123: 34 | H123: 0.2252252252 | I123: 0.1576576577 | J123: 0.2432432432 | K123: 0.2207207207 | L123: 0.1531531532 | M123: 222 | N123: 1 | O123: 62 | P123: 2441 | Q123: VIRGINIA A BOONE/HIGHLAND OAKS | R123: 25 | S123: 13 | T123: 36 | U123: 29 | V123: 29 | W123: 0.1893939394 | X123: 0.09848484848 | Y123: 0.2727272727 | Z123: 0.2196969697 | AA123: 0.2196969697 | AB123: 132 | AC123: 1 | AD123: 71 | AE123: 2441 | AF123: VIRGINIA A BOONE/HIGHLAND OAKS | AG123: 24 | AH123: 32 | AI123: 25 | AJ123: 19 | AK123: 16 | AL123: 0.2068965517 | AM123: 0.275862069 | AN123: 0.2155172414 | AO123: 0.1637931034 | AP123: 0.1379310345 | AQ123: 116 | AR123: 1 | AS123: 52 | AT123: 6161 | AU123: LAWTON CHILES MIDDLE SCHOOL | AV123: 72 | AW123: 103 | AX123: 86 | AY123: 38 | AZ123: 6 | BA123: 0.2360655738 | BB123: 0.337704918 | BC123: 0.2819672131 | BD123: 0.1245901639 | BE123: 0.01967213115 | BF123: 305 | BG123: 1 | BH123: 43 | BI123: 6251 | BJ123: HOMESTEAD MIDDLE | BK123: 121 | BL123: 42 | BM123: 39 | BN123: 3 | BO123: 1 | BP123: 0.5873786408 | BQ123: 0.2038834951 | BR123: 0.1893203883 | BS123: 0.0145631068 | BT123: 0.004854368932 | BU123: 206 | BV123: 1 | BW123: 21 | BX123: 6541 | BY123: NAUTILUS MIDDLE | BZ123: 109 | CA123: 64 | CB123: 35 | CC123: 20 | CD123: 4 | CE123: 0.4698275862 | CF123: 0.275862069 | CG123: 0.150862069 | CH123: 0.08620689655 | CI123: 0.01724137931 | CJ123: 232 | CK123: 1 | CL123: 25
A124: 2401 | B124: HIBISCUS ELEMENTARY | C124: 8 | D124: 7 | E124: 24 | F124: 21 | G124: 7 | H124: 0.1194029851 | I124: 0.1044776119 | J124: 0.3582089552 | K124: 0.3134328358 | L124: 0.1044776119 | M124: 67 | N124: 1 | O124: 78 | P124: 2501 | Q124: HOLMES ELEMENTARY | R124: 53 | S124: 22 | T124: 24 | U124: 5 | W124: 0.5096153846 | X124: 0.2115384615 | Y124: 0.2307692308 | Z124: 0.04807692308 | AA124: 0 | AB124: 104 | AC124: 1 | AD124: 28 | AE124: 2501 | AF124: HOLMES ELEMENTARY | AG124: 17 | AH124: 11 | AI124: 16 | AJ124: 21 | AK124: 4 | AL124: 0.2463768116 | AM124: 0.1594202899 | AN124: 0.231884058 | AO124: 0.3043478261 | AP124: 0.05797101449 | AQ124: 69 | AR124: 1 | AS124: 59 | AT124: 6171 | AU124: HENRY H. FILER MIDDLE | AV124: 128 | AW124: 79 | AX124: 41 | AY124: 17 | AZ124: 6 | BA124: 0.4723247232 | BB124: 0.2915129151 | BC124: 0.1512915129 | BD124: 0.06273062731 | BE124: 0.0221402214 | BF124: 271 | BG124: 1 | BH124: 24 | BI124: 6281 | BJ124: THOMAS JEFFERSON MIDDLE | BK124: 42 | BL124: 20 | BM124: 16 | BN124: 6 | BO124: 1 | BP124: 0.4941176471 | BQ124: 0.2352941176 | BR124: 0.1882352941 | BS124: 0.07058823529 | BT124: 0.01176470588 | BU124: 85 | BV124: 1 | BW124: 27 | BX124: 6571 | BY124: NORLAND MIDDLE | BZ124: 110 | CA124: 92 | CB124: 62 | CC124: 16 | CD124: 6 | CE124: 0.3846153846 | CF124: 0.3216783217 | CG124: 0.2167832168 | CH124: 0.05594405594 | CI124: 0.02097902098 | CJ124: 286 | CK124: 1 | CL124: 29
A125: 2441 | B125: VIRGINIA A BOONE/HIGHLAND OAKS | C125: 17 | D125: 37 | E125: 29 | F125: 23 | G125: 16 | H125: 0.1393442623 | I125: 0.3032786885 | J125: 0.237704918 | K125: 0.1885245902 | L125: 0.131147541 | M125: 122 | N125: 1 | O125: 56 | P125: 2511 | Q125: ZORA NEALE HURSTON ELEMENTARY | R125: 16 | S125: 13 | T125: 38 | U125: 24 | V125: 15 | W125: 0.1509433962 | X125: 0.1226415094 | Y125: 0.358490566 | Z125: 0.2264150943 | AA125: 0.141509434 | AB125: 106 | AC125: 1 | AD125: 73 | AE125: 2511 | AF125: ZORA NEALE HURSTON ELEMENTARY | AG125: 21 | AH125: 30 | AI125: 29 | AJ125: 24 | AK125: 11 | AL125: 0.1826086957 | AM125: 0.2608695652 | AN125: 0.252173913 | AO125: 0.2086956522 | AP125: 0.09565217391 | AQ125: 115 | AR125: 1 | AS125: 56 | AT125: 6211 | AU125: GLADES MIDDLE | AV125: 53 | AW125: 52 | AX125: 74 | AY125: 57 | AZ125: 28 | BA125: 0.2007575758 | BB125: 0.196969697 | BC125: 0.2803030303 | BD125: 0.2159090909 | BE125: 0.1060606061 | BF125: 264 | BG125: 1 | BH125: 60 | BI125: 6301 | BJ125: JOHN F. KENNEDY MIDDLE | BK125: 123 | BL125: 67 | BM125: 58 | BN125: 48 | BO125: 6 | BP125: 0.4072847682 | BQ125: 0.2218543046 | BR125: 0.1920529801 | BS125: 0.1589403974 | BT125: 0.01986754967 | BU125: 302 | BV125: 1 | BW125: 37 | BX125: 6591 | BY125: NORTH DADE MIDDLE | BZ125: 113 | CA125: 53 | CB125: 20 | CC125: 1 | CE125: 0.6042780749 | CF125: 0.2834224599 | CG125: 0.1069518717 | CH125: 0.005347593583 | CI125: 0 | CJ125: 187 | CK125: 1 | CL125: 11
A126: 2501 | B126: HOLMES ELEMENTARY | C126: 38 | D126: 27 | E126: 22 | F126: 11 | G126: 2 | H126: 0.38 | I126: 0.27 | J126: 0.22 | K126: 0.11 | L126: 0.02 | M126: 100 | N126: 1 | O126: 35 | P126: 2521 | Q126: OLIVER HOOVER ELEMENTARY | R126: 14 | S126: 23 | T126: 30 | U126: 35 | V126: 32 | W126: 0.1044776119 | X126: 0.171641791 | Y126: 0.223880597 | Z126: 0.2611940299 | AA126: 0.2388059701 | AB126: 134 | AC126: 1 | AD126: 72 | AE126: 2521 | AF126: OLIVER HOOVER ELEMENTARY | AG126: 16 | AH126: 26 | AI126: 33 | AJ126: 36 | AK126: 21 | AL126: 0.1212121212 | AM126: 0.196969697 | AN126: 0.25 | AO126: 0.2727272727 | AP126: 0.1590909091 | AQ126: 132 | AR126: 1 | AS126: 68 | AT126: 6221 | AU126: HAMMOCKS MIDDLE | AV126: 106 | AW126: 85 | AX126: 58 | AY126: 43 | AZ126: 4 | BA126: 0.3581081081 | BB126: 0.2871621622 | BC126: 0.1959459459 | BD126: 0.1452702703 | BE126: 0.01351351351 | BF126: 296 | BG126: 1 | BH126: 35 | BI126: 6331 | BJ126: KINLOCH PARK MIDDLE | BK126: 160 | BL126: 84 | BM126: 77 | BN126: 28 | BO126: 3 | BP126: 0.4545454545 | BQ126: 0.2386363636 | BR126: 0.21875 | BS126: 0.07954545455 | BT126: 0.008522727273 | BU126: 352 | BV126: 1 | BW126: 31 | BX126: 6611 | BY126: COUNTRY CLUB MIDDLE SCHOOL | BZ126: 119 | CA126: 65 | CB126: 60 | CC126: 11 | CD126: 4 | CE126: 0.4594594595 | CF126: 0.250965251 | CG126: 0.2316602317 | CH126: 0.04247104247 | CI126: 0.01544401544 | CJ126: 259 | CK126: 1 | CL126: 29
A127: 2511 | B127: ZORA NEALE HURSTON ELEMENTARY | C127: 10 | D127: 13 | E127: 39 | F127: 27 | G127: 25 | H127: 0.08771929825 | I127: 0.1140350877 | J127: 0.3421052632 | K127: 0.2368421053 | L127: 0.2192982456 | M127: 114 | N127: 1 | O127: 80 | P127: 2541 | Q127: HOWARD DRIVE ELEMENTARY | R127: 11 | S127: 12 | T127: 23 | U127: 36 | V127: 29 | W127: 0.0990990991 | X127: 0.1081081081 | Y127: 0.2072072072 | Z127: 0.3243243243 | AA127: 0.2612612613 | AB127: 111 | AC127: 1 | AD127: 79 | AE127: 2541 | AF127: HOWARD DRIVE ELEMENTARY | AG127: 17 | AH127: 24 | AI127: 26 | AJ127: 23 | AK127: 9 | AL127: 0.1717171717 | AM127: 0.2424242424 | AN127: 0.2626262626 | AO127: 0.2323232323 | AP127: 0.09090909091 | AQ127: 99 | AR127: 1 | AS127: 59 | AT127: 6231 | AU127: HIALEAH MIDDLE | AV127: 98 | AW127: 51 | AX127: 37 | AY127: 14 | AZ127: 1 | BA127: 0.4875621891 | BB127: 0.2537313433 | BC127: 0.184079602 | BD127: 0.06965174129 | BE127: 0.004975124378 | BF127: 201 | BG127: 1 | BH127: 26 | BI127: 6351 | BJ127: LAKE STEVENS MIDDLE | BK127: 81 | BL127: 49 | BM127: 47 | BN127: 19 | BO127: 7 | BP127: 0.3990147783 | BQ127: 0.2413793103 | BR127: 0.2315270936 | BS127: 0.09359605911 | BT127: 0.03448275862 | BU127: 203 | BV127: 1 | BW127: 36 | BX127: 6631 | BY127: NORTH MIAMI MIDDLE | BZ127: 117 | CA127: 75 | CB127: 38 | CC127: 6 | CD127: 3 | CE127: 0.489539749 | CF127: 0.3138075314 | CG127: 0.1589958159 | CH127: 0.02510460251 | CI127: 0.01255230126 | CJ127: 239 | CK127: 1 | CL127: 20
A128: 2521 | B128: OLIVER HOOVER ELEMENTARY | C128: 8 | D128: 14 | E128: 36 | F128: 41 | G128: 26 | H128: 0.064 | I128: 0.112 | J128: 0.288 | K128: 0.328 | L128: 0.208 | M128: 125 | N128: 1 | O128: 82 | P128: 2581 | Q128: MADIE IVES ELEMENTARY | R128: 32 | S128: 23 | T128: 39 | U128: 24 | V128: 14 | W128: 0.2424242424 | X128: 0.1742424242 | Y128: 0.2954545455 | Z128: 0.1818181818 | AA128: 0.1060606061 | AB128: 132 | AC128: 1 | AD128: 58 | AE128: 2581 | AF128: MADIE IVES ELEMENTARY | AG128: 19 | AH128: 19 | AI128: 33 | AJ128: 30 | AK128: 10 | AL128: 0.1711711712 | AM128: 0.1711711712 | AN128: 0.2972972973 | AO128: 0.2702702703 | AP128: 0.09009009009 | AQ128: 111 | AR128: 1 | AS128: 66 | AT128: 6241 | AU128: HIGHLAND OAKS MIDDLE | AV128: 74 | AW128: 83 | AX128: 85 | AY128: 66 | AZ128: 39 | BA128: 0.2132564841 | BB128: 0.2391930836 | BC128: 0.2449567723 | BD128: 0.1902017291 | BE128: 0.1123919308 | BF128: 347 | BG128: 1 | BH128: 55 | BI128: 6361 | BJ128: JOSE DE DIEGO MIDDLE SCHOOL | BK128: 131 | BL128: 50 | BM128: 22 | BN128: 3 | BP128: 0.6359223301 | BQ128: 0.2427184466 | BR128: 0.1067961165 | BS128: 0.0145631068 | BT128: 0 | BU128: 206 | BV128: 1 | BW128: 12 | BX128: 6681 | BY128: PALM SPRINGS MIDDLE | BZ128: 132 | CA128: 72 | CB128: 67 | CC128: 28 | CD128: 7 | CE128: 0.431372549 | CF128: 0.2352941176 | CG128: 0.2189542484 | CH128: 0.09150326797 | CI128: 0.02287581699 | CJ128: 306 | CK128: 1 | CL128: 33
A129: 2541 | B129: HOWARD DRIVE ELEMENTARY | C129: 22 | D129: 14 | E129: 33 | F129: 27 | G129: 10 | H129: 0.2075471698 | I129: 0.1320754717 | J129: 0.3113207547 | K129: 0.2547169811 | L129: 0.09433962264 | M129: 106 | N129: 1 | O129: 66 | P129: 2641 | Q129: KENDALE ELEMENTARY | R129: 9 | S129: 18 | T129: 22 | U129: 17 | V129: 19 | W129: 0.1058823529 | X129: 0.2117647059 | Y129: 0.2588235294 | Z129: 0.2 | AA129: 0.2235294118 | AB129: 85 | AC129: 1 | AD129: 68 | AE129: 2641 | AF129: KENDALE ELEMENTARY | AG129: 5 | AH129: 17 | AI129: 22 | AJ129: 17 | AK129: 17 | AL129: 0.0641025641 | AM129: 0.2179487179 | AN129: 0.2820512821 | AO129: 0.2179487179 | AP129: 0.2179487179 | AQ129: 78 | AR129: 1 | AS129: 72 | AT129: 6251 | AU129: HOMESTEAD MIDDLE | AV129: 104 | AW129: 53 | AX129: 21 | AY129: 9 | BA129: 0.5561497326 | BB129: 0.2834224599 | BC129: 0.1122994652 | BD129: 0.04812834225 | BE129: 0 | BF129: 187 | BG129: 1 | BH129: 16 | BI129: 6391 | BJ129: MADISON MIDDLE SCHOOL | BK129: 88 | BL129: 35 | BM129: 29 | BN129: 8 | BP129: 0.55 | BQ129: 0.21875 | BR129: 0.18125 | BS129: 0.05 | BT129: 0 | BU129: 160 | BV129: 1 | BW129: 23 | BX129: 6701 | BY129: PALMETTO MIDDLE | BZ129: 57 | CA129: 47 | CB129: 50 | CC129: 30 | CD129: 16 | CE129: 0.285 | CF129: 0.235 | CG129: 0.25 | CH129: 0.15 | CI129: 0.08 | CJ129: 200 | CK129: 1 | CL129: 48
A130: 2581 | B130: MADIE IVES ELEMENTARY | C130: 14 | D130: 37 | E130: 43 | F130: 20 | G130: 7 | H130: 0.1157024793 | I130: 0.305785124 | J130: 0.3553719008 | K130: 0.1652892562 | L130: 0.05785123967 | M130: 121 | N130: 1 | O130: 58 | P130: 2651 | Q130: KENDALE LAKES ELEMENTARY | R130: 18 | S130: 25 | T130: 34 | U130: 29 | V130: 17 | W130: 0.1463414634 | X130: 0.2032520325 | Y130: 0.2764227642 | Z130: 0.2357723577 | AA130: 0.1382113821 | AB130: 123 | AC130: 1 | AD130: 65 | AE130: 2651 | AF130: KENDALE LAKES ELEMENTARY | AG130: 23 | AH130: 19 | AI130: 14 | AJ130: 19 | AK130: 32 | AL130: 0.214953271 | AM130: 0.1775700935 | AN130: 0.1308411215 | AO130: 0.1775700935 | AP130: 0.2990654206 | AQ130: 107 | AR130: 1 | AS130: 61 | AT130: 6281 | AU130: THOMAS JEFFERSON MIDDLE | AV130: 42 | AW130: 17 | AX130: 15 | AY130: 3 | BA130: 0.5454545455 | BB130: 0.2207792208 | BC130: 0.1948051948 | BD130: 0.03896103896 | BE130: 0 | BF130: 77 | BG130: 1 | BH130: 23 | BI130: 6411 | BJ130: HORACE MANN MIDDLE | BK130: 114 | BL130: 39 | BM130: 31 | BN130: 11 | BO130: 2 | BP130: 0.578680203 | BQ130: 0.1979695431 | BR130: 0.1573604061 | BS130: 0.05583756345 | BT130: 0.01015228426 | BU130: 197 | BV130: 1 | BW130: 22 | BX130: 6741 | BY130: PONCE DE LEON MIDDLE | BZ130: 81 | CA130: 64 | CB130: 26 | CC130: 8 | CD130: 7 | CE130: 0.435483871 | CF130: 0.3440860215 | CG130: 0.1397849462 | CH130: 0.04301075269 | CI130: 0.0376344086 | CJ130: 186 | CK130: 1 | CL130: 22
A131: 2641 | B131: KENDALE ELEMENTARY | C131: 9 | D131: 17 | E131: 27 | F131: 28 | G131: 8 | H131: 0.1011235955 | I131: 0.191011236 | J131: 0.3033707865 | K131: 0.3146067416 | L131: 0.08988764045 | M131: 89 | N131: 1 | O131: 71 | P131: 2661 | Q131: KENSINGTON PARK ELEMENTARY | R131: 45 | S131: 37 | T131: 44 | U131: 24 | V131: 11 | W131: 0.2795031056 | X131: 0.2298136646 | Y131: 0.2732919255 | Z131: 0.149068323 | AA131: 0.06832298137 | AB131: 161 | AC131: 1 | AD131: 49 | AE131: 2661 | AF131: KENSINGTON PARK ELEMENTARY | AG131: 34 | AH131: 23 | AI131: 39 | AJ131: 43 | AK131: 21 | AL131: 0.2125 | AM131: 0.14375 | AN131: 0.24375 | AO131: 0.26875 | AP131: 0.13125 | AQ131: 160 | AR131: 1 | AS131: 64 | AT131: 6301 | AU131: JOHN F. KENNEDY MIDDLE | AV131: 110 | AW131: 100 | AX131: 76 | AY131: 65 | AZ131: 7 | BA131: 0.3072625698 | BB131: 0.2793296089 | BC131: 0.2122905028 | BD131: 0.1815642458 | BE131: 0.01955307263 | BF131: 358 | BG131: 1 | BH131: 41 | BI131: 6441 | BJ131: HOWARD D. MCMILLAN MIDDLE | BK131: 37 | BL131: 43 | BM131: 64 | BN131: 38 | BO131: 27 | BP131: 0.1770334928 | BQ131: 0.2057416268 | BR131: 0.3062200957 | BS131: 0.1818181818 | BT131: 0.1291866029 | BU131: 209 | BV131: 1 | BW131: 62 | BX131: 6751 | BY131: HIALEAH GARDENS MIDDLE SCHOOL | BZ131: 58 | CA131: 73 | CB131: 49 | CC131: 8 | CD131: 7 | CE131: 0.2974358974 | CF131: 0.3743589744 | CG131: 0.2512820513 | CH131: 0.04102564103 | CI131: 0.0358974359 | CJ131: 195 | CK131: 1 | CL131: 33
A132: 2651 | B132: KENDALE LAKES ELEMENTARY | C132: 10 | D132: 22 | E132: 51 | F132: 53 | G132: 15 | H132: 0.06622516556 | I132: 0.1456953642 | J132: 0.3377483444 | K132: 0.3509933775 | L132: 0.09933774834 | M132: 151 | N132: 1 | O132: 79 | P132: 2701 | Q132: KENWOOD K-8 CENTER | R132: 18 | S132: 20 | T132: 36 | U132: 18 | V132: 10 | W132: 0.1764705882 | X132: 0.1960784314 | Y132: 0.3529411765 | Z132: 0.1764705882 | AA132: 0.09803921569 | AB132: 102 | AC132: 1 | AD132: 63 | AE132: 2701 | AF132: KENWOOD K-8 CENTER | AG132: 23 | AH132: 35 | AI132: 37 | AJ132: 24 | AK132: 6 | AL132: 0.184 | AM132: 0.28 | AN132: 0.296 | AO132: 0.192 | AP132: 0.048 | AQ132: 125 | AR132: 1 | AS132: 54 | AT132: 6331 | AU132: KINLOCH PARK MIDDLE | AV132: 138 | AW132: 93 | AX132: 45 | AY132: 19 | AZ132: 3 | BA132: 0.4630872483 | BB132: 0.3120805369 | BC132: 0.1510067114 | BD132: 0.06375838926 | BE132: 0.01006711409 | BF132: 298 | BG132: 1 | BH132: 22 | BI132: 6501 | BJ132: MIAMI LAKES MIDDLE | BK132: 75 | BL132: 75 | BM132: 84 | BN132: 30 | BO132: 12 | BP132: 0.2717391304 | BQ132: 0.2717391304 | BR132: 0.3043478261 | BS132: 0.1086956522 | BT132: 0.04347826087 | BU132: 276 | BV132: 1 | BW132: 46 | BX132: 6761 | BY132: REDLAND MIDDLE | BZ132: 81 | CA132: 59 | CB132: 22 | CC132: 4 | CE132: 0.4879518072 | CF132: 0.3554216867 | CG132: 0.1325301205 | CH132: 0.02409638554 | CI132: 0 | CJ132: 166 | CK132: 1 | CL132: 16
A133: 2661 | B133: KENSINGTON PARK ELEMENTARY | C133: 44 | D133: 37 | E133: 47 | F133: 34 | G133: 10 | H133: 0.2558139535 | I133: 0.2151162791 | J133: 0.273255814 | K133: 0.1976744186 | L133: 0.05813953488 | M133: 172 | N133: 1 | O133: 53 | P133: 2741 | Q133: KEY BISCAYNE K-8 CENTER | R133: 10 | S133: 15 | T133: 47 | U133: 56 | V133: 59 | W133: 0.05347593583 | X133: 0.08021390374 | Y133: 0.2513368984 | Z133: 0.2994652406 | AA133: 0.3155080214 | AB133: 187 | AC133: 1 | AD133: 87 | AE133: 2741 | AF133: KEY BISCAYNE K-8 CENTER | AG133: 3 | AH133: 23 | AI133: 38 | AJ133: 59 | AK133: 61 | AL133: 0.01630434783 | AM133: 0.125 | AN133: 0.2065217391 | AO133: 0.3206521739 | AP133: 0.3315217391 | AQ133: 184 | AR133: 1 | AS133: 86 | AT133: 6351 | AU133: LAKE STEVENS MIDDLE | AV133: 60 | AW133: 48 | AX133: 36 | AY133: 8 | AZ133: 4 | BA133: 0.3846153846 | BB133: 0.3076923077 | BC133: 0.2307692308 | BD133: 0.05128205128 | BE133: 0.02564102564 | BF133: 156 | BG133: 1 | BH133: 31 | BI133: 6521 | BJ133: MIAMI SPRINGS MIDDLE | BK133: 167 | BL133: 67 | BM133: 61 | BN133: 14 | BO133: 3 | BP133: 0.5352564103 | BQ133: 0.2147435897 | BR133: 0.1955128205 | BS133: 0.04487179487 | BT133: 0.009615384615 | BU133: 312 | BV133: 1 | BW133: 25 | BX133: 6771 | BY133: JORGE MAS CANOSA MIDDLE | BZ133: 115 | CA133: 97 | CB133: 131 | CC133: 85 | CD133: 64 | CE133: 0.2337398374 | CF133: 0.1971544715 | CG133: 0.2662601626 | CH133: 0.1727642276 | CI133: 0.1300813008 | CJ133: 492 | CK133: 1 | CL133: 57
A134: 2701 | B134: KENWOOD K-8 CENTER | C134: 16 | D134: 29 | E134: 48 | F134: 36 | G134: 18 | H134: 0.1088435374 | I134: 0.1972789116 | J134: 0.3265306122 | K134: 0.2448979592 | L134: 0.1224489796 | M134: 147 | N134: 1 | O134: 69 | P134: 2781 | Q134: KINLOCH PARK ELEMENTARY | R134: 37 | S134: 28 | T134: 33 | U134: 22 | V134: 10 | W134: 0.2846153846 | X134: 0.2153846154 | Y134: 0.2538461538 | Z134: 0.1692307692 | AA134: 0.07692307692 | AB134: 130 | AC134: 1 | AD134: 50 | AE134: 2781 | AF134: KINLOCH PARK ELEMENTARY | AG134: 28 | AH134: 30 | AI134: 25 | AJ134: 24 | AK134: 16 | AL134: 0.2276422764 | AM134: 0.243902439 | AN134: 0.2032520325 | AO134: 0.1951219512 | AP134: 0.1300813008 | AQ134: 123 | AR134: 1 | AS134: 53 | AT134: 6361 | AU134: JOSE DE DIEGO MIDDLE SCHOOL | AV134: 119 | AW134: 58 | AX134: 28 | AY134: 11 | AZ134: 1 | BA134: 0.5483870968 | BB134: 0.267281106 | BC134: 0.1290322581 | BD134: 0.05069124424 | BE134: 0.004608294931 | BF134: 217 | BG134: 1 | BH134: 18 | BI134: 6541 | BJ134: NAUTILUS MIDDLE | BK134: 107 | BL134: 45 | BM134: 51 | BN134: 33 | BO134: 12 | BP134: 0.4314516129 | BQ134: 0.1814516129 | BR134: 0.2056451613 | BS134: 0.1330645161 | BT134: 0.04838709677 | BU134: 248 | BV134: 1 | BW134: 39 | BX134: 6781 | BY134: RICHMOND HEIGHTS MIDDLE | BZ134: 73 | CA134: 35 | CB134: 29 | CC134: 3 | CE134: 0.5214285714 | CF134: 0.25 | CG134: 0.2071428571 | CH134: 0.02142857143 | CI134: 0 | CJ134: 140 | CK134: 1 | CL134: 23
A135: 2741 | B135: KEY BISCAYNE K-8 CENTER | C135: 13 | D135: 19 | E135: 65 | F135: 71 | G135: 33 | H135: 0.06467661692 | I135: 0.09452736318 | J135: 0.3233830846 | K135: 0.3532338308 | L135: 0.1641791045 | M135: 201 | N135: 1 | O135: 84 | P135: 2801 | Q135: LAKE STEVENS ELEMENTARY | R135: 15 | S135: 12 | T135: 9 | U135: 4 | V135: 2 | W135: 0.3571428571 | X135: 0.2857142857 | Y135: 0.2142857143 | Z135: 0.09523809524 | AA135: 0.04761904762 | AB135: 42 | AC135: 1 | AD135: 36 | AE135: 2801 | AF135: LAKE STEVENS ELEMENTARY | AG135: 8 | AH135: 10 | AI135: 12 | AJ135: 7 | AK135: 3 | AL135: 0.2 | AM135: 0.25 | AN135: 0.3 | AO135: 0.175 | AP135: 0.075 | AQ135: 40 | AR135: 1 | AS135: 55 | AT135: 6391 | AU135: MADISON MIDDLE SCHOOL | AV135: 73 | AW135: 33 | AX135: 30 | AY135: 13 | AZ135: 5 | BA135: 0.474025974 | BB135: 0.2142857143 | BC135: 0.1948051948 | BD135: 0.08441558442 | BE135: 0.03246753247 | BF135: 154 | BG135: 1 | BH135: 31 | BI135: 6571 | BJ135: NORLAND MIDDLE | BK135: 143 | BL135: 68 | BM135: 43 | BN135: 15 | BO135: 4 | BP135: 0.5238095238 | BQ135: 0.2490842491 | BR135: 0.1575091575 | BS135: 0.05494505495 | BT135: 0.01465201465 | BU135: 273 | BV135: 1 | BW135: 23 | BX135: 6801 | BY135: RIVIERA MIDDLE | BZ135: 52 | CA135: 40 | CB135: 31 | CC135: 16 | CD135: 6 | CE135: 0.3586206897 | CF135: 0.275862069 | CG135: 0.2137931034 | CH135: 0.1103448276 | CI135: 0.04137931034 | CJ135: 145 | CK135: 1 | CL135: 37
A136: 2781 | B136: KINLOCH PARK ELEMENTARY | C136: 40 | D136: 25 | E136: 40 | F136: 23 | G136: 12 | H136: 0.2857142857 | I136: 0.1785714286 | J136: 0.2857142857 | K136: 0.1642857143 | L136: 0.08571428571 | M136: 140 | N136: 1 | O136: 54 | P136: 2821 | Q136: LAKEVIEW ELEMENTARY | R136: 19 | S136: 15 | T136: 13 | U136: 10 | V136: 5 | W136: 0.3064516129 | X136: 0.2419354839 | Y136: 0.2096774194 | Z136: 0.1612903226 | AA136: 0.08064516129 | AB136: 62 | AC136: 1 | AD136: 45 | AE136: 2821 | AF136: LAKEVIEW ELEMENTARY | AG136: 5 | AH136: 9 | AI136: 15 | AJ136: 12 | AK136: 4 | AL136: 0.1111111111 | AM136: 0.2 | AN136: 0.3333333333 | AO136: 0.2666666667 | AP136: 0.08888888889 | AQ136: 45 | AR136: 1 | AS136: 69 | AT136: 6411 | AU136: HORACE MANN MIDDLE | AV136: 91 | AW136: 67 | AX136: 39 | AY136: 19 | AZ136: 4 | BA136: 0.4136363636 | BB136: 0.3045454545 | BC136: 0.1772727273 | BD136: 0.08636363636 | BE136: 0.01818181818 | BF136: 220 | BG136: 1 | BH136: 28 | BI136: 6591 | BJ136: NORTH DADE MIDDLE | BK136: 127 | BL136: 33 | BM136: 33 | BN136: 6 | BO136: 1 | BP136: 0.635 | BQ136: 0.165 | BR136: 0.165 | BS136: 0.03 | BT136: 0.005 | BU136: 200 | BV136: 1 | BW136: 20 | BX136: 6821 | BY136: ROCKWAY MIDDLE | BZ136: 64 | CA136: 58 | CB136: 61 | CC136: 34 | CD136: 17 | CE136: 0.2735042735 | CF136: 0.2478632479 | CG136: 0.2606837607 | CH136: 0.1452991453 | CI136: 0.07264957265 | CJ136: 234 | CK136: 1 | CL136: 48
A137: 2801 | B137: LAKE STEVENS ELEMENTARY | C137: 16 | D137: 9 | E137: 10 | F137: 11 | G137: 1 | H137: 0.3404255319 | I137: 0.1914893617 | J137: 0.2127659574 | K137: 0.2340425532 | L137: 0.02127659574 | M137: 47 | N137: 1 | O137: 47 | P137: 2881 | Q137: LEEWOOD K-8 CENTER | R137: 7 | S137: 8 | T137: 17 | U137: 34 | V137: 22 | W137: 0.07954545455 | X137: 0.09090909091 | Y137: 0.1931818182 | Z137: 0.3863636364 | AA137: 0.25 | AB137: 88 | AC137: 1 | AD137: 83 | AE137: 2881 | AF137: LEEWOOD K-8 CENTER | AG137: 14 | AH137: 10 | AI137: 15 | AJ137: 31 | AK137: 25 | AL137: 0.1473684211 | AM137: 0.1052631579 | AN137: 0.1578947368 | AO137: 0.3263157895 | AP137: 0.2631578947 | AQ137: 95 | AR137: 1 | AS137: 75 | AT137: 6441 | AU137: HOWARD D. MCMILLAN MIDDLE | AV137: 46 | AW137: 53 | AX137: 54 | AY137: 70 | AZ137: 38 | BA137: 0.1762452107 | BB137: 0.2030651341 | BC137: 0.2068965517 | BD137: 0.2681992337 | BE137: 0.1455938697 | BF137: 261 | BG137: 1 | BH137: 62 | BI137: 6611 | BJ137: COUNTRY CLUB MIDDLE SCHOOL | BK137: 122 | BL137: 59 | BM137: 36 | BN137: 10 | BP137: 0.5374449339 | BQ137: 0.2599118943 | BR137: 0.1585903084 | BS137: 0.04405286344 | BT137: 0 | BU137: 227 | BV137: 1 | BW137: 20 | BX137: 6841 | BY137: SHENANDOAH MIDDLE | BZ137: 140 | CA137: 46 | CB137: 47 | CC137: 9 | CD137: 2 | CE137: 0.5737704918 | CF137: 0.1885245902 | CG137: 0.1926229508 | CH137: 0.0368852459 | CI137: 0.008196721311 | CJ137: 244 | CK137: 1 | CL137: 24
A138: 2821 | B138: LAKEVIEW ELEMENTARY | C138: 14 | D138: 14 | E138: 22 | F138: 12 | G138: 1 | H138: 0.2222222222 | I138: 0.2222222222 | J138: 0.3492063492 | K138: 0.1904761905 | L138: 0.01587301587 | M138: 63 | N138: 1 | O138: 56 | P138: 2891 | Q138: WILLIAM LEHMAN ELEMENTARY | R138: 12 | S138: 8 | T138: 23 | U138: 37 | V138: 31 | W138: 0.1081081081 | X138: 0.07207207207 | Y138: 0.2072072072 | Z138: 0.3333333333 | AA138: 0.2792792793 | AB138: 111 | AC138: 1 | AD138: 82 | AE138: 2891 | AF138: WILLIAM LEHMAN ELEMENTARY | AG138: 2 | AH138: 12 | AI138: 26 | AJ138: 25 | AK138: 19 | AL138: 0.02380952381 | AM138: 0.1428571429 | AN138: 0.3095238095 | AO138: 0.2976190476 | AP138: 0.2261904762 | AQ138: 84 | AR138: 1 | AS138: 83 | AT138: 6501 | AU138: MIAMI LAKES MIDDLE | AV138: 74 | AW138: 64 | AX138: 75 | AY138: 89 | AZ138: 43 | BA138: 0.2144927536 | BB138: 0.1855072464 | BC138: 0.2173913043 | BD138: 0.2579710145 | BE138: 0.1246376812 | BF138: 345 | BG138: 1 | BH138: 60 | BI138: 6631 | BJ138: NORTH MIAMI MIDDLE | BK138: 165 | BL138: 77 | BM138: 40 | BN138: 7 | BO138: 1 | BP138: 0.5689655172 | BQ138: 0.2655172414 | BR138: 0.1379310345 | BS138: 0.02413793103 | BT138: 0.003448275862 | BU138: 290 | BV138: 1 | BW138: 17 | BX138: 6861 | BY138: SOUTHWOOD MIDDLE | BZ138: 57 | CA138: 46 | CB138: 76 | CC138: 45 | CD138: 16 | CE138: 0.2375 | CF138: 0.1916666667 | CG138: 0.3166666667 | CH138: 0.1875 | CI138: 0.06666666667 | CJ138: 240 | CK138: 1 | CL138: 57
A139: 2881 | B139: LEEWOOD K-8 CENTER | C139: 3 | D139: 11 | E139: 23 | F139: 38 | G139: 31 | H139: 0.02830188679 | I139: 0.1037735849 | J139: 0.2169811321 | K139: 0.358490566 | L139: 0.2924528302 | M139: 106 | N139: 1 | O139: 87 | P139: 2901 | Q139: LEISURE CITY K-8 CENTER | R139: 43 | S139: 26 | T139: 20 | U139: 12 | V139: 4 | W139: 0.4095238095 | X139: 0.2476190476 | Y139: 0.1904761905 | Z139: 0.1142857143 | AA139: 0.0380952381 | AB139: 105 | AC139: 1 | AD139: 34 | AE139: 2901 | AF139: LEISURE CITY K-8 CENTER | AG139: 55 | AH139: 22 | AI139: 26 | AJ139: 12 | AK139: 3 | AL139: 0.4661016949 | AM139: 0.186440678 | AN139: 0.2203389831 | AO139: 0.1016949153 | AP139: 0.02542372881 | AQ139: 118 | AR139: 1 | AS139: 35 | AT139: 6521 | AU139: MIAMI SPRINGS MIDDLE | AV139: 175 | AW139: 62 | AX139: 51 | AY139: 29 | AZ139: 6 | BA139: 0.5417956656 | BB139: 0.1919504644 | BC139: 0.1578947368 | BD139: 0.08978328173 | BE139: 0.01857585139 | BF139: 323 | BG139: 1 | BH139: 27 | BI139: 6681 | BJ139: PALM SPRINGS MIDDLE | BK139: 145 | BL139: 65 | BM139: 56 | BN139: 15 | BO139: 3 | BP139: 0.5105633803 | BQ139: 0.2288732394 | BR139: 0.1971830986 | BS139: 0.05281690141 | BT139: 0.01056338028 | BU139: 284 | BV139: 1 | BW139: 26 | BX139: 6881 | BY139: SOUTH MIAMI MIDDLE SCHOOL | BZ139: 43 | CA139: 29 | CB139: 28 | CC139: 33 | CD139: 10 | CE139: 0.3006993007 | CF139: 0.2027972028 | CG139: 0.1958041958 | CH139: 0.2307692308 | CI139: 0.06993006993 | CJ139: 143 | CK139: 1 | CL139: 50
A140: 2891 | B140: WILLIAM LEHMAN ELEMENTARY | C140: 14 | D140: 14 | E140: 25 | F140: 39 | G140: 18 | H140: 0.1272727273 | I140: 0.1272727273 | J140: 0.2272727273 | K140: 0.3545454545 | L140: 0.1636363636 | M140: 110 | N140: 1 | O140: 75 | P140: 2911 | Q140: LINDA LENTIN K-8 CENTER | R140: 27 | S140: 19 | T140: 19 | U140: 22 | V140: 1 | W140: 0.3068181818 | X140: 0.2159090909 | Y140: 0.2159090909 | Z140: 0.25 | AA140: 0.01136363636 | AB140: 88 | AC140: 1 | AD140: 48 | AE140: 2911 | AF140: LINDA LENTIN K-8 CENTER | AG140: 39 | AH140: 20 | AI140: 24 | AJ140: 8 | AL140: 0.4285714286 | AM140: 0.2197802198 | AN140: 0.2637362637 | AO140: 0.08791208791 | AP140: 0 | AQ140: 91 | AR140: 1 | AS140: 35 | AT140: 6541 | AU140: NAUTILUS MIDDLE | AV140: 113 | AW140: 71 | AX140: 61 | AY140: 69 | AZ140: 48 | BA140: 0.3121546961 | BB140: 0.1961325967 | BC140: 0.1685082873 | BD140: 0.1906077348 | BE140: 0.1325966851 | BF140: 362 | BG140: 1 | BH140: 49 | BI140: 6701 | BJ140: PALMETTO MIDDLE | BK140: 85 | BL140: 52 | BM140: 80 | BN140: 79 | BO140: 53 | BP140: 0.2435530086 | BQ140: 0.1489971347 | BR140: 0.229226361 | BS140: 0.2263610315 | BT140: 0.1518624642 | BU140: 349 | BV140: 1 | BW140: 61 | BX140: 6901 | BY140: W. R. THOMAS MIDDLE | BZ140: 58 | CA140: 43 | CB140: 38 | CC140: 7 | CD140: 5 | CE140: 0.3841059603 | CF140: 0.2847682119 | CG140: 0.2516556291 | CH140: 0.04635761589 | CI140: 0.03311258278 | CJ140: 151 | CK140: 1 | CL140: 33
A141: 2901 | B141: LEISURE CITY K-8 CENTER | C141: 36 | D141: 31 | E141: 25 | F141: 16 | G141: 2 | H141: 0.3272727273 | I141: 0.2818181818 | J141: 0.2272727273 | K141: 0.1454545455 | L141: 0.01818181818 | M141: 110 | N141: 1 | O141: 39 | P141: 2941 | Q141: LAURA C. SAUNDERS ELEMENTARY | R141: 38 | S141: 23 | T141: 18 | U141: 4 | V141: 4 | W141: 0.4367816092 | X141: 0.2643678161 | Y141: 0.2068965517 | Z141: 0.04597701149 | AA141: 0.04597701149 | AB141: 87 | AC141: 1 | AD141: 30 | AE141: 2941 | AF141: LAURA C. SAUNDERS ELEMENTARY | AG141: 16 | AH141: 23 | AI141: 26 | AJ141: 14 | AK141: 6 | AL141: 0.1882352941 | AM141: 0.2705882353 | AN141: 0.3058823529 | AO141: 0.1647058824 | AP141: 0.07058823529 | AQ141: 85 | AR141: 1 | AS141: 54 | AT141: 6571 | AU141: NORLAND MIDDLE | AV141: 125 | AW141: 79 | AX141: 39 | AY141: 10 | AZ141: 3 | BA141: 0.48828125 | BB141: 0.30859375 | BC141: 0.15234375 | BD141: 0.0390625 | BE141: 0.01171875 | BF141: 256 | BG141: 1 | BH141: 20 | BI141: 6741 | BJ141: PONCE DE LEON MIDDLE | BK141: 109 | BL141: 72 | BM141: 89 | BN141: 47 | BO141: 16 | BP141: 0.3273273273 | BQ141: 0.2162162162 | BR141: 0.2672672673 | BS141: 0.1411411411 | BT141: 0.04804804805 | BU141: 333 | BV141: 1 | BW141: 46 | BX141: 6921 | BY141: LAMAR LOUISE CURRY MIDDLE SCH | BZ141: 88 | CA141: 51 | CB141: 31 | CC141: 5 | CD141: 2 | CE141: 0.4971751412 | CF141: 0.2881355932 | CG141: 0.1751412429 | CH141: 0.02824858757 | CI141: 0.01129943503 | CJ141: 177 | CK141: 1 | CL141: 21
A142: 2911 | B142: LINDA LENTIN K-8 CENTER | C142: 31 | D142: 23 | E142: 36 | F142: 9 | G142: 1 | H142: 0.31 | I142: 0.23 | J142: 0.36 | K142: 0.09 | L142: 0.01 | M142: 100 | N142: 1 | O142: 46 | P142: 2981 | Q142: LIBERTY CITY ELEMENTARY | R142: 19 | S142: 9 | T142: 13 | U142: 6 | V142: 3 | W142: 0.38 | X142: 0.18 | Y142: 0.26 | Z142: 0.12 | AA142: 0.06 | AB142: 50 | AC142: 1 | AD142: 44 | AE142: 2981 | AF142: LIBERTY CITY ELEMENTARY | AG142: 18 | AH142: 14 | AI142: 6 | AJ142: 1 | AL142: 0.4615384615 | AM142: 0.358974359 | AN142: 0.1538461538 | AO142: 0.02564102564 | AP142: 0 | AQ142: 39 | AR142: 1 | AS142: 18 | AT142: 6591 | AU142: NORTH DADE MIDDLE | AV142: 110 | AW142: 73 | AX142: 28 | AY142: 8 | BA142: 0.502283105 | BB142: 0.3333333333 | BC142: 0.1278538813 | BD142: 0.03652968037 | BE142: 0 | BF142: 219 | BG142: 1 | BH142: 16 | BI142: 6751 | BJ142: HIALEAH GARDENS MIDDLE SCHOOL | BK142: 116 | BL142: 149 | BM142: 216 | BN142: 83 | BO142: 25 | BP142: 0.1969439728 | BQ142: 0.2529711375 | BR142: 0.3667232598 | BS142: 0.1409168081 | BT142: 0.04244482173 | BU142: 589 | BV142: 1 | BW142: 55 | BX142: 6961 | BY142: WEST MIAMI MIDDLE | BZ142: 79 | CA142: 80 | CB142: 34 | CC142: 9 | CD142: 4 | CE142: 0.3834951456 | CF142: 0.3883495146 | CG142: 0.1650485437 | CH142: 0.04368932039 | CI142: 0.01941747573 | CJ142: 206 | CK142: 1 | CL142: 23
A143: 2941 | B143: LAURA C. SAUNDERS ELEMENTARY | C143: 62 | D143: 31 | E143: 29 | F143: 17 | G143: 2 | H143: 0.4397163121 | I143: 0.219858156 | J143: 0.2056737589 | K143: 0.1205673759 | L143: 0.01418439716 | M143: 141 | N143: 1 | O143: 34 | P143: 3021 | Q143: JESSE J MCCRARY JR ELEMENTARY | R143: 27 | S143: 17 | T143: 31 | U143: 10 | V143: 3 | W143: 0.3068181818 | X143: 0.1931818182 | Y143: 0.3522727273 | Z143: 0.1136363636 | AA143: 0.03409090909 | AB143: 88 | AC143: 1 | AD143: 50 | AE143: 3021 | AF143: JESSE J MCCRARY JR ELEMENTARY | AG143: 25 | AH143: 17 | AI143: 18 | AJ143: 11 | AK143: 4 | AL143: 0.3333333333 | AM143: 0.2266666667 | AN143: 0.24 | AO143: 0.1466666667 | AP143: 0.05333333333 | AQ143: 75 | AR143: 1 | AS143: 44 | AT143: 6611 | AU143: COUNTRY CLUB MIDDLE SCHOOL | AV143: 111 | AW143: 40 | AX143: 18 | AY143: 9 | AZ143: 3 | BA143: 0.6132596685 | BB143: 0.2209944751 | BC143: 0.09944751381 | BD143: 0.04972375691 | BE143: 0.01657458564 | BF143: 181 | BG143: 1 | BH143: 17 | BI143: 6761 | BJ143: REDLAND MIDDLE | BK143: 80 | BL143: 26 | BM143: 30 | BN143: 7 | BO143: 2 | BP143: 0.5517241379 | BQ143: 0.1793103448 | BR143: 0.2068965517 | BS143: 0.04827586207 | BT143: 0.01379310345 | BU143: 145 | BV143: 1 | BW143: 27 | BX143: 6997 | BY143: MATER VIRTUAL ACADEMY CHARTER | CC143: 1 | CE143: 0 | CF143: 0 | CG143: 0 | CH143: 1 | CI143: 0 | CJ143: 1 | CK143: 1
A144: 2981 | B144: LIBERTY CITY ELEMENTARY | C144: 16 | D144: 14 | E144: 23 | F144: 12 | G144: 3 | H144: 0.2352941176 | I144: 0.2058823529 | J144: 0.3382352941 | K144: 0.1764705882 | L144: 0.04411764706 | M144: 68 | N144: 1 | O144: 56 | P144: 3025 | Q144: ADVANTAGE ACADEMY SANTA FE | R144: 9 | S144: 9 | T144: 21 | U144: 11 | V144: 8 | W144: 0.1551724138 | X144: 0.1551724138 | Y144: 0.3620689655 | Z144: 0.1896551724 | AA144: 0.1379310345 | AB144: 58 | AC144: 1 | AD144: 69 | AE144: 3025 | AF144: ADVANTAGE ACADEMY SANTA FE | AG144: 2 | AH144: 13 | AI144: 14 | AJ144: 7 | AK144: 2 | AL144: 0.05263157895 | AM144: 0.3421052632 | AN144: 0.3684210526 | AO144: 0.1842105263 | AP144: 0.05263157895 | AQ144: 38 | AR144: 1 | AS144: 61 | AT144: 6631 | AU144: NORTH MIAMI MIDDLE | AV144: 140 | AW144: 71 | AX144: 41 | AY144: 13 | AZ144: 6 | BA144: 0.5166051661 | BB144: 0.2619926199 | BC144: 0.1512915129 | BD144: 0.0479704797 | BE144: 0.0221402214 | BF144: 271 | BG144: 1 | BH144: 22 | BI144: 6771 | BJ144: JORGE MAS CANOSA MIDDLE | BK144: 150 | BL144: 159 | BM144: 159 | BN144: 66 | BO144: 22 | BP144: 0.2697841727 | BQ144: 0.285971223 | BR144: 0.285971223 | BS144: 0.118705036 | BT144: 0.03956834532 | BU144: 556 | BV144: 1 | BW144: 44 | BX144: 7001 | BY144: MIAMI-DADE ONLINE ACADEMY 7001 | BZ144: 3 | CA144: 1 | CB144: 3 | CC144: 1 | CD144: 2 | CE144: 0.3 | CF144: 0.1 | CG144: 0.3 | CH144: 0.1 | CI144: 0.2 | CJ144: 10 | CK144: 1 | CL144: 60
A145: 3002 | B145: DOWNTOWN DORAL CHARTER ELEM | C145: 2 | D145: 9 | E145: 13 | F145: 34 | G145: 18 | H145: 0.02631578947 | I145: 0.1184210526 | J145: 0.1710526316 | K145: 0.4473684211 | L145: 0.2368421053 | M145: 76 | N145: 1 | O145: 86 | P145: 3030 | Q145: DORAL ACADEMY | R145: 5 | S145: 11 | T145: 45 | U145: 80 | V145: 73 | W145: 0.02336448598 | X145: 0.05140186916 | Y145: 0.2102803738 | Z145: 0.3738317757 | AA145: 0.3411214953 | AB145: 214 | AC145: 1 | AD145: 93 | AE145: 3030 | AF145: DORAL ACADEMY | AG145: 7 | AH145: 9 | AI145: 49 | AJ145: 57 | AK145: 57 | AL145: 0.03910614525 | AM145: 0.05027932961 | AN145: 0.2737430168 | AO145: 0.3184357542 | AP145: 0.3184357542 | AQ145: 179 | AR145: 1 | AS145: 91 | AT145: 6681 | AU145: PALM SPRINGS MIDDLE | AV145: 157 | AW145: 97 | AX145: 48 | AY145: 22 | AZ145: 1 | BA145: 0.4830769231 | BB145: 0.2984615385 | BC145: 0.1476923077 | BD145: 0.06769230769 | BE145: 0.003076923077 | BF145: 325 | BG145: 1 | BH145: 22 | BI145: 6781 | BJ145: RICHMOND HEIGHTS MIDDLE | BK145: 79 | BL145: 46 | BM145: 32 | BN145: 13 | BP145: 0.4647058824 | BQ145: 0.2705882353 | BR145: 0.1882352941 | BS145: 0.07647058824 | BT145: 0 | BU145: 170 | BV145: 1 | BW145: 26 | BX145: 7056 | BY145: YOUNG MENS PREPARATORY ACADEMY | BZ145: 5 | CA145: 9 | CB145: 12 | CC145: 5 | CE145: 0.1612903226 | CF145: 0.2903225806 | CG145: 0.3870967742 | CH145: 0.1612903226 | CI145: 0 | CJ145: 31 | CK145: 1 | CL145: 55
A146: 3021 | B146: JESSE J MCCRARY JR ELEMENTARY | C146: 39 | D146: 33 | E146: 13 | F146: 5 | G146: 1 | H146: 0.4285714286 | I146: 0.3626373626 | J146: 0.1428571429 | K146: 0.05494505495 | L146: 0.01098901099 | M146: 91 | N146: 1 | O146: 21 | P146: 3033 | Q146: SOMERSET OAKS ACADEMY | R146: 31 | S146: 18 | T146: 29 | U146: 14 | V146: 5 | W146: 0.3195876289 | X146: 0.1855670103 | Y146: 0.2989690722 | Z146: 0.1443298969 | AA146: 0.05154639175 | AB146: 97 | AC146: 1 | AD146: 49 | AE146: 3033 | AF146: SOMERSET OAKS ACADEMY | AG146: 12 | AH146: 18 | AI146: 11 | AJ146: 2 | AK146: 3 | AL146: 0.2608695652 | AM146: 0.3913043478 | AN146: 0.2391304348 | AO146: 0.04347826087 | AP146: 0.0652173913 | AQ146: 46 | AR146: 1 | AS146: 35 | AT146: 6701 | AU146: PALMETTO MIDDLE | AV146: 65 | AW146: 60 | AX146: 66 | AY146: 84 | AZ146: 47 | BA146: 0.201863354 | BB146: 0.1863354037 | BC146: 0.2049689441 | BD146: 0.2608695652 | BE146: 0.1459627329 | BF146: 322 | BG146: 1 | BH146: 61 | BI146: 6801 | BJ146: RIVIERA MIDDLE | BK146: 57 | BL146: 41 | BM146: 49 | BN146: 12 | BO146: 2 | BP146: 0.3540372671 | BQ146: 0.2546583851 | BR146: 0.3043478261 | BS146: 0.07453416149 | BT146: 0.01242236025 | BU146: 161 | BV146: 1 | BW146: 39 | BX146: 7059 | BY146: MIAMI ARTS CHARTER | BZ146: 19 | CA146: 25 | CB146: 67 | CC146: 54 | CD146: 59 | CE146: 0.08482142857 | CF146: 0.1116071429 | CG146: 0.2991071429 | CH146: 0.2410714286 | CI146: 0.2633928571 | CJ146: 224 | CK146: 1 | CL146: 80
A147: 3025 | B147: ADVANTAGE ACADEMY SANTA FE | C147: 4 | D147: 11 | E147: 13 | F147: 17 | G147: 2 | H147: 0.08510638298 | I147: 0.2340425532 | J147: 0.2765957447 | K147: 0.3617021277 | L147: 0.04255319149 | M147: 47 | N147: 1 | O147: 68 | P147: 3034 | Q147: BRIDGEPREP ACAD VILLAGE GREEN | R147: 29 | S147: 12 | T147: 31 | U147: 22 | V147: 4 | W147: 0.2959183673 | X147: 0.1224489796 | Y147: 0.3163265306 | Z147: 0.2244897959 | AA147: 0.04081632653 | AB147: 98 | AC147: 1 | AD147: 58 | AE147: 3034 | AF147: BRIDGEPREP ACAD VILLAGE GREEN | AG147: 11 | AH147: 14 | AI147: 13 | AJ147: 20 | AK147: 3 | AL147: 0.1803278689 | AM147: 0.2295081967 | AN147: 0.2131147541 | AO147: 0.3278688525 | AP147: 0.04918032787 | AQ147: 61 | AR147: 1 | AS147: 59 | AT147: 6741 | AU147: PONCE DE LEON MIDDLE | AV147: 98 | AW147: 77 | AX147: 88 | AY147: 98 | AZ147: 27 | BA147: 0.2525773196 | BB147: 0.1984536082 | BC147: 0.2268041237 | BD147: 0.2525773196 | BE147: 0.06958762887 | BF147: 388 | BG147: 1 | BH147: 55 | BI147: 6821 | BJ147: ROCKWAY MIDDLE | BK147: 87 | BL147: 74 | BM147: 75 | BN147: 45 | BO147: 21 | BP147: 0.2880794702 | BQ147: 0.2450331126 | BR147: 0.2483443709 | BS147: 0.1490066225 | BT147: 0.06953642384 | BU147: 302 | BV147: 1 | BW147: 47 | BX147: 7262 | BY147: CITY OF HIALEAH EDUCATION ACAD | BZ147: 16 | CA147: 31 | CB147: 27 | CC147: 7 | CD147: 4 | CE147: 0.1882352941 | CF147: 0.3647058824 | CG147: 0.3176470588 | CH147: 0.08235294118 | CI147: 0.04705882353 | CJ147: 85 | CK147: 1 | CL147: 45
A148: 3030 | B148: DORAL ACADEMY | C148: 4 | D148: 20 | E148: 75 | F148: 81 | G148: 51 | H148: 0.01731601732 | I148: 0.08658008658 | J148: 0.3246753247 | K148: 0.3506493506 | L148: 0.2207792208 | M148: 231 | N148: 1 | O148: 90 | P148: 3035 | Q148: RAMZ ACADEMY ELEM MIAMI CAMPUS | R148: 16 | S148: 6 | T148: 12 | U148: 5 | V148: 2 | W148: 0.3902439024 | X148: 0.1463414634 | Y148: 0.2926829268 | Z148: 0.1219512195 | AA148: 0.0487804878 | AB148: 41 | AC148: 1 | AD148: 46 | AE148: 3035 | AF148: RAMZ ACADEMY ELEM MIAMI CAMPUS | AG148: 6 | AH148: 7 | AI148: 2 | AJ148: 3 | AK148: 2 | AL148: 0.3 | AM148: 0.35 | AN148: 0.1 | AO148: 0.15 | AP148: 0.1 | AQ148: 20 | AR148: 1 | AS148: 35 | AT148: 6751 | AU148: HIALEAH GARDENS MIDDLE SCHOOL | AV148: 66 | AW148: 76 | AX148: 29 | AY148: 3 | AZ148: 1 | BA148: 0.3771428571 | BB148: 0.4342857143 | BC148: 0.1657142857 | BD148: 0.01714285714 | BE148: 0.005714285714 | BF148: 175 | BG148: 1 | BH148: 19 | BI148: 6841 | BJ148: SHENANDOAH MIDDLE | BK148: 179 | BL148: 106 | BM148: 91 | BN148: 19 | BO148: 6 | BP148: 0.4463840399 | BQ148: 0.2643391521 | BR148: 0.2269326683 | BS148: 0.04738154613 | BT148: 0.01496259352 | BU148: 401 | BV148: 1 | BW148: 29 | BX148: 7291 | BY148: JOSE MARTI MAST 6-12 ACADEMY | BZ148: 6 | CA148: 16 | CB148: 34 | CC148: 20 | CD148: 6 | CE148: 0.07317073171 | CF148: 0.1951219512 | CG148: 0.4146341463 | CH148: 0.243902439 | CI148: 0.07317073171 | CJ148: 82 | CK148: 1 | CL148: 73
A149: 3033 | B149: SOMERSET OAKS ACADEMY | C149: 21 | D149: 21 | E149: 26 | F149: 21 | G149: 10 | H149: 0.2121212121 | I149: 0.2121212121 | J149: 0.2626262626 | K149: 0.2121212121 | L149: 0.101010101 | M149: 99 | N149: 1 | O149: 58 | P149: 3041 | Q149: LORAH PARK ELEMENTARY | R149: 24 | S149: 14 | T149: 16 | U149: 8 | V149: 3 | W149: 0.3692307692 | X149: 0.2153846154 | Y149: 0.2461538462 | Z149: 0.1230769231 | AA149: 0.04615384615 | AB149: 65 | AC149: 1 | AD149: 42 | AE149: 3041 | AF149: LORAH PARK ELEMENTARY | AG149: 27 | AH149: 28 | AI149: 18 | AJ149: 6 | AK149: 6 | AL149: 0.3176470588 | AM149: 0.3294117647 | AN149: 0.2117647059 | AO149: 0.07058823529 | AP149: 0.07058823529 | AQ149: 85 | AR149: 1 | AS149: 35 | AT149: 6761 | AU149: REDLAND MIDDLE | AV149: 97 | AW149: 37 | AX149: 17 | AY149: 8 | AZ149: 1 | BA149: 0.60625 | BB149: 0.23125 | BC149: 0.10625 | BD149: 0.05 | BE149: 0.00625 | BF149: 160 | BG149: 1 | BH149: 16 | BI149: 6861 | BJ149: SOUTHWOOD MIDDLE | BK149: 102 | BL149: 71 | BM149: 122 | BN149: 112 | BO149: 64 | BP149: 0.2165605096 | BQ149: 0.1507430998 | BR149: 0.2590233546 | BS149: 0.2377919321 | BT149: 0.135881104 | BU149: 471 | BV149: 1 | BW149: 63 | BX149: 7351 | BY149: ARTHUR AND POLLY MAYS CONSERVA | BZ149: 9 | CA149: 15 | CB149: 22 | CC149: 11 | CD149: 3 | CE149: 0.15 | CF149: 0.25 | CG149: 0.3666666667 | CH149: 0.1833333333 | CI149: 0.05 | CJ149: 60 | CK149: 1 | CL149: 60
A150: 3034 | B150: BRIDGEPREP ACAD VILLAGE GREEN | C150: 10 | D150: 15 | E150: 38 | F150: 29 | G150: 13 | H150: 0.09523809524 | I150: 0.1428571429 | J150: 0.3619047619 | K150: 0.2761904762 | L150: 0.1238095238 | M150: 105 | N150: 1 | O150: 76 | P150: 3051 | Q150: TOUSSAINT L'OUVERTURE ELEM | R150: 31 | S150: 20 | T150: 19 | U150: 7 | V150: 5 | W150: 0.3780487805 | X150: 0.243902439 | Y150: 0.2317073171 | Z150: 0.08536585366 | AA150: 0.06097560976 | AB150: 82 | AC150: 1 | AD150: 38 | AE150: 3051 | AF150: TOUSSAINT L'OUVERTURE ELEM | AG150: 39 | AH150: 22 | AI150: 11 | AJ150: 6 | AK150: 1 | AL150: 0.4936708861 | AM150: 0.2784810127 | AN150: 0.1392405063 | AO150: 0.07594936709 | AP150: 0.01265822785 | AQ150: 79 | AR150: 1 | AS150: 23 | AT150: 6771 | AU150: JORGE MAS CANOSA MIDDLE | AV150: 178 | AW150: 166 | AX150: 133 | AY150: 96 | AZ150: 32 | BA150: 0.294214876 | BB150: 0.2743801653 | BC150: 0.2198347107 | BD150: 0.158677686 | BE150: 0.05289256198 | BF150: 605 | BG150: 1 | BH150: 43 | BI150: 6881 | BJ150: SOUTH MIAMI MIDDLE SCHOOL | BK150: 29 | BL150: 56 | BM150: 82 | BN150: 60 | BO150: 58 | BP150: 0.101754386 | BQ150: 0.1964912281 | BR150: 0.2877192982 | BS150: 0.2105263158 | BT150: 0.2035087719 | BU150: 285 | BV150: 1 | BW150: 70 | BX150: 7631 | BY150: MIAMI MACARTHUR SOUTH | BZ150: 19 | CA150: 1 | CB150: 1 | CE150: 0.9047619048 | CF150: 0.04761904762 | CG150: 0.04761904762 | CH150: 0 | CI150: 0 | CJ150: 21 | CK150: 1 | CL150: 5
A151: 3035 | B151: RAMZ ACADEMY ELEM MIAMI CAMPUS | C151: 7 | D151: 6 | E151: 19 | F151: 9 | G151: 1 | H151: 0.1666666667 | I151: 0.1428571429 | J151: 0.4523809524 | K151: 0.2142857143 | L151: 0.02380952381 | M151: 42 | N151: 1 | O151: 69 | P151: 3061 | Q151: LUDLAM ELEMENTARY | R151: 7 | S151: 6 | T151: 16 | U151: 17 | V151: 12 | W151: 0.1206896552 | X151: 0.1034482759 | Y151: 0.275862069 | Z151: 0.2931034483 | AA151: 0.2068965517 | AB151: 58 | AC151: 1 | AD151: 78 | AE151: 3061 | AF151: LUDLAM ELEMENTARY | AG151: 11 | AH151: 12 | AI151: 11 | AJ151: 10 | AK151: 12 | AL151: 0.1964285714 | AM151: 0.2142857143 | AN151: 0.1964285714 | AO151: 0.1785714286 | AP151: 0.2142857143 | AQ151: 56 | AR151: 1 | AS151: 59 | AT151: 6781 | AU151: RICHMOND HEIGHTS MIDDLE | AV151: 64 | AW151: 40 | AX151: 47 | AY151: 16 | AZ151: 2 | BA151: 0.3786982249 | BB151: 0.2366863905 | BC151: 0.2781065089 | BD151: 0.09467455621 | BE151: 0.01183431953 | BF151: 169 | BG151: 1 | BH151: 38 | BI151: 6901 | BJ151: W. R. THOMAS MIDDLE | BK151: 44 | BL151: 44 | BM151: 55 | BN151: 27 | BO151: 5 | BP151: 0.2514285714 | BQ151: 0.2514285714 | BR151: 0.3142857143 | BS151: 0.1542857143 | BT151: 0.02857142857 | BU151: 175 | BV151: 1 | BW151: 50 | BX151: 7812 | BY151: #N/A | BZ151: 3 | CB151: 1 | CE151: 0.75 | CF151: 0 | CG151: 0.25 | CH151: 0 | CI151: 0 | CJ151: 4 | CK151: 1
A152: 3041 | B152: LORAH PARK ELEMENTARY | C152: 39 | D152: 28 | E152: 17 | F152: 2 | G152: 1 | H152: 0.4482758621 | I152: 0.3218390805 | J152: 0.1954022989 | K152: 0.02298850575 | L152: 0.01149425287 | M152: 87 | N152: 1 | O152: 23 | P152: 3100 | Q152: MATER ACADEMY EAST CHARTER | R152: 3 | S152: 1 | T152: 18 | U152: 48 | V152: 6 | W152: 0.03947368421 | X152: 0.01315789474 | Y152: 0.2368421053 | Z152: 0.6315789474 | AA152: 0.07894736842 | AB152: 76 | AC152: 1 | AD152: 95 | AE152: 3100 | AF152: MATER ACADEMY EAST CHARTER | AG152: 5 | AH152: 2 | AI152: 9 | AJ152: 23 | AK152: 27 | AL152: 0.07575757576 | AM152: 0.0303030303 | AN152: 0.1363636364 | AO152: 0.3484848485 | AP152: 0.4090909091 | AQ152: 66 | AR152: 1 | AS152: 89 | AT152: 6801 | AU152: RIVIERA MIDDLE | AV152: 46 | AW152: 43 | AX152: 31 | AY152: 29 | AZ152: 3 | BA152: 0.3026315789 | BB152: 0.2828947368 | BC152: 0.2039473684 | BD152: 0.1907894737 | BE152: 0.01973684211 | BF152: 152 | BG152: 1 | BH152: 41 | BI152: 6921 | BJ152: LAMAR LOUISE CURRY MIDDLE SCH | BK152: 63 | BL152: 61 | BM152: 111 | BN152: 70 | BO152: 28 | BP152: 0.1891891892 | BQ152: 0.1831831832 | BR152: 0.3333333333 | BS152: 0.2102102102 | BT152: 0.08408408408 | BU152: 333 | BV152: 1 | BW152: 63 | BX152: 7819 | BY152: #N/A | BZ152: 1 | CE152: 1 | CF152: 0 | CG152: 0 | CH152: 0 | CI152: 0 | CJ152: 1 | CK152: 1
A153: 3051 | B153: TOUSSAINT L'OUVERTURE ELEM | C153: 30 | D153: 24 | E153: 16 | F153: 15 | G153: 1 | H153: 0.3488372093 | I153: 0.2790697674 | J153: 0.1860465116 | K153: 0.1744186047 | L153: 0.01162790698 | M153: 86 | N153: 1 | O153: 37 | P153: 3101 | Q153: FRANK C. MARTIN K-8 CENTER | R153: 13 | S153: 27 | T153: 37 | U153: 40 | V153: 22 | W153: 0.09352517986 | X153: 0.1942446043 | Y153: 0.2661870504 | Z153: 0.2877697842 | AA153: 0.1582733813 | AB153: 139 | AC153: 1 | AD153: 71 | AE153: 3101 | AF153: FRANK C. MARTIN K-8 CENTER | AG153: 14 | AH153: 22 | AI153: 36 | AJ153: 34 | AK153: 18 | AL153: 0.1129032258 | AM153: 0.1774193548 | AN153: 0.2903225806 | AO153: 0.2741935484 | AP153: 0.1451612903 | AQ153: 124 | AR153: 1 | AS153: 71 | AT153: 6821 | AU153: ROCKWAY MIDDLE | AV153: 82 | AW153: 86 | AX153: 73 | AY153: 61 | AZ153: 24 | BA153: 0.2515337423 | BB153: 0.263803681 | BC153: 0.2239263804 | BD153: 0.1871165644 | BE153: 0.0736196319 | BF153: 326 | BG153: 1 | BH153: 48 | BI153: 6961 | BJ153: WEST MIAMI MIDDLE | BK153: 114 | BL153: 59 | BM153: 62 | BN153: 29 | BO153: 8 | BP153: 0.4191176471 | BQ153: 0.2169117647 | BR153: 0.2279411765 | BS153: 0.1066176471 | BT153: 0.02941176471 | BU153: 272 | BV153: 1 | BW153: 36 | BX153: 7823 | BY153: #N/A | BZ153: 2 | CE153: 1 | CF153: 0 | CG153: 0 | CH153: 0 | CI153: 0 | CJ153: 2 | CK153: 1
A154: 3061 | B154: LUDLAM ELEMENTARY | C154: 10 | D154: 9 | E154: 11 | F154: 17 | G154: 12 | H154: 0.1694915254 | I154: 0.1525423729 | J154: 0.186440678 | K154: 0.2881355932 | L154: 0.2033898305 | M154: 59 | N154: 1 | O154: 68 | P154: 3111 | Q154: WESLEY MATTHEWS ELEMENTARY | R154: 23 | S154: 9 | T154: 24 | U154: 28 | V154: 6 | W154: 0.2555555556 | X154: 0.1 | Y154: 0.2666666667 | Z154: 0.3111111111 | AA154: 0.06666666667 | AB154: 90 | AC154: 1 | AD154: 64 | AE154: 3111 | AF154: WESLEY MATTHEWS ELEMENTARY | AH154: 12 | AI154: 14 | AJ154: 19 | AK154: 10 | AL154: 0 | AM154: 0.2181818182 | AN154: 0.2545454545 | AO154: 0.3454545455 | AP154: 0.1818181818 | AQ154: 55 | AR154: 1 | AS154: 78 | AT154: 6841 | AU154: SHENANDOAH MIDDLE | AV154: 174 | AW154: 98 | AX154: 74 | AY154: 39 | AZ154: 10 | BA154: 0.4405063291 | BB154: 0.2481012658 | BC154: 0.1873417722 | BD154: 0.09873417722 | BE154: 0.0253164557 | BF154: 395 | BG154: 1 | BH154: 31 | BI154: 6997 | BJ154: MATER VIRTUAL ACADEMY CHARTER | BM154: 1 | BN154: 1 | BP154: 0 | BQ154: 0 | BR154: 0.5 | BS154: 0.5 | BT154: 0 | BU154: 2 | BV154: 1 | BX154: 7835 | BY154: #N/A | BZ154: 9 | CE154: 1 | CF154: 0 | CG154: 0 | CH154: 0 | CI154: 0 | CJ154: 9 | CK154: 1
A155: 3100 | B155: MATER ACADEMY EAST CHARTER | C155: 1 | D155: 5 | E155: 36 | F155: 44 | G155: 21 | H155: 0.009345794393 | I155: 0.04672897196 | J155: 0.3364485981 | K155: 0.4112149533 | L155: 0.1962616822 | M155: 107 | N155: 1 | O155: 94 | P155: 3141 | Q155: MEADOWLANE ELEMENTARY | R155: 27 | S155: 20 | T155: 38 | U155: 33 | V155: 31 | W155: 0.1812080537 | X155: 0.1342281879 | Y155: 0.255033557 | Z155: 0.2214765101 | AA155: 0.2080536913 | AB155: 149 | AC155: 1 | AD155: 68 | AE155: 3141 | AF155: MEADOWLANE ELEMENTARY | AG155: 41 | AH155: 26 | AI155: 50 | AJ155: 36 | AK155: 22 | AL155: 0.2342857143 | AM155: 0.1485714286 | AN155: 0.2857142857 | AO155: 0.2057142857 | AP155: 0.1257142857 | AQ155: 175 | AR155: 1 | AS155: 62 | AT155: 6861 | AU155: SOUTHWOOD MIDDLE | AV155: 84 | AW155: 81 | AX155: 109 | AY155: 127 | AZ155: 68 | BA155: 0.1791044776 | BB155: 0.1727078891 | BC155: 0.2324093817 | BD155: 0.2707889126 | BE155: 0.144989339 | BF155: 469 | BG155: 1 | BH155: 65 | BI155: 7001 | BJ155: MIAMI-DADE ONLINE ACADEMY 7001 | BK155: 2 | BL155: 5 | BM155: 14 | BN155: 10 | BO155: 1 | BP155: 0.0625 | BQ155: 0.15625 | BR155: 0.4375 | BS155: 0.3125 | BT155: 0.03125 | BU155: 32 | BV155: 1 | BW155: 78 | BX155: 7840 | BY155: #N/A | BZ155: 2 | CA155: 1 | CE155: 0.6666666667 | CF155: 0.3333333333 | CG155: 0 | CH155: 0 | CI155: 0 | CJ155: 3 | CK155: 1
A156: 3101 | B156: FRANK C. MARTIN K-8 CENTER | C156: 10 | D156: 14 | E156: 50 | F156: 40 | G156: 14 | H156: 0.078125 | I156: 0.109375 | J156: 0.390625 | K156: 0.3125 | L156: 0.109375 | M156: 128 | N156: 1 | O156: 81 | P156: 3181 | Q156: MELROSE ELEMENTARY | R156: 21 | S156: 18 | T156: 23 | U156: 14 | V156: 3 | W156: 0.2658227848 | X156: 0.2278481013 | Y156: 0.2911392405 | Z156: 0.1772151899 | AA156: 0.03797468354 | AB156: 79 | AC156: 1 | AD156: 51 | AE156: 3181 | AF156: MELROSE ELEMENTARY | AG156: 18 | AH156: 18 | AI156: 24 | AJ156: 10 | AK156: 8 | AL156: 0.2307692308 | AM156: 0.2307692308 | AN156: 0.3076923077 | AO156: 0.1282051282 | AP156: 0.1025641026 | AQ156: 78 | AR156: 1 | AS156: 54 | AT156: 6881 | AU156: SOUTH MIAMI MIDDLE SCHOOL | AV156: 56 | AW156: 73 | AX156: 73 | AY156: 92 | AZ156: 38 | BA156: 0.1686746988 | BB156: 0.2198795181 | BC156: 0.2198795181 | BD156: 0.2771084337 | BE156: 0.1144578313 | BF156: 332 | BG156: 1 | BH156: 61 | BI156: 7055 | BJ156: YOUNG WOMEN'S PREPARATORY ACAD | BK156: 6 | BL156: 6 | BM156: 20 | BN156: 13 | BO156: 8 | BP156: 0.1132075472 | BQ156: 0.1132075472 | BR156: 0.3773584906 | BS156: 0.2452830189 | BT156: 0.1509433962 | BU156: 53 | BV156: 1 | BW156: 77 | BX156: 7860 | BY156: #N/A | BZ156: 7 | CA156: 3 | CB156: 2 | CE156: 0.5833333333 | CF156: 0.25 | CG156: 0.1666666667 | CH156: 0 | CI156: 0 | CJ156: 12 | CK156: 1 | CL156: 17
A157: 3111 | B157: WESLEY MATTHEWS ELEMENTARY | C157: 5 | D157: 9 | E157: 21 | F157: 38 | G157: 15 | H157: 0.05681818182 | I157: 0.1022727273 | J157: 0.2386363636 | K157: 0.4318181818 | L157: 0.1704545455 | M157: 88 | N157: 1 | O157: 84 | P157: 3191 | Q157: ADA MERRITT K-8 CENTER | R157: 1 | S157: 5 | T157: 20 | U157: 27 | V157: 24 | W157: 0.01298701299 | X157: 0.06493506494 | Y157: 0.2597402597 | Z157: 0.3506493506 | AA157: 0.3116883117 | AB157: 77 | AC157: 1 | AD157: 92 | AE157: 3191 | AF157: ADA MERRITT K-8 CENTER | AG157: 2 | AH157: 4 | AI157: 8 | AJ157: 23 | AK157: 43 | AL157: 0.025 | AM157: 0.05 | AN157: 0.1 | AO157: 0.2875 | AP157: 0.5375 | AQ157: 80 | AR157: 1 | AS157: 93 | AT157: 6901 | AU157: W. R. THOMAS MIDDLE | AV157: 57 | AW157: 56 | AX157: 65 | AY157: 92 | AZ157: 127 | BA157: 0.1435768262 | BB157: 0.1410579345 | BC157: 0.1637279597 | BD157: 0.2317380353 | BE157: 0.3198992443 | BF157: 397 | BG157: 1 | BH157: 72 | BI157: 7056 | BJ157: YOUNG MENS PREPARATORY ACADEMY | BK157: 8 | BL157: 15 | BM157: 12 | BN157: 2 | BP157: 0.2162162162 | BQ157: 0.4054054054 | BR157: 0.3243243243 | BS157: 0.05405405405 | BT157: 0 | BU157: 37 | BV157: 1 | BW157: 38 | BX157: 7861 | BY157: #N/A | BZ157: 11 | CA157: 2 | CB157: 1 | CE157: 0.7857142857 | CF157: 0.1428571429 | CG157: 0.07142857143 | CH157: 0 | CI157: 0 | CJ157: 14 | CK157: 1 | CL157: 7
A158: 3141 | B158: MEADOWLANE ELEMENTARY | C158: 32 | D158: 30 | E158: 38 | F158: 49 | G158: 21 | H158: 0.1882352941 | I158: 0.1764705882 | J158: 0.2235294118 | K158: 0.2882352941 | L158: 0.1235294118 | M158: 170 | N158: 1 | O158: 64 | P158: 3241 | Q158: MIAMI GARDENS ELEMENTARY | R158: 6 | S158: 8 | T158: 14 | U158: 4 | V158: 6 | W158: 0.1578947368 | X158: 0.2105263158 | Y158: 0.3684210526 | Z158: 0.1052631579 | AA158: 0.1578947368 | AB158: 38 | AC158: 1 | AD158: 63 | AE158: 3241 | AF158: MIAMI GARDENS ELEMENTARY | AG158: 10 | AH158: 5 | AI158: 12 | AJ158: 5 | AK158: 5 | AL158: 0.2702702703 | AM158: 0.1351351351 | AN158: 0.3243243243 | AO158: 0.1351351351 | AP158: 0.1351351351 | AQ158: 37 | AR158: 1 | AS158: 59 | AT158: 6921 | AU158: LAMAR LOUISE CURRY MIDDLE SCH | AV158: 49 | AW158: 61 | AX158: 106 | AY158: 107 | AZ158: 52 | BA158: 0.1306666667 | BB158: 0.1626666667 | BC158: 0.2826666667 | BD158: 0.2853333333 | BE158: 0.1386666667 | BF158: 375 | BG158: 1 | BH158: 71 | BI158: 7059 | BJ158: MIAMI ARTS CHARTER | BK158: 53 | BL158: 62 | BM158: 94 | BN158: 45 | BO158: 7 | BP158: 0.2030651341 | BQ158: 0.2375478927 | BR158: 0.3601532567 | BS158: 0.1724137931 | BT158: 0.02681992337 | BU158: 261 | BV158: 1 | BW158: 56 | BX158: 7862 | BY158: #N/A | BZ158: 9 | CA158: 2 | CE158: 0.8181818182 | CF158: 0.1818181818 | CG158: 0 | CH158: 0 | CI158: 0 | CJ158: 11 | CK158: 1 | CL158: 0
A159: 3181 | B159: MELROSE ELEMENTARY | C159: 27 | D159: 19 | E159: 28 | F159: 16 | G159: 4 | H159: 0.2872340426 | I159: 0.2021276596 | J159: 0.2978723404 | K159: 0.170212766 | L159: 0.04255319149 | M159: 94 | N159: 1 | O159: 51 | P159: 3261 | Q159: MIAMI HEIGHTS ELEMENTARY | R159: 49 | S159: 38 | T159: 52 | U159: 33 | V159: 15 | W159: 0.2620320856 | X159: 0.2032085561 | Y159: 0.2780748663 | Z159: 0.1764705882 | AA159: 0.08021390374 | AB159: 187 | AC159: 1 | AD159: 53 | AE159: 3261 | AF159: MIAMI HEIGHTS ELEMENTARY | AG159: 26 | AH159: 46 | AI159: 47 | AJ159: 37 | AK159: 10 | AL159: 0.156626506 | AM159: 0.2771084337 | AN159: 0.2831325301 | AO159: 0.2228915663 | AP159: 0.06024096386 | AQ159: 166 | AR159: 1 | AS159: 57 | AT159: 6961 | AU159: WEST MIAMI MIDDLE | AV159: 88 | AW159: 65 | AX159: 44 | AY159: 22 | AZ159: 2 | BA159: 0.3981900452 | BB159: 0.2941176471 | BC159: 0.1990950226 | BD159: 0.09954751131 | BE159: 0.009049773756 | BF159: 221 | BG159: 1 | BH159: 31 | BI159: 7161 | BJ159: MARITIME & SCIENCE TECH ACAD | BL159: 2 | BM159: 17 | BN159: 29 | BO159: 10 | BP159: 0 | BQ159: 0.03448275862 | BR159: 0.2931034483 | BS159: 0.5 | BT159: 0.1724137931 | BU159: 58 | BV159: 1 | BW159: 97 | BX159: 7863 | BY159: #N/A | BZ159: 7 | CE159: 1 | CF159: 0 | CG159: 0 | CH159: 0 | CI159: 0 | CJ159: 7 | CK159: 1
A160: 3191 | B160: ADA MERRITT K-8 CENTER | C160: 2 | D160: 7 | E160: 34 | F160: 34 | G160: 18 | H160: 0.02105263158 | I160: 0.07368421053 | J160: 0.3578947368 | K160: 0.3578947368 | L160: 0.1894736842 | M160: 95 | N160: 1 | O160: 91 | P160: 3281 | Q160: MIAMI LAKES K-8 CENTER | R160: 21 | S160: 17 | T160: 42 | U160: 42 | V160: 25 | W160: 0.1428571429 | X160: 0.1156462585 | Y160: 0.2857142857 | Z160: 0.2857142857 | AA160: 0.1700680272 | AB160: 147 | AC160: 1 | AD160: 74 | AE160: 3281 | AF160: MIAMI LAKES K-8 CENTER | AG160: 47 | AH160: 21 | AI160: 31 | AJ160: 28 | AK160: 23 | AL160: 0.3133333333 | AM160: 0.14 | AN160: 0.2066666667 | AO160: 0.1866666667 | AP160: 0.1533333333 | AQ160: 150 | AR160: 1 | AS160: 55 | AT160: 6997 | AU160: MATER VIRTUAL ACADEMY CHARTER | AX160: 1 | BA160: 0 | BB160: 0 | BC160: 1 | BD160: 0 | BE160: 0 | BF160: 1 | BG160: 1 | BI160: 7262 | BJ160: CITY OF HIALEAH EDUCATION ACAD | BK160: 17 | BL160: 14 | BM160: 18 | BN160: 2 | BP160: 0.3333333333 | BQ160: 0.2745098039 | BR160: 0.3529411765 | BS160: 0.03921568627 | BT160: 0 | BU160: 51 | BV160: 1 | BW160: 39 | BX160: 7865 | BY160: #N/A | BZ160: 2 | CE160: 1 | CF160: 0 | CG160: 0 | CH160: 0 | CI160: 0 | CJ160: 2 | CK160: 1
A161: 3241 | B161: MIAMI GARDENS ELEMENTARY | C161: 9 | D161: 5 | E161: 10 | F161: 7 | G161: 4 | H161: 0.2571428571 | I161: 0.1428571429 | J161: 0.2857142857 | K161: 0.2 | L161: 0.1142857143 | M161: 35 | N161: 1 | O161: 60 | P161: 3301 | Q161: MIAMI PARK ELEMENTARY | R161: 12 | S161: 14 | T161: 11 | U161: 5 | V161: 3 | W161: 0.2666666667 | X161: 0.3111111111 | Y161: 0.2444444444 | Z161: 0.1111111111 | AA161: 0.06666666667 | AB161: 45 | AC161: 1 | AD161: 42 | AE161: 3301 | AF161: MIAMI PARK ELEMENTARY | AG161: 18 | AH161: 17 | AI161: 9 | AJ161: 5 | AK161: 2 | AL161: 0.3529411765 | AM161: 0.3333333333 | AN161: 0.1764705882 | AO161: 0.09803921569 | AP161: 0.03921568627 | AQ161: 51 | AR161: 1 | AS161: 31 | AT161: 7001 | AU161: MIAMI-DADE ONLINE ACADEMY 7001 | AV161: 3 | AW161: 3 | AX161: 10 | AY161: 6 | AZ161: 1 | BA161: 0.1304347826 | BB161: 0.1304347826 | BC161: 0.4347826087 | BD161: 0.2608695652 | BE161: 0.04347826087 | BF161: 23 | BG161: 1 | BH161: 74 | BI161: 7351 | BJ161: ARTHUR AND POLLY MAYS CONSERVA | BK161: 35 | BL161: 39 | BM161: 27 | BN161: 10 | BO161: 3 | BP161: 0.3070175439 | BQ161: 0.3421052632 | BR161: 0.2368421053 | BS161: 0.08771929825 | BT161: 0.02631578947 | BU161: 114 | BV161: 1 | BW161: 35 | BX161: 8101 | BY161: JAN MANN OPPORTUNITY SCHOOL | BZ161: 17 | CA161: 4 | CB161: 2 | CE161: 0.7391304348 | CF161: 0.1739130435 | CG161: 0.08695652174 | CH161: 0 | CI161: 0 | CJ161: 23 | CK161: 1 | CL161: 9
A162: 3261 | B162: MIAMI HEIGHTS ELEMENTARY | C162: 28 | D162: 34 | E162: 60 | F162: 39 | G162: 9 | H162: 0.1647058824 | I162: 0.2 | J162: 0.3529411765 | K162: 0.2294117647 | L162: 0.05294117647 | M162: 170 | N162: 1 | O162: 64 | P162: 3341 | Q162: MIAMI SHORES ELEMENTARY | R162: 43 | S162: 32 | T162: 34 | U162: 24 | V162: 18 | W162: 0.2847682119 | X162: 0.2119205298 | Y162: 0.2251655629 | Z162: 0.1589403974 | AA162: 0.119205298 | AB162: 151 | AC162: 1 | AD162: 50 | AE162: 3341 | AF162: MIAMI SHORES ELEMENTARY | AG162: 25 | AH162: 24 | AI162: 24 | AJ162: 23 | AK162: 13 | AL162: 0.2293577982 | AM162: 0.2201834862 | AN162: 0.2201834862 | AO162: 0.2110091743 | AP162: 0.119266055 | AQ162: 109 | AR162: 1 | AS162: 55 | AT162: 7055 | AU162: YOUNG WOMEN'S PREPARATORY ACAD | AV162: 5 | AW162: 11 | AX162: 16 | AY162: 27 | AZ162: 25 | BA162: 0.05952380952 | BB162: 0.130952381 | BC162: 0.1904761905 | BD162: 0.3214285714 | BE162: 0.2976190476 | BF162: 84 | BG162: 1 | BH162: 81 | BI162: 7631 | BJ162: MIAMI MACARTHUR SOUTH | BK162: 15 | BM162: 1 | BP162: 0.9375 | BQ162: 0 | BR162: 0.0625 | BS162: 0 | BT162: 0 | BU162: 16 | BV162: 1 | BW162: 6 | BX162: 8121 | BY162: COPE CENTER NORTH | BZ162: 1 | CE162: 1 | CF162: 0 | CG162: 0 | CH162: 0 | CI162: 0 | CJ162: 1 | CK162: 1
A163: 3281 | B163: MIAMI LAKES K-8 CENTER | C163: 26 | D163: 38 | E163: 43 | F163: 34 | G163: 9 | H163: 0.1733333333 | I163: 0.2533333333 | J163: 0.2866666667 | K163: 0.2266666667 | L163: 0.06 | M163: 150 | N163: 1 | O163: 57 | P163: 3381 | Q163: MIAMI SPRINGS ELEMENTARY | R163: 15 | S163: 9 | T163: 31 | U163: 15 | V163: 8 | W163: 0.1923076923 | X163: 0.1153846154 | Y163: 0.3974358974 | Z163: 0.1923076923 | AA163: 0.1025641026 | AB163: 78 | AC163: 1 | AD163: 69 | AE163: 3381 | AF163: MIAMI SPRINGS ELEMENTARY | AG163: 10 | AH163: 18 | AI163: 19 | AJ163: 15 | AK163: 6 | AL163: 0.1470588235 | AM163: 0.2647058824 | AN163: 0.2794117647 | AO163: 0.2205882353 | AP163: 0.08823529412 | AQ163: 68 | AR163: 1 | AS163: 59 | AT163: 7056 | AU163: YOUNG MENS PREPARATORY ACADEMY | AV163: 35 | AW163: 14 | AX163: 4 | BA163: 0.6603773585 | BB163: 0.2641509434 | BC163: 0.07547169811 | BD163: 0 | BE163: 0 | BF163: 53 | BG163: 1 | BH163: 8 | BI163: 7812 | BJ163: #N/A | BL163: 1 | BP163: 0 | BQ163: 1 | BR163: 0 | BS163: 0 | BT163: 0 | BU163: 1 | BV163: 1 | BX163: 8151 | BY163: ROBERT RENICK EDUCATION CTR | BZ163: 4 | CE163: 1 | CF163: 0 | CG163: 0 | CH163: 0 | CI163: 0 | CJ163: 4 | CK163: 1
A164: 3301 | B164: MIAMI PARK ELEMENTARY | C164: 11 | D164: 8 | E164: 12 | F164: 10 | G164: 1 | H164: 0.2619047619 | I164: 0.1904761905 | J164: 0.2857142857 | K164: 0.2380952381 | L164: 0.02380952381 | M164: 42 | N164: 1 | O164: 55 | P164: 3421 | Q164: M.A. MILAM K-8 CENTER | R164: 44 | S164: 17 | T164: 18 | U164: 13 | V164: 9 | W164: 0.4356435644 | X164: 0.1683168317 | Y164: 0.1782178218 | Z164: 0.1287128713 | AA164: 0.08910891089 | AB164: 101 | AC164: 1 | AD164: 40 | AE164: 3421 | AF164: M.A. MILAM K-8 CENTER | AG164: 31 | AH164: 20 | AI164: 15 | AJ164: 19 | AK164: 6 | AL164: 0.3406593407 | AM164: 0.2197802198 | AN164: 0.1648351648 | AO164: 0.2087912088 | AP164: 0.06593406593 | AQ164: 91 | AR164: 1 | AS164: 44 | AT164: 7059 | AU164: MIAMI ARTS CHARTER | AV164: 16 | AW164: 78 | AX164: 84 | AY164: 85 | AZ164: 23 | BA164: 0.05594405594 | BB164: 0.2727272727 | BC164: 0.2937062937 | BD164: 0.2972027972 | BE164: 0.08041958042 | BF164: 286 | BG164: 1 | BH164: 67 | BI164: 7832 | BJ164: #N/A | BK164: 2 | BL164: 1 | BP164: 0.6666666667 | BQ164: 0.3333333333 | BR164: 0 | BS164: 0 | BT164: 0 | BU164: 3 | BV164: 1 | BX164: 8181 | BY164: RUTH OWENS KRUSE' EDUC CENTER | BZ164: 4 | CA164: 4 | CC164: 1 | CE164: 0.4444444444 | CF164: 0.4444444444 | CG164: 0 | CH164: 0.1111111111 | CI164: 0 | CJ164: 9 | CK164: 1
A165: 3341 | B165: MIAMI SHORES ELEMENTARY | C165: 32 | D165: 31 | E165: 27 | F165: 28 | G165: 18 | H165: 0.2352941176 | I165: 0.2279411765 | J165: 0.1985294118 | K165: 0.2058823529 | L165: 0.1323529412 | M165: 136 | N165: 1 | O165: 54 | P165: 3431 | Q165: PHYLLIS RUTH MILLER ELEMENTARY | R165: 18 | S165: 22 | T165: 20 | U165: 9 | V165: 8 | W165: 0.2337662338 | X165: 0.2857142857 | Y165: 0.2597402597 | Z165: 0.1168831169 | AA165: 0.1038961039 | AB165: 77 | AC165: 1 | AD165: 48 | AE165: 3431 | AF165: PHYLLIS RUTH MILLER ELEMENTARY | AG165: 10 | AH165: 18 | AI165: 27 | AJ165: 28 | AK165: 7 | AL165: 0.1111111111 | AM165: 0.2 | AN165: 0.3 | AO165: 0.3111111111 | AP165: 0.07777777778 | AQ165: 90 | AR165: 1 | AS165: 69 | AT165: 7262 | AU165: CITY OF HIALEAH EDUCATION ACAD | AV165: 16 | AW165: 21 | AX165: 41 | AY165: 8 | AZ165: 2 | BA165: 0.1818181818 | BB165: 0.2386363636 | BC165: 0.4659090909 | BD165: 0.09090909091 | BE165: 0.02272727273 | BF165: 88 | BG165: 1 | BH165: 58 | BI165: 7835 | BJ165: #N/A | BK165: 7 | BL165: 1 | BP165: 0.875 | BQ165: 0.125 | BR165: 0 | BS165: 0 | BT165: 0 | BU165: 8 | BV165: 1 | BX165: 9732 | BY165: BRUCIE BALL EDUCATIONAL CENTER | BZ165: 4 | CA165: 4 | CB165: 1 | CC165: 3 | CD165: 1 | CE165: 0.3076923077 | CF165: 0.3076923077 | CG165: 0.07692307692 | CH165: 0.2307692308 | CI165: 0.07692307692 | CJ165: 13 | CK165: 1 | CL165: 38
A166: 3381 | B166: MIAMI SPRINGS ELEMENTARY | C166: 10 | D166: 5 | E166: 20 | F166: 13 | G166: 10 | H166: 0.1724137931 | I166: 0.08620689655 | J166: 0.3448275862 | K166: 0.224137931 | L166: 0.1724137931 | M166: 58 | N166: 1 | O166: 74 | P166: 3501 | Q166: MORNINGSIDE K-8 ACADEMY | R166: 23 | S166: 15 | T166: 16 | U166: 13 | V166: 2 | W166: 0.3333333333 | X166: 0.2173913043 | Y166: 0.231884058 | Z166: 0.1884057971 | AA166: 0.02898550725 | AB166: 69 | AC166: 1 | AD166: 45 | AE166: 3501 | AF166: MORNINGSIDE K-8 ACADEMY | AG166: 18 | AH166: 12 | AI166: 14 | AJ166: 10 | AK166: 5 | AL166: 0.3050847458 | AM166: 0.2033898305 | AN166: 0.2372881356 | AO166: 0.1694915254 | AP166: 0.08474576271 | AQ166: 59 | AR166: 1 | AS166: 49 | AT166: 7291 | AU166: JOSE MARTI MAST 6-12 ACADEMY | AV166: 3 | AW166: 22 | AX166: 44 | AY166: 58 | AZ166: 20 | BA166: 0.02040816327 | BB166: 0.1496598639 | BC166: 0.2993197279 | BD166: 0.3945578231 | BE166: 0.1360544218 | BF166: 147 | BG166: 1 | BH166: 83 | BI166: 7840 | BJ166: #N/A | BK166: 2 | BP166: 1 | BQ166: 0 | BR166: 0 | BS166: 0 | BT166: 0 | BU166: 2 | BV166: 1 | BX166: 9999 | BZ166: 5583 | CA166: 4190 | CB166: 4058 | CC166: 1689 | CD166: 1036 | CE166: 0.3372191351 | CF166: 0.2530804542 | CG166: 0.2451075139 | CH166: 0.1020173955 | CI166: 0.06257550133 | CJ166: 16556 | CK166: 1 | CL166: 41
A167: 3421 | B167: M.A. MILAM K-8 CENTER | C167: 48 | D167: 23 | E167: 19 | F167: 13 | G167: 5 | H167: 0.4444444444 | I167: 0.212962963 | J167: 0.1759259259 | K167: 0.1203703704 | L167: 0.0462962963 | M167: 108 | N167: 1 | O167: 34 | P167: 3541 | Q167: ROBERT RUSSA MOTON ELEMENTARY | R167: 27 | S167: 15 | T167: 11 | U167: 1 | W167: 0.5 | X167: 0.2777777778 | Y167: 0.2037037037 | Z167: 0.01851851852 | AA167: 0 | AB167: 54 | AC167: 1 | AD167: 22 | AE167: 3541 | AF167: ROBERT RUSSA MOTON ELEMENTARY | AG167: 21 | AH167: 13 | AI167: 8 | AJ167: 2 | AL167: 0.4772727273 | AM167: 0.2954545455 | AN167: 0.1818181818 | AO167: 0.04545454545 | AP167: 0 | AQ167: 44 | AR167: 1 | AS167: 23 | AT167: 7351 | AU167: ARTHUR AND POLLY MAYS CONSERVA | AV167: 42 | AW167: 46 | AX167: 25 | AY167: 12 | BA167: 0.336 | BB167: 0.368 | BC167: 0.2 | BD167: 0.096 | BE167: 0 | BF167: 125 | BG167: 1 | BH167: 30 | BI167: 7860 | BJ167: #N/A | BK167: 18 | BL167: 3 | BM167: 1 | BP167: 0.8181818182 | BQ167: 0.1363636364 | BR167: 0.04545454545 | BS167: 0 | BT167: 0 | BU167: 22 | BV167: 1 | BW167: 5
A168: 3431 | B168: PHYLLIS RUTH MILLER ELEMENTARY | C168: 27 | D168: 31 | E168: 32 | F168: 12 | G168: 5 | H168: 0.2523364486 | I168: 0.2897196262 | J168: 0.2990654206 | K168: 0.1121495327 | L168: 0.04672897196 | M168: 107 | N168: 1 | O168: 46 | P168: 3581 | Q168: MYRTLE GROVE K-8 CENTER | R168: 19 | S168: 12 | T168: 26 | U168: 8 | V168: 1 | W168: 0.2878787879 | X168: 0.1818181818 | Y168: 0.3939393939 | Z168: 0.1212121212 | AA168: 0.01515151515 | AB168: 66 | AC168: 1 | AD168: 53 | AE168: 3581 | AF168: MYRTLE GROVE K-8 CENTER | AG168: 16 | AH168: 17 | AI168: 19 | AJ168: 3 | AK168: 1 | AL168: 0.2857142857 | AM168: 0.3035714286 | AN168: 0.3392857143 | AO168: 0.05357142857 | AP168: 0.01785714286 | AQ168: 56 | AR168: 1 | AS168: 41 | AT168: 7581 | AU168: IPREPARATORY ACADEMY | AV168: 1 | AW168: 4 | AX168: 10 | AY168: 11 | AZ168: 12 | BA168: 0.02631578947 | BB168: 0.1052631579 | BC168: 0.2631578947 | BD168: 0.2894736842 | BE168: 0.3157894737 | BF168: 38 | BG168: 1 | BH168: 87 | BI168: 7861 | BJ168: #N/A | BK168: 9 | BL168: 3 | BP168: 0.75 | BQ168: 0.25 | BR168: 0 | BS168: 0 | BT168: 0 | BU168: 12 | BV168: 1 | BW168: 0
A169: 3501 | B169: MORNINGSIDE K-8 ACADEMY | C169: 25 | D169: 13 | E169: 24 | F169: 14 | G169: 3 | H169: 0.3164556962 | I169: 0.164556962 | J169: 0.3037974684 | K169: 0.1772151899 | L169: 0.03797468354 | M169: 79 | N169: 1 | O169: 52 | P169: 3600 | Q169: DOWNTOWN MIAMI CHARTER SCHOOL | R169: 19 | S169: 25 | T169: 28 | U169: 18 | V169: 7 | W169: 0.1958762887 | X169: 0.2577319588 | Y169: 0.2886597938 | Z169: 0.1855670103 | AA169: 0.07216494845 | AB169: 97 | AC169: 1 | AD169: 55 | AE169: 3600 | AF169: DOWNTOWN MIAMI CHARTER SCHOOL | AG169: 13 | AH169: 29 | AI169: 33 | AJ169: 13 | AK169: 5 | AL169: 0.1397849462 | AM169: 0.311827957 | AN169: 0.3548387097 | AO169: 0.1397849462 | AP169: 0.05376344086 | AQ169: 93 | AR169: 1 | AS169: 55 | AT169: 7631 | AU169: MIAMI MACARTHUR SOUTH | AV169: 7 | BA169: 1 | BB169: 0 | BC169: 0 | BD169: 0 | BE169: 0 | BF169: 7 | BG169: 1 | BI169: 7862 | BJ169: #N/A | BK169: 16 | BL169: 2 | BP169: 0.8888888889 | BQ169: 0.1111111111 | BR169: 0 | BS169: 0 | BT169: 0 | BU169: 18 | BV169: 1 | BW169: 0
A170: 3541 | B170: ROBERT RUSSA MOTON ELEMENTARY | C170: 24 | D170: 10 | E170: 21 | F170: 9 | G170: 2 | H170: 0.3636363636 | I170: 0.1515151515 | J170: 0.3181818182 | K170: 0.1363636364 | L170: 0.0303030303 | M170: 66 | N170: 1 | O170: 48 | P170: 3610 | Q170: KEYS GATE CHARTER SCHOOL | R170: 55 | S170: 60 | T170: 73 | U170: 45 | V170: 25 | W170: 0.2131782946 | X170: 0.2325581395 | Y170: 0.2829457364 | Z170: 0.1744186047 | AA170: 0.09689922481 | AB170: 258 | AC170: 1 | AD170: 55 | AE170: 3610 | AF170: KEYS GATE CHARTER SCHOOL | AG170: 47 | AH170: 56 | AI170: 64 | AJ170: 58 | AK170: 33 | AL170: 0.1821705426 | AM170: 0.2170542636 | AN170: 0.2480620155 | AO170: 0.2248062016 | AP170: 0.1279069767 | AQ170: 258 | AR170: 1 | AS170: 60 | AT170: 7812 | AU170: #N/A | AV170: 3 | AW170: 1 | BA170: 0.75 | BB170: 0.25 | BC170: 0 | BD170: 0 | BE170: 0 | BF170: 4 | BG170: 1 | BI170: 7863 | BJ170: #N/A | BK170: 5 | BP170: 1 | BQ170: 0 | BR170: 0 | BS170: 0 | BT170: 0 | BU170: 5 | BV170: 1
A171: 3581 | B171: MYRTLE GROVE K-8 CENTER | C171: 17 | D171: 23 | E171: 18 | F171: 7 | G171: 2 | H171: 0.2537313433 | I171: 0.3432835821 | J171: 0.2686567164 | K171: 0.1044776119 | L171: 0.02985074627 | M171: 67 | N171: 1 | O171: 40 | P171: 3621 | Q171: COCONUT PALM K-8 ACADEMY | R171: 41 | S171: 40 | T171: 53 | U171: 29 | V171: 15 | W171: 0.2303370787 | X171: 0.2247191011 | Y171: 0.297752809 | Z171: 0.1629213483 | AA171: 0.08426966292 | AB171: 178 | AC171: 1 | AD171: 54 | AE171: 3621 | AF171: COCONUT PALM K-8 ACADEMY | AG171: 61 | AH171: 52 | AI171: 43 | AJ171: 22 | AK171: 4 | AL171: 0.3351648352 | AM171: 0.2857142857 | AN171: 0.2362637363 | AO171: 0.1208791209 | AP171: 0.02197802198 | AQ171: 182 | AR171: 1 | AS171: 38 | AT171: 7819 | AU171: #N/A | AV171: 1 | BA171: 1 | BB171: 0 | BC171: 0 | BD171: 0 | BE171: 0 | BF171: 1 | BG171: 1 | BI171: 8101 | BJ171: JAN MANN OPPORTUNITY SCHOOL | BK171: 13 | BL171: 2 | BM171: 1 | BP171: 0.8125 | BQ171: 0.125 | BR171: 0.0625 | BS171: 0 | BT171: 0 | BU171: 16 | BV171: 1 | BW171: 6
A172: 3600 | B172: DOWNTOWN MIAMI CHARTER SCHOOL | C172: 18 | D172: 26 | E172: 31 | F172: 16 | G172: 2 | H172: 0.1935483871 | I172: 0.2795698925 | J172: 0.3333333333 | K172: 0.1720430108 | L172: 0.02150537634 | M172: 93 | N172: 1 | O172: 53 | P172: 3661 | Q172: NATURAL BRIDGE ELEMENTARY | R172: 32 | S172: 16 | T172: 24 | U172: 11 | V172: 3 | W172: 0.3720930233 | X172: 0.1860465116 | Y172: 0.2790697674 | Z172: 0.1279069767 | AA172: 0.03488372093 | AB172: 86 | AC172: 1 | AD172: 44 | AE172: 3661 | AF172: NATURAL BRIDGE ELEMENTARY | AG172: 21 | AH172: 33 | AI172: 21 | AJ172: 21 | AK172: 3 | AL172: 0.2121212121 | AM172: 0.3333333333 | AN172: 0.2121212121 | AO172: 0.2121212121 | AP172: 0.0303030303 | AQ172: 99 | AR172: 1 | AS172: 45 | AT172: 7835 | AU172: #N/A | AV172: 6 | BA172: 1 | BB172: 0 | BC172: 0 | BD172: 0 | BE172: 0 | BF172: 6 | BG172: 1 | BI172: 8121 | BJ172: COPE CENTER NORTH | BK172: 2 | BP172: 1 | BQ172: 0 | BR172: 0 | BS172: 0 | BT172: 0 | BU172: 2 | BV172: 1
A173: 3610 | B173: KEYS GATE CHARTER SCHOOL | C173: 51 | D173: 40 | E173: 64 | F173: 48 | G173: 22 | H173: 0.2266666667 | I173: 0.1777777778 | J173: 0.2844444444 | K173: 0.2133333333 | L173: 0.09777777778 | M173: 225 | N173: 1 | O173: 60 | P173: 3701 | Q173: NORLAND ELEMENTARY | R173: 21 | S173: 15 | T173: 30 | U173: 20 | V173: 7 | W173: 0.2258064516 | X173: 0.1612903226 | Y173: 0.3225806452 | Z173: 0.2150537634 | AA173: 0.0752688172 | AB173: 93 | AC173: 1 | AD173: 61 | AE173: 3701 | AF173: NORLAND ELEMENTARY | AG173: 20 | AH173: 23 | AI173: 30 | AJ173: 27 | AK173: 3 | AL173: 0.1941747573 | AM173: 0.2233009709 | AN173: 0.2912621359 | AO173: 0.2621359223 | AP173: 0.02912621359 | AQ173: 103 | AR173: 1 | AS173: 58 | AT173: 7860 | AU173: #N/A | AV173: 5 | BA173: 1 | BB173: 0 | BC173: 0 | BD173: 0 | BE173: 0 | BF173: 5 | BG173: 1 | BI173: 8151 | BJ173: ROBERT RENICK EDUCATION CTR | BK173: 7 | BL173: 1 | BM173: 1 | BP173: 0.7777777778 | BQ173: 0.1111111111 | BR173: 0.1111111111 | BS173: 0 | BT173: 0 | BU173: 9 | BV173: 1
A174: 3621 | B174: COCONUT PALM K-8 ACADEMY | C174: 33 | D174: 37 | E174: 63 | F174: 29 | G174: 7 | H174: 0.1952662722 | I174: 0.2189349112 | J174: 0.3727810651 | K174: 0.1715976331 | L174: 0.04142011834 | M174: 169 | N174: 1 | O174: 59 | P174: 3741 | Q174: NORTH BEACH ELEMENTARY | R174: 18 | S174: 14 | T174: 27 | U174: 47 | V174: 52 | W174: 0.1139240506 | X174: 0.08860759494 | Y174: 0.1708860759 | Z174: 0.2974683544 | AA174: 0.3291139241 | AB174: 158 | AC174: 1 | AD174: 80 | AE174: 3741 | AF174: NORTH BEACH ELEMENTARY | AG174: 16 | AH174: 27 | AI174: 38 | AJ174: 40 | AK174: 52 | AL174: 0.09248554913 | AM174: 0.1560693642 | AN174: 0.2196531792 | AO174: 0.2312138728 | AP174: 0.3005780347 | AQ174: 173 | AR174: 1 | AS174: 75 | AT174: 7861 | AU174: #N/A | AV174: 3 | AW174: 2 | AX174: 1 | BA174: 0.5 | BB174: 0.3333333333 | BC174: 0.1666666667 | BD174: 0 | BE174: 0 | BF174: 6 | BG174: 1 | BI174: 8181 | BJ174: RUTH OWENS KRUSE' EDUC CENTER | BK174: 4 | BL174: 1 | BM174: 1 | BP174: 0.6666666667 | BQ174: 0.1666666667 | BR174: 0.1666666667 | BS174: 0 | BT174: 0 | BU174: 6 | BV174: 1
A175: 3661 | B175: NATURAL BRIDGE ELEMENTARY | C175: 19 | D175: 16 | E175: 31 | F175: 25 | G175: 8 | H175: 0.1919191919 | I175: 0.1616161616 | J175: 0.3131313131 | K175: 0.2525252525 | L175: 0.08080808081 | M175: 99 | N175: 1 | O175: 65 | P175: 3781 | Q175: BARBARA HAWKINS ELEMENTARY | R175: 14 | S175: 13 | T175: 16 | U175: 7 | W175: 0.28 | X175: 0.26 | Y175: 0.32 | Z175: 0.14 | AA175: 0 | AB175: 50 | AC175: 1 | AD175: 46 | AE175: 3781 | AF175: BARBARA HAWKINS ELEMENTARY | AG175: 9 | AH175: 11 | AI175: 15 | AJ175: 3 | AK175: 1 | AL175: 0.2307692308 | AM175: 0.2820512821 | AN175: 0.3846153846 | AO175: 0.07692307692 | AP175: 0.02564102564 | AQ175: 39 | AR175: 1 | AS175: 49 | AT175: 7862 | AU175: #N/A | AV175: 2 | AW175: 1 | BA175: 0.6666666667 | BB175: 0.3333333333 | BC175: 0 | BD175: 0 | BE175: 0 | BF175: 3 | BG175: 1 | BI175: 9732 | BJ175: BRUCIE BALL EDUCATIONAL CENTER | BK175: 4 | BL175: 2 | BM175: 1 | BP175: 0.5714285714 | BQ175: 0.2857142857 | BR175: 0.1428571429 | BS175: 0 | BT175: 0 | BU175: 7 | BV175: 1
A176: 3701 | B176: NORLAND ELEMENTARY | C176: 25 | D176: 20 | E176: 37 | F176: 30 | G176: 8 | H176: 0.2083333333 | I176: 0.1666666667 | J176: 0.3083333333 | K176: 0.25 | L176: 0.06666666667 | M176: 120 | N176: 1 | O176: 63 | P176: 3821 | Q176: NORTH COUNTY K-8 CENTER | R176: 25 | S176: 14 | T176: 12 | U176: 3 | V176: 1 | W176: 0.4545454545 | X176: 0.2545454545 | Y176: 0.2181818182 | Z176: 0.05454545455 | AA176: 0.01818181818 | AB176: 55 | AC176: 1 | AD176: 29 | AE176: 3821 | AF176: NORTH COUNTY K-8 CENTER | AG176: 13 | AH176: 8 | AI176: 20 | AJ176: 12 | AK176: 3 | AL176: 0.2321428571 | AM176: 0.1428571429 | AN176: 0.3571428571 | AO176: 0.2142857143 | AP176: 0.05357142857 | AQ176: 56 | AR176: 1 | AS176: 63 | AT176: 7863 | AU176: #N/A | AV176: 6 | BA176: 1 | BB176: 0 | BC176: 0 | BD176: 0 | BE176: 0 | BF176: 6 | BG176: 1 | BI176: 9999 | BK176: 7166 | BL176: 5143 | BM176: 5853 | BN176: 3395 | BO176: 1516 | BP176: 0.3105794652 | BQ176: 0.2229012265 | BR176: 0.2536731244 | BS176: 0.1471416808 | BT176: 0.0657045031 | BU176: 23073 | BV176: 1 | BW176: 47
A177: 3741 | B177: NORTH BEACH ELEMENTARY | C177: 13 | D177: 15 | E177: 59 | F177: 53 | G177: 33 | H177: 0.07514450867 | I177: 0.08670520231 | J177: 0.3410404624 | K177: 0.3063583815 | L177: 0.1907514451 | M177: 173 | N177: 1 | O177: 84 | P177: 3861 | Q177: NORTH GLADE ELEMENTARY | R177: 19 | S177: 9 | T177: 8 | U177: 8 | V177: 2 | W177: 0.4130434783 | X177: 0.1956521739 | Y177: 0.1739130435 | Z177: 0.1739130435 | AA177: 0.04347826087 | AB177: 46 | AC177: 1 | AD177: 39 | AE177: 3861 | AF177: NORTH GLADE ELEMENTARY | AG177: 11 | AH177: 20 | AI177: 11 | AJ177: 5 | AK177: 1 | AL177: 0.2291666667 | AM177: 0.4166666667 | AN177: 0.2291666667 | AO177: 0.1041666667 | AP177: 0.02083333333 | AQ177: 48 | AR177: 1 | AS177: 35 | AT177: 8101 | AU177: JAN MANN OPPORTUNITY SCHOOL | AV177: 4 | AW177: 2 | BA177: 0.6666666667 | BB177: 0.3333333333 | BC177: 0 | BD177: 0 | BE177: 0 | BF177: 6 | BG177: 1
A178: 3781 | B178: BARBARA HAWKINS ELEMENTARY | C178: 13 | D178: 15 | E178: 15 | F178: 5 | H178: 0.2708333333 | I178: 0.3125 | J178: 0.3125 | K178: 0.1041666667 | L178: 0 | M178: 48 | N178: 1 | O178: 42 | P178: 3901 | Q178: NORTH HIALEAH ELEMENTARY | R178: 30 | S178: 15 | T178: 21 | U178: 23 | V178: 7 | W178: 0.3125 | X178: 0.15625 | Y178: 0.21875 | Z178: 0.2395833333 | AA178: 0.07291666667 | AB178: 96 | AC178: 1 | AD178: 53 | AE178: 3901 | AF178: NORTH HIALEAH ELEMENTARY | AG178: 19 | AH178: 27 | AI178: 24 | AJ178: 18 | AK178: 14 | AL178: 0.1862745098 | AM178: 0.2647058824 | AN178: 0.2352941176 | AO178: 0.1764705882 | AP178: 0.137254902 | AQ178: 102 | AR178: 1 | AS178: 55 | AT178: 8151 | AU178: ROBERT RENICK EDUCATION CTR | AV178: 11 | BA178: 1 | BB178: 0 | BC178: 0 | BD178: 0 | BE178: 0 | BF178: 11 | BG178: 1 | BH178: 0
A179: 3821 | B179: NORTH COUNTY K-8 CENTER | C179: 24 | D179: 15 | E179: 10 | F179: 4 | G179: 2 | H179: 0.4363636364 | I179: 0.2727272727 | J179: 0.1818181818 | K179: 0.07272727273 | L179: 0.03636363636 | M179: 55 | N179: 1 | O179: 29 | P179: 3941 | Q179: NORTH MIAMI ELEMENTARY | R179: 28 | S179: 17 | T179: 27 | U179: 11 | V179: 9 | W179: 0.3043478261 | X179: 0.1847826087 | Y179: 0.2934782609 | Z179: 0.1195652174 | AA179: 0.09782608696 | AB179: 92 | AC179: 1 | AD179: 51 | AE179: 3941 | AF179: NORTH MIAMI ELEMENTARY | AG179: 4 | AH179: 14 | AI179: 24 | AJ179: 15 | AK179: 4 | AL179: 0.06557377049 | AM179: 0.2295081967 | AN179: 0.393442623 | AO179: 0.2459016393 | AP179: 0.06557377049 | AQ179: 61 | AR179: 1 | AS179: 70 | AT179: 8181 | AU179: RUTH OWENS KRUSE' EDUC CENTER | AV179: 8 | BA179: 1 | BB179: 0 | BC179: 0 | BD179: 0 | BE179: 0 | BF179: 8 | BG179: 1
A180: 3861 | B180: NORTH GLADE ELEMENTARY | C180: 12 | D180: 8 | E180: 14 | F180: 14 | G180: 5 | H180: 0.2264150943 | I180: 0.1509433962 | J180: 0.2641509434 | K180: 0.2641509434 | L180: 0.09433962264 | M180: 53 | N180: 1 | O180: 62 | P180: 3981 | Q180: NORTH TWIN LAKES ELEMENTARY | R180: 15 | S180: 12 | T180: 30 | U180: 24 | V180: 13 | W180: 0.1595744681 | X180: 0.1276595745 | Y180: 0.3191489362 | Z180: 0.2553191489 | AA180: 0.1382978723 | AB180: 94 | AC180: 1 | AD180: 71 | AE180: 3981 | AF180: NORTH TWIN LAKES ELEMENTARY | AG180: 17 | AH180: 5 | AI180: 21 | AJ180: 25 | AK180: 6 | AL180: 0.2297297297 | AM180: 0.06756756757 | AN180: 0.2837837838 | AO180: 0.3378378378 | AP180: 0.08108108108 | AQ180: 74 | AR180: 1 | AS180: 70 | AT180: 9732 | AU180: BRUCIE BALL EDUCATIONAL CENTER | AV180: 4 | AW180: 3 | AX180: 4 | AY180: 1 | BA180: 0.3333333333 | BB180: 0.25 | BC180: 0.3333333333 | BD180: 0.08333333333 | BE180: 0 | BF180: 12 | BG180: 1 | BH180: 42
A181: 3901 | B181: NORTH HIALEAH ELEMENTARY | C181: 34 | D181: 13 | E181: 27 | F181: 23 | G181: 13 | H181: 0.3090909091 | I181: 0.1181818182 | J181: 0.2454545455 | K181: 0.2090909091 | L181: 0.1181818182 | M181: 110 | N181: 1 | O181: 57 | P181: 4000 | Q181: MIAMI CHILDREN'S MUSEUM | R181: 9 | S181: 8 | T181: 13 | U181: 8 | V181: 4 | W181: 0.2142857143 | X181: 0.1904761905 | Y181: 0.3095238095 | Z181: 0.1904761905 | AA181: 0.09523809524 | AB181: 42 | AC181: 1 | AD181: 60 | AE181: 4000 | AF181: MIAMI CHILDREN'S MUSEUM | AG181: 8 | AH181: 9 | AI181: 14 | AJ181: 11 | AK181: 6 | AL181: 0.1666666667 | AM181: 0.1875 | AN181: 0.2916666667 | AO181: 0.2291666667 | AP181: 0.125 | AQ181: 48 | AR181: 1 | AS181: 65 | AT181: 9999 | AV181: 6830 | AW181: 5717 | AX181: 5484 | AY181: 4634 | AZ181: 2117 | BA181: 0.2756032604 | BB181: 0.230691631 | BC181: 0.2212896457 | BD181: 0.1869905577 | BE181: 0.08542490517 | BF181: 24782 | BG181: 1 | BH181: 49
A182: 3941 | B182: NORTH MIAMI ELEMENTARY | C182: 18 | D182: 9 | E182: 25 | F182: 16 | G182: 6 | H182: 0.2432432432 | I182: 0.1216216216 | J182: 0.3378378378 | K182: 0.2162162162 | L182: 0.08108108108 | M182: 74 | N182: 1 | O182: 64 | P182: 4001 | Q182: NORWOOD ELEMENTARY | R182: 27 | S182: 14 | T182: 24 | U182: 15 | V182: 3 | W182: 0.3253012048 | X182: 0.1686746988 | Y182: 0.2891566265 | Z182: 0.1807228916 | AA182: 0.03614457831 | AB182: 83 | AC182: 1 | AD182: 51 | AE182: 4001 | AF182: NORWOOD ELEMENTARY | AG182: 21 | AH182: 25 | AI182: 21 | AJ182: 23 | AK182: 3 | AL182: 0.2258064516 | AM182: 0.2688172043 | AN182: 0.2258064516 | AO182: 0.247311828 | AP182: 0.03225806452 | AQ182: 93 | AR182: 1 | AS182: 51
A183: 3981 | B183: NORTH TWIN LAKES ELEMENTARY | C183: 24 | D183: 11 | E183: 13 | F183: 18 | G183: 18 | H183: 0.2857142857 | I183: 0.130952381 | J183: 0.1547619048 | K183: 0.2142857143 | L183: 0.2142857143 | M183: 84 | N183: 1 | O183: 58 | P183: 4012 | Q183: SOMERSET ACAD AT SILVER PALMS | R183: 6 | S183: 9 | T183: 26 | U183: 37 | V183: 20 | W183: 0.0612244898 | X183: 0.09183673469 | Y183: 0.2653061224 | Z183: 0.3775510204 | AA183: 0.2040816327 | AB183: 98 | AC183: 1 | AD183: 85 | AE183: 4012 | AF183: SOMERSET ACAD AT SILVER PALMS | AG183: 3 | AH183: 27 | AI183: 28 | AJ183: 26 | AK183: 17 | AL183: 0.0297029703 | AM183: 0.2673267327 | AN183: 0.2772277228 | AO183: 0.2574257426 | AP183: 0.1683168317 | AQ183: 101 | AR183: 1 | AS183: 70
A184: 4000 | B184: MIAMI CHILDREN'S MUSEUM | C184: 4 | D184: 9 | E184: 19 | F184: 17 | G184: 7 | H184: 0.07142857143 | I184: 0.1607142857 | J184: 0.3392857143 | K184: 0.3035714286 | L184: 0.125 | M184: 56 | N184: 1 | O184: 77 | P184: 4021 | Q184: OAK GROVE ELEMENTARY | R184: 26 | S184: 20 | T184: 27 | U184: 19 | V184: 6 | W184: 0.2653061224 | X184: 0.2040816327 | Y184: 0.2755102041 | Z184: 0.193877551 | AA184: 0.0612244898 | AB184: 98 | AC184: 1 | AD184: 53 | AE184: 4021 | AF184: OAK GROVE ELEMENTARY | AG184: 16 | AH184: 19 | AI184: 27 | AJ184: 12 | AK184: 4 | AL184: 0.2051282051 | AM184: 0.2435897436 | AN184: 0.3461538462 | AO184: 0.1538461538 | AP184: 0.05128205128 | AQ184: 78 | AR184: 1 | AS184: 55
A185: 4001 | B185: NORWOOD ELEMENTARY | C185: 8 | D185: 8 | E185: 24 | F185: 21 | G185: 15 | H185: 0.1052631579 | I185: 0.1052631579 | J185: 0.3157894737 | K185: 0.2763157895 | L185: 0.1973684211 | M185: 76 | N185: 1 | O185: 79 | P185: 4031 | Q185: GATEWAY ENVIRONMENTAL K-8 | R185: 118 | S185: 50 | T185: 52 | U185: 28 | V185: 7 | W185: 0.462745098 | X185: 0.1960784314 | Y185: 0.2039215686 | Z185: 0.1098039216 | AA185: 0.02745098039 | AB185: 255 | AC185: 1 | AD185: 34 | AE185: 4031 | AF185: GATEWAY ENVIRONMENTAL K-8 | AG185: 66 | AH185: 32 | AI185: 40 | AJ185: 26 | AK185: 24 | AL185: 0.3510638298 | AM185: 0.170212766 | AN185: 0.2127659574 | AO185: 0.1382978723 | AP185: 0.1276595745 | AQ185: 188 | AR185: 1 | AS185: 48
A186: 4002 | B186: BEACON COLLEGE PREPARATORY | C186: 14 | D186: 7 | E186: 16 | F186: 6 | H186: 0.3255813953 | I186: 0.1627906977 | J186: 0.3720930233 | K186: 0.1395348837 | L186: 0 | M186: 43 | N186: 1 | O186: 51 | P186: 4061 | Q186: OJUS ELEMENTARY | R186: 23 | S186: 14 | T186: 45 | U186: 39 | V186: 37 | W186: 0.1455696203 | X186: 0.08860759494 | Y186: 0.2848101266 | Z186: 0.246835443 | AA186: 0.2341772152 | AB186: 158 | AC186: 1 | AD186: 77 | AE186: 4061 | AF186: OJUS ELEMENTARY | AG186: 38 | AH186: 40 | AI186: 34 | AJ186: 26 | AK186: 20 | AL186: 0.2405063291 | AM186: 0.253164557 | AN186: 0.2151898734 | AO186: 0.164556962 | AP186: 0.1265822785 | AQ186: 158 | AR186: 1 | AS186: 51
A187: 4012 | B187: SOMERSET ACAD AT SILVER PALMS | C187: 1 | D187: 12 | E187: 25 | F187: 23 | G187: 21 | H187: 0.01219512195 | I187: 0.1463414634 | J187: 0.3048780488 | K187: 0.2804878049 | L187: 0.256097561 | M187: 82 | N187: 1 | O187: 84 | P187: 4071 | Q187: AGENORIA S. PASCHAL/OLINDA EL | R187: 9 | S187: 12 | T187: 20 | U187: 11 | V187: 7 | W187: 0.1525423729 | X187: 0.2033898305 | Y187: 0.3389830508 | Z187: 0.186440678 | AA187: 0.1186440678 | AB187: 59 | AC187: 1 | AD187: 64 | AE187: 4071 | AF187: AGENORIA S. PASCHAL/OLINDA EL | AG187: 19 | AH187: 20 | AI187: 11 | AJ187: 4 | AK187: 1 | AL187: 0.3454545455 | AM187: 0.3636363636 | AN187: 0.2 | AO187: 0.07272727273 | AP187: 0.01818181818 | AQ187: 55 | AR187: 1 | AS187: 29
A188: 4021 | B188: OAK GROVE ELEMENTARY | C188: 29 | D188: 16 | E188: 31 | F188: 15 | G188: 2 | H188: 0.311827957 | I188: 0.1720430108 | J188: 0.3333333333 | K188: 0.1612903226 | L188: 0.02150537634 | M188: 93 | N188: 1 | O188: 52 | P188: 4091 | Q188: OLYMPIA HEIGHTS ELEMENTARY | R188: 21 | S188: 17 | T188: 19 | U188: 12 | V188: 10 | W188: 0.2658227848 | X188: 0.2151898734 | Y188: 0.2405063291 | Z188: 0.1518987342 | AA188: 0.1265822785 | AB188: 79 | AC188: 1 | AD188: 52 | AE188: 4091 | AF188: OLYMPIA HEIGHTS ELEMENTARY | AG188: 26 | AH188: 26 | AI188: 25 | AJ188: 10 | AK188: 2 | AL188: 0.2921348315 | AM188: 0.2921348315 | AN188: 0.2808988764 | AO188: 0.1123595506 | AP188: 0.02247191011 | AQ188: 89 | AR188: 1 | AS188: 42
A189: 4031 | B189: GATEWAY ENVIRONMENTAL K-8 | C189: 83 | D189: 47 | E189: 80 | F189: 32 | G189: 4 | H189: 0.337398374 | I189: 0.1910569106 | J189: 0.325203252 | K189: 0.1300813008 | L189: 0.0162601626 | M189: 246 | N189: 1 | O189: 47 | P189: 4121 | Q189: DR. ROBERT B. INGRAM EL | R189: 38 | S189: 17 | T189: 11 | U189: 2 | V189: 1 | W189: 0.5507246377 | X189: 0.2463768116 | Y189: 0.1594202899 | Z189: 0.02898550725 | AA189: 0.01449275362 | AB189: 69 | AC189: 1 | AD189: 20 | AE189: 4121 | AF189: DR. ROBERT B. INGRAM EL | AG189: 30 | AH189: 9 | AI189: 4 | AJ189: 8 | AL189: 0.5882352941 | AM189: 0.1764705882 | AN189: 0.07843137255 | AO189: 0.1568627451 | AP189: 0 | AQ189: 51 | AR189: 1 | AS189: 24
A190: 4061 | B190: OJUS ELEMENTARY | C190: 27 | D190: 33 | E190: 50 | F190: 45 | G190: 10 | H190: 0.1636363636 | I190: 0.2 | J190: 0.303030303 | K190: 0.2727272727 | L190: 0.06060606061 | M190: 165 | N190: 1 | O190: 64 | P190: 4171 | Q190: ORCHARD VILLA ELEMENTARY | R190: 31 | S190: 12 | T190: 11 | U190: 5 | V190: 1 | W190: 0.5166666667 | X190: 0.2 | Y190: 0.1833333333 | Z190: 0.08333333333 | AA190: 0.01666666667 | AB190: 60 | AC190: 1 | AD190: 28 | AE190: 4171 | AF190: ORCHARD VILLA ELEMENTARY | AG190: 22 | AH190: 19 | AI190: 12 | AJ190: 9 | AK190: 1 | AL190: 0.3492063492 | AM190: 0.3015873016 | AN190: 0.1904761905 | AO190: 0.1428571429 | AP190: 0.01587301587 | AQ190: 63 | AR190: 1 | AS190: 35
A191: 4071 | B191: AGENORIA S. PASCHAL/OLINDA EL | C191: 8 | D191: 11 | E191: 20 | F191: 17 | G191: 7 | H191: 0.126984127 | I191: 0.1746031746 | J191: 0.3174603175 | K191: 0.2698412698 | L191: 0.1111111111 | M191: 63 | N191: 1 | O191: 70 | P191: 4221 | Q191: PALMETTO ELEMENTARY | R191: 12 | S191: 11 | T191: 28 | U191: 30 | V191: 37 | W191: 0.1016949153 | X191: 0.09322033898 | Y191: 0.2372881356 | Z191: 0.2542372881 | AA191: 0.313559322 | AB191: 118 | AC191: 1 | AD191: 81 | AE191: 4221 | AF191: PALMETTO ELEMENTARY | AG191: 12 | AH191: 9 | AI191: 27 | AJ191: 26 | AK191: 18 | AL191: 0.1304347826 | AM191: 0.09782608696 | AN191: 0.2934782609 | AO191: 0.2826086957 | AP191: 0.1956521739 | AQ191: 92 | AR191: 1 | AS191: 77
A192: 4091 | B192: OLYMPIA HEIGHTS ELEMENTARY | C192: 20 | D192: 19 | E192: 27 | F192: 11 | G192: 2 | H192: 0.253164557 | I192: 0.2405063291 | J192: 0.3417721519 | K192: 0.1392405063 | L192: 0.0253164557 | M192: 79 | N192: 1 | O192: 51 | P192: 4241 | Q192: PALM LAKES ELEMENTARY | R192: 56 | S192: 32 | T192: 34 | U192: 21 | V192: 8 | W192: 0.3708609272 | X192: 0.2119205298 | Y192: 0.2251655629 | Z192: 0.1390728477 | AA192: 0.05298013245 | AB192: 151 | AC192: 1 | AD192: 42 | AE192: 4241 | AF192: PALM LAKES ELEMENTARY | AG192: 21 | AH192: 26 | AI192: 27 | AJ192: 34 | AK192: 14 | AL192: 0.1721311475 | AM192: 0.2131147541 | AN192: 0.2213114754 | AO192: 0.2786885246 | AP192: 0.1147540984 | AQ192: 122 | AR192: 1 | AS192: 61
A193: 4121 | B193: DR. ROBERT B. INGRAM EL | C193: 24 | D193: 21 | E193: 18 | F193: 4 | G193: 1 | H193: 0.3529411765 | I193: 0.3088235294 | J193: 0.2647058824 | K193: 0.05882352941 | L193: 0.01470588235 | M193: 68 | N193: 1 | O193: 34 | P193: 4261 | Q193: PALM SPRINGS ELEMENTARY | R193: 31 | S193: 28 | T193: 44 | U193: 13 | V193: 7 | W193: 0.2520325203 | X193: 0.2276422764 | Y193: 0.3577235772 | Z193: 0.1056910569 | AA193: 0.05691056911 | AB193: 123 | AC193: 1 | AD193: 52 | AE193: 4261 | AF193: PALM SPRINGS ELEMENTARY | AG193: 25 | AH193: 19 | AI193: 31 | AJ193: 28 | AK193: 11 | AL193: 0.2192982456 | AM193: 0.1666666667 | AN193: 0.2719298246 | AO193: 0.2456140351 | AP193: 0.09649122807 | AQ193: 114 | AR193: 1 | AS193: 61
A194: 4171 | B194: ORCHARD VILLA ELEMENTARY | C194: 27 | D194: 14 | E194: 23 | F194: 3 | G194: 2 | H194: 0.3913043478 | I194: 0.2028985507 | J194: 0.3333333333 | K194: 0.04347826087 | L194: 0.02898550725 | M194: 69 | N194: 1 | O194: 41 | P194: 4281 | Q194: PALM SPRINGS NORTH ELEMENTARY | R194: 20 | S194: 22 | T194: 30 | U194: 37 | V194: 35 | W194: 0.1388888889 | X194: 0.1527777778 | Y194: 0.2083333333 | Z194: 0.2569444444 | AA194: 0.2430555556 | AB194: 144 | AC194: 1 | AD194: 71 | AE194: 4281 | AF194: PALM SPRINGS NORTH ELEMENTARY | AG194: 17 | AH194: 20 | AI194: 37 | AJ194: 46 | AK194: 40 | AL194: 0.10625 | AM194: 0.125 | AN194: 0.23125 | AO194: 0.2875 | AP194: 0.25 | AQ194: 160 | AR194: 1 | AS194: 77
A195: 4221 | B195: PALMETTO ELEMENTARY | C195: 11 | D195: 12 | E195: 29 | F195: 36 | G195: 11 | H195: 0.1111111111 | I195: 0.1212121212 | J195: 0.2929292929 | K195: 0.3636363636 | L195: 0.1111111111 | M195: 99 | N195: 1 | O195: 77 | P195: 4301 | Q195: PARKVIEW ELEMENTARY | R195: 25 | S195: 13 | T195: 12 | U195: 4 | W195: 0.462962963 | X195: 0.2407407407 | Y195: 0.2222222222 | Z195: 0.07407407407 | AA195: 0 | AB195: 54 | AC195: 1 | AD195: 30 | AE195: 4301 | AF195: PARKVIEW ELEMENTARY | AG195: 24 | AH195: 7 | AI195: 6 | AJ195: 3 | AL195: 0.6 | AM195: 0.175 | AN195: 0.15 | AO195: 0.075 | AP195: 0 | AQ195: 40 | AR195: 1 | AS195: 23
A196: 4241 | B196: PALM LAKES ELEMENTARY | C196: 31 | D196: 24 | E196: 20 | F196: 31 | G196: 7 | H196: 0.2743362832 | I196: 0.2123893805 | J196: 0.1769911504 | K196: 0.2743362832 | L196: 0.06194690265 | M196: 113 | N196: 1 | O196: 51 | P196: 4341 | Q196: PARKWAY ELEMENTARY | R196: 24 | S196: 11 | T196: 12 | U196: 6 | W196: 0.4528301887 | X196: 0.2075471698 | Y196: 0.2264150943 | Z196: 0.1132075472 | AA196: 0 | AB196: 53 | AC196: 1 | AD196: 34 | AE196: 4341 | AF196: PARKWAY ELEMENTARY | AG196: 15 | AH196: 13 | AI196: 12 | AJ196: 6 | AK196: 1 | AL196: 0.3191489362 | AM196: 0.2765957447 | AN196: 0.2553191489 | AO196: 0.1276595745 | AP196: 0.02127659574 | AQ196: 47 | AR196: 1 | AS196: 40
A197: 4261 | B197: PALM SPRINGS ELEMENTARY | C197: 32 | D197: 17 | E197: 24 | F197: 19 | G197: 16 | H197: 0.2962962963 | I197: 0.1574074074 | J197: 0.2222222222 | K197: 0.1759259259 | L197: 0.1481481481 | M197: 108 | N197: 1 | O197: 55 | P197: 4381 | Q197: DR HENRY E PERRINE ACADEMY | R197: 31 | S197: 25 | T197: 41 | U197: 41 | V197: 19 | W197: 0.1974522293 | X197: 0.1592356688 | Y197: 0.2611464968 | Z197: 0.2611464968 | AA197: 0.1210191083 | AB197: 157 | AC197: 1 | AD197: 64 | AE197: 4381 | AF197: DR HENRY E PERRINE ACADEMY | AG197: 15 | AH197: 29 | AI197: 40 | AJ197: 40 | AK197: 33 | AL197: 0.09554140127 | AM197: 0.1847133758 | AN197: 0.2547770701 | AO197: 0.2547770701 | AP197: 0.2101910828 | AQ197: 157 | AR197: 1 | AS197: 72
A198: 4281 | B198: PALM SPRINGS NORTH ELEMENTARY | C198: 27 | D198: 19 | E198: 51 | F198: 70 | G198: 38 | H198: 0.1317073171 | I198: 0.09268292683 | J198: 0.2487804878 | K198: 0.3414634146 | L198: 0.1853658537 | M198: 205 | N198: 1 | O198: 78 | P198: 4391 | Q198: IRVING & BEATRICE PESKOE K-8 | R198: 53 | S198: 24 | T198: 18 | U198: 10 | V198: 5 | W198: 0.4818181818 | X198: 0.2181818182 | Y198: 0.1636363636 | Z198: 0.09090909091 | AA198: 0.04545454545 | AB198: 110 | AC198: 1 | AD198: 30 | AE198: 4391 | AF198: IRVING & BEATRICE PESKOE K-8 | AG198: 32 | AH198: 28 | AI198: 33 | AJ198: 8 | AK198: 1 | AL198: 0.3137254902 | AM198: 0.2745098039 | AN198: 0.3235294118 | AO198: 0.07843137255 | AP198: 0.009803921569 | AQ198: 102 | AR198: 1 | AS198: 41
A199: 4301 | B199: PARKVIEW ELEMENTARY | C199: 17 | D199: 18 | E199: 16 | F199: 5 | G199: 5 | H199: 0.2786885246 | I199: 0.2950819672 | J199: 0.262295082 | K199: 0.08196721311 | L199: 0.08196721311 | M199: 61 | N199: 1 | O199: 43 | P199: 4401 | Q199: KELSEY L. PHARR ELEMENTARY | R199: 12 | S199: 10 | T199: 11 | U199: 8 | W199: 0.2926829268 | X199: 0.243902439 | Y199: 0.2682926829 | Z199: 0.1951219512 | AA199: 0 | AB199: 41 | AC199: 1 | AD199: 46 | AE199: 4401 | AF199: KELSEY L. PHARR ELEMENTARY | AG199: 16 | AH199: 11 | AI199: 15 | AJ199: 3 | AK199: 3 | AL199: 0.3333333333 | AM199: 0.2291666667 | AN199: 0.3125 | AO199: 0.0625 | AP199: 0.0625 | AQ199: 48 | AR199: 1 | AS199: 44
A200: 4341 | B200: PARKWAY ELEMENTARY | C200: 20 | D200: 14 | E200: 16 | F200: 9 | G200: 1 | H200: 0.3333333333 | I200: 0.2333333333 | J200: 0.2666666667 | K200: 0.15 | L200: 0.01666666667 | M200: 60 | N200: 1 | O200: 43 | P200: 4421 | Q200: PINECREST ELEMENTARY | R200: 11 | S200: 14 | T200: 38 | U200: 53 | V200: 67 | W200: 0.06010928962 | X200: 0.07650273224 | Y200: 0.2076502732 | Z200: 0.2896174863 | AA200: 0.3661202186 | AB200: 183 | AC200: 1 | AD200: 86 | AE200: 4421 | AF200: PINECREST ELEMENTARY | AG200: 8 | AH200: 15 | AI200: 24 | AJ200: 60 | AK200: 54 | AL200: 0.04968944099 | AM200: 0.09316770186 | AN200: 0.149068323 | AO200: 0.3726708075 | AP200: 0.3354037267 | AQ200: 161 | AR200: 1 | AS200: 86
... 85 more rows

Sheet 2016 FSA ELA (hidden)
A1: FSATOOK | B1: 1 | P1: FSATOOK | Q1: 1 | AE1: FSATOOK | AF1: 1 | AT1: FSATOOK | AU1: 1 | BI1: FSATOOK | BJ1: 1 | BX1: FSATOOK | BY1: 1
A2: SCHLTYPE | P2: SCHLTYPE | AE2: SCHLTYPE | AT2: SCHLTYPE | BI2: SCHLTYPE | BX2: SCHLTYPE
A3: RETAKE_FLAG | P3: RETAKE_FLAG | AE3: RETAKE_FLAG | AT3: RETAKE_FLAG | BI3: RETAKE_FLAG | BX3: RETAKE_FLAG
A4: GRADE | B4: 03 | P4: GRADE | Q4: 04 | AE4: GRADE | AF4: 05 | AT4: GRADE | AU4: 06 | BI4: GRADE | BJ4: 07 | BX4: GRADE | BY4: 08
A5: 1 | B5: 2 | C5: 3 | D5: 4 | E5: 5 | F5: 6 | G5: 7 | H5: 8 | I5: 9 | J5: 10 | K5: 11 | L5: 12 | M5: 13 | N5: 14 | O5: 15 | P5: 1 | Q5: 2 | R5: 3 | S5: 4 | T5: 5 | U5: 6 | V5: 7 | W5: 8 | X5: 9 | Y5: 10 | Z5: 11 | AA5: 12 | AB5: 13 | AC5: 14 | AD5: 15 | AE5: 1 | AF5: 2 | AG5: 3 | AH5: 4 | AI5: 5 | AJ5: 6 | AK5: 7 | AL5: 8 | AM5: 9 | AN5: 10 | AO5: 11 | AP5: 12 | AQ5: 13 | AR5: 14 | AS5: 15 | AT5: 1 | AU5: 2 | AV5: 3 | AW5: 4 | AX5: 5 | AY5: 6 | AZ5: 7 | BA5: 8 | BB5: 9 | BC5: 10 | BD5: 11 | BE5: 12 | BF5: 13 | BG5: 14 | BH5: 15 | BI5: 1 | BJ5: 2 | BK5: 3 | BL5: 4 | BM5: 5 | BN5: 6 | BO5: 7 | BP5: 8 | BQ5: 9 | BR5: 10 | BS5: 11 | BT5: 12 | BU5: 13 | BV5: 14 | BW5: 15 | BX5: 1 | BY5: 2 | BZ5: 3 | CA5: 4 | CB5: 5 | CC5: 6 | CD5: 7 | CE5: 8 | CF5: 9 | CG5: 10 | CH5: 11 | CI5: 12 | CJ5: 13 | CK5: 14 | CL5: 15
C6: Values | D6: FSA_LVL | R6: Values | S6: FSA_LVL | AG6: Values | AH6: FSA_LVL | AV6: Values | AW6: FSA_LVL | BK6: Values | BL6: FSA_LVL | BZ6: Values | CA6: FSA_LVL
C7: Count of ID | H7: Count of ID2 | M7: Total Count of ID | N7: Total Count of ID2 | R7: Count of ID | W7: Count of ID2 | AB7: Total Count of ID | AC7: Total Count of ID2 | AG7: Count of ID | AL7: Count of ID2 | AQ7: Total Count of ID | AR7: Total Count of ID2 | AV7: Count of ID | BA7: Count of ID2 | BF7: Total Count of ID | BG7: Total Count of ID2 | BK7: Count of ID | BP7: Count of ID2 | BU7: Total Count of ID | BV7: Total Count of ID2 | BZ7: Count of ID | CE7: Count of ID2 | CJ7: Total Count of ID | CK7: Total Count of ID2
A8: SCHOOL | B8: School Name | C8: 1 | D8: 2 | E8: 3 | F8: 4 | G8: 5 | H8: 1 | I8: 2 | J8: 3 | K8: 4 | L8: 5 | O8: %L3-5 | P8: SCHOOL | Q8: School Name | R8: 1 | S8: 2 | T8: 3 | U8: 4 | V8: 5 | W8: 1 | X8: 2 | Y8: 3 | Z8: 4 | AA8: 5 | AD8: %L3-5 | AE8: SCHOOL | AF8: School Name | AG8: 1 | AH8: 2 | AI8: 3 | AJ8: 4 | AK8: 5 | AL8: 1 | AM8: 2 | AN8: 3 | AO8: 4 | AP8: 5 | AS8: %L3-5 | AT8: SCHOOL | AU8: School Name | AV8: 1 | AW8: 2 | AX8: 3 | AY8: 4 | AZ8: 5 | BA8: 1 | BB8: 2 | BC8: 3 | BD8: 4 | BE8: 5 | BH8: %L3-5 | BI8: SCHOOL | BJ8: School Name | BK8: 1 | BL8: 2 | BM8: 3 | BN8: 4 | BO8: 5 | BP8: 1 | BQ8: 2 | BR8: 3 | BS8: 4 | BT8: 5 | BW8: %L3-5 | BX8: SCHOOL | BY8: School Name | BZ8: 1 | CA8: 2 | CB8: 3 | CC8: 4 | CD8: 5 | CE8: 1 | CF8: 2 | CG8: 3 | CH8: 4 | CI8: 5 | CL8: %L3-5
A9: 0041 | B9: AIR BASE K-8 CTR INT'L EDUC | C9: 2 | D9: 20 | E9: 41 | F9: 45 | G9: 18 | H9: 0.01587301587 | I9: 0.1587301587 | J9: 0.3253968254 | K9: 0.3571428571 | L9: 0.1428571429 | M9: 126 | N9: 1 | O9: 83 | P9: 0041 | Q9: AIR BASE K-8 CTR INT'L EDUC | R9: 9 | S9: 13 | T9: 44 | U9: 41 | V9: 23 | W9: 0.06923076923 | X9: 0.1 | Y9: 0.3384615385 | Z9: 0.3153846154 | AA9: 0.1769230769 | AB9: 130 | AC9: 1 | AD9: 83 | AE9: 0041 | AF9: AIR BASE K-8 CTR INT'L EDUC | AG9: 4 | AH9: 30 | AI9: 40 | AJ9: 47 | AK9: 14 | AL9: 0.02962962963 | AM9: 0.2222222222 | AN9: 0.2962962963 | AO9: 0.3481481481 | AP9: 0.1037037037 | AQ9: 135 | AR9: 1 | AS9: 75 | AT9: 0041 | AU9: AIR BASE K-8 CTR INT'L EDUC | AV9: 1 | AW9: 15 | AX9: 28 | AY9: 40 | AZ9: 16 | BA9: 0.01 | BB9: 0.15 | BC9: 0.28 | BD9: 0.4 | BE9: 0.16 | BF9: 100 | BG9: 1 | BH9: 84 | BI9: 0041 | BJ9: AIR BASE K-8 CTR INT'L EDUC | BK9: 1 | BL9: 10 | BM9: 32 | BN9: 21 | BO9: 28 | BP9: 0.01086956522 | BQ9: 0.1086956522 | BR9: 0.347826087 | BS9: 0.2282608696 | BT9: 0.3043478261 | BU9: 92 | BV9: 1 | BW9: 88 | BX9: 0041 | BY9: AIR BASE K-8 CTR INT'L EDUC | BZ9: 1 | CA9: 4 | CB9: 19 | CC9: 15 | CD9: 14 | CE9: 0.01886792453 | CF9: 0.07547169811 | CG9: 0.358490566 | CH9: 0.2830188679 | CI9: 0.2641509434 | CJ9: 53 | CK9: 1 | CL9: 91
A10: 0070 | B10: CORAL REEF MONTESSORI ACAD CH | C10: 3 | D10: 16 | E10: 21 | F10: 9 | G10: 6 | H10: 0.05454545455 | I10: 0.2909090909 | J10: 0.3818181818 | K10: 0.1636363636 | L10: 0.1090909091 | M10: 55 | N10: 1 | O10: 65 | P10: 0070 | Q10: CORAL REEF MONTESSORI ACAD CH | R10: 11 | S10: 11 | T10: 13 | U10: 13 | V10: 1 | W10: 0.2244897959 | X10: 0.2244897959 | Y10: 0.2653061224 | Z10: 0.2653061224 | AA10: 0.02040816327 | AB10: 49 | AC10: 1 | AD10: 55 | AE10: 0070 | AF10: CORAL REEF MONTESSORI ACAD CH | AG10: 4 | AH10: 11 | AI10: 12 | AJ10: 11 | AK10: 3 | AL10: 0.09756097561 | AM10: 0.2682926829 | AN10: 0.2926829268 | AO10: 0.2682926829 | AP10: 0.07317073171 | AQ10: 41 | AR10: 1 | AS10: 63 | AT10: 0070 | AU10: CORAL REEF MONTESSORI ACAD CH | AV10: 2 | AW10: 13 | AX10: 14 | AY10: 9 | AZ10: 2 | BA10: 0.05 | BB10: 0.325 | BC10: 0.35 | BD10: 0.225 | BE10: 0.05 | BF10: 40 | BG10: 1 | BH10: 63 | BI10: 0070 | BJ10: CORAL REEF MONTESSORI ACAD CH | BK10: 1 | BL10: 8 | BM10: 7 | BN10: 4 | BO10: 5 | BP10: 0.04 | BQ10: 0.32 | BR10: 0.28 | BS10: 0.16 | BT10: 0.2 | BU10: 25 | BV10: 1 | BW10: 64 | BX10: 0070 | BY10: CORAL REEF MONTESSORI ACAD CH | BZ10: 3 | CA10: 5 | CB10: 9 | CC10: 3 | CD10: 6 | CE10: 0.1153846154 | CF10: 0.1923076923 | CG10: 0.3461538462 | CH10: 0.1153846154 | CI10: 0.2307692308 | CJ10: 26 | CK10: 1 | CL10: 69
A11: 0071 | B11: EUGENIA B. THOMAS K-8 CENTER | C11: 52 | D11: 40 | E11: 50 | F11: 33 | G11: 25 | H11: 0.26 | I11: 0.2 | J11: 0.25 | K11: 0.165 | L11: 0.125 | M11: 200 | N11: 1 | O11: 54 | P11: 0071 | Q11: EUGENIA B. THOMAS K-8 CENTER | R11: 45 | S11: 48 | T11: 56 | U11: 51 | V11: 24 | W11: 0.2008928571 | X11: 0.2142857143 | Y11: 0.25 | Z11: 0.2276785714 | AA11: 0.1071428571 | AB11: 224 | AC11: 1 | AD11: 58 | AE11: 0071 | AF11: EUGENIA B. THOMAS K-8 CENTER | AG11: 49 | AH11: 34 | AI11: 53 | AJ11: 54 | AK11: 24 | AL11: 0.2289719626 | AM11: 0.1588785047 | AN11: 0.2476635514 | AO11: 0.2523364486 | AP11: 0.1121495327 | AQ11: 214 | AR11: 1 | AS11: 61 | AT11: 0071 | AU11: EUGENIA B. THOMAS K-8 CENTER | AV11: 33 | AW11: 33 | AX11: 40 | AY11: 51 | AZ11: 16 | BA11: 0.1907514451 | BB11: 0.1907514451 | BC11: 0.2312138728 | BD11: 0.2947976879 | BE11: 0.09248554913 | BF11: 173 | BG11: 1 | BH11: 62 | BI11: 0071 | BJ11: EUGENIA B. THOMAS K-8 CENTER | BK11: 57 | BL11: 45 | BM11: 30 | BN11: 42 | BO11: 16 | BP11: 0.3 | BQ11: 0.2368421053 | BR11: 0.1578947368 | BS11: 0.2210526316 | BT11: 0.08421052632 | BU11: 190 | BV11: 1 | BW11: 46 | BX11: 0071 | BY11: EUGENIA B. THOMAS K-8 CENTER | BZ11: 35 | CA11: 33 | CB11: 46 | CC11: 32 | CD11: 32 | CE11: 0.1966292135 | CF11: 0.1853932584 | CG11: 0.2584269663 | CH11: 0.1797752809 | CI11: 0.1797752809 | CJ11: 178 | CK11: 1 | CL11: 62
A12: 0072 | B12: SUMMERVILLE CHARTER SCHOOL | C12: 18 | D12: 26 | E12: 31 | F12: 16 | G12: 3 | H12: 0.1914893617 | I12: 0.2765957447 | J12: 0.329787234 | K12: 0.170212766 | L12: 0.03191489362 | M12: 94 | N12: 1 | O12: 53 | P12: 0072 | Q12: SUMMERVILLE CHARTER SCHOOL | R12: 19 | S12: 28 | T12: 25 | U12: 15 | V12: 3 | W12: 0.2111111111 | X12: 0.3111111111 | Y12: 0.2777777778 | Z12: 0.1666666667 | AA12: 0.03333333333 | AB12: 90 | AC12: 1 | AD12: 48 | AE12: 0072 | AF12: SUMMERVILLE CHARTER SCHOOL | AG12: 12 | AH12: 18 | AI12: 22 | AJ12: 17 | AK12: 7 | AL12: 0.1578947368 | AM12: 0.2368421053 | AN12: 0.2894736842 | AO12: 0.2236842105 | AP12: 0.09210526316 | AQ12: 76 | AR12: 1 | AS12: 61 | AT12: 0073 | AU12: MANDARIN LAKES K-8 CENTER | AV12: 34 | AW12: 36 | AX12: 17 | AY12: 7 | AZ12: 2 | BA12: 0.3541666667 | BB12: 0.375 | BC12: 0.1770833333 | BD12: 0.07291666667 | BE12: 0.02083333333 | BF12: 96 | BG12: 1 | BH12: 27 | BI12: 0073 | BJ12: MANDARIN LAKES K-8 CENTER | BK12: 31 | BL12: 28 | BM12: 18 | BN12: 9 | BO12: 1 | BP12: 0.3563218391 | BQ12: 0.3218390805 | BR12: 0.2068965517 | BS12: 0.1034482759 | BT12: 0.01149425287 | BU12: 87 | BV12: 1 | BW12: 32 | BX12: 0073 | BY12: MANDARIN LAKES K-8 CENTER | BZ12: 38 | CA12: 24 | CB12: 25 | CC12: 8 | CE12: 0.4 | CF12: 0.2526315789 | CG12: 0.2631578947 | CH12: 0.08421052632 | CI12: 0 | CJ12: 95 | CK12: 1 | CL12: 35
A13: 0073 | B13: MANDARIN LAKES K-8 CENTER | C13: 82 | D13: 36 | E13: 21 | F13: 6 | G13: 3 | H13: 0.5540540541 | I13: 0.2432432432 | J13: 0.1418918919 | K13: 0.04054054054 | L13: 0.02027027027 | M13: 148 | N13: 1 | O13: 20 | P13: 0073 | Q13: MANDARIN LAKES K-8 CENTER | R13: 77 | S13: 49 | T13: 26 | U13: 9 | W13: 0.4782608696 | X13: 0.3043478261 | Y13: 0.1614906832 | Z13: 0.05590062112 | AA13: 0 | AB13: 161 | AC13: 1 | AD13: 22 | AE13: 0073 | AF13: MANDARIN LAKES K-8 CENTER | AG13: 58 | AH13: 27 | AI13: 24 | AL13: 0.5321100917 | AM13: 0.247706422 | AN13: 0.2201834862 | AO13: 0 | AP13: 0 | AQ13: 109 | AR13: 1 | AS13: 22 | AT13: 0091 | AU13: BOB GRAHAM EDUCATION CTR | AV13: 32 | AW13: 50 | AX13: 60 | AY13: 58 | AZ13: 22 | BA13: 0.1441441441 | BB13: 0.2252252252 | BC13: 0.2702702703 | BD13: 0.2612612613 | BE13: 0.0990990991 | BF13: 222 | BG13: 1 | BH13: 63 | BI13: 0091 | BJ13: BOB GRAHAM EDUCATION CTR | BK13: 35 | BL13: 49 | BM13: 56 | BN13: 52 | BO13: 35 | BP13: 0.154185022 | BQ13: 0.2158590308 | BR13: 0.2466960352 | BS13: 0.2290748899 | BT13: 0.154185022 | BU13: 227 | BV13: 1 | BW13: 63 | BX13: 0091 | BY13: BOB GRAHAM EDUCATION CTR | BZ13: 14 | CA13: 38 | CB13: 59 | CC13: 45 | CD13: 36 | CE13: 0.07291666667 | CF13: 0.1979166667 | CG13: 0.3072916667 | CH13: 0.234375 | CI13: 0.1875 | CJ13: 192 | CK13: 1 | CL13: 73
A14: 0081 | B14: LENORA B. SMITH ELEMENTARY | C14: 13 | D14: 23 | E14: 10 | F14: 7 | G14: 1 | H14: 0.2407407407 | I14: 0.4259259259 | J14: 0.1851851852 | K14: 0.1296296296 | L14: 0.01851851852 | M14: 54 | N14: 1 | O14: 33 | P14: 0081 | Q14: LENORA B. SMITH ELEMENTARY | R14: 22 | S14: 22 | T14: 9 | U14: 5 | W14: 0.3793103448 | X14: 0.3793103448 | Y14: 0.1551724138 | Z14: 0.08620689655 | AA14: 0 | AB14: 58 | AC14: 1 | AD14: 24 | AE14: 0081 | AF14: LENORA B. SMITH ELEMENTARY | AG14: 19 | AH14: 23 | AI14: 13 | AJ14: 4 | AL14: 0.3220338983 | AM14: 0.3898305085 | AN14: 0.2203389831 | AO14: 0.06779661017 | AP14: 0 | AQ14: 59 | AR14: 1 | AS14: 29 | AT14: 0092 | AU14: NORMAN S. EDELCUP/SUNNY ISLES | AV14: 39 | AW14: 64 | AX14: 54 | AY14: 65 | AZ14: 27 | BA14: 0.156626506 | BB14: 0.2570281124 | BC14: 0.2168674699 | BD14: 0.2610441767 | BE14: 0.1084337349 | BF14: 249 | BG14: 1 | BH14: 59 | BI14: 0092 | BJ14: NORMAN S. EDELCUP/SUNNY ISLES | BK14: 32 | BL14: 41 | BM14: 52 | BN14: 63 | BO14: 38 | BP14: 0.1415929204 | BQ14: 0.1814159292 | BR14: 0.2300884956 | BS14: 0.2787610619 | BT14: 0.1681415929 | BU14: 226 | BV14: 1 | BW14: 68 | BX14: 0092 | BY14: NORMAN S. EDELCUP/SUNNY ISLES | BZ14: 26 | CA14: 23 | CB14: 67 | CC14: 47 | CD14: 36 | CE14: 0.1306532663 | CF14: 0.1155778894 | CG14: 0.3366834171 | CH14: 0.2361809045 | CI14: 0.1809045226 | CJ14: 199 | CK14: 1 | CL14: 75
A15: 0091 | B15: BOB GRAHAM EDUCATION CTR | C15: 27 | D15: 42 | E15: 47 | F15: 37 | G15: 27 | H15: 0.15 | I15: 0.2333333333 | J15: 0.2611111111 | K15: 0.2055555556 | L15: 0.15 | M15: 180 | N15: 1 | O15: 62 | P15: 0091 | Q15: BOB GRAHAM EDUCATION CTR | R15: 29 | S15: 36 | T15: 53 | U15: 56 | V15: 20 | W15: 0.1494845361 | X15: 0.1855670103 | Y15: 0.2731958763 | Z15: 0.2886597938 | AA15: 0.1030927835 | AB15: 194 | AC15: 1 | AD15: 66 | AE15: 0091 | AF15: BOB GRAHAM EDUCATION CTR | AG15: 31 | AH15: 55 | AI15: 54 | AJ15: 52 | AK15: 17 | AL15: 0.1483253589 | AM15: 0.2631578947 | AN15: 0.2583732057 | AO15: 0.2488038278 | AP15: 0.08133971292 | AQ15: 209 | AR15: 1 | AS15: 59 | AT15: 0122 | AU15: DR ROLANDO ESPINOSA K-8 | AV15: 66 | AW15: 49 | AX15: 25 | AY15: 37 | AZ15: 12 | BA15: 0.3492063492 | BB15: 0.2592592593 | BC15: 0.1322751323 | BD15: 0.1957671958 | BE15: 0.06349206349 | BF15: 189 | BG15: 1 | BH15: 39 | BI15: 0122 | BJ15: DR ROLANDO ESPINOSA K-8 | BK15: 55 | BL15: 28 | BM15: 49 | BN15: 25 | BO15: 28 | BP15: 0.2972972973 | BQ15: 0.1513513514 | BR15: 0.2648648649 | BS15: 0.1351351351 | BT15: 0.1513513514 | BU15: 185 | BV15: 1 | BW15: 55 | BX15: 0122 | BY15: DR ROLANDO ESPINOSA K-8 | BZ15: 49 | CA15: 45 | CB15: 41 | CC15: 32 | CD15: 26 | CE15: 0.2538860104 | CF15: 0.2331606218 | CG15: 0.2124352332 | CH15: 0.1658031088 | CI15: 0.1347150259 | CJ15: 193 | CK15: 1 | CL15: 51
A16: 0092 | B16: NORMAN S. EDELCUP/SUNNY ISLES | C16: 33 | D16: 48 | E16: 63 | F16: 71 | G16: 35 | H16: 0.132 | I16: 0.192 | J16: 0.252 | K16: 0.284 | L16: 0.14 | M16: 250 | N16: 1 | O16: 68 | P16: 0092 | Q16: NORMAN S. EDELCUP/SUNNY ISLES | R16: 43 | S16: 54 | T16: 55 | U16: 69 | V16: 19 | W16: 0.1791666667 | X16: 0.225 | Y16: 0.2291666667 | Z16: 0.2875 | AA16: 0.07916666667 | AB16: 240 | AC16: 1 | AD16: 60 | AE16: 0092 | AF16: NORMAN S. EDELCUP/SUNNY ISLES | AG16: 27 | AH16: 49 | AI16: 86 | AJ16: 72 | AK16: 29 | AL16: 0.102661597 | AM16: 0.1863117871 | AN16: 0.3269961977 | AO16: 0.2737642586 | AP16: 0.1102661597 | AQ16: 263 | AR16: 1 | AS16: 71 | AT16: 0231 | AU16: AVENTURA WATERWAYS K-8 CENTER | AV16: 37 | AW16: 49 | AX16: 39 | AY16: 54 | AZ16: 36 | BA16: 0.1720930233 | BB16: 0.2279069767 | BC16: 0.1813953488 | BD16: 0.2511627907 | BE16: 0.1674418605 | BF16: 215 | BG16: 1 | BH16: 60 | BI16: 0231 | BJ16: AVENTURA WATERWAYS K-8 CENTER | BK16: 35 | BL16: 37 | BM16: 48 | BN16: 46 | BO16: 43 | BP16: 0.1674641148 | BQ16: 0.1770334928 | BR16: 0.2296650718 | BS16: 0.2200956938 | BT16: 0.2057416268 | BU16: 209 | BV16: 1 | BW16: 66 | BX16: 0231 | BY16: AVENTURA WATERWAYS K-8 CENTER | BZ16: 26 | CA16: 27 | CB16: 50 | CC16: 45 | CD16: 44 | CE16: 0.1354166667 | CF16: 0.140625 | CG16: 0.2604166667 | CH16: 0.234375 | CI16: 0.2291666667 | CJ16: 192 | CK16: 1 | CL16: 72
A17: 0100 | B17: MATER ACADEMY | C17: 2 | D17: 27 | E17: 63 | F17: 43 | G17: 17 | H17: 0.01315789474 | I17: 0.1776315789 | J17: 0.4144736842 | K17: 0.2828947368 | L17: 0.1118421053 | M17: 152 | N17: 1 | O17: 81 | P17: 0100 | Q17: MATER ACADEMY | R17: 17 | S17: 29 | T17: 67 | U17: 44 | V17: 10 | W17: 0.1017964072 | X17: 0.1736526946 | Y17: 0.4011976048 | Z17: 0.2634730539 | AA17: 0.05988023952 | AB17: 167 | AC17: 1 | AD17: 72 | AE17: 0100 | AF17: MATER ACADEMY | AG17: 6 | AH17: 37 | AI17: 41 | AJ17: 40 | AK17: 22 | AL17: 0.04109589041 | AM17: 0.2534246575 | AN17: 0.2808219178 | AO17: 0.2739726027 | AP17: 0.1506849315 | AQ17: 146 | AR17: 1 | AS17: 71 | AT17: 0241 | AU17: RUTH K BROAD/BAY HARBOR K-8 | AV17: 13 | AW17: 27 | AX17: 43 | AY17: 46 | AZ17: 18 | BA17: 0.08843537415 | BB17: 0.1836734694 | BC17: 0.2925170068 | BD17: 0.3129251701 | BE17: 0.1224489796 | BF17: 147 | BG17: 1 | BH17: 73 | BI17: 0241 | BJ17: RUTH K BROAD/BAY HARBOR K-8 | BK17: 10 | BL17: 28 | BM17: 40 | BN17: 44 | BO17: 38 | BP17: 0.0625 | BQ17: 0.175 | BR17: 0.25 | BS17: 0.275 | BT17: 0.2375 | BU17: 160 | BV17: 1 | BW17: 76 | BX17: 0241 | BY17: RUTH K BROAD/BAY HARBOR K-8 | BZ17: 6 | CA17: 23 | CB17: 33 | CC17: 35 | CD17: 22 | CE17: 0.05042016807 | CF17: 0.1932773109 | CG17: 0.2773109244 | CH17: 0.2941176471 | CI17: 0.1848739496 | CJ17: 119 | CK17: 1 | CL17: 76
A18: 0101 | B18: ARCOLA LAKE ELEMENTARY | C18: 33 | D18: 19 | E18: 13 | F18: 6 | H18: 0.4647887324 | I18: 0.2676056338 | J18: 0.1830985915 | K18: 0.08450704225 | L18: 0 | M18: 71 | N18: 1 | O18: 27 | P18: 0101 | Q18: ARCOLA LAKE ELEMENTARY | R18: 34 | S18: 21 | T18: 12 | U18: 4 | V18: 2 | W18: 0.4657534247 | X18: 0.2876712329 | Y18: 0.1643835616 | Z18: 0.05479452055 | AA18: 0.02739726027 | AB18: 73 | AC18: 1 | AD18: 25 | AE18: 0101 | AF18: ARCOLA LAKE ELEMENTARY | AG18: 18 | AH18: 30 | AI18: 14 | AJ18: 6 | AK18: 1 | AL18: 0.2608695652 | AM18: 0.4347826087 | AN18: 0.2028985507 | AO18: 0.08695652174 | AP18: 0.01449275362 | AQ18: 69 | AR18: 1 | AS18: 30 | AT18: 0332 | AU18: SOMERSET ACADEMY(SILVER PALMS) | AV18: 12 | AW18: 47 | AX18: 70 | AY18: 42 | AZ18: 13 | BA18: 0.0652173913 | BB18: 0.2554347826 | BC18: 0.3804347826 | BD18: 0.2282608696 | BE18: 0.07065217391 | BF18: 184 | BG18: 1 | BH18: 68 | BI18: 0332 | BJ18: SOMERSET ACADEMY(SILVER PALMS) | BK18: 21 | BL18: 41 | BM18: 51 | BN18: 35 | BO18: 20 | BP18: 0.125 | BQ18: 0.244047619 | BR18: 0.3035714286 | BS18: 0.2083333333 | BT18: 0.119047619 | BU18: 168 | BV18: 1 | BW18: 63 | BX18: 0332 | BY18: SOMERSET ACADEMY(SILVER PALMS) | BZ18: 5 | CA18: 17 | CB18: 43 | CC18: 39 | CD18: 23 | CE18: 0.03937007874 | CF18: 0.1338582677 | CG18: 0.3385826772 | CH18: 0.3070866142 | CI18: 0.1811023622 | CJ18: 127 | CK18: 1 | CL18: 83
A19: 0102 | B19: MIAMI COMMUNITY CHARTER SCHOOL | C19: 22 | D19: 17 | E19: 33 | F19: 16 | G19: 3 | H19: 0.2417582418 | I19: 0.1868131868 | J19: 0.3626373626 | K19: 0.1758241758 | L19: 0.03296703297 | M19: 91 | N19: 1 | O19: 57 | P19: 0102 | Q19: MIAMI COMMUNITY CHARTER SCHOOL | R19: 25 | S19: 22 | T19: 16 | U19: 7 | V19: 2 | W19: 0.3472222222 | X19: 0.3055555556 | Y19: 0.2222222222 | Z19: 0.09722222222 | AA19: 0.02777777778 | AB19: 72 | AC19: 1 | AD19: 35 | AE19: 0102 | AF19: MIAMI COMMUNITY CHARTER SCHOOL | AG19: 24 | AH19: 29 | AI19: 20 | AJ19: 5 | AK19: 1 | AL19: 0.3037974684 | AM19: 0.3670886076 | AN19: 0.253164557 | AO19: 0.06329113924 | AP19: 0.01265822785 | AQ19: 79 | AR19: 1 | AS19: 33 | AT19: 0451 | AU19: BOWMAN ASHE/DOOLIN K-8 ACAD | AV19: 30 | AW19: 26 | AX19: 18 | AY19: 18 | AZ19: 3 | BA19: 0.3157894737 | BB19: 0.2736842105 | BC19: 0.1894736842 | BD19: 0.1894736842 | BE19: 0.03157894737 | BF19: 95 | BG19: 1 | BH19: 41 | BI19: 0451 | BJ19: BOWMAN ASHE/DOOLIN K-8 ACAD | BK19: 42 | BL19: 24 | BM19: 29 | BN19: 14 | BO19: 13 | BP19: 0.3442622951 | BQ19: 0.1967213115 | BR19: 0.237704918 | BS19: 0.1147540984 | BT19: 0.106557377 | BU19: 122 | BV19: 1 | BW19: 46 | BX19: 0451 | BY19: BOWMAN ASHE/DOOLIN K-8 ACAD | BZ19: 41 | CA19: 26 | CB19: 22 | CC19: 20 | CD19: 20 | CE19: 0.3178294574 | CF19: 0.2015503876 | CG19: 0.1705426357 | CH19: 0.1550387597 | CI19: 0.1550387597 | CJ19: 129 | CK19: 1 | CL19: 48
A20: 0111 | B20: MAYA ANGELOU ELEMENTARY | C20: 55 | D20: 40 | E20: 30 | F20: 10 | G20: 3 | H20: 0.3985507246 | I20: 0.2898550725 | J20: 0.2173913043 | K20: 0.07246376812 | L20: 0.02173913043 | M20: 138 | N20: 1 | O20: 31 | P20: 0111 | Q20: MAYA ANGELOU ELEMENTARY | R20: 59 | S20: 36 | T20: 26 | U20: 10 | V20: 2 | W20: 0.4436090226 | X20: 0.2706766917 | Y20: 0.1954887218 | Z20: 0.07518796992 | AA20: 0.01503759398 | AB20: 133 | AC20: 1 | AD20: 29 | AE20: 0111 | AF20: MAYA ANGELOU ELEMENTARY | AG20: 39 | AH20: 25 | AI20: 21 | AJ20: 6 | AK20: 3 | AL20: 0.414893617 | AM20: 0.2659574468 | AN20: 0.2234042553 | AO20: 0.06382978723 | AP20: 0.03191489362 | AQ20: 94 | AR20: 1 | AS20: 32 | AT20: 0651 | AU20: CAMPBELL DRIVE K-8 CENTER | AV20: 26 | AW20: 32 | AX20: 15 | AY20: 5 | AZ20: 2 | BA20: 0.325 | BB20: 0.4 | BC20: 0.1875 | BD20: 0.0625 | BE20: 0.025 | BF20: 80 | BG20: 1 | BH20: 28 | BI20: 0651 | BJ20: CAMPBELL DRIVE K-8 CENTER | BK20: 29 | BL20: 25 | BM20: 15 | BN20: 8 | BO20: 1 | BP20: 0.3717948718 | BQ20: 0.3205128205 | BR20: 0.1923076923 | BS20: 0.1025641026 | BT20: 0.01282051282 | BU20: 78 | BV20: 1 | BW20: 31 | BX20: 0651 | BY20: CAMPBELL DRIVE K-8 CENTER | BZ20: 34 | CA20: 18 | CB20: 21 | CC20: 8 | CD20: 1 | CE20: 0.4146341463 | CF20: 0.2195121951 | CG20: 0.256097561 | CH20: 0.09756097561 | CI20: 0.01219512195 | CJ20: 82 | CK20: 1 | CL20: 37
A21: 0121 | B21: AUBURNDALE ELEMENTARY | C21: 42 | D21: 33 | E21: 28 | F21: 16 | G21: 9 | H21: 0.328125 | I21: 0.2578125 | J21: 0.21875 | K21: 0.125 | L21: 0.0703125 | M21: 128 | N21: 1 | O21: 41 | P21: 0121 | Q21: AUBURNDALE ELEMENTARY | R21: 47 | S21: 29 | T21: 44 | U21: 16 | V21: 12 | W21: 0.3175675676 | X21: 0.1959459459 | Y21: 0.2972972973 | Z21: 0.1081081081 | AA21: 0.08108108108 | AB21: 148 | AC21: 1 | AD21: 49 | AE21: 0121 | AF21: AUBURNDALE ELEMENTARY | AG21: 45 | AH21: 31 | AI21: 43 | AJ21: 23 | AK21: 5 | AL21: 0.306122449 | AM21: 0.2108843537 | AN21: 0.2925170068 | AO21: 0.156462585 | AP21: 0.03401360544 | AQ21: 147 | AR21: 1 | AS21: 48 | AT21: 0661 | AU21: CARIBBEAN ELEMENTARY | AV21: 18 | AW21: 23 | AX21: 9 | AY21: 7 | AZ21: 1 | BA21: 0.3103448276 | BB21: 0.3965517241 | BC21: 0.1551724138 | BD21: 0.1206896552 | BE21: 0.01724137931 | BF21: 58 | BG21: 1 | BH21: 29 | BI21: 0761 | BJ21: FIENBERG/FISHER K-8 CENTER | BK21: 34 | BL21: 25 | BM21: 20 | BN21: 6 | BO21: 6 | BP21: 0.3736263736 | BQ21: 0.2747252747 | BR21: 0.2197802198 | BS21: 0.06593406593 | BT21: 0.06593406593 | BU21: 91 | BV21: 1 | BW21: 35 | BX21: 0761 | BY21: FIENBERG/FISHER K-8 CENTER | BZ21: 34 | CA21: 24 | CB21: 24 | CC21: 8 | CD21: 7 | CE21: 0.3505154639 | CF21: 0.2474226804 | CG21: 0.2474226804 | CH21: 0.0824742268 | CI21: 0.07216494845 | CJ21: 97 | CK21: 1 | CL21: 40
A22: 0122 | B22: DR ROLANDO ESPINOSA K-8 | C22: 40 | D22: 37 | E22: 45 | F22: 35 | G22: 24 | H22: 0.2209944751 | I22: 0.2044198895 | J22: 0.2486187845 | K22: 0.1933701657 | L22: 0.1325966851 | M22: 181 | N22: 1 | O22: 57 | P22: 0122 | Q22: DR ROLANDO ESPINOSA K-8 | R22: 79 | S22: 45 | T22: 44 | U22: 45 | V22: 9 | W22: 0.3558558559 | X22: 0.2027027027 | Y22: 0.1981981982 | Z22: 0.2027027027 | AA22: 0.04054054054 | AB22: 222 | AC22: 1 | AD22: 44 | AE22: 0122 | AF22: DR ROLANDO ESPINOSA K-8 | AG22: 51 | AH22: 44 | AI22: 59 | AJ22: 44 | AK22: 17 | AL22: 0.2372093023 | AM22: 0.2046511628 | AN22: 0.2744186047 | AO22: 0.2046511628 | AP22: 0.07906976744 | AQ22: 215 | AR22: 1 | AS22: 56 | AT22: 0761 | AU22: FIENBERG/FISHER K-8 CENTER | AV22: 38 | AW22: 16 | AX22: 6 | AY22: 18 | AZ22: 4 | BA22: 0.4634146341 | BB22: 0.1951219512 | BC22: 0.07317073171 | BD22: 0.2195121951 | BE22: 0.0487804878 | BF22: 82 | BG22: 1 | BH22: 34 | BI22: 0950 | BJ22: AVENTURA CITY OF EXCELLENCE | BK22: 6 | BL22: 15 | BM22: 34 | BN22: 29 | BO22: 29 | BP22: 0.05309734513 | BQ22: 0.1327433628 | BR22: 0.3008849558 | BS22: 0.2566371681 | BT22: 0.2566371681 | BU22: 113 | BV22: 1 | BW22: 81 | BX22: 0950 | BY22: AVENTURA CITY OF EXCELLENCE | BZ22: 6 | CA22: 14 | CB22: 22 | CC22: 28 | CD22: 31 | CE22: 0.05940594059 | CF22: 0.1386138614 | CG22: 0.2178217822 | CH22: 0.2772277228 | CI22: 0.3069306931 | CJ22: 101 | CK22: 1 | CL22: 80
A23: 0125 | B23: NORMA BUTLER BOSSARD ELEM | C23: 25 | D23: 38 | E23: 69 | F23: 69 | G23: 27 | H23: 0.1096491228 | I23: 0.1666666667 | J23: 0.3026315789 | K23: 0.3026315789 | L23: 0.1184210526 | M23: 228 | N23: 1 | O23: 72 | P23: 0125 | Q23: NORMA BUTLER BOSSARD ELEM | R23: 37 | S23: 45 | T23: 74 | U23: 45 | V23: 21 | W23: 0.1666666667 | X23: 0.2027027027 | Y23: 0.3333333333 | Z23: 0.2027027027 | AA23: 0.09459459459 | AB23: 222 | AC23: 1 | AD23: 63 | AE23: 0125 | AF23: NORMA BUTLER BOSSARD ELEM | AG23: 20 | AH23: 32 | AI23: 57 | AJ23: 51 | AK23: 28 | AL23: 0.1063829787 | AM23: 0.170212766 | AN23: 0.3031914894 | AO23: 0.2712765957 | AP23: 0.1489361702 | AQ23: 188 | AR23: 1 | AS23: 72 | AT23: 0950 | AU23: AVENTURA CITY OF EXCELLENCE | AV23: 10 | AW23: 14 | AX23: 25 | AY23: 34 | AZ23: 33 | BA23: 0.08620689655 | BB23: 0.1206896552 | BC23: 0.2155172414 | BD23: 0.2931034483 | BE23: 0.2844827586 | BF23: 116 | BG23: 1 | BH23: 79 | BI23: 0961 | BJ23: CORAL GABLES PREPARATORY ACAD | BK23: 6 | BL23: 10 | BM23: 15 | BN23: 25 | BO23: 36 | BP23: 0.0652173913 | BQ23: 0.1086956522 | BR23: 0.1630434783 | BS23: 0.2717391304 | BT23: 0.3913043478 | BU23: 92 | BV23: 1 | BW23: 83 | BX23: 0961 | BY23: CORAL GABLES PREPARATORY ACAD | BZ23: 4 | CA23: 6 | CB23: 18 | CC23: 20 | CD23: 15 | CE23: 0.06349206349 | CF23: 0.09523809524 | CG23: 0.2857142857 | CH23: 0.3174603175 | CI23: 0.2380952381 | CJ23: 63 | CK23: 1 | CL23: 84
A24: 0161 | B24: AVOCADO ELEMENTARY | C24: 67 | D24: 24 | E24: 16 | F24: 10 | G24: 3 | H24: 0.5583333333 | I24: 0.2 | J24: 0.1333333333 | K24: 0.08333333333 | L24: 0.025 | M24: 120 | N24: 1 | O24: 24 | P24: 0201 | Q24: BANYAN ELEMENTARY | R24: 9 | S24: 11 | T24: 15 | U24: 9 | V24: 8 | W24: 0.1730769231 | X24: 0.2115384615 | Y24: 0.2884615385 | Z24: 0.1730769231 | AA24: 0.1538461538 | AB24: 52 | AC24: 1 | AD24: 62 | AE24: 0201 | AF24: BANYAN ELEMENTARY | AG24: 6 | AH24: 11 | AI24: 23 | AJ24: 22 | AK24: 5 | AL24: 0.08955223881 | AM24: 0.1641791045 | AN24: 0.3432835821 | AO24: 0.328358209 | AP24: 0.07462686567 | AQ24: 67 | AR24: 1 | AS24: 75 | AT24: 0961 | AU24: CORAL GABLES PREPARATORY ACAD | AV24: 4 | AW24: 14 | AX24: 15 | AY24: 31 | AZ24: 14 | BA24: 0.05128205128 | BB24: 0.1794871795 | BC24: 0.1923076923 | BD24: 0.3974358974 | BE24: 0.1794871795 | BF24: 78 | BG24: 1 | BH24: 77 | BI24: 1014 | BJ24: HIVE PREPARATORY SCHOOL | BK24: 3 | BL24: 8 | BM24: 14 | BN24: 4 | BO24: 9 | BP24: 0.07894736842 | BQ24: 0.2105263158 | BR24: 0.3684210526 | BS24: 0.1052631579 | BT24: 0.2368421053 | BU24: 38 | BV24: 1 | BW24: 71 | BX24: 1014 | BY24: HIVE PREPARATORY SCHOOL | CA24: 3 | CB24: 2 | CC24: 3 | CD24: 1 | CE24: 0 | CF24: 0.3333333333 | CG24: 0.2222222222 | CH24: 0.3333333333 | CI24: 0.1111111111 | CJ24: 9 | CK24: 1
